Workbook

Sheet Units (hidden)
A1: Temp | B1: Pressure | C1: GasRate
A2: K | B2: psia | C2: mmscf/d
A3: C | B3: psig | C3: mscf/d
A4: F | B4: bara | C4: scf/d
B5: barg | C5: mmsm3/d
B6: atma | C6: msm3/d
B7: atmg | C7: sm3/d
B8: kPa a | C8: sm3/s
B9: kPa g | C9: sm3/h
B10: mPa a
B11: mPa g
B12: kg/cm2 a
B13: kg/cm2 g
B14: Pa a
B15: Pa g

Sheet Техреж скв опт
Z1: "УТВЕРЖДАЮ”
Z2: Заместитель генерального директора -
Z3: главный геолог
Z4: ОАО"Севернефтегазпром"
Z7: _____________В.В.Воробьев
Z8: "_____"___________2024 год
A9: ТЕХНОЛОГИЧЕСКИЙ РЕЖИМ РАБОТЫ ГАЗОВЫХ СКВАЖИН ЮЖНО-РУССКОГО МЕСТОРОЖДЕНИЯ
A11: на октябрь 2024
A12: № скв. | B12: № шлейфа | C12: Геолого-технические данные скважин | K12: Геолого-промысловые данные на конец месяца
C14: Тип скважины | D14: Н эф. м | E14: Н эф. перф. м | F14: Диам. экспл. кол. мм | G14: Иск. Забой м | H14: Перфорация, м. | I14: Глубина | J14: Диаметр и глубина НКТ, мм/м | K14: Статическое давление, кгс/см2 | M14: Давл. пласт, кгс/см2 | N14: Давл. труб., кгс/см2 | O14: Давл. затр., кгс/см2 | P14: Давл. забойн., кгс/см2 | Q14: Депрессия, кгс/см2 | R14: Депрессия 2, кгс/см2 | S14: Туст, 0С | T14: Дебит газа, тыс.м3 | U14: Скорость газа в НКТ м/сек | V14: Кран 12-П закрыт
I15: середины
I16: интервала | K16: Дата | L16: Значение | V16: Давл. труб., кгс/см2 | W16: Давл. затр., кгс/см2 | X16: Давл. забойн., кгс/см2 | Y16: Депр., кгс/см2 | Z16: Т уст., 0С | AA16: Дебит газа, тыс.м3 | AB16: Диаметр штуцера, % | AC16: Диаметр лимитной шайбы, мм | AD16: Гидратный / безгидратный режим | AE16: Скорость газа в НКТ м/сек
I17: перфор. | K17: замера
I18: по верт. | AF18: =Сеноман!G2 -> 18.8 | AG18: Ртр
A19: 1 | B19: 2 | C19: =B19+1 -> 3 | D19: 4 | E19: 5 | F19: 6 | G19: 7 | H19: 8 | I19: 9 | J19: 10 | K19: 11 | L19: 12 | M19: 13 | N19: 14 | O19: 15 | P19: 16 | Q19: 17 | S19: =Q19+1 -> 18 | T19: =S19+1 -> 19 | U19: =T19+1 -> 20 | V19: =1+U19 -> 21 | W19: =V19+1 -> 22 | X19: 23 | Y19: 24 | Z19: 25 | AA19: 26 | AB19: 27 | AC19: 28 | AD19: 29 | AE19: 30 | AF19: Тср | AG19: Zустье | AH19: S | AI19: E^S
A20: Объект ПК1
A21: 11 | B21: 8 | C21: ННС | D21: 52.8 | E21: 30.8 | F21: 168 | G21: 1079 | H21: 1029-1071 | I21: 925.329 | J21: 114/875,12 | K21: 25.07.2023 | L21: 31.88 | M21: =VLOOKUP(A21,Сеноман!B:K,5,FALSE) -> 51.5527371 | N21: =VLOOKUP(A21,Сеноман!B:K,7,FALSE) -> 36.23 | O21: =VLOOKUP(A21,Сеноман!B:K,8,FALSE) -> 44.68 | P21: =VLOOKUP(A21,Сеноман!B:M,11,FALSE) -> 50.43407631 | Q21: =VLOOKUP(A21,Сеноман!B:M,12,FALSE) -> 1.118660794 | R21: 8 | S21: =VLOOKUP(A21,Сеноман!B:M,9,FALSE) -> 6.5 | T21: =VLOOKUP(A21,Сеноман!B:M,6,FALSE) -> 640 | U21: =VLOOKUP(A21,Сеноман!B:M,10,FALSE) -> 18.24521828 | V21: =VLOOKUP(A21,Тнав!A:D,2,FALSE) -> 17.73005674 | W21: =X21/AI21 ->  | X21: =M21-Y21 -> 39.7435579 | Y21: =VLOOKUP(A21,Тнав!A:D,3,FALSE) -> 11.8091792 | Z21: =VLOOKUP(A21,'Состояние фонда'!C:AB,20,FALSE) -> 8.18 | AA21: =VLOOKUP(A21,Тнав!A:E,4,FALSE) -> 470.4120185 | AB21: =VLOOKUP(A21,'Состояние фонда'!C:AB,21,FALSE) -> 97 | AD21: безгидратный | AE21: 16.52297038 | AF21: =(($AF$18+273.15)-(Z21+273.15))/(LN(($AF$18+273.15)/(Z21+273.15))) -> 286.6072078 | AG21: =1/(1+(5*10^7*0.098*V21)/(Z21+273.15)^3.825) -> 0.9641252976 | AH21: =(0.5647*0.03415*MID(J21,5,7)/(AF21*AG21)) ->  | AI21: =ROUND(EXP(AH21),4) -> 
A22: 12 | C22: ННС | D22: 58.9 | E22: 30 | F22: 168 | G22: 1071 | H22: 1031-1061 | I22: 921.11 | J22: 114/865,884 | K22: 25.07.2023 | L22: 31.8 | M22: =VLOOKUP(A22,Сеноман!B:K,5,FALSE) -> 51.37206731 | N22: =VLOOKUP(A22,Сеноман!B:K,7,FALSE) -> 35.82 | O22: =VLOOKUP(A22,Сеноман!B:K,8,FALSE) -> 46.44 | P22: =VLOOKUP(A22,Сеноман!B:M,11,FALSE) -> 52.34906254 | Q22: =VLOOKUP(A22,Сеноман!B:M,12,FALSE) -> -0.9769952367 | R22: 8 | S22: =VLOOKUP(A22,Сеноман!B:M,9,FALSE) -> 6.7 | T22: =VLOOKUP(A22,Сеноман!B:M,6,FALSE) -> 746 | U22: =VLOOKUP(A22,Сеноман!B:M,10,FALSE) -> 20.3872757 | V22: =VLOOKUP(A22,Тнав!A:D,2,FALSE) -> 18.29913763 | W22: 2.587592846e-25 | X22: 48.53310872 | Y22: =VLOOKUP(A22,Тнав!A:D,3,FALSE) -> 2.838958584 | Z22: =VLOOKUP(A22,'Состояние фонда'!C:AB,20,FALSE) -> 8.2 | AA22: =VLOOKUP(A22,Тнав!A:E,4,FALSE) -> 553.7304359 | AB22: =VLOOKUP(A22,'Состояние фонда'!C:AB,21,FALSE) -> 59 | AD22: безгидратный | AE22: 15.64145224 | AF22: 286.6173323 | AG22: 0.9630260974 | AH22: =(0.5647*0.03415*MID(J22,5,7)/(AF22*AG22)) -> 60.4961455 | AI22: 1.875608398e+26
A23: 13 | C23: ННС | D23: 59.7 | E23: 32.4 | F23: 168 | G23: 1076 | H23: 1045-1078 | I23: 929.344 | J23: 114/872,666 | K23: 25.07.2023 | L23: 32.01 | M23: =VLOOKUP(A23,Сеноман!B:K,5,FALSE) -> 51.69139625 | N23: =VLOOKUP(A23,Сеноман!B:K,7,FALSE) -> 35.95 | O23: =VLOOKUP(A23,Сеноман!B:K,8,FALSE) -> 46.84 | P23: =VLOOKUP(A23,Сеноман!B:M,11,FALSE) -> 52.85367521 | Q23: =VLOOKUP(A23,Сеноман!B:M,12,FALSE) -> -1.162278954 | R23: 8 | S23: =VLOOKUP(A23,Сеноман!B:M,9,FALSE) -> 6.5 | T23: =VLOOKUP(A23,Сеноман!B:M,6,FALSE) -> 748 | U23: =VLOOKUP(A23,Сеноман!B:M,10,FALSE) -> 20.2346077 | V23: =VLOOKUP(A23,Тнав!A:D,2,FALSE) -> 18.37019283 | W23: 1.584298906e-25 | X23: 49.43093463 | Y23: =VLOOKUP(A23,Тнав!A:D,3,FALSE) -> 2.260461623 | Z23: =VLOOKUP(A23,'Состояние фонда'!C:AB,20,FALSE) -> 8.01 | AA23: =VLOOKUP(A23,Тнав!A:E,4,FALSE) -> 694.0809369 | AB23: =VLOOKUP(A23,'Состояние фонда'!C:AB,21,FALSE) -> 50.1 | AD23: безгидратный | AE23: 19.24988248 | AF23: 286.5211394 | AG23: 0.9627954089 | AH23: =(0.5647*0.03415*MID(J23,5,7)/(AF23*AG23)) -> 61.00506178 | AI23: 3.120051048e+26
A24: 21 | B24: 9 | C24: ННС | D24: 44.2 | E24: 32.9 | F24: 168 | G24: 1091.5 | H24: 1047-1088 | I24: 935.035 | J24: 114/879,106 | K24: 25.07.2023 | L24: 31.26 | M24: =VLOOKUP(A24,Сеноман!B:K,5,FALSE) -> 50.48987447 | N24: =VLOOKUP(A24,Сеноман!B:K,7,FALSE) -> 38.17 | O24: =VLOOKUP(A24,Сеноман!B:K,8,FALSE) -> 42.92 | P24: =VLOOKUP(A24,Сеноман!B:M,11,FALSE) -> 48.45432394 | Q24: =VLOOKUP(A24,Сеноман!B:M,12,FALSE) -> 2.03555053 | R24: 8 | S24: =VLOOKUP(A24,Сеноман!B:M,9,FALSE) -> 6.1 | T24: =VLOOKUP(A24,Сеноман!B:M,6,FALSE) -> 468 | U24: =VLOOKUP(A24,Сеноман!B:M,10,FALSE) -> 13.93516254 | V24: =VLOOKUP(A24,Тнав!A:D,2,FALSE) -> 14.78728747 | W24: 1.370643978e-25 | X24: 43.17611346 | Y24: =VLOOKUP(A24,Тнав!A:D,3,FALSE) -> 7.31376101 | Z24: =VLOOKUP(A24,'Состояние фонда'!C:AB,20,FALSE) -> 7.97 | AA24: =VLOOKUP(A24,Тнав!A:E,4,FALSE) -> 425.4151404 | AB24: =VLOOKUP(A24,'Состояние фонда'!C:AB,21,FALSE) -> 100 | AD24: безгидратный | AE24: 13.63492852 | AF24: 286.5008855 | AG24: 0.9698169283 | AH24: =(0.5647*0.03415*MID(J24,5,7)/(AF24*AG24)) -> 61.01463405 | AI24: 3.15006042e+26
A25: 22 | C25: Суб.ГС | D25: 114.4 | E25: 114.4 | F25: 168 | G25: 1232.2 | H25: 1109,79-1232,2 | I25: 929.52 | J25: 114/870,689 | K25: 25.07.2023 | L25: 31.3 | M25: =VLOOKUP(A25,Сеноман!B:K,5,FALSE) -> 50.2430689 | N25: =VLOOKUP(A25,Сеноман!B:K,7,FALSE) -> 33.88 | O25: =VLOOKUP(A25,Сеноман!B:K,8,FALSE) -> 44.8 | P25: =VLOOKUP(A25,Сеноман!B:M,11,FALSE) -> 50.54053385 | Q25: =VLOOKUP(A25,Сеноман!B:M,12,FALSE) -> -0.2974649502 | R25: 8 | S25: =VLOOKUP(A25,Сеноман!B:M,9,FALSE) -> 6.4 | T25: =VLOOKUP(A25,Сеноман!B:M,6,FALSE) -> 596 | U25: =VLOOKUP(A25,Сеноман!B:M,10,FALSE) -> 16.93927765 | V25: =VLOOKUP(A25,Тнав!A:D,2,FALSE) -> 15.36573809 | W25: 39.53080925 | X25: 43.05695744 | Y25: =VLOOKUP(A25,Тнав!A:D,3,FALSE) -> 7.186111468 | Z25: =VLOOKUP(A25,'Состояние фонда'!C:AB,20,FALSE) -> 7.97 | AA25: =VLOOKUP(A25,Тнав!A:E,4,FALSE) -> 518.3522595 | AB25: =VLOOKUP(A25,'Состояние фонда'!C:AB,21,FALSE) -> 96.9 | AD25: безгидратный | AE25: 16.65962141 | AF25: 286.5008855 | AG25: 0.9686732115 | AH25: 0.08545736984 | AI25: 1.0892
A26: 23 | C26: Суб.ГС | D26: 82.3 | E26: 81.2 | F26: 168 | G26: 1205.22 | H26: 1118,45-1205,22 | I26: 933.667 | J26: 114/870,858 | K26: 25.07.2023 | L26: 31.51 | M26: =VLOOKUP(A26,Сеноман!B:K,5,FALSE) -> 50.22125853 | N26: =VLOOKUP(A26,Сеноман!B:K,7,FALSE) -> 34.15 | O26: =VLOOKUP(A26,Сеноман!B:K,8,FALSE) -> 43.55 | P26: =VLOOKUP(A26,Сеноман!B:M,11,FALSE) -> 49.09958121 | Q26: =VLOOKUP(A26,Сеноман!B:M,12,FALSE) -> 1.121677317 | R26: 8 | S26: =VLOOKUP(A26,Сеноман!B:M,9,FALSE) -> 6.6 | T26: =VLOOKUP(A26,Сеноман!B:M,6,FALSE) -> 613 | U26: =VLOOKUP(A26,Сеноман!B:M,10,FALSE) -> 17.978302 | V26: =VLOOKUP(A26,Тнав!A:D,2,FALSE) -> 14.88403427 | W26: 2.422456243e-25 | X26: 42.93872973 | Y26: =VLOOKUP(A26,Тнав!A:D,3,FALSE) -> 7.282528803 | Z26: =VLOOKUP(A26,'Состояние фонда'!C:AB,20,FALSE) -> 8.08 | AA26: =VLOOKUP(A26,Тнав!A:E,4,FALSE) -> 452.8511299 | AB26: =VLOOKUP(A26,'Состояние фонда'!C:AB,21,FALSE) -> 100 | AD26: безгидратный | AE26: 14.5945172 | AF26: 286.5565814 | AG26: 0.9696694927 | AH26: =(0.5647*0.03415*MID(J26,5,7)/(AF26*AG26)) -> 60.43961953 | AI26: 1.7725286e+26
A27: 31 | B27: 8 | C27: ННС | D27: 35.3 | E27: 29.5 | F27: 168 | G27: 1095 | H27: 1055-1088,5 | I27: 936.057 | J27: 114/868,892 | K27: 24.07.2023 | L27: 30.84 | M27: =VLOOKUP(A27,Сеноман!B:K,5,FALSE) -> 49.41148699 | N27: =VLOOKUP(A27,Сеноман!B:K,7,FALSE) -> 42.2 | O27: =VLOOKUP(A27,Сеноман!B:K,8,FALSE) -> 43.17 | P27: =VLOOKUP(A27,Сеноман!B:M,11,FALSE) -> 48.72424475 | Q27: =VLOOKUP(A27,Сеноман!B:M,12,FALSE) -> 0.687242241 | R27: 8 | S27: =VLOOKUP(A27,Сеноман!B:M,9,FALSE) -> 3.8 | T27: =VLOOKUP(A27,Сеноман!B:M,6,FALSE) -> 266 | U27: =VLOOKUP(A27,Сеноман!B:M,10,FALSE) -> 7.867070198 | V27: =VLOOKUP(A27,Тнав!A:D,2,FALSE) -> 16.01734443 | W27: 1.628168347e-25 | X27: 37.88413908 | Y27: =VLOOKUP(A27,Тнав!A:D,3,FALSE) -> 11.52734791 | Z27: =VLOOKUP(A27,'Состояние фонда'!C:AB,20,FALSE) -> 6.08 | AA27: =VLOOKUP(A27,Тнав!A:E,4,FALSE) -> 254.8503643 | AB27: =VLOOKUP(A27,'Состояние фонда'!C:AB,21,FALSE) -> 54.1 | AD27: безгидратный | AE27: 9.390836839 | AF27: 285.542782 | AG27: 0.9665641524 | AH27: 60.71170419 | AI27: 2.326794963e+26
A28: 32 | C28: ННС | D28: 26.8 | E28: 24.5 | F28: 168 | G28: 1104.5 | H28: 1060-1102 | I28: 939.093 | J28: 114/874,484 | K28: 24.07.2023 | L28: 30.84 | M28: =VLOOKUP(A28,Сеноман!B:K,5,FALSE) -> 49.45668204 | N28: =VLOOKUP(A28,Сеноман!B:K,7,FALSE) -> 34.6 | O28: =VLOOKUP(A28,Сеноман!B:K,8,FALSE) -> 42.19 | P28: =VLOOKUP(A28,Сеноман!B:M,11,FALSE) ->  | Q28: =VLOOKUP(A28,Сеноман!B:M,12,FALSE) ->  | R28: 8 | S28: =VLOOKUP(A28,Сеноман!B:M,9,FALSE) -> 7 | T28: =VLOOKUP(A28,Сеноман!B:M,6,FALSE) -> 562 | U28: =VLOOKUP(A28,Сеноман!B:M,10,FALSE) -> 17.04633141 | V28: =VLOOKUP(A28,Тнав!A:D,2,FALSE) -> 12.47393674 | W28: 2.029043692e-25 | X28: 37.26486268 | Y28: =VLOOKUP(A28,Тнав!A:D,3,FALSE) -> 12.19181935 | Z28: =VLOOKUP(A28,'Состояние фонда'!C:AB,20,FALSE) -> 7.44 | AA28: =VLOOKUP(A28,Тнав!A:E,4,FALSE) -> 363.9271588 | AB28: =VLOOKUP(A28,'Состояние фонда'!C:AB,21,FALSE) -> 98.9 | AD28: безгидратный | AE28: 13.76266059 | AF28: 286.2324297 | AG28: 0.9742374808 | AH28: 60.47511359 | AI28: 1.836572708e+26
A29: 33 | C29: ННС | D29: 56.4 | E29: 33 | F29: 168 | G29: 1098 | H29: 1050-1098 | I29: 938.13 | J29: 114/873,085 | K29: 24.07.2023 | L29: 30.92 | M29: =VLOOKUP(A29,Сеноман!B:K,5,FALSE) -> 49.48994633 | N29: =VLOOKUP(A29,Сеноман!B:K,7,FALSE) -> 34.44 | O29: =VLOOKUP(A29,Сеноман!B:K,8,FALSE) -> 43.12 | P29: =VLOOKUP(A29,Сеноман!B:M,11,FALSE) -> 48.62786483 | Q29: =VLOOKUP(A29,Сеноман!B:M,12,FALSE) -> 0.8620815019 | R29: 8 | S29: =VLOOKUP(A29,Сеноман!B:M,9,FALSE) -> 6.7 | T29: =VLOOKUP(A29,Сеноман!B:M,6,FALSE) -> 667 | U29: =VLOOKUP(A29,Сеноман!B:M,10,FALSE) -> 19.75662422 | V29: =VLOOKUP(A29,Тнав!A:D,2,FALSE) -> 13.14621455 | W29: 2.0617702e-25 | X29: 39.21548464 | Y29: =VLOOKUP(A29,Тнав!A:D,3,FALSE) -> 10.27446169 | Z29: =VLOOKUP(A29,'Состояние фонда'!C:AB,20,FALSE) -> 7.07 | AA29: =VLOOKUP(A29,Тнав!A:E,4,FALSE) -> 411.722879 | AB29: =VLOOKUP(A29,'Состояние фонда'!C:AB,21,FALSE) -> 98.9 | AD29: безгидратный | AE29: 14.65628404 | AF29: 286.0449162 | AG29: 0.9727532126 | AH29: 60.51013408 | AI29: 1.90202985e+26
A30: 41 | B30: 9 | C30: ННС | D30: 64.7 | E30: 45.8 | F30: 168 | G30: 1099 | H30: 1062-1101 | I30: 941.128 | J30: 114/877,919 | K30: 24.07.2023 | L30: 31.3 | M30: =VLOOKUP(A30,Сеноман!B:K,5,FALSE) -> 50.1440047 | N30: =VLOOKUP(A30,Сеноман!B:K,7,FALSE) -> 34.94 | O30: =VLOOKUP(A30,Сеноман!B:K,8,FALSE) -> 43.17 | P30: =VLOOKUP(A30,Сеноман!B:M,11,FALSE) -> 48.7205935 | Q30: =VLOOKUP(A30,Сеноман!B:M,12,FALSE) -> 1.423411193 | R30: 8 | S30: =VLOOKUP(A30,Сеноман!B:M,9,FALSE) -> 6.5 | T30: =VLOOKUP(A30,Сеноман!B:M,6,FALSE) -> 714 | U30: =VLOOKUP(A30,Сеноман!B:M,10,FALSE) -> 21.11719322 | V30: =VLOOKUP(A30,Тнав!A:D,2,FALSE) -> 15.80760374 | W30: 1.328111063e-25 | X30: 42.01080996 | Y30: =VLOOKUP(A30,Тнав!A:D,3,FALSE) -> 8.133194739 | Z30: =VLOOKUP(A30,'Состояние фонда'!C:AB,20,FALSE) -> 8.27 | AA30: =VLOOKUP(A30,Тнав!A:E,4,FALSE) -> 394.3453878 | AB30: =VLOOKUP(A30,'Состояние фонда'!C:AB,21,FALSE) -> 96.8 | AD30: безгидратный | AE30: 13.10364653 | AF30: 286.6527663 | AG30: 0.9679282563 | AH30: 61.01879661 | AI30: 3.163200061e+26
A31: 42 | C31: Суб.ГС | D31: 65.9 | E31: 34.2 | F31: 168 | G31: 1206 | H31: 1100-1200 | I31: 939.81 | J31: 114/875,39 | K31: 24.07.2023 | L31: 31.47 | M31: =VLOOKUP(A31,Сеноман!B:K,5,FALSE) -> 50.28018413 | N31: =VLOOKUP(A31,Сеноман!B:K,7,FALSE) -> 34.86 | O31: =VLOOKUP(A31,Сеноман!B:K,8,FALSE) -> 43.89 | P31: =VLOOKUP(A31,Сеноман!B:M,11,FALSE) -> 49.51970673 | Q31: =VLOOKUP(A31,Сеноман!B:M,12,FALSE) -> 0.7604773991 | R31: 8 | S31: =VLOOKUP(A31,Сеноман!B:M,9,FALSE) -> 6.3 | T31: =VLOOKUP(A31,Сеноман!B:M,6,FALSE) -> 656 | U31: =VLOOKUP(A31,Сеноман!B:M,10,FALSE) -> 19.05513191 | V31: =VLOOKUP(A31,Тнав!A:D,2,FALSE) -> 15.86670851 | X31: 43.6573546 | Y31: =VLOOKUP(A31,Тнав!A:D,3,FALSE) -> 6.622829524 | Z31: =VLOOKUP(A31,'Состояние фонда'!C:AB,20,FALSE) -> 8.12 | AA31: =VLOOKUP(A31,Тнав!A:E,4,FALSE) -> 414.9590782 | AB31: =VLOOKUP(A31,'Состояние фонда'!C:AB,21,FALSE) -> 93.8 | AD31: безгидратный | AE31: 13.15319696 | AF31: 286.5768327 | AG31: 0.9677486109
A32: 43 | C32: Суб.ГС | D32: 77.9 | E32: 25 | F32: 168 | G32: 1251.6 | H32: 1113,83-1251,6 | I32: 942.389 | J32: 114/875,661 | K32: 24.07.2023 | L32: 31.41 | M32: =VLOOKUP(A32,Сеноман!B:K,5,FALSE) -> 50.25763881 | N32: =VLOOKUP(A32,Сеноман!B:K,7,FALSE) -> 34.51 | O32: =VLOOKUP(A32,Сеноман!B:K,8,FALSE) -> 44.76 | P32: =VLOOKUP(A32,Сеноман!B:M,11,FALSE) -> 50.52813943 | Q32: =VLOOKUP(A32,Сеноман!B:M,12,FALSE) -> -0.2705006272 | R32: 8 | S32: =VLOOKUP(A32,Сеноман!B:M,9,FALSE) -> 6.5 | T32: =VLOOKUP(A32,Сеноман!B:M,6,FALSE) -> 600 | U32: =VLOOKUP(A32,Сеноман!B:M,10,FALSE) -> 17.05280113 | V32: =VLOOKUP(A32,Тнав!A:D,2,FALSE) -> 15.94079231 | W32: 1.550574893e-25 | X32: 43.42813853 | Y32: =VLOOKUP(A32,Тнав!A:D,3,FALSE) -> 6.829500278 | Z32: =VLOOKUP(A32,'Состояние фонда'!C:AB,20,FALSE) -> 8.13 | AA32: =VLOOKUP(A32,Тнав!A:E,4,FALSE) -> 367.064165 | AB32: =VLOOKUP(A32,'Состояние фонда'!C:AB,21,FALSE) -> 71 | AD32: безгидратный | AE32: 11.6964547 | AF32: 286.5818954 | AG32: 0.967607166 | AH32: 60.89710915 | AI32: 2.800776584e+26
A33: 51 | B33: 7 | C33: ННС | D33: 76.8 | E33: 52 | F33: 168 | G33: 1036 | H33: 975-1046 | I33: 914.493 | J33: 114/868,923 | K33: 24.07.2023 | L33: 29.88 | M33: =VLOOKUP(A33,Сеноман!B:K,5,FALSE) -> 48.49051936 | N33: =VLOOKUP(A33,Сеноман!B:K,7,FALSE) -> 35.13 | O33: =VLOOKUP(A33,Сеноман!B:K,8,FALSE) -> 41.99 | P33: =VLOOKUP(A33,Сеноман!B:M,11,FALSE) -> 47.37557429 | Q33: =VLOOKUP(A33,Сеноман!B:M,12,FALSE) -> 1.114945076 | R33: 8 | S33: =VLOOKUP(A33,Сеноман!B:M,9,FALSE) -> 4.7 | T33: =VLOOKUP(A33,Сеноман!B:M,6,FALSE) -> 549 | U33: =VLOOKUP(A33,Сеноман!B:M,10,FALSE) -> 16.75912476 | V33: =VLOOKUP(A33,Тнав!A:D,2,FALSE) -> 24.69304306 | W33: 2.342173385e-26 | X33: 48.49051936 | Y33: =VLOOKUP(A33,Тнав!A:D,3,FALSE) -> 0 | Z33: =VLOOKUP(A33,'Состояние фонда'!C:AB,20,FALSE) -> -0.79 | AA33: =VLOOKUP(A33,Тнав!A:E,4,FALSE) -> 72.95082277 | AB33: =VLOOKUP(A33,'Состояние фонда'!C:AB,21,FALSE) -> 20.2 | AD33: безгидратный | AE33: 2.062481904 | AF33: 282.0416192 | AG33: 0.9445896786 | AH33: 62.89750142 | AI33: 2.070321509e+27
A34: 52 | C34: ННС | D34: 78.1 | E34: 32.5 | F34: 168 | G34: 1052.5 | H34: 978,5-1057 | I34: 918.584 | J34: 114/879,106 | K34: 24.07.2023 | L34: 30.06 | M34: =VLOOKUP(A34,Сеноман!B:K,5,FALSE) -> 48.52652954 | N34: =VLOOKUP(A34,Сеноман!B:K,7,FALSE) -> 33.05 | O34: =VLOOKUP(A34,Сеноман!B:K,8,FALSE) -> 42.51 | P34: =VLOOKUP(A34,Сеноман!B:M,11,FALSE) -> 48.01118573 | Q34: =VLOOKUP(A34,Сеноман!B:M,12,FALSE) -> 0.5153438098 | R34: 8 | S34: =VLOOKUP(A34,Сеноман!B:M,9,FALSE) -> 5.1 | T34: =VLOOKUP(A34,Сеноман!B:M,6,FALSE) -> 662 | U34: =VLOOKUP(A34,Сеноман!B:M,10,FALSE) -> 19.92475319 | V34: =VLOOKUP(A34,Тнав!A:D,2,FALSE) -> 22.74475639 | X34: 44.81006398 | Y34: =VLOOKUP(A34,Тнав!A:D,3,FALSE) -> 3.71646556 | Z34: =VLOOKUP(A34,'Состояние фонда'!C:AB,20,FALSE) -> 0.71 | AA34: =VLOOKUP(A34,Тнав!A:E,4,FALSE) -> 89.46366672 | AB34: =VLOOKUP(A34,'Состояние фонда'!C:AB,21,FALSE) -> 50.2 | AC34: 16 | AD34: безгидратный | AE34: 2.762832776 | AF34: 282.8085785 | AG34: 0.9497495938 | AH34: =(0.5647*0.03415*MID(J34,4,4)/(AF34*AG34)) -> 
A35: 53 | C35: ННС | D35: 74.7 | E35: 25 | F35: 168 | G35: 1033 | H35: 1003-1028 | I35: 916.561 | J35: 114/820,968 | K35: 24.07.2023 | L35: 29.86 | M35: =VLOOKUP(A35,Сеноман!B:K,5,FALSE) -> 48.34970514 | N35: =VLOOKUP(A35,Сеноман!B:K,7,FALSE) -> 35.88 | O35: =VLOOKUP(A35,Сеноман!B:K,8,FALSE) -> 43.28 | P35: =VLOOKUP(A35,Сеноман!B:M,11,FALSE) -> 48.48143262 | Q35: =VLOOKUP(A35,Сеноман!B:M,12,FALSE) -> -0.131727481 | R35: 8 | S35: =VLOOKUP(A35,Сеноман!B:M,9,FALSE) -> 5.5 | T35: =VLOOKUP(A35,Сеноман!B:M,6,FALSE) -> 693 | U35: =VLOOKUP(A35,Сеноман!B:M,10,FALSE) -> 20.5518074 | V35: =VLOOKUP(A35,Тнав!A:D,2,FALSE) -> 25.95164403 | W35: 5.771557761e-25 | X35: 46.18414905 | Y35: =VLOOKUP(A35,Тнав!A:D,3,FALSE) -> 2.165556089 | Z35: =VLOOKUP(A35,'Состояние фонда'!C:AB,20,FALSE) -> -1.11 | AA35: =VLOOKUP(A35,Тнав!A:E,4,FALSE) -> 67.95621662 | AB35: =VLOOKUP(A35,'Состояние фонда'!C:AB,21,FALSE) -> 17.2 | AD35: безгидратный | AE35: 2.036196636 | AF35: 281.8778171 | AG35: 0.9416829771 | AH35: =(0.5647*0.03415*MID(J35,5,7)/(AF35*AG35)) -> 59.64432195 | AI35: 8.002024923e+25
A36: 54 | C36: ННС | D36: 59.7 | E36: 23 | F36: 168 | G36: 1011.5 | H36: 983-1006 | I36: 904.016 | J36: 114/850,438 | K36: 24.07.2023 | L36: 29.61 | M36: =VLOOKUP(A36,Сеноман!B:K,5,FALSE) -> 48.11927606 | N36: =VLOOKUP(A36,Сеноман!B:K,7,FALSE) -> 33.75 | O36: =VLOOKUP(A36,Сеноман!B:K,8,FALSE) -> 41.79 | P36: =VLOOKUP(A36,Сеноман!B:M,11,FALSE) -> 47.00944805 | Q36: =VLOOKUP(A36,Сеноман!B:M,12,FALSE) -> 1.109828014 | R36: 8 | S36: =VLOOKUP(A36,Сеноман!B:M,9,FALSE) -> 5.2 | T36: =VLOOKUP(A36,Сеноман!B:M,6,FALSE) -> 671 | U36: =VLOOKUP(A36,Сеноман!B:M,10,FALSE) -> 20.62333107 | V36: =VLOOKUP(A36,Тнав!A:D,2,FALSE) -> 24.87882313 | W36: 1.566722416e-25 | X36: 45.54214145 | Y36: =VLOOKUP(A36,Тнав!A:D,3,FALSE) -> 2.577134614 | Z36: =VLOOKUP(A36,'Состояние фонда'!C:AB,20,FALSE) -> 3.36 | AA36: =VLOOKUP(A36,Тнав!A:E,4,FALSE) -> 206.1546631 | AB36: =VLOOKUP(A36,'Состояние фонда'!C:AB,21,FALSE) -> 32.3 | AD36: безгидратный | AE36: 6.26416494 | AF36: 284.1600917 | AG36: 0.9471666281 | AH36: 60.9342796 | AI36: 2.906841759e+26
A37: 61 | C37: ННС | D37: 58.4 | E37: 36 | F37: 168 | G37: 1042.3 | H37: 985-1040 | I37: 913.598 | J37: 114/862,846 | K37: 24.07.2023 | L37: 29.41 | M37: =VLOOKUP(A37,Сеноман!B:K,5,FALSE) -> 48.20668447 | N37: =VLOOKUP(A37,Сеноман!B:K,7,FALSE) -> 34.78 | O37: =VLOOKUP(A37,Сеноман!B:K,8,FALSE) -> 43.66 | P37: =VLOOKUP(A37,Сеноман!B:M,11,FALSE) -> 49.21373555 | Q37: =VLOOKUP(A37,Сеноман!B:M,12,FALSE) -> -1.007051081 | R37: 8 | S37: =VLOOKUP(A37,Сеноман!B:M,9,FALSE) -> 4.9 | T37: =VLOOKUP(A37,Сеноман!B:M,6,FALSE) -> 657 | U37: =VLOOKUP(A37,Сеноман!B:M,10,FALSE) -> 19.22213364 | V37: =VLOOKUP(A37,Тнав!A:D,2,FALSE) -> 12.21616841 | W37: 2.776072176e-25 | X37: 38.4161102 | Y37: =VLOOKUP(A37,Тнав!A:D,3,FALSE) -> 9.790574264 | Z37: =VLOOKUP(A37,'Состояние фонда'!C:AB,20,FALSE) -> 3.12 | AA37: =VLOOKUP(A37,Тнав!A:E,4,FALSE) -> 116.9345588 | AB37: =VLOOKUP(A37,'Состояние фонда'!C:AB,21,FALSE) -> 40.4 | AD37: безгидратный | AE37: 4.249188048 | AF37: 284.0378706 | AG37: 0.9732541834 | AH37: 60.19206719 | AI37: 1.383829662e+26
A38: 62 | C38: ННС | D38: 53.3 | E38: 33 | F38: 168 | G38: 1045 | H38: 988-1041 | I38: 912.119 | J38: 114/861,031 | K38: 24.07.2023 | L38: 28.91 | M38: =VLOOKUP(A38,Сеноман!B:K,5,FALSE) -> 48.14592133 | N38: =VLOOKUP(A38,Сеноман!B:K,7,FALSE) -> 32.03 | O38: =VLOOKUP(A38,Сеноман!B:K,8,FALSE) -> 42.22 | P38: =VLOOKUP(A38,Сеноман!B:M,11,FALSE) -> 47.55506786 | Q38: =VLOOKUP(A38,Сеноман!B:M,12,FALSE) -> 0.5908534704 | R38: 8 | S38: =VLOOKUP(A38,Сеноман!B:M,9,FALSE) -> 5.6 | T38: =VLOOKUP(A38,Сеноман!B:M,6,FALSE) -> 659 | U38: =VLOOKUP(A38,Сеноман!B:M,10,FALSE) -> 20.00541878 | V38: =VLOOKUP(A38,Тнав!A:D,2,FALSE) -> 21.85445294 | W38: 5.277365067e-26 | X38: 43.60712622 | Y38: =VLOOKUP(A38,Тнав!A:D,3,FALSE) -> 4.53879511 | Z38: =VLOOKUP(A38,'Состояние фонда'!C:AB,20,FALSE) -> -1.11 | AA38: =VLOOKUP(A38,Тнав!A:E,4,FALSE) -> 278.3435992 | AB38: =VLOOKUP(A38,'Состояние фонда'!C:AB,21,FALSE) -> 240.96 | AD38: безгидратный | AE38: 8.832979883 | AF38: 281.8778171 | AG38: 0.9504335899 | AH38: 61.97900607 | AI38: 8.263049015e+26
A39: 63 | C39: ННС | D39: 67.4 | E39: 33 | F39: 168 | G39: 1037.2 | H39: 979-1036 | I39: 911.195 | J39: 114/864,072 | R39: 8 | AD39: безгидратный | AE39: =IFERROR([1]!Скорость_газа(AA39,X39,18.8,46.8,190.24,IF(MID(J39,1,2)="73",6,IF(MID(J39,1,2)="89",7.6,IF(MID(J39,1,2)="11",10,0)))),"") ->  | AF39: 282.4457281 | AG39: 1 | AH39: 58.99611553 | AI39: 4.184922578e+25
A40: 64 | C40: ННС | D40: 59 | E40: 28 | F40: 168 | G40: 1040 | H40: 981-1019 | I40: 907.012 | J40: 114/854,395 | K40: 24.07.2023 | L40: 28.9 | M40: =VLOOKUP(A40,Сеноман!B:K,5,FALSE) -> 47.89761703 | N40: =VLOOKUP(A40,Сеноман!B:K,7,FALSE) -> 32.38 | O40: =VLOOKUP(A40,Сеноман!B:K,8,FALSE) -> 41.25 | P40: =VLOOKUP(A40,Сеноман!B:M,11,FALSE) -> 46.4220406 | Q40: =VLOOKUP(A40,Сеноман!B:M,12,FALSE) -> 1.475576432 | R40: 8 | S40: =VLOOKUP(A40,Сеноман!B:M,9,FALSE) -> 5.5 | T40: =VLOOKUP(A40,Сеноман!B:M,6,FALSE) -> 617 | U40: =VLOOKUP(A40,Сеноман!B:M,10,FALSE) -> 19.22085762 | V40: =VLOOKUP(A40,Тнав!A:D,2,FALSE) -> 21.62330741 | W40: =X40/AI40 -> 1.933087674e-25 | X40: =M40-Y40 -> 43.05282218 | Y40: =VLOOKUP(A40,Тнав!A:D,3,FALSE) -> 4.844794855 | Z40: =VLOOKUP(A40,'Состояние фонда'!C:AB,20,FALSE) -> 4.22 | AA40: =VLOOKUP(A40,Тнав!A:E,4,FALSE) -> 238.1238065 | AB40: =VLOOKUP(A40,'Состояние фонда'!C:AB,21,FALSE) -> 41.9 | AD40: безгидратный | AE40: 7.653933074 | AF40: 284.597758 | AG40: 0.9542814801 | AH40: 60.66793655 | AI40: 2.227153106e+26
A41: 71 | B41: 6 | C41: ННС | D41: 73.8 | E41: 40 | F41: 168 | G41: 1038.5 | H41: 967-1034,5 | I41: 906.957 | J41: 114/873,191 | K41: 24.07.2023 | L41: 29 | M41: =VLOOKUP(A41,Сеноман!B:K,5,FALSE) -> 47.86223827 | N41: =VLOOKUP(A41,Сеноман!B:K,7,FALSE) -> 37.11 | O41: =VLOOKUP(A41,Сеноман!B:K,8,FALSE) -> 42.72 | P41: =VLOOKUP(A41,Сеноман!B:M,11,FALSE) ->  | Q41: =VLOOKUP(A41,Сеноман!B:M,12,FALSE) ->  | R41: 8 | S41: =VLOOKUP(A41,Сеноман!B:M,9,FALSE) -> 8 | T41: =VLOOKUP(A41,Сеноман!B:M,6,FALSE) -> 538 | U41: =VLOOKUP(A41,Сеноман!B:M,10,FALSE) -> 16.12957954 | V41: =VLOOKUP(A41,Тнав!A:D,2,FALSE) -> 0 | W41: 1.594172826e-24 | X41: 47.86223827 | Y41: =VLOOKUP(A41,Тнав!A:D,3,FALSE) -> 0 | Z41: =VLOOKUP(A41,'Состояние фонда'!C:AB,20,FALSE) -> 9.04 | AA41: =VLOOKUP(A41,Тнав!A:E,4,FALSE) -> 0 | AB41: =VLOOKUP(A41,'Состояние фонда'!C:AB,21,FALSE) -> 59.8 | AD41: безгидратный | AE41: =IFERROR([1]!Скорость_газа(AA41,X41,18.8,46.8,190.24,IF(MID(J41,1,2)="73",6,IF(MID(J41,1,2)="89",7.6,IF(MID(J41,1,2)="11",10,0)))),"") ->  | AF41: 287.0423456 | AG41: 1 | AH41: 58.66401408 | AI41: 3.002324309e+25
A42: 72 | C42: ННС | D42: 87.6 | E42: 26 | F42: 168 | G42: 1029.6 | H42: 972-1010 | I42: 903.329 | J42: 114/860,55 | K42: 24.07.2023 | L42: 29 | M42: =VLOOKUP(A42,Сеноман!B:K,5,FALSE) -> 47.82820716 | N42: =VLOOKUP(A42,Сеноман!B:K,7,FALSE) -> 36.9 | O42: =VLOOKUP(A42,Сеноман!B:K,8,FALSE) -> 43.55 | P42: =VLOOKUP(A42,Сеноман!B:M,11,FALSE) -> 49.00666618 | Q42: =VLOOKUP(A42,Сеноман!B:M,12,FALSE) -> -1.178459013 | R42: 8 | S42: =VLOOKUP(A42,Сеноман!B:M,9,FALSE) -> 7.8 | T42: =VLOOKUP(A42,Сеноман!B:M,6,FALSE) -> 623 | U42: =VLOOKUP(A42,Сеноман!B:M,10,FALSE) -> 18.30753326 | V42: =VLOOKUP(A42,Тнав!A:D,2,FALSE) -> 0 | X42: 47.82820716 | Y42: =VLOOKUP(A42,Тнав!A:D,3,FALSE) -> 0 | Z42: =VLOOKUP(A42,'Состояние фонда'!C:AB,20,FALSE) -> 9.01 | AA42: =VLOOKUP(A42,Тнав!A:E,4,FALSE) -> 0 | AB42: =VLOOKUP(A42,'Состояние фонда'!C:AB,21,FALSE) -> 95.2 | AD42: безгидратный | AE42: =IFERROR([1]!Скорость_газа(AA42,X42,18.8,46.8,190.24,IF(MID(J42,1,2)="73",6,IF(MID(J42,1,2)="89",7.6,IF(MID(J42,1,2)="11",10,0)))),"") ->  | AF42: 287.0271739 | AG42: 1
A43: 73 | C43: ННС | D43: 76.1 | E43: 22 | F43: 168 | G43: 1030 | H43: 1009-1031 | I43: 921.52 | J43: 114/825,059 | K43: 24.07.2023 | L43: 29.22 | M43: =VLOOKUP(A43,Сеноман!B:K,5,FALSE) -> 47.88398435 | N43: =VLOOKUP(A43,Сеноман!B:K,7,FALSE) -> 37.11 | O43: =VLOOKUP(A43,Сеноман!B:K,8,FALSE) -> 43.19 | P43: =VLOOKUP(A43,Сеноман!B:M,11,FALSE) -> 48.35470631 | Q43: =VLOOKUP(A43,Сеноман!B:M,12,FALSE) -> -0.470721962 | R43: 8 | S43: =VLOOKUP(A43,Сеноман!B:M,9,FALSE) -> 8.4 | T43: =VLOOKUP(A43,Сеноман!B:M,6,FALSE) -> 582 | U43: =VLOOKUP(A43,Сеноман!B:M,10,FALSE) -> 17.31033707 | V43: =VLOOKUP(A43,Тнав!A:D,2,FALSE) -> 0 | W43: 4.261383334e-23 | X43: 47.88398435 | Y43: =VLOOKUP(A43,Тнав!A:D,3,FALSE) -> 0 | Z43: =VLOOKUP(A43,'Состояние фонда'!C:AB,20,FALSE) -> 9.57 | AA43: =VLOOKUP(A43,Тнав!A:E,4,FALSE) -> 0 | AB43: =VLOOKUP(A43,'Состояние фонда'!C:AB,21,FALSE) -> 94.2 | AD43: безгидратный | AE43: =IFERROR([1]!Скорость_газа(AA43,X43,18.8,46.8,190.24,IF(MID(J43,1,2)="73",6,IF(MID(J43,1,2)="89",7.6,IF(MID(J43,1,2)="11",10,0)))),"") ->  | AF43: 287.3102905 | AG43: 1 | AH43: 55.3786444 | AI43: 1.123672305e+24
A44: 74 | C44: ННС | D44: 72.3 | E44: 26 | F44: 168 | G44: 1038.4 | H44: 984,6-1010,6 | I44: 902.372 | J44: 114/820,71 | K44: 24.07.2023 | L44: 29.17 | M44: =VLOOKUP(A44,Сеноман!B:K,5,FALSE) -> 47.84417818 | N44: =VLOOKUP(A44,Сеноман!B:K,7,FALSE) -> 36.89 | O44: =VLOOKUP(A44,Сеноман!B:K,8,FALSE) -> 43.18 | P44: =VLOOKUP(A44,Сеноман!B:M,11,FALSE) ->  | Q44: =VLOOKUP(A44,Сеноман!B:M,12,FALSE) ->  | R44: 8 | S44: =VLOOKUP(A44,Сеноман!B:M,9,FALSE) -> 8 | T44: =VLOOKUP(A44,Сеноман!B:M,6,FALSE) -> 606 | U44: =VLOOKUP(A44,Сеноман!B:M,10,FALSE) -> 18.03370667 | V44: =VLOOKUP(A44,Тнав!A:D,2,FALSE) -> 0 | X44: 47.84417818 | Y44: =VLOOKUP(A44,Тнав!A:D,3,FALSE) -> 0 | Z44: =VLOOKUP(A44,'Состояние фонда'!C:AB,20,FALSE) -> 9.52 | AA44: =VLOOKUP(A44,Тнав!A:E,4,FALSE) -> 0 | AB44: =VLOOKUP(A44,'Состояние фонда'!C:AB,21,FALSE) -> 100 | AD44: безгидратный | AE44: =IFERROR([1]!Скорость_газа(AA44,X44,18.8,46.8,190.24,IF(MID(J44,1,2)="73",6,IF(MID(J44,1,2)="89",7.6,IF(MID(J44,1,2)="11",10,0)))),"") ->  | AF44: 287.2850199 | AG44: 1
A45: 81 | B45: 5 | C45: ННС | D45: 76.2 | E45: 40 | F45: 168 | G45: 1031.8 | H45: 971-1030 | I45: 901.229 | J45: 114/864,121 | K45: 24.07.2023 | L45: 28.75 | M45: =VLOOKUP(A45,Сеноман!B:K,5,FALSE) -> 47.80443348 | N45: =VLOOKUP(A45,Сеноман!B:K,7,FALSE) -> 33.38 | O45: =VLOOKUP(A45,Сеноман!B:K,8,FALSE) -> 42.77 | P45: =VLOOKUP(A45,Сеноман!B:M,11,FALSE) -> 48.17954123 | Q45: =VLOOKUP(A45,Сеноман!B:M,12,FALSE) -> -0.3751077534 | R45: 8 | S45: =VLOOKUP(A45,Сеноман!B:M,9,FALSE) -> 6.4 | T45: =VLOOKUP(A45,Сеноман!B:M,6,FALSE) -> 667 | U45: =VLOOKUP(A45,Сеноман!B:M,10,FALSE) -> 19.97194481 | V45: =VLOOKUP(A45,Тнав!A:D,2,FALSE) -> 15.26833789 | W45: 3.638863667e-25 | X45: 42.97112011 | Y45: =VLOOKUP(A45,Тнав!A:D,3,FALSE) -> 4.833313364 | Z45: =VLOOKUP(A45,'Состояние фонда'!C:AB,20,FALSE) -> 7.97 | AA45: =VLOOKUP(A45,Тнав!A:E,4,FALSE) -> 432.6013907 | AB45: =VLOOKUP(A45,'Состояние фонда'!C:AB,21,FALSE) -> 100 | AD45: безгидратный | AE45: 13.93139822 | AF45: 286.5008855 | AG45: 0.968865603 | AH45: 60.03348414 | AI45: 1.180893929e+26
A46: 82 | C46: ННС | D46: 78.5 | E46: 25 | F46: 168 | G46: 1011 | H46: 985-1010 | I46: 899.93 | J46: 114/842,345 | K46: 24.07.2023 | L46: 28.65 | M46: =VLOOKUP(A46,Сеноман!B:K,5,FALSE) -> 47.695076 | N46: =VLOOKUP(A46,Сеноман!B:K,7,FALSE) -> 33.5 | O46: =VLOOKUP(A46,Сеноман!B:K,8,FALSE) -> 41.87 | P46: =VLOOKUP(A46,Сеноман!B:M,11,FALSE) -> 47.03013805 | Q46: =VLOOKUP(A46,Сеноман!B:M,12,FALSE) -> 0.6649379478 | R46: 8 | S46: =VLOOKUP(A46,Сеноман!B:M,9,FALSE) -> 6.1 | T46: =VLOOKUP(A46,Сеноман!B:M,6,FALSE) -> 650 | U46: =VLOOKUP(A46,Сеноман!B:M,10,FALSE) -> 19.95300102 | V46: =VLOOKUP(A46,Тнав!A:D,2,FALSE) -> 17.73322878 | W46: 1.252073677e-24 | X46: 45.48584506 | Y46: =VLOOKUP(A46,Тнав!A:D,3,FALSE) -> 2.209230935 | Z46: =VLOOKUP(A46,'Состояние фонда'!C:AB,20,FALSE) -> 7.67 | AA46: =VLOOKUP(A46,Тнав!A:E,4,FALSE) -> 376.1805123 | AB46: =VLOOKUP(A46,'Состояние фонда'!C:AB,21,FALSE) -> 100 | AD46: безгидратный | AE46: 11.44467582 | AF46: 286.3489502 | AG46: 0.9638782451 | AH46: 58.85464229 | AI46: 3.632840934e+25
A47: 83 | C47: ННС | D47: 77.2 | E47: 30 | F47: 168 | G47: 1015 | H47: 981-1014 | I47: 899.68 | J47: 114/848,926 | K47: 24.07.2023 | L47: 28.67 | M47: =VLOOKUP(A47,Сеноман!B:K,5,FALSE) -> 47.65447238 | N47: =VLOOKUP(A47,Сеноман!B:K,7,FALSE) -> 33.96 | O47: =VLOOKUP(A47,Сеноман!B:K,8,FALSE) -> 43.24 | P47: =VLOOKUP(A47,Сеноман!B:M,11,FALSE) ->  | Q47: =VLOOKUP(A47,Сеноман!B:M,12,FALSE) ->  | R47: 8 | S47: =VLOOKUP(A47,Сеноман!B:M,9,FALSE) -> 6 | T47: =VLOOKUP(A47,Сеноман!B:M,6,FALSE) -> 671 | U47: =VLOOKUP(A47,Сеноман!B:M,10,FALSE) -> 19.87556839 | V47: =VLOOKUP(A47,Тнав!A:D,2,FALSE) -> 17.20697633 | W47: 8.111895351e-25 | X47: 44.68153901 | Y47: =VLOOKUP(A47,Тнав!A:D,3,FALSE) -> 2.972933362 | Z47: =VLOOKUP(A47,'Состояние фонда'!C:AB,20,FALSE) -> 7.52 | AA47: =VLOOKUP(A47,Тнав!A:E,4,FALSE) -> 471.6023371 | AB47: =VLOOKUP(A47,'Состояние фонда'!C:AB,21,FALSE) -> 100 | AD47: безгидратный | AE47: 14.60599994 | AF47: 286.2729622 | AG47: 0.9648433278 | AH47: 59.2708562 | AI47: 5.508150325e+25
A48: 84 | C48: ННС | D48: 98 | E48: 54 | F48: 168 | G48: 1026 | H48: 955,5-1027 | I48: 901.46 | J48: 114/804,413 | K48: 24.07.2023 | L48: 28.61 | M48: =VLOOKUP(A48,Сеноман!B:K,5,FALSE) -> 47.52255279 | N48: =VLOOKUP(A48,Сеноман!B:K,7,FALSE) -> 35.72 | O48: =VLOOKUP(A48,Сеноман!B:K,8,FALSE) -> 43.21 | P48: =VLOOKUP(A48,Сеноман!B:M,11,FALSE) -> 48.27620243 | Q48: =VLOOKUP(A48,Сеноман!B:M,12,FALSE) -> -0.7536496347 | R48: 8 | S48: =VLOOKUP(A48,Сеноман!B:M,9,FALSE) -> 6.4 | T48: =VLOOKUP(A48,Сеноман!B:M,6,FALSE) -> 666 | U48: =VLOOKUP(A48,Сеноман!B:M,10,FALSE) -> 19.81642723 | V48: =VLOOKUP(A48,Тнав!A:D,2,FALSE) -> 17.66290273 | W48: 1.784216689e-23 | X48: 46.22811637 | Y48: =VLOOKUP(A48,Тнав!A:D,3,FALSE) -> 1.294436424 | Z48: =VLOOKUP(A48,'Состояние фонда'!C:AB,20,FALSE) -> 7.53 | AA48: =VLOOKUP(A48,Тнав!A:E,4,FALSE) -> 525.3129817 | AB48: =VLOOKUP(A48,'Состояние фонда'!C:AB,21,FALSE) -> 100 | AD48: безгидратный | AE48: 15.72517202 | AF48: 286.2780285 | AG48: 0.9639501175 | AH48: 56.21406584 | AI48: 2.590947426e+24
A49: 91 | C49: ВС | D49: 55.3 | E49: 21 | F49: 168 | G49: 970.5 | H49: 910-931 | I49: 920.41 | J49: 114/817,54 | K49: 26.07.2023 | L49: 28.45 | M49: =VLOOKUP(A49,Сеноман!B:K,5,FALSE) -> 47.74013245 | N49: =VLOOKUP(A49,Сеноман!B:K,7,FALSE) -> 41.28 | O49: =VLOOKUP(A49,Сеноман!B:K,8,FALSE) -> 43.93 | P49: =VLOOKUP(A49,Сеноман!B:M,11,FALSE) -> 49.21710974 | Q49: =VLOOKUP(A49,Сеноман!B:M,12,FALSE) -> -1.476977295 | R49: 8 | S49: =VLOOKUP(A49,Сеноман!B:M,9,FALSE) -> 4.4 | T49: =VLOOKUP(A49,Сеноман!B:M,6,FALSE) -> 398 | U49: =VLOOKUP(A49,Сеноман!B:M,10,FALSE) -> 11.61556625 | V49: =VLOOKUP(A49,Тнав!A:D,2,FALSE) -> 15.84538332 | X49: 44.93145581 | Y49: =VLOOKUP(A49,Тнав!A:D,3,FALSE) -> 2.808676635 | Z49: =VLOOKUP(A49,'Состояние фонда'!C:AB,20,FALSE) -> 7.99 | AA49: =VLOOKUP(A49,Тнав!A:E,4,FALSE) -> 527.4014371 | AB49: =VLOOKUP(A49,'Состояние фонда'!C:AB,21,FALSE) -> 98.1 | AD49: безгидратный | AE49: 16.24330085 | AF49: 286.5110126 | AG49: 0.9677353948
A50: 92 | C50: ННС | D50: 63.6 | E50: 37 | F50: 168 | G50: 1036 | H50: 983-1029 | I50: 906.986 | J50: 114/860,542 | K50: 26.07.2023 | L50: 28.43 | M50: =VLOOKUP(A50,Сеноман!B:K,5,FALSE) -> 47.88582998 | N50: =VLOOKUP(A50,Сеноман!B:K,7,FALSE) -> 41.16 | O50: =VLOOKUP(A50,Сеноман!B:K,8,FALSE) -> 44.17 | P50: =VLOOKUP(A50,Сеноман!B:M,11,FALSE) -> 49.81733787 | Q50: =VLOOKUP(A50,Сеноман!B:M,12,FALSE) -> -1.93150789 | R50: 8 | S50: =VLOOKUP(A50,Сеноман!B:M,9,FALSE) -> 4.1 | T50: =VLOOKUP(A50,Сеноман!B:M,6,FALSE) -> 376 | U50: =VLOOKUP(A50,Сеноман!B:M,10,FALSE) -> 10.86749554 | V50: =VLOOKUP(A50,Тнав!A:D,2,FALSE) -> 15.99151539 | W50: 4.07842063e-25 | X50: 44.89479447 | Y50: =VLOOKUP(A50,Тнав!A:D,3,FALSE) -> 2.991035505 | Z50: =VLOOKUP(A50,'Состояние фонда'!C:AB,20,FALSE) -> 7.29 | AA50: =VLOOKUP(A50,Тнав!A:E,4,FALSE) -> 494.970771 | AB50: =VLOOKUP(A50,'Состояние фонда'!C:AB,21,FALSE) -> 97.3 | AD50: безгидратный | AE50: 15.25692585 | AF50: 286.1564207 | AG50: 0.9671458795 | AH50: 59.96323936 | AI50: 1.100788725e+26
A51: 93 | C51: ННС | D51: 60.5 | E51: 31 | F51: 168 | G51: 1019.5 | H51: 968-1014 | I51: 911.361 | J51: 114/865,324 | K51: 26.07.2023 | L51: 28.44 | M51: =VLOOKUP(A51,Сеноман!B:K,5,FALSE) -> 47.90854847 | N51: =VLOOKUP(A51,Сеноман!B:K,7,FALSE) -> 40.8 | O51: =VLOOKUP(A51,Сеноман!B:K,8,FALSE) -> 44.02 | P51: =VLOOKUP(A51,Сеноман!B:M,11,FALSE) -> 49.66520249 | Q51: =VLOOKUP(A51,Сеноман!B:M,12,FALSE) -> -1.756654022 | R51: 8 | S51: =VLOOKUP(A51,Сеноман!B:M,9,FALSE) -> 4.9 | T51: =VLOOKUP(A51,Сеноман!B:M,6,FALSE) -> 390 | U51: =VLOOKUP(A51,Сеноман!B:M,10,FALSE) -> 11.31221962 | V51: =VLOOKUP(A51,Тнав!A:D,2,FALSE) -> 17.39727146 | W51: 2.553965206e-25 | X51: 41.03619556 | Y51: =VLOOKUP(A51,Тнав!A:D,3,FALSE) -> 6.872352915 | Z51: =VLOOKUP(A51,'Состояние фонда'!C:AB,20,FALSE) -> 8.24 | AA51: =VLOOKUP(A51,Тнав!A:E,4,FALSE) -> 507.1671118 | AB51: =VLOOKUP(A51,'Состояние фонда'!C:AB,21,FALSE) -> 98 | AD51: безгидратный | AE51: 17.25283428 | AF51: 286.6375807 | AG51: 0.9648026407 | AH51: 60.34143469 | AI51: 1.606764081e+26
A52: 94 | C52: ННС | D52: 74.7 | E52: 35 | F52: 168 | G52: 1022 | H52: 994-1029 | I52: 918.337 | J52: 114/816,25 | K52: 24.08.2022 | L52: 30.84 | M52: =VLOOKUP(A52,Сеноман!B:K,5,FALSE) -> 47.69956582 | N52: =VLOOKUP(A52,Сеноман!B:K,7,FALSE) -> 40.82 | O52: =VLOOKUP(A52,Сеноман!B:K,8,FALSE) -> 43.47 | P52: =VLOOKUP(A52,Сеноман!B:M,11,FALSE) -> 48.69500729 | Q52: =VLOOKUP(A52,Сеноман!B:M,12,FALSE) -> -0.9954414768 | R52: 8 | S52: =VLOOKUP(A52,Сеноман!B:M,9,FALSE) -> 4.3 | T52: =VLOOKUP(A52,Сеноман!B:M,6,FALSE) -> 374 | U52: =VLOOKUP(A52,Сеноман!B:M,10,FALSE) -> 11.04217243 | V52: =VLOOKUP(A52,Тнав!A:D,2,FALSE) -> 17.89115635 | X52: 44.93891461 | Y52: =VLOOKUP(A52,Тнав!A:D,3,FALSE) -> 2.760651205 | Z52: =VLOOKUP(A52,'Состояние фонда'!C:AB,20,FALSE) -> 7.53 | AA52: =VLOOKUP(A52,Тнав!A:E,4,FALSE) -> 504.5842322 | AB52: =VLOOKUP(A52,'Состояние фонда'!C:AB,21,FALSE) -> 97.8 | AD52: безгидратный | AE52: 15.53798027 | AF52: 286.2780285 | AG52: 0.9635012567
A53: 101 | B53: 6 | C53: ННС | D53: 51.2 | E53: 37 | F53: 168 | G53: 1052.6 | H53: 991-1052 | I53: 919.014 | J53: 114/876,24 | K53: 26.07.2023 | L53: 28.24 | M53: =VLOOKUP(A53,Сеноман!B:K,5,FALSE) -> 47.35776733 | N53: =VLOOKUP(A53,Сеноман!B:K,7,FALSE) -> 34.95 | O53: =VLOOKUP(A53,Сеноман!B:K,8,FALSE) -> 39.68 | P53: =VLOOKUP(A53,Сеноман!B:M,11,FALSE) -> 44.77254416 | Q53: =VLOOKUP(A53,Сеноман!B:M,12,FALSE) -> 2.585223166 | R53: 8 | S53: =VLOOKUP(A53,Сеноман!B:M,9,FALSE) -> 6.5 | T53: =VLOOKUP(A53,Сеноман!B:M,6,FALSE) -> 458 | U53: =VLOOKUP(A53,Сеноман!B:M,10,FALSE) -> 14.86084175 | V53: =VLOOKUP(A53,Тнав!A:D,2,FALSE) -> 21.85023274 | X53: 43.6214547 | Y53: =VLOOKUP(A53,Тнав!A:D,3,FALSE) -> 3.73631263 | Z53: =VLOOKUP(A53,'Состояние фонда'!C:AB,20,FALSE) -> 5 | AA53: =VLOOKUP(A53,Тнав!A:E,4,FALSE) -> 162.5691243 | AB53: =VLOOKUP(A53,'Состояние фонда'!C:AB,21,FALSE) -> 32 | AD53: безгидратный | AE53: 5.157288082 | AF53: =(($AF$18+273.15)-(Z53+273.15))/(LN(($AF$18+273.15)/(Z53+273.15))) -> 284.9943169 | AG53: =1/(1+(5*10^7*0.098*V53)/(Z53+273.15)^3.825) -> 0.9542946323 | AI53: =ROUND(EXP(AH53),4) -> 
A54: 102 | C54: ННС | D54: 65.2 | E54: 23 | F54: 168 | G54: 1050.3 | H54: 1019-1046 | I54: 926.542 | J54: 114/870,786 | K54: 26.07.2023 | L54: 28.23 | M54: =VLOOKUP(A54,Сеноман!B:K,5,FALSE) -> 47.36636198 | N54: =VLOOKUP(A54,Сеноман!B:K,7,FALSE) -> 33.08 | O54: =VLOOKUP(A54,Сеноман!B:K,8,FALSE) -> 41.84 | P54: =VLOOKUP(A54,Сеноман!B:M,11,FALSE) -> 47.15658368 | Q54: =VLOOKUP(A54,Сеноман!B:M,12,FALSE) -> 0.2097782975 | R54: 8 | S54: =VLOOKUP(A54,Сеноман!B:M,9,FALSE) -> 7.4 | T54: =VLOOKUP(A54,Сеноман!B:M,6,FALSE) -> 606 | U54: =VLOOKUP(A54,Сеноман!B:M,10,FALSE) -> 18.57420921 | V54: =VLOOKUP(A54,Тнав!A:D,2,FALSE) -> 18.41942062 | X54: 44.58647816 | Y54: =VLOOKUP(A54,Тнав!A:D,3,FALSE) -> 2.779883821 | Z54: =VLOOKUP(A54,'Состояние фонда'!C:AB,20,FALSE) -> 3.08 | AA54: =VLOOKUP(A54,Тнав!A:E,4,FALSE) -> 73.56655557 | AB54: =VLOOKUP(A54,'Состояние фонда'!C:AB,21,FALSE) -> 84.8 | AC54: 16 | AD54: безгидратный | AE54: 2.283288151 | AF54: 284.0174969 | AG54: 0.9601921061 | AH54: =(0.5647*0.03415*MID(J54,4,7)/(AF54*AG54)) -> 
A55: 103 | C55: ННС | D55: 63 | E55: 30 | F55: 168 | G55: 1037 | H55: 972,5-1002,5 | I55: 900.198 | J55: 114/847,907 | K55: 26.07.2023 | L55: 28.36 | M55: =VLOOKUP(A55,Сеноман!B:K,5,FALSE) -> 47.3064573 | N55: =VLOOKUP(A55,Сеноман!B:K,7,FALSE) -> 34.72 | O55: =VLOOKUP(A55,Сеноман!B:K,8,FALSE) -> 42.69 | P55: =VLOOKUP(A55,Сеноман!B:M,11,FALSE) -> 47.98211424 | Q55: =VLOOKUP(A55,Сеноман!B:M,12,FALSE) -> -0.6756569435 | R55: 8 | S55: =VLOOKUP(A55,Сеноман!B:M,9,FALSE) -> 6.4 | T55: =VLOOKUP(A55,Сеноман!B:M,6,FALSE) -> 705 | U55: =VLOOKUP(A55,Сеноман!B:M,10,FALSE) -> 21.175457 | V55: =VLOOKUP(A55,Тнав!A:D,2,FALSE) -> 24.52597165 | W55: 2.132868179e-25 | X55: 45.65514736 | Y55: =VLOOKUP(A55,Тнав!A:D,3,FALSE) -> 1.65130994 | Z55: =VLOOKUP(A55,'Состояние фонда'!C:AB,20,FALSE) -> 3.88 | AA55: =VLOOKUP(A55,Тнав!A:E,4,FALSE) -> 147.3107989 | AB55: =VLOOKUP(A55,'Состояние фонда'!C:AB,21,FALSE) -> 98 | AC55: 24 | AD55: безгидратный | AE55: 4.465070345 | AF55: 284.4247818 | AG55: 0.9482308126 | AH55: =(0.5647*0.03415*MID(J55,5,7)/(AF55*AG55)) -> 60.62827605 | AI55: 2.140551761e+26
A56: 104 | C56: ННС | D56: 67.5 | E56: 24 | F56: 168 | G56: 1056 | H56: 987-1045 | I56: 913.633 | J56: 114/823,506 | K56: 26.07.2023 | L56: 28.46 | M56: =VLOOKUP(A56,Сеноман!B:K,5,FALSE) -> 47.09298144 | N56: =VLOOKUP(A56,Сеноман!B:K,7,FALSE) -> 34.41 | O56: =VLOOKUP(A56,Сеноман!B:K,8,FALSE) -> 42.68 | P56: =VLOOKUP(A56,Сеноман!B:M,11,FALSE) ->  | Q56: =VLOOKUP(A56,Сеноман!B:M,12,FALSE) ->  | R56: 8 | S56: =VLOOKUP(A56,Сеноман!B:M,9,FALSE) -> 7 | T56: =VLOOKUP(A56,Сеноман!B:M,6,FALSE) -> 647 | U56: =VLOOKUP(A56,Сеноман!B:M,10,FALSE) -> 19.47923088 | V56: =VLOOKUP(A56,Тнав!A:D,2,FALSE) -> 21.98546451 | W56: 2.350756705e-24 | X56: 44.69238269 | Y56: =VLOOKUP(A56,Тнав!A:D,3,FALSE) -> 2.400598746 | Z56: =VLOOKUP(A56,'Состояние фонда'!C:AB,20,FALSE) -> 6.44 | AA56: =VLOOKUP(A56,Тнав!A:E,4,FALSE) -> 300.3956933 | AB56: =VLOOKUP(A56,'Состояние фонда'!C:AB,21,FALSE) -> 47 | AD56: безгидратный | AE56: 9.301300225 | AF56: 285.7254453 | AG56: 0.9548833548 | AH56: 58.20710803 | AI56: 1.901191331e+25
A57: 111 | B57: 4 | C57: ННС | D57: 93.6 | E57: 41 | F57: 168 | G57: 1042.5 | H57: 913-1000 | I57: 897.282 | J57: 114/883,02 | K57: 23.07.2023 | L57: 28.43 | M57: =VLOOKUP(A57,Сеноман!B:K,5,FALSE) -> 47.72939694 | N57: =VLOOKUP(A57,Сеноман!B:K,7,FALSE) -> 32.44 | O57: =VLOOKUP(A57,Сеноман!B:K,8,FALSE) -> 42.01 | P57: =VLOOKUP(A57,Сеноман!B:M,11,FALSE) -> 47.44705646 | Q57: =VLOOKUP(A57,Сеноман!B:M,12,FALSE) -> 0 | R57: 8 | S57: =VLOOKUP(A57,Сеноман!B:M,9,FALSE) -> 6.4 | T57: =VLOOKUP(A57,Сеноман!B:M,6,FALSE) -> 564 | U57: =VLOOKUP(A57,Сеноман!B:M,10,FALSE) -> 17.22076225 | V57: =VLOOKUP(A57,Тнав!A:D,2,FALSE) -> 10.93487055 | X57: 47.72939694 | Y57: =VLOOKUP(A57,Тнав!A:D,3,FALSE) -> 0 | Z57: =VLOOKUP(A57,'Состояние фонда'!C:AB,20,FALSE) -> 4.27 | AA57: =VLOOKUP(A57,Тнав!A:E,4,FALSE) -> 182.0131981 | AB57: =VLOOKUP(A57,'Состояние фонда'!C:AB,21,FALSE) -> 34.9 | AD57: безгидратный | AE57: 5.227977641 | AF57: 284.6231897 | AG57: 0.9763615799
A58: 112 | C58: ННС | D58: 94.4 | E58: 33 | F58: 168 | G58: 1036.6 | H58: 945-1006 | I58: 883.544 | J58: 114/857,47 | K58: 23.07.2023 | L58: 28.38 | M58: =VLOOKUP(A58,Сеноман!B:K,5,FALSE) -> 47.68879051 | N58: =VLOOKUP(A58,Сеноман!B:K,7,FALSE) -> 33.08 | O58: =VLOOKUP(A58,Сеноман!B:K,8,FALSE) -> 42.44 | P58: =VLOOKUP(A58,Сеноман!B:M,11,FALSE) -> 47.76788911 | Q58: =VLOOKUP(A58,Сеноман!B:M,12,FALSE) -> -0.0790985974 | R58: 8 | S58: =VLOOKUP(A58,Сеноман!B:M,9,FALSE) -> 6.2 | T58: =VLOOKUP(A58,Сеноман!B:M,6,FALSE) -> 642 | U58: =VLOOKUP(A58,Сеноман!B:M,10,FALSE) -> 19.41477585 | V58: =VLOOKUP(A58,Тнав!A:D,2,FALSE) -> 18.78745843 | X58: 46.02842243 | Y58: =VLOOKUP(A58,Тнав!A:D,3,FALSE) -> 1.660368079 | Z58: =VLOOKUP(A58,'Состояние фонда'!C:AB,20,FALSE) -> 7.01 | AA58: =VLOOKUP(A58,Тнав!A:E,4,FALSE) -> 386.6893823 | AB58: =VLOOKUP(A58,'Состояние фонда'!C:AB,21,FALSE) -> 69.9 | AD58: безгидратный | AE58: 11.62571378 | AF58: 286.0145008 | AG58: 0.9614808829
A59: 113 | C59: ННС | D59: 108 | E59: 35 | F59: 168 | G59: 1061.3 | H59: 978-1015 | I59: 908.978 | J59: 114/873,196 | K59: 23.07.2023 | L59: 28.36 | M59: =VLOOKUP(A59,Сеноман!B:K,5,FALSE) -> 47.77750009 | N59: =VLOOKUP(A59,Сеноман!B:K,7,FALSE) -> 34.25 | O59: =VLOOKUP(A59,Сеноман!B:K,8,FALSE) -> 42.46 | P59: =VLOOKUP(A59,Сеноман!B:M,11,FALSE) -> 47.88063345 | Q59: =VLOOKUP(A59,Сеноман!B:M,12,FALSE) -> -0.103133367 | R59: 8 | S59: =VLOOKUP(A59,Сеноман!B:M,9,FALSE) -> 6.9 | T59: =VLOOKUP(A59,Сеноман!B:M,6,FALSE) -> 662 | U59: =VLOOKUP(A59,Сеноман!B:M,10,FALSE) -> 19.98539734 | V59: =VLOOKUP(A59,Тнав!A:D,2,FALSE) -> 16.48407603 | W59: 1.600511448e-25 | X59: 42.9185285 | Y59: =VLOOKUP(A59,Тнав!A:D,3,FALSE) -> 4.858971585 | Z59: =VLOOKUP(A59,'Состояние фонда'!C:AB,20,FALSE) -> 7.68 | AA59: =VLOOKUP(A59,Тнав!A:E,4,FALSE) -> 403.7367139 | AB59: =VLOOKUP(A59,'Состояние фонда'!C:AB,21,FALSE) -> 73 | AD59: безгидратный | AE59: 13.01777887 | AF59: 286.3540156 | AG59: 0.9663414869 | AH59: 60.85360772 | AI59: 2.68155086e+26
A60: 114 | C60: ННС | D60: 94 | E60: 23 | F60: 168 | G60: 1074 | H60: 932-955 | I60: 880.268 | J60: 114/805,105 | K60: 23.07.2023 | L60: 28.35 | M60: =VLOOKUP(A60,Сеноман!B:K,5,FALSE) -> 47.49952553 | N60: =VLOOKUP(A60,Сеноман!B:K,7,FALSE) -> 33.85 | O60: =VLOOKUP(A60,Сеноман!B:K,8,FALSE) -> 42.89 | P60: =VLOOKUP(A60,Сеноман!B:M,11,FALSE) -> 47.93227142 | Q60: =VLOOKUP(A60,Сеноман!B:M,12,FALSE) -> -0.4327458885 | R60: 8 | S60: =VLOOKUP(A60,Сеноман!B:M,9,FALSE) -> 5.9 | T60: =VLOOKUP(A60,Сеноман!B:M,6,FALSE) -> 698 | U60: =VLOOKUP(A60,Сеноман!B:M,10,FALSE) -> 20.95441055 | V60: =VLOOKUP(A60,Тнав!A:D,2,FALSE) -> 20.73436747 | W60: 1.004972167e-23 | X60: 45.38876539 | Y60: =VLOOKUP(A60,Тнав!A:D,3,FALSE) -> 2.110760147 | Z60: =VLOOKUP(A60,'Состояние фонда'!C:AB,20,FALSE) -> 6.37 | AA60: =VLOOKUP(A60,Тнав!A:E,4,FALSE) -> 416.5654951 | AB60: =VLOOKUP(A60,'Состояние фонда'!C:AB,21,FALSE) -> 60 | AD60: безгидратный | AE60: 12.70042908 | AF60: 285.6899337 | AG60: 0.9573020932 | AH60: 56.76976191 | AI60: 4.516420141e+24
A61: 121 | B61: 6 | C61: ННС | D61: 70.6 | E61: 38 | F61: 168 | G61: 1046.1 | H61: 1000-1043 | I61: 917.472 | J61: 114/873,754 | K61: 23.07.2023 | L61: 27.95 | M61: =VLOOKUP(A61,Сеноман!B:K,5,FALSE) -> 47.25009521 | N61: =VLOOKUP(A61,Сеноман!B:K,7,FALSE) -> 33.45 | O61: =VLOOKUP(A61,Сеноман!B:K,8,FALSE) -> 41.33 | P61: =VLOOKUP(A61,Сеноман!B:M,11,FALSE) -> 46.61404432 | Q61: =VLOOKUP(A61,Сеноман!B:M,12,FALSE) -> 0.6360508901 | R61: 8 | S61: =VLOOKUP(A61,Сеноман!B:M,9,FALSE) -> 6.7 | T61: =VLOOKUP(A61,Сеноман!B:M,6,FALSE) -> 674 | U61: =VLOOKUP(A61,Сеноман!B:M,10,FALSE) -> 20.93530655 | V61: =VLOOKUP(A61,Тнав!A:D,2,FALSE) -> 19.25618381 | W61: 1.053762914e-25 | X61: 44.37565934 | Y61: =VLOOKUP(A61,Тнав!A:D,3,FALSE) -> 2.874435867 | Z61: =VLOOKUP(A61,'Состояние фонда'!C:AB,20,FALSE) -> 7.2 | AA61: =VLOOKUP(A61,Тнав!A:E,4,FALSE) -> 333.9434459 | AB61: =VLOOKUP(A61,'Состояние фонда'!C:AB,21,FALSE) -> 47.1 | AD61: безгидратный | AE61: 10.41385616 | AF61: 286.1108088 | AG61: 0.9606559089 | AH61: 61.30495095 | AI61: 4.211161616e+26
A62: 122 | C62: ННС | D62: 57.3 | E62: 29 | F62: 168 | G62: 1047 | H62: 996-1044 | I62: 918.3 | J62: 114/872,523 | K62: 23.07.2023 | L62: 27.93 | M62: =VLOOKUP(A62,Сеноман!B:K,5,FALSE) -> 47.29779991 | N62: =VLOOKUP(A62,Сеноман!B:K,7,FALSE) -> 32.62 | O62: =VLOOKUP(A62,Сеноман!B:K,8,FALSE) -> 40.51 | P62: =VLOOKUP(A62,Сеноман!B:M,11,FALSE) -> 45.68171706 | Q62: =VLOOKUP(A62,Сеноман!B:M,12,FALSE) -> 1.616082855 | R62: 8 | S62: =VLOOKUP(A62,Сеноман!B:M,9,FALSE) -> 6.7 | T62: =VLOOKUP(A62,Сеноман!B:M,6,FALSE) -> 587 | U62: =VLOOKUP(A62,Сеноман!B:M,10,FALSE) -> 18.63600349 | V62: =VLOOKUP(A62,Тнав!A:D,2,FALSE) -> 10.7517916 | X62: 43.5180916 | Y62: =VLOOKUP(A62,Тнав!A:D,3,FALSE) -> 3.77970831 | Z62: =VLOOKUP(A62,'Состояние фонда'!C:AB,20,FALSE) -> 5.14 | AA62: =VLOOKUP(A62,Тнав!A:E,4,FALSE) -> 147.6815593 | AB62: =VLOOKUP(A62,'Состояние фонда'!C:AB,21,FALSE) -> 68 | AD62: безгидратный | AE62: 4.696127687 | AF62: 285.0654545 | AG62: 0.9770186029 | AH62: =(0.5647*0.03415*MID(J62,4,7)/(AF62*AG62)) -> 
A63: 123 | C63: ННС | D63: 57.5 | E63: 31 | F63: 168 | G63: 1050 | H63: 997-1049 | I63: 916.826 | J63: 114/875,579 | K63: 23.07.2023 | L63: 28.04 | M63: =VLOOKUP(A63,Сеноман!B:K,5,FALSE) -> 47.39996534 | N63: =VLOOKUP(A63,Сеноман!B:K,7,FALSE) -> 32.78 | O63: =VLOOKUP(A63,Сеноман!B:K,8,FALSE) -> 39.67 | P63: =VLOOKUP(A63,Сеноман!B:M,11,FALSE) -> 44.75537811 | Q63: =VLOOKUP(A63,Сеноман!B:M,12,FALSE) -> 2.644587232 | R63: 8 | S63: =VLOOKUP(A63,Сеноман!B:M,9,FALSE) -> 6.6 | T63: =VLOOKUP(A63,Сеноман!B:M,6,FALSE) -> 578 | U63: =VLOOKUP(A63,Сеноман!B:M,10,FALSE) -> 18.76716232 | V63: =VLOOKUP(A63,Тнав!A:D,2,FALSE) -> 15.32948627 | W63: 1.450805061e-25 | X63: 41.24181915 | Y63: =VLOOKUP(A63,Тнав!A:D,3,FALSE) -> 6.158146185 | Z63: =VLOOKUP(A63,'Состояние фонда'!C:AB,20,FALSE) -> 7.41 | AA63: =VLOOKUP(A63,Тнав!A:E,4,FALSE) -> 383.7790317 | AB63: =VLOOKUP(A63,'Состояние фонда'!C:AB,21,FALSE) -> 73 | AD63: безгидратный | AE63: 12.99032114 | AF63: 286.217229 | AG63: 0.9685130459 | AH63: =(0.5647*0.03415*MID(J63,5,7)/(AF63*AG63)) -> 60.91196148 | AI63: 2.842685091e+26
A64: 131 | B64: 1 | C64: ННС | D64: 98.2 | E64: 30 | F64: 168 | G64: 1075.8 | H64: 952-995 | I64: 916.919 | J64: 114/916,68 | K64: 24.07.2023 | L64: 28 | M64: =VLOOKUP(A64,Сеноман!B:K,5,FALSE) -> 47.89657271 | N64: =VLOOKUP(A64,Сеноман!B:K,7,FALSE) -> 39.26 | O64: =VLOOKUP(A64,Сеноман!B:K,8,FALSE) -> 43.13 | P64: =VLOOKUP(A64,Сеноман!B:M,11,FALSE) -> 48.98940434 | Q64: =VLOOKUP(A64,Сеноман!B:M,12,FALSE) -> -1.092831634 | R64: 8 | S64: =VLOOKUP(A64,Сеноман!B:M,9,FALSE) -> 4.5 | T64: =VLOOKUP(A64,Сеноман!B:M,6,FALSE) -> 375 | U64: =VLOOKUP(A64,Сеноман!B:M,10,FALSE) -> 11.08316708 | V64: =VLOOKUP(A64,Тнав!A:D,2,FALSE) -> 0 | X64: 47.89657271 | Y64: =VLOOKUP(A64,Тнав!A:D,3,FALSE) -> 0 | Z64: =VLOOKUP(A64,'Состояние фонда'!C:AB,20,FALSE) -> 3.82 | AA64: =VLOOKUP(A64,Тнав!A:E,4,FALSE) -> 0 | AB64: =VLOOKUP(A64,'Состояние фонда'!C:AB,21,FALSE) -> 40.2 | AD64: безгидратный | AE64: =IFERROR([1]!Скорость_газа(AA64,X64,18.8,46.8,190.24,IF(MID(J64,1,2)="73",6,IF(MID(J64,1,2)="89",7.6,IF(MID(J64,1,2)="11",10,0)))),"") ->  | AF64: 284.3942491 | AG64: 1 | AH64: =(0.5647*0.03415*MID(J64,4,7)/(AF64*AG64)) -> 
A65: 132 | C65: ННС | D65: 86 | E65: 45 | F65: 168 | G65: 1031 | H65: 936-1000 | I65: 904.154 | J65: 114/812,146 | K65: 24.07.2023 | L65: 27.87 | M65: =VLOOKUP(A65,Сеноман!B:K,5,FALSE) -> 47.47033139 | N65: =VLOOKUP(A65,Сеноман!B:K,7,FALSE) -> 39.87 | O65: =VLOOKUP(A65,Сеноман!B:K,8,FALSE) -> 42.73 | P65: =VLOOKUP(A65,Сеноман!B:M,11,FALSE) -> 47.84078329 | Q65: =VLOOKUP(A65,Сеноман!B:M,12,FALSE) -> -0.370451909 | R65: 8 | S65: =VLOOKUP(A65,Сеноман!B:M,9,FALSE) -> 4.2 | T65: =VLOOKUP(A65,Сеноман!B:M,6,FALSE) -> 416 | U65: =VLOOKUP(A65,Сеноман!B:M,10,FALSE) -> 12.52163601 | V65: =VLOOKUP(A65,Тнав!A:D,2,FALSE) -> 0 | X65: 47.47033139 | Y65: =VLOOKUP(A65,Тнав!A:D,3,FALSE) -> 0 | Z65: =VLOOKUP(A65,'Состояние фонда'!C:AB,20,FALSE) -> 1.17 | AA65: =VLOOKUP(A65,Тнав!A:E,4,FALSE) -> 0 | AB65: =VLOOKUP(A65,'Состояние фонда'!C:AB,21,FALSE) -> 19.9 | AD65: безгидратный | AE65: =IFERROR([1]!Скорость_газа(AA65,X65,18.8,46.8,190.24,IF(MID(J65,1,2)="73",6,IF(MID(J65,1,2)="89",7.6,IF(MID(J65,1,2)="11",10,0)))),"") ->  | AF65: 283.0434956 | AG65: 1 | AH65: =(0.5647*0.03415*MID(J65,4,7)/(AF65*AG65)) -> 
A66: 133 | C66: ННС | D66: 86.8 | E66: 27 | F66: 168 | G66: 989 | H66: 955-982 | I66: 916.592 | J66: 114/874,83 | K66: 24.07.2023 | L66: 27.97 | M66: =VLOOKUP(A66,Сеноман!B:K,5,FALSE) -> 47.76754654 | N66: =VLOOKUP(A66,Сеноман!B:K,7,FALSE) -> 39.93 | O66: =VLOOKUP(A66,Сеноман!B:K,8,FALSE) -> 42.91 | P66: =VLOOKUP(A66,Сеноман!B:M,11,FALSE) -> 48.4589789 | Q66: =VLOOKUP(A66,Сеноман!B:M,12,FALSE) -> -0.6914323604 | R66: 8 | S66: =VLOOKUP(A66,Сеноман!B:M,9,FALSE) -> 4.4 | T66: =VLOOKUP(A66,Сеноман!B:M,6,FALSE) -> 346 | U66: =VLOOKUP(A66,Сеноман!B:M,10,FALSE) -> 10.31606293 | V66: =VLOOKUP(A66,Тнав!A:D,2,FALSE) -> 13.98751489 | X66: 41.51061233 | Y66: =VLOOKUP(A66,Тнав!A:D,3,FALSE) -> 6.256934212 | Z66: =VLOOKUP(A66,'Состояние фонда'!C:AB,20,FALSE) -> 2.5 | AA66: =VLOOKUP(A66,Тнав!A:E,4,FALSE) -> 71.17683031 | AB66: =VLOOKUP(A66,'Состояние фонда'!C:AB,21,FALSE) -> 23.1 | AD66: безгидратный | AE66: 2.393624176 | AF66: 283.7219672 | AG66: 0.9692391555 | AH66: =(0.5647*0.03415*MID(J66,4,7)/(AF66*AG66)) -> 
A67: 134 | C67: ННС | D67: 92 | E67: 26 | F67: 168 | G67: 945 | H67: 912-968 | I67: 901.597 | J67: 89/nan | K67: 24.07.2023 | L67: 27.78 | M67: =VLOOKUP(A67,Сеноман!B:K,5,FALSE) -> 47.64346303 | N67: =VLOOKUP(A67,Сеноман!B:K,7,FALSE) -> 29.29 | O67: =VLOOKUP(A67,Сеноман!B:K,8,FALSE) -> 30.91 | P67: =VLOOKUP(A67,Сеноман!B:M,11,FALSE) ->  | Q67: =VLOOKUP(A67,Сеноман!B:M,12,FALSE) ->  | R67: 8 | S67: =VLOOKUP(A67,Сеноман!B:M,9,FALSE) -> 3.7 | T67: =VLOOKUP(A67,Сеноман!B:M,6,FALSE) -> 119 | U67: =VLOOKUP(A67,Сеноман!B:M,10,FALSE) -> 5.072582722 | V67: =VLOOKUP(A67,Тнав!A:D,2,FALSE) -> 17.59428549 | X67: 40.5992981 | Y67: =VLOOKUP(A67,Тнав!A:D,3,FALSE) -> 7.044164932 | Z67: =VLOOKUP(A67,'Состояние фонда'!C:AB,20,FALSE) -> 0.78 | AA67: =VLOOKUP(A67,Тнав!A:E,4,FALSE) -> 54.55502079 | AB67: =VLOOKUP(A67,'Состояние фонда'!C:AB,21,FALSE) -> 14.9 | AD67: безгидратный | AE67: =IFERROR([1]!Скорость_газа(AA67,X67,18.8,46.8,190.24,IF(MID(J67,1,2)="73",6,IF(MID(J67,1,2)="89",7.6,IF(MID(J67,1,2)="11",10,0)))),"") ->  | AF67: 282.8443354 | AG67: 0.9607181225 | AH67: =(0.5647*0.03415*MID(J67,4,7)/(AF67*AG67)) -> 
A68: 141 | B68: 3 | C68: ННС | D68: 76 | E68: 24 | F68: 168 | G68: 1033 | H68: 994-1021 | I68: 900.585 | J68: 114/814,901 | K68: 26.07.2023 | L68: 27.17 | M68: =VLOOKUP(A68,Сеноман!B:K,5,FALSE) -> 46.08114083 | N68: =VLOOKUP(A68,Сеноман!B:K,7,FALSE) -> 31.34 | O68: =VLOOKUP(A68,Сеноман!B:K,8,FALSE) -> 39.18 | P68: =VLOOKUP(A68,Сеноман!B:M,11,FALSE) -> 43.79641325 | Q68: =VLOOKUP(A68,Сеноман!B:M,12,FALSE) -> 2.284727586 | R68: 8 | S68: =VLOOKUP(A68,Сеноман!B:M,9,FALSE) -> 7.2 | T68: =VLOOKUP(A68,Сеноман!B:M,6,FALSE) -> 555 | U68: =VLOOKUP(A68,Сеноман!B:M,10,FALSE) -> 18.36228752 | V68: =VLOOKUP(A68,Тнав!A:D,2,FALSE) -> 15.16506083 | W68: 1.251924664e-23 | X68: 43.26274831 | Y68: =VLOOKUP(A68,Тнав!A:D,3,FALSE) -> 2.818392525 | Z68: =VLOOKUP(A68,'Состояние фонда'!C:AB,20,FALSE) -> 8.78 | AA68: =VLOOKUP(A68,Тнав!A:E,4,FALSE) -> 473.3450718 | AB68: =VLOOKUP(A68,'Состояние фонда'!C:AB,21,FALSE) -> 96.9 | AD68: безгидратный | AE68: 15.14074428 | AF68: 286.9108393 | AG68: 0.9693978562 | AH68: =(0.5647*0.03415*MID(J68,5,7)/(AF68*AG68)) -> 56.50206699 | AI68: 3.455699016e+24
A69: 142 | C69: ННС | D69: 69 | E69: 41 | F69: 168 | G69: 1042.7 | H69: 975-1039 | I69: 899.96 | J69: 114/870,19 | K69: 26.07.2023 | L69: 27.14 | M69: =VLOOKUP(A69,Сеноман!B:K,5,FALSE) -> 46.19163976 | N69: =VLOOKUP(A69,Сеноман!B:K,7,FALSE) -> 31.43 | O69: =VLOOKUP(A69,Сеноман!B:K,8,FALSE) -> 39.62 | P69: =VLOOKUP(A69,Сеноман!B:M,11,FALSE) -> 44.65329093 | Q69: =VLOOKUP(A69,Сеноман!B:M,12,FALSE) -> 1.53834883 | R69: 8 | S69: =VLOOKUP(A69,Сеноман!B:M,9,FALSE) -> 7.3 | T69: =VLOOKUP(A69,Сеноман!B:M,6,FALSE) -> 592 | U69: =VLOOKUP(A69,Сеноман!B:M,10,FALSE) -> 19.26717567 | V69: =VLOOKUP(A69,Тнав!A:D,2,FALSE) -> 0 | X69: 46.19163976 | Y69: =VLOOKUP(A69,Тнав!A:D,3,FALSE) -> 0 | Z69: =VLOOKUP(A69,'Состояние фонда'!C:AB,20,FALSE) -> 8.83 | AA69: =VLOOKUP(A69,Тнав!A:E,4,FALSE) -> 0 | AB69: =VLOOKUP(A69,'Состояние фонда'!C:AB,21,FALSE) -> 99.6 | AD69: безгидратный | AE69: =IFERROR([1]!Скорость_газа(AA69,X69,18.8,46.8,190.24,IF(MID(J69,1,2)="73",6,IF(MID(J69,1,2)="89",7.6,IF(MID(J69,1,2)="11",10,0)))),"") ->  | AF69: 286.9361321 | AG69: 1
A70: 143 | C70: ННС | D70: 65.3 | E70: 29 | F70: 168 | G70: 1034.5 | H70: 1003-1048 | I70: 905.84 | J70: 114/810,775 | K70: 24.08.2022 | L70: 29.79 | M70: =VLOOKUP(A70,Сеноман!B:K,5,FALSE) -> 46.25639689 | N70: =VLOOKUP(A70,Сеноман!B:K,7,FALSE) -> 31.59 | O70: =VLOOKUP(A70,Сеноман!B:K,8,FALSE) -> 40.05 | P70: =VLOOKUP(A70,Сеноман!B:M,11,FALSE) -> 44.76909045 | Q70: =VLOOKUP(A70,Сеноман!B:M,12,FALSE) -> 1.487306437 | R70: 8 | S70: =VLOOKUP(A70,Сеноман!B:M,9,FALSE) -> 7.4 | T70: =VLOOKUP(A70,Сеноман!B:M,6,FALSE) -> 608 | U70: =VLOOKUP(A70,Сеноман!B:M,10,FALSE) -> 19.64940071 | V70: =VLOOKUP(A70,Тнав!A:D,2,FALSE) -> 0 | W70: 1.013757054e-22 | X70: 46.25639689 | Y70: =VLOOKUP(A70,Тнав!A:D,3,FALSE) -> 0 | Z70: =VLOOKUP(A70,'Состояние фонда'!C:AB,20,FALSE) -> 8.97 | AA70: =VLOOKUP(A70,Тнав!A:E,4,FALSE) -> 0 | AB70: =VLOOKUP(A70,'Состояние фонда'!C:AB,21,FALSE) -> 98.5 | AD70: безгидратный | AE70: =IFERROR([1]!Скорость_газа(AA70,X70,18.8,46.8,190.24,IF(MID(J70,1,2)="73",6,IF(MID(J70,1,2)="89",7.6,IF(MID(J70,1,2)="11",10,0)))),"") ->  | AF70: 287.0069441 | AG70: 1 | AH70: 54.47740853 | AI70: 4.562868068e+23
A71: 144 | C71: ННС | D71: 84.6 | E71: 32 | F71: 168 | G71: 1034 | H71: 970,6-1032,6 | I71: 895.269 | J71: 114/810,663 | K71: 26.07.2023 | L71: 27.39 | M71: =VLOOKUP(A71,Сеноман!B:K,5,FALSE) -> 46.27100915 | N71: =VLOOKUP(A71,Сеноман!B:K,7,FALSE) -> 31.81 | O71: =VLOOKUP(A71,Сеноман!B:K,8,FALSE) -> 39.72 | P71: =VLOOKUP(A71,Сеноман!B:M,11,FALSE) -> 44.38240455 | Q71: =VLOOKUP(A71,Сеноман!B:M,12,FALSE) -> 1.888604596 | R71: 8 | S71: =VLOOKUP(A71,Сеноман!B:M,9,FALSE) -> 6.7 | T71: =VLOOKUP(A71,Сеноман!B:M,6,FALSE) -> 574 | U71: =VLOOKUP(A71,Сеноман!B:M,10,FALSE) -> 18.71996689 | V71: =VLOOKUP(A71,Тнав!A:D,2,FALSE) -> 0 | W71: 9.561567801e-23 | X71: 46.27100915 | Y71: =VLOOKUP(A71,Тнав!A:D,3,FALSE) -> 0 | Z71: =VLOOKUP(A71,'Состояние фонда'!C:AB,20,FALSE) -> 8.28 | AA71: =VLOOKUP(A71,Тнав!A:E,4,FALSE) -> 0 | AB71: =VLOOKUP(A71,'Состояние фонда'!C:AB,21,FALSE) -> 96.8 | AD71: безгидратный | AE71: =IFERROR([1]!Скорость_газа(AA71,X71,18.8,46.8,190.24,IF(MID(J71,1,2)="73",6,IF(MID(J71,1,2)="89",7.6,IF(MID(J71,1,2)="11",10,0)))),"") ->  | AF71: 286.6578281 | AG71: 1 | AH71: 54.53622104 | AI71: 4.839270098e+23
A72: 151 | C72: ННС | D72: 89.5 | E72: 26 | F72: 168 | G72: 1038.5 | H72: 993-1019 | I72: 893.969 | J72: 114/812,04 | K72: 26.07.2023 | L72: 27.46 | M72: =VLOOKUP(A72,Сеноман!B:K,5,FALSE) -> 46.44144539 | N72: =VLOOKUP(A72,Сеноман!B:K,7,FALSE) -> 32.85 | O72: =VLOOKUP(A72,Сеноман!B:K,8,FALSE) -> 40.95 | P72: =VLOOKUP(A72,Сеноман!B:M,11,FALSE) -> 45.79480517 | Q72: =VLOOKUP(A72,Сеноман!B:M,12,FALSE) -> 0.6466402189 | R72: 8 | S72: =VLOOKUP(A72,Сеноман!B:M,9,FALSE) -> 6.7 | T72: =VLOOKUP(A72,Сеноман!B:M,6,FALSE) -> 660 | U72: =VLOOKUP(A72,Сеноман!B:M,10,FALSE) -> 20.82453156 | V72: =VLOOKUP(A72,Тнав!A:D,2,FALSE) -> 13.84223941 | W72: =X72/AI72 ->  | X72: =M72-Y72 -> 40.45274314 | Y72: =VLOOKUP(A72,Тнав!A:D,3,FALSE) -> 5.988702254 | Z72: =VLOOKUP(A72,'Состояние фонда'!C:AB,20,FALSE) -> 8.62 | AA72: =VLOOKUP(A72,Тнав!A:E,4,FALSE) -> 442.5365613 | AB72: =VLOOKUP(A72,'Состояние фонда'!C:AB,21,FALSE) -> 96.9 | AD72: безгидратный | AE72: 15.27135731 | AF72: 286.8298921 | AG72: 0.9719332925
A73: 152 | C73: ННС | D73: 87.2 | E73: 37 | F73: 168 | G73: 1041.1 | H73: 970-1016,5 | I73: 887.182 | J73: 114/852,084 | K73: 26.07.2023 | L73: 27.31 | M73: =VLOOKUP(A73,Сеноман!B:K,5,FALSE) -> 46.19753586 | N73: =VLOOKUP(A73,Сеноман!B:K,7,FALSE) -> 32.33 | O73: =VLOOKUP(A73,Сеноман!B:K,8,FALSE) -> 39.09 | P73: =VLOOKUP(A73,Сеноман!B:M,11,FALSE) ->  | Q73: =VLOOKUP(A73,Сеноман!B:M,12,FALSE) ->  | R73: 8 | S73: =VLOOKUP(A73,Сеноман!B:M,9,FALSE) -> 7 | T73: =VLOOKUP(A73,Сеноман!B:M,6,FALSE) -> 567 | U73: =VLOOKUP(A73,Сеноман!B:M,10,FALSE) -> 18.75580978 | V73: =VLOOKUP(A73,Тнав!A:D,2,FALSE) -> 15.15369246 | W73: 8.838548721e-25 | X73: 41.12061777 | Y73: =VLOOKUP(A73,Тнав!A:D,3,FALSE) -> 5.076918097 | Z73: =VLOOKUP(A73,'Состояние фонда'!C:AB,20,FALSE) -> 8.6 | AA73: =VLOOKUP(A73,Тнав!A:E,4,FALSE) -> 396.737553 | AB73: =VLOOKUP(A73,'Состояние фонда'!C:AB,21,FALSE) -> 97.7 | AD73: безгидратный | AE73: 13.46852815 | AF73: 286.8197726 | AG73: 0.9693475937 | AH73: 59.10201428 | AI73: 4.652417389e+25
A74: 153 | C74: ННС | D74: 83.7 | E74: 34 | F74: 168 | G74: 1053.1 | H74: 976-1010 | I74: 883.031 | J74: 114/842,584 | K74: 26.07.2023 | L74: 27.34 | M74: =VLOOKUP(A74,Сеноман!B:K,5,FALSE) -> 46.18456851 | N74: =VLOOKUP(A74,Сеноман!B:K,7,FALSE) -> 32.27 | O74: =VLOOKUP(A74,Сеноман!B:K,8,FALSE) -> 39.3 | P74: =VLOOKUP(A74,Сеноман!B:M,11,FALSE) -> 44.10554153 | Q74: =VLOOKUP(A74,Сеноман!B:M,12,FALSE) -> 2.079026981 | R74: 8 | S74: =VLOOKUP(A74,Сеноман!B:M,9,FALSE) -> 6.7 | T74: =VLOOKUP(A74,Сеноман!B:M,6,FALSE) -> 571 | U74: =VLOOKUP(A74,Сеноман!B:M,10,FALSE) -> 18.79243469 | V74: =VLOOKUP(A74,Тнав!A:D,2,FALSE) -> 14.34774736 | W74: 1.803276853e-24 | X74: 41.14011058 | Y74: =VLOOKUP(A74,Тнав!A:D,3,FALSE) -> 5.044457935 | Z74: =VLOOKUP(A74,'Состояние фонда'!C:AB,20,FALSE) -> 8.27 | AA74: =VLOOKUP(A74,Тнав!A:E,4,FALSE) -> 510.1182033 | AB74: =VLOOKUP(A74,'Состояние фонда'!C:AB,21,FALSE) -> 99.5 | AD74: безгидратный | AE74: 17.30939247 | AF74: 286.6527663 | AG74: 0.970803655 | AH74: 58.38942032 | AI74: 2.281408455e+25
A75: 154 | C75: ННС | D75: 86.6 | E75: 40 | F75: 168 | G75: 1052.5 | H75: 973-1047 | I75: 897.31 | J75: 114/870,174 | K75: 26.07.2023 | L75: 27.58 | M75: =VLOOKUP(A75,Сеноман!B:K,5,FALSE) -> 46.83854819 | N75: =VLOOKUP(A75,Сеноман!B:K,7,FALSE) -> 32.47 | O75: =VLOOKUP(A75,Сеноман!B:K,8,FALSE) -> 39.71 | P75: =VLOOKUP(A75,Сеноман!B:M,11,FALSE) ->  | Q75: =VLOOKUP(A75,Сеноман!B:M,12,FALSE) ->  | R75: 8 | S75: =VLOOKUP(A75,Сеноман!B:M,9,FALSE) -> 7 | T75: =VLOOKUP(A75,Сеноман!B:M,6,FALSE) -> 584 | U75: =VLOOKUP(A75,Сеноман!B:M,10,FALSE) -> 18.96480942 | V75: =VLOOKUP(A75,Тнав!A:D,2,FALSE) -> 15.60976498 | W75: 2.48827061e-25 | X75: 43.09397411 | Y75: =VLOOKUP(A75,Тнав!A:D,3,FALSE) -> 3.744574082 | Z75: =VLOOKUP(A75,'Состояние фонда'!C:AB,20,FALSE) -> 8.57 | AA75: =VLOOKUP(A75,Тнав!A:E,4,FALSE) -> 444.0166974 | AB75: =VLOOKUP(A75,'Состояние фонда'!C:AB,21,FALSE) -> 32.1 | AD75: безгидратный | AE75: 14.25825 | AF75: 286.8045929 | AG75: 0.9684417211 | AH75: 60.41642257 | AI75: 1.731884544e+26
A76: 161 | B76: 2 | C76: ННС | D76: 43.3 | E76: 35 | F76: 168 | G76: 1030 | H76: 990,5-1031 | I76: 914.62 | J76: 114/872,381 | K76: 23.07.2023 | L76: 26.67 | M76: =VLOOKUP(A76,Сеноман!B:K,5,FALSE) -> 46.24323902 | N76: =VLOOKUP(A76,Сеноман!B:K,7,FALSE) -> 32.37 | O76: =VLOOKUP(A76,Сеноман!B:K,8,FALSE) -> 39.02 | P76: =VLOOKUP(A76,Сеноман!B:M,11,FALSE) -> 43.97390555 | Q76: =VLOOKUP(A76,Сеноман!B:M,12,FALSE) -> 2.269333479 | R76: 8 | S76: =VLOOKUP(A76,Сеноман!B:M,9,FALSE) -> 6.5 | T76: =VLOOKUP(A76,Сеноман!B:M,6,FALSE) -> 483 | U76: =VLOOKUP(A76,Сеноман!B:M,10,FALSE) -> 15.97019768 | V76: =VLOOKUP(A76,Тнав!A:D,2,FALSE) -> 0 | W76: 1.458882712e-24 | X76: 46.24323902 | Y76: =VLOOKUP(A76,Тнав!A:D,3,FALSE) -> 0 | Z76: =VLOOKUP(A76,'Состояние фонда'!C:AB,20,FALSE) -> 7.99 | AA76: =VLOOKUP(A76,Тнав!A:E,4,FALSE) -> 0 | AB76: =VLOOKUP(A76,'Состояние фонда'!C:AB,21,FALSE) -> 97.9 | AD76: безгидратный | AE76: =IFERROR([1]!Скорость_газа(AA76,X76,18.8,46.8,190.24,IF(MID(J76,1,2)="73",6,IF(MID(J76,1,2)="89",7.6,IF(MID(J76,1,2)="11",10,0)))),"") ->  | AF76: 286.5110126 | AG76: 1 | AH76: 58.71828662 | AI76: 3.169770856e+25
A77: 162 | C77: ННС | D77: 56.2 | E77: 31 | F77: 168 | G77: 1032 | H77: 983,2-1034 | I77: 914.533 | J77: 114/873,487 | K77: 23.07.2023 | L77: 26.63 | M77: =VLOOKUP(A77,Сеноман!B:K,5,FALSE) -> 46.17009404 | N77: =VLOOKUP(A77,Сеноман!B:K,7,FALSE) -> 31.5 | O77: =VLOOKUP(A77,Сеноман!B:K,8,FALSE) -> 39.25 | P77: =VLOOKUP(A77,Сеноман!B:M,11,FALSE) -> 44.22381322 | Q77: =VLOOKUP(A77,Сеноман!B:M,12,FALSE) -> 1.946280824 | R77: 8 | S77: =VLOOKUP(A77,Сеноман!B:M,9,FALSE) -> 7.4 | T77: =VLOOKUP(A77,Сеноман!B:M,6,FALSE) -> 564 | U77: =VLOOKUP(A77,Сеноман!B:M,10,FALSE) -> 18.53172302 | V77: =VLOOKUP(A77,Тнав!A:D,2,FALSE) -> 0 | W77: 1.449401393e-24 | X77: 46.17009404 | Y77: =VLOOKUP(A77,Тнав!A:D,3,FALSE) -> 0 | Z77: =VLOOKUP(A77,'Состояние фонда'!C:AB,20,FALSE) -> 8.66 | AA77: =VLOOKUP(A77,Тнав!A:E,4,FALSE) -> 0 | AB77: =VLOOKUP(A77,'Состояние фонда'!C:AB,21,FALSE) -> 97 | AD77: безгидратный | AE77: =IFERROR([1]!Скорость_газа(AA77,X77,18.8,46.8,190.24,IF(MID(J77,1,2)="73",6,IF(MID(J77,1,2)="89",7.6,IF(MID(J77,1,2)="11",10,0)))),"") ->  | AF77: 286.8501303 | AG77: 1 | AH77: 58.72322387 | AI77: 3.185459478e+25
A78: 163 | C78: ННС | D78: 44 | E78: 27 | F78: 168 | G78: 1042 | H78: 1001-1037 | I78: 918.442 | J78: 114/873,485 | K78: 23.07.2023 | L78: 26.38 | M78: =VLOOKUP(A78,Сеноман!B:K,5,FALSE) -> 46.46691232 | N78: =VLOOKUP(A78,Сеноман!B:K,7,FALSE) -> 38.55 | O78: =VLOOKUP(A78,Сеноман!B:K,8,FALSE) -> 39.03 | P78: =VLOOKUP(A78,Сеноман!B:M,11,FALSE) -> 44.05740421 | Q78: =VLOOKUP(A78,Сеноман!B:M,12,FALSE) -> 2.409508112 | R78: 8 | S78: =VLOOKUP(A78,Сеноман!B:M,9,FALSE) -> 3.3 | T78: =VLOOKUP(A78,Сеноман!B:M,6,FALSE) -> 145 | U78: =VLOOKUP(A78,Сеноман!B:M,10,FALSE) -> 4.790005684 | V78: =VLOOKUP(A78,Тнав!A:D,2,FALSE) -> 0 | W78: 1.172457193e-24 | X78: 46.46691232 | Y78: =VLOOKUP(A78,Тнав!A:D,3,FALSE) -> 0 | Z78: =VLOOKUP(A78,'Состояние фонда'!C:AB,20,FALSE) -> 6.56 | AA78: =VLOOKUP(A78,Тнав!A:E,4,FALSE) -> 0 | AB78: =VLOOKUP(A78,'Состояние фонда'!C:AB,21,FALSE) -> 49.4 | AD78: безгидратный | AE78: =IFERROR([1]!Скорость_газа(AA78,X78,18.8,46.8,190.24,IF(MID(J78,1,2)="73",6,IF(MID(J78,1,2)="89",7.6,IF(MID(J78,1,2)="11",10,0)))),"") ->  | AF78: 285.7863155 | AG78: 1 | AH78: 58.94168102 | AI78: 3.963207577e+25
A79: 164 | C79: ННС | D79: 51.6 | E79: 36 | F79: 168 | G79: 1034.5 | H79: 984,4-1032 | I79: 910.827 | J79: 114/872,605 | K79: 23.07.2023 | L79: 26.8 | M79: =VLOOKUP(A79,Сеноман!B:K,5,FALSE) -> 46.43968831 | N79: =VLOOKUP(A79,Сеноман!B:K,7,FALSE) -> 32 | O79: =VLOOKUP(A79,Сеноман!B:K,8,FALSE) -> 40.09 | P79: =VLOOKUP(A79,Сеноман!B:M,11,FALSE) -> 45.20510339 | Q79: =VLOOKUP(A79,Сеноман!B:M,12,FALSE) -> 1.234584922 | R79: 8 | S79: =VLOOKUP(A79,Сеноман!B:M,9,FALSE) -> 6.9 | T79: =VLOOKUP(A79,Сеноман!B:M,6,FALSE) -> 579 | U79: =VLOOKUP(A79,Сеноман!B:M,10,FALSE) -> 18.59444809 | V79: =VLOOKUP(A79,Тнав!A:D,2,FALSE) -> 0 | W79: 1.508960871e-24 | X79: 46.43968831 | Y79: =VLOOKUP(A79,Тнав!A:D,3,FALSE) -> 0 | Z79: =VLOOKUP(A79,'Состояние фонда'!C:AB,20,FALSE) -> 8.42 | AA79: =VLOOKUP(A79,Тнав!A:E,4,FALSE) -> 0 | AB79: =VLOOKUP(A79,'Состояние фонда'!C:AB,21,FALSE) -> 98.4 | AD79: безгидратный | AE79: =IFERROR([1]!Скорость_газа(AA79,X79,18.8,46.8,190.24,IF(MID(J79,1,2)="73",6,IF(MID(J79,1,2)="89",7.6,IF(MID(J79,1,2)="11",10,0)))),"") ->  | AF79: 286.7286864 | AG79: 1 | AH79: 58.68877543 | AI79: 3.077593938e+25
A80: 171 | B80: 3 | C80: ННС | D80: 62.2 | E80: 40.2 | F80: 168 | G80: 1075.4 | H80: 1005-1077 | I80: 909.848 | J80: 114/867,659 | K80: 23.07.2023 | L80: 27.07 | M80: =VLOOKUP(A80,Сеноман!B:K,5,FALSE) -> 46.25602051 | N80: =VLOOKUP(A80,Сеноман!B:K,7,FALSE) -> 32.28 | O80: =VLOOKUP(A80,Сеноман!B:K,8,FALSE) -> 39.28 | P80: =VLOOKUP(A80,Сеноман!B:M,11,FALSE) -> 44.21889195 | Q80: =VLOOKUP(A80,Сеноман!B:M,12,FALSE) -> 2.037128559 | R80: 8 | S80: =VLOOKUP(A80,Сеноман!B:M,9,FALSE) -> 7.6 | T80: =VLOOKUP(A80,Сеноман!B:M,6,FALSE) -> 536 | U80: =VLOOKUP(A80,Сеноман!B:M,10,FALSE) -> 17.60031319 | V80: =VLOOKUP(A80,Тнав!A:D,2,FALSE) -> 16.68880636 | W80: 2.777819559e-25 | X80: 43.26517381 | Y80: =VLOOKUP(A80,Тнав!A:D,3,FALSE) -> 2.990846702 | Z80: =VLOOKUP(A80,'Состояние фонда'!C:AB,20,FALSE) -> 9.04 | AA80: =VLOOKUP(A80,Тнав!A:E,4,FALSE) -> 442.8238554 | AB80: =VLOOKUP(A80,'Состояние фонда'!C:AB,21,FALSE) -> 97.1 | AD80: безгидратный | AE80: 14.16367737 | AF80: 287.0423456 | AG80: 0.9665404798 | AH80: 60.31030905 | AI80: 1.55752283e+26
A81: 172 | C81: ННС | D81: 63.6 | E81: 30 | F81: 168 | G81: 1089 | H81: 1044-1086 | I81: 918.055 | J81: 114/866,427 | K81: 23.07.2023 | L81: 27.04 | M81: =VLOOKUP(A81,Сеноман!B:K,5,FALSE) -> 46.25047912 | N81: =VLOOKUP(A81,Сеноман!B:K,7,FALSE) -> 32.2 | O81: =VLOOKUP(A81,Сеноман!B:K,8,FALSE) -> 39 | P81: =VLOOKUP(A81,Сеноман!B:M,11,FALSE) -> 43.9016005 | Q81: =VLOOKUP(A81,Сеноман!B:M,12,FALSE) -> 2.348878623 | R81: 8 | S81: =VLOOKUP(A81,Сеноман!B:M,9,FALSE) -> 7.3 | T81: =VLOOKUP(A81,Сеноман!B:M,6,FALSE) -> 571 | U81: =VLOOKUP(A81,Сеноман!B:M,10,FALSE) -> 18.89581299 | V81: =VLOOKUP(A81,Тнав!A:D,2,FALSE) -> 15.22196768 | W81: 3.141514849e-25 | X81: 39.5426409 | Y81: =VLOOKUP(A81,Тнав!A:D,3,FALSE) -> 6.707838221 | Z81: =VLOOKUP(A81,'Состояние фонда'!C:AB,20,FALSE) -> 8.66 | AA81: =VLOOKUP(A81,Тнав!A:E,4,FALSE) -> 292.4502679 | AB81: =VLOOKUP(A81,'Состояние фонда'!C:AB,21,FALSE) -> 99.5 | AD81: безгидратный | AE81: 10.3243522 | AF81: 286.8501303 | AG81: 0.9692380336 | AH81: 60.09730181 | AI81: 1.258712526e+26
A82: 173 | C82: ННС | D82: 65.6 | E82: 26.2 | F82: 168 | G82: 1070.7 | H82: 1029-1065 | I82: 905.884 | J82: 114/853,624 | K82: 23.07.2023 | L82: 27.12 | M82: =VLOOKUP(A82,Сеноман!B:K,5,FALSE) -> 46.2291361 | N82: =VLOOKUP(A82,Сеноман!B:K,7,FALSE) -> 32.48 | O82: =VLOOKUP(A82,Сеноман!B:K,8,FALSE) -> 40.34 | P82: =VLOOKUP(A82,Сеноман!B:M,11,FALSE) -> 45.36293357 | Q82: =VLOOKUP(A82,Сеноман!B:M,12,FALSE) -> 0.866202534 | R82: 8 | S82: =VLOOKUP(A82,Сеноман!B:M,9,FALSE) -> 7.2 | T82: =VLOOKUP(A82,Сеноман!B:M,6,FALSE) -> 570 | U82: =VLOOKUP(A82,Сеноман!B:M,10,FALSE) -> 18.20348167 | V82: =VLOOKUP(A82,Тнав!A:D,2,FALSE) -> 14.62696577 | W82: 8.364938934e-25 | X82: 39.83246759 | Y82: =VLOOKUP(A82,Тнав!A:D,3,FALSE) -> 6.396668515 | Z82: =VLOOKUP(A82,'Состояние фонда'!C:AB,20,FALSE) -> 8.76 | AA82: =VLOOKUP(A82,Тнав!A:E,4,FALSE) -> 339.5031854 | AB82: =VLOOKUP(A82,'Состояние фонда'!C:AB,21,FALSE) -> 98 | AD82: безгидратный | AE82: 11.89825029 | AF82: 286.9007217 | AG82: 0.9704438313 | AH82: 59.12526064 | AI82: 4.761836028e+25
A83: 181 | B83: 2 | C83: ННС | D83: 61.9 | E83: 30 | F83: 168 | G83: 1050 | H83: 1009-1049 | I83: 921.466 | J83: 114/870,584 | K83: 25.07.2023 | L83: 26.95 | M83: =VLOOKUP(A83,Сеноман!B:K,5,FALSE) -> 46.19853153 | N83: =VLOOKUP(A83,Сеноман!B:K,7,FALSE) -> 33.07 | O83: =VLOOKUP(A83,Сеноман!B:K,8,FALSE) -> 40.78 | P83: =VLOOKUP(A83,Сеноман!B:M,11,FALSE) -> 45.95726466 | Q83: =VLOOKUP(A83,Сеноман!B:M,12,FALSE) -> 0.2412668615 | R83: 8 | S83: =VLOOKUP(A83,Сеноман!B:M,9,FALSE) -> 7.6 | T83: =VLOOKUP(A83,Сеноман!B:M,6,FALSE) -> 573 | U83: =VLOOKUP(A83,Сеноман!B:M,10,FALSE) -> 18.06233025 | V83: =VLOOKUP(A83,Тнав!A:D,2,FALSE) -> 16.03839005 | W83: 2.469974135e-25 | X83: 42.99194813 | Y83: =VLOOKUP(A83,Тнав!A:D,3,FALSE) -> 3.206583396 | Z83: =VLOOKUP(A83,'Состояние фонда'!C:AB,20,FALSE) -> 9.14 | AA83: =VLOOKUP(A83,Тнав!A:E,4,FALSE) -> 402.3566101 | AB83: =VLOOKUP(A83,'Состояние фонда'!C:AB,21,FALSE) -> 98.1 | AD83: безгидратный | AE83: 12.9511247 | AF83: 287.0929142 | AG83: 0.9678447216 | AH83: 60.42143249 | AI83: 1.740582928e+26
A84: 182 | C84: ННС | D84: 65.4 | E84: 32 | F84: 168 | G84: 1041 | H84: 983-1040 | I84: 910.859 | J84: 114/866,657 | K84: 25.07.2023 | L84: 27.04 | M84: =VLOOKUP(A84,Сеноман!B:K,5,FALSE) -> 46.24340617 | N84: =VLOOKUP(A84,Сеноман!B:K,7,FALSE) -> 33.06 | O84: =VLOOKUP(A84,Сеноман!B:K,8,FALSE) -> 40.4 | P84: =VLOOKUP(A84,Сеноман!B:M,11,FALSE) -> 45.50279531 | Q84: =VLOOKUP(A84,Сеноман!B:M,12,FALSE) -> 0.7406108564 | R84: 8 | S84: =VLOOKUP(A84,Сеноман!B:M,9,FALSE) -> 7.7 | T84: =VLOOKUP(A84,Сеноман!B:M,6,FALSE) -> 532 | U84: =VLOOKUP(A84,Сеноман!B:M,10,FALSE) -> 16.94623566 | V84: =VLOOKUP(A84,Тнав!A:D,2,FALSE) -> 15.08008316 | W84: 3.430019391e-25 | X84: 41.29856803 | Y84: =VLOOKUP(A84,Тнав!A:D,3,FALSE) -> 4.944838141 | Z84: =VLOOKUP(A84,'Состояние фонда'!C:AB,20,FALSE) -> 8.99 | AA84: =VLOOKUP(A84,Тнав!A:E,4,FALSE) -> 349.9749397 | AB84: =VLOOKUP(A84,'Состояние фонда'!C:AB,21,FALSE) -> 98 | AD84: безгидратный | AE84: 11.82982752 | AF84: 287.0170591 | AG84: 0.969648049 | AH84: 60.05288924 | AI84: 1.204033077e+26
A85: 183 | C85: ННС | D85: 50.6 | E85: 33 | F85: 168 | G85: 1057 | H85: 985-1052 | I85: 917.237 | J85: 114/824,781 | K85: 25.07.2023 | L85: 27.12 | M85: =VLOOKUP(A85,Сеноман!B:K,5,FALSE) -> 46.22991507 | N85: =VLOOKUP(A85,Сеноман!B:K,7,FALSE) -> 33.09 | O85: =VLOOKUP(A85,Сеноман!B:K,8,FALSE) -> 40.83 | P85: =VLOOKUP(A85,Сеноман!B:M,11,FALSE) -> 45.72693065 | Q85: =VLOOKUP(A85,Сеноман!B:M,12,FALSE) -> 0.5029844235 | R85: 8 | S85: =VLOOKUP(A85,Сеноман!B:M,9,FALSE) -> 7.5 | T85: =VLOOKUP(A85,Сеноман!B:M,6,FALSE) -> 596 | U85: =VLOOKUP(A85,Сеноман!B:M,10,FALSE) -> 18.82967377 | V85: =VLOOKUP(A85,Тнав!A:D,2,FALSE) -> 15.01106536 | W85: 6.404624449e-24 | X85: 41.19796734 | Y85: =VLOOKUP(A85,Тнав!A:D,3,FALSE) -> 5.031947738 | Z85: =VLOOKUP(A85,'Состояние фонда'!C:AB,20,FALSE) -> 9.15 | AA85: =VLOOKUP(A85,Тнав!A:E,4,FALSE) -> 419.3982705 | AB85: =VLOOKUP(A85,'Состояние фонда'!C:AB,21,FALSE) -> 98.2 | AD85: безгидратный | AE85: 14.21108722 | AF85: =(($AF$18+273.15)-(Z85+273.15))/(LN(($AF$18+273.15)/(Z85+273.15))) -> 287.0979707 | AG85: =1/(1+(5*10^7*0.098*V85)/(Z85+273.15)^3.825) -> 0.9698462468 | AH85: 57.12341085 | AI85: =ROUND(EXP(AH85),4) -> 6.432534439e+24
A86: 191 | B86: 10 | C86: ННС | D86: 88.8 | E86: 34.6 | F86: 168 | G86: 1037 | H86: 1002-1045 | I86: 913.862 | J86: 114/864,821 | K86: 23.07.2023 | L86: 26.89 | M86: =VLOOKUP(A86,Сеноман!B:K,5,FALSE) -> 46.11863638 | N86: =VLOOKUP(A86,Сеноман!B:K,7,FALSE) -> 31.87 | O86: =VLOOKUP(A86,Сеноман!B:K,8,FALSE) -> 39.74 | P86: =VLOOKUP(A86,Сеноман!B:M,11,FALSE) -> 44.75546547 | Q86: =VLOOKUP(A86,Сеноман!B:M,12,FALSE) -> 1.363170909 | R86: 8 | S86: =VLOOKUP(A86,Сеноман!B:M,9,FALSE) -> 7.3 | T86: =VLOOKUP(A86,Сеноман!B:M,6,FALSE) -> 574 | U86: =VLOOKUP(A86,Сеноман!B:M,10,FALSE) -> 18.62496376 | V86: =VLOOKUP(A86,Тнав!A:D,2,FALSE) -> 12.18421814 | W86: 5.285991708e-25 | X86: 41.49617402 | Y86: =VLOOKUP(A86,Тнав!A:D,3,FALSE) -> 4.622462355 | Z86: =VLOOKUP(A86,'Состояние фонда'!C:AB,20,FALSE) -> 8.6 | AA86: =VLOOKUP(A86,Тнав!A:E,4,FALSE) -> 394.0831926 | AB86: =VLOOKUP(A86,'Состояние фонда'!C:AB,21,FALSE) -> 100 | AD86: безгидратный | AE86: 13.25733758 | AF86: 286.8197726 | AG86: 0.9752052204 | AH86: 59.62516831 | AI86: 7.850215498e+25
A87: 192 | C87: ННС | D87: 86.2 | E87: 37.6 | F87: 168 | G87: 1082 | H87: 1036-1075 | I87: 907.678 | J87: 114/861,556 | K87: 23.07.2023 | L87: 26.91 | M87: =VLOOKUP(A87,Сеноман!B:K,5,FALSE) -> 46.04607218 | N87: =VLOOKUP(A87,Сеноман!B:K,7,FALSE) -> 32.03 | O87: =VLOOKUP(A87,Сеноман!B:K,8,FALSE) -> 41.21 | P87: =VLOOKUP(A87,Сеноман!B:M,11,FALSE) -> 46.39338263 | Q87: =VLOOKUP(A87,Сеноман!B:M,12,FALSE) -> -0.3473104492 | R87: 8 | S87: =VLOOKUP(A87,Сеноман!B:M,9,FALSE) -> 7.1 | T87: =VLOOKUP(A87,Сеноман!B:M,6,FALSE) -> 641 | U87: =VLOOKUP(A87,Сеноман!B:M,10,FALSE) -> 20.00011253 | V87: =VLOOKUP(A87,Тнав!A:D,2,FALSE) -> 11.97925746 | W87: 6.604757614e-25 | X87: 41.6615618 | Y87: =VLOOKUP(A87,Тнав!A:D,3,FALSE) -> 4.384510378 | Z87: =VLOOKUP(A87,'Состояние фонда'!C:AB,20,FALSE) -> 8.35 | AA87: =VLOOKUP(A87,Тнав!A:E,4,FALSE) -> 435.3060219 | AB87: =VLOOKUP(A87,'Состояние фонда'!C:AB,21,FALSE) -> 100 | AD87: безгидратный | AE87: 14.5859791 | AF87: 286.6932587 | AG87: 0.9755312223 | AH87: 59.40641601 | AI87: 6.30781086e+25
A88: 193 | C88: ННС | D88: 87.6 | E88: 22.9 | F88: 168 | G88: 1085 | H88: 1028-1052 | I88: 899.48 | J88: 114/814,06 | K88: 23.07.2023 | L88: 26.76 | M88: =VLOOKUP(A88,Сеноман!B:K,5,FALSE) -> 45.73786588 | N88: =VLOOKUP(A88,Сеноман!B:K,7,FALSE) -> 31.86 | O88: =VLOOKUP(A88,Сеноман!B:K,8,FALSE) -> 41.08 | P88: =VLOOKUP(A88,Сеноман!B:M,11,FALSE) -> 45.94087827 | Q88: =VLOOKUP(A88,Сеноман!B:M,12,FALSE) -> -0.2030123916 | R88: 8 | S88: =VLOOKUP(A88,Сеноман!B:M,9,FALSE) -> 7.4 | T88: =VLOOKUP(A88,Сеноман!B:M,6,FALSE) -> 576 | U88: =VLOOKUP(A88,Сеноман!B:M,10,FALSE) -> 18.10406876 | V88: =VLOOKUP(A88,Тнав!A:D,2,FALSE) -> 12.41113642 | X88: 41.66972659 | Y88: =VLOOKUP(A88,Тнав!A:D,3,FALSE) -> 4.068139288 | Z88: =VLOOKUP(A88,'Состояние фонда'!C:AB,20,FALSE) -> 8.86 | AA88: =VLOOKUP(A88,Тнав!A:E,4,FALSE) -> 432.9993637 | AB88: =VLOOKUP(A88,'Состояние фонда'!C:AB,21,FALSE) -> 66 | AD88: безгидратный | AE88: 14.50584611 | AF88: 286.9513071 | AG88: 0.9748417739
A89: 194 | C89: ННС | D89: 67 | E89: 32.9 | F89: 168 | G89: 1085.9 | H89: 1007-1086 | I89: 904.312 | J89: 114/871,374 | K89: 23.07.2023 | L89: 26.83 | M89: =VLOOKUP(A89,Сеноман!B:K,5,FALSE) -> 46.26545738 | N89: =VLOOKUP(A89,Сеноман!B:K,7,FALSE) -> 31.91 | O89: =VLOOKUP(A89,Сеноман!B:K,8,FALSE) -> 40.49 | P89: =VLOOKUP(A89,Сеноман!B:M,11,FALSE) -> 45.63730997 | Q89: =VLOOKUP(A89,Сеноман!B:M,12,FALSE) -> 0.628147414 | R89: 8 | S89: =VLOOKUP(A89,Сеноман!B:M,9,FALSE) -> 7.5 | T89: =VLOOKUP(A89,Сеноман!B:M,6,FALSE) -> 592 | U89: =VLOOKUP(A89,Сеноман!B:M,10,FALSE) -> 18.8153286 | V89: =VLOOKUP(A89,Тнав!A:D,2,FALSE) -> 11.79488857 | W89: 3.441544428e-25 | X89: 40.37259903 | Y89: =VLOOKUP(A89,Тнав!A:D,3,FALSE) -> 5.89285835 | Z89: =VLOOKUP(A89,'Состояние фонда'!C:AB,20,FALSE) -> 8.62 | AA89: =VLOOKUP(A89,Тнав!A:E,4,FALSE) -> 346.3701267 | AB89: =VLOOKUP(A89,'Состояние фонда'!C:AB,21,FALSE) -> 100 | AD89: безгидратный | AE89: 11.97650716 | AF89: 286.8298921 | AG89: 0.9759848355 | AH89: 60.02685831 | AI89: 1.17309539e+26
A90: 201 | C90: ННС | D90: 44.4 | E90: 34 | F90: 168 | G90: 1030 | H90: 982-1016 | I90: 903.314 | J90: 114/848,956 | K90: 25.07.2023 | L90: 27.11 | M90: =VLOOKUP(A90,Сеноман!B:K,5,FALSE) -> 46.22049121 | N90: =VLOOKUP(A90,Сеноман!B:K,7,FALSE) -> 30.86 | O90: =VLOOKUP(A90,Сеноман!B:K,8,FALSE) -> 38.95 | P90: =VLOOKUP(A90,Сеноман!B:M,11,FALSE) -> 43.75953275 | Q90: =VLOOKUP(A90,Сеноман!B:M,12,FALSE) -> 2.460958463 | R90: 8 | S90: =VLOOKUP(A90,Сеноман!B:M,9,FALSE) -> 6.2 | T90: =VLOOKUP(A90,Сеноман!B:M,6,FALSE) -> 605 | U90: =VLOOKUP(A90,Сеноман!B:M,10,FALSE) -> 20.07198143 | V90: =VLOOKUP(A90,Тнав!A:D,2,FALSE) -> 14.36964407 | W90: 1.082776298e-24 | X90: 43.9910838 | Y90: =VLOOKUP(A90,Тнав!A:D,3,FALSE) -> 2.22940741 | Z90: =VLOOKUP(A90,'Состояние фонда'!C:AB,20,FALSE) -> 7.23 | AA90: =VLOOKUP(A90,Тнав!A:E,4,FALSE) -> 527.1083281 | AB90: =VLOOKUP(A90,'Состояние фонда'!C:AB,21,FALSE) -> 37.4 | AD90: безгидратный | AE90: 16.58130415 | AF90: 286.1260133 | AG90: 0.9703557359 | AH90: 58.96650082 | AI90: 4.062804467e+25
A91: 202 | C91: ННС | D91: 63.8 | E91: 21 | F91: 168 | G91: 1048 | H91: 1028-1049 | I91: 932.642 | J91: 114/825,194 | K91: 25.07.2023 | L91: 27.21 | M91: =VLOOKUP(A91,Сеноман!B:K,5,FALSE) -> 46.2505588 | N91: =VLOOKUP(A91,Сеноман!B:K,7,FALSE) -> 31.36 | O91: =VLOOKUP(A91,Сеноман!B:K,8,FALSE) -> 40.27 | P91: =VLOOKUP(A91,Сеноман!B:M,11,FALSE) -> 45.1127565 | Q91: =VLOOKUP(A91,Сеноман!B:M,12,FALSE) -> 1.137802298 | R91: 8 | S91: =VLOOKUP(A91,Сеноман!B:M,9,FALSE) -> 6.9 | T91: =VLOOKUP(A91,Сеноман!B:M,6,FALSE) -> 639 | U91: =VLOOKUP(A91,Сеноман!B:M,10,FALSE) -> 20.48970222 | V91: =VLOOKUP(A91,Тнав!A:D,2,FALSE) -> 13.99316826 | W91: 6.554868444e-24 | X91: 43.10735283 | Y91: =VLOOKUP(A91,Тнав!A:D,3,FALSE) -> 3.143205975 | Z91: =VLOOKUP(A91,'Состояние фонда'!C:AB,20,FALSE) -> 8.25 | AA91: =VLOOKUP(A91,Тнав!A:E,4,FALSE) -> 515.7321645 | AB91: =VLOOKUP(A91,'Состояние фонда'!C:AB,21,FALSE) -> 36.1 | AD91: безгидратный | AE91: 16.55603489 | AF91: 286.6426426 | AG91: 0.9714971039 | AH91: 57.14552777 | AI91: 6.576387184e+24
A92: 203 | C92: ННС | D92: 37.1 | E92: 34 | F92: 168 | G92: 1054.5 | H92: 998-1052 | I92: 919.1 | J92: 114/871,596 | K92: 25.07.2023 | L92: 27.25 | M92: =VLOOKUP(A92,Сеноман!B:K,5,FALSE) -> 46.45121087 | N92: =VLOOKUP(A92,Сеноман!B:K,7,FALSE) -> 31.54 | O92: =VLOOKUP(A92,Сеноман!B:K,8,FALSE) -> 40.46 | P92: =VLOOKUP(A92,Сеноман!B:M,11,FALSE) -> 45.62319723 | Q92: =VLOOKUP(A92,Сеноман!B:M,12,FALSE) -> 0.8280136465 | R92: 8 | S92: =VLOOKUP(A92,Сеноман!B:M,9,FALSE) -> 6.5 | T92: =VLOOKUP(A92,Сеноман!B:M,6,FALSE) -> 644 | U92: =VLOOKUP(A92,Сеноман!B:M,10,FALSE) -> 20.46762276 | V92: =VLOOKUP(A92,Тнав!A:D,2,FALSE) -> 10.64327541 | W92: 1.323645204e-25 | X92: 41.00401384 | Y92: =VLOOKUP(A92,Тнав!A:D,3,FALSE) -> 5.44719703 | Z92: =VLOOKUP(A92,'Состояние фонда'!C:AB,20,FALSE) -> 0 | AA92: =VLOOKUP(A92,Тнав!A:E,4,FALSE) -> 360.0481026 | AB92: =VLOOKUP(A92,'Состояние фонда'!C:AB,21,FALSE) -> 0 | AD92: безгидратный | AE92: 12.25774588 | AF92: 282.4457281 | AG92: 0.9756044538 | AH92: 60.99790784 | AI92: 3.097810027e+26
A93: 211 | C93: ННС | D93: 64.7 | E93: 45.8 | F93: 168 | G93: 1084.6 | H93: 1031-1090 | I93: 910.146 | J93: 114/867,967 | K93: 25.07.2023 | L93: 26.96 | M93: =VLOOKUP(A93,Сеноман!B:K,5,FALSE) -> 46.07206231 | N93: =VLOOKUP(A93,Сеноман!B:K,7,FALSE) -> 35.56 | O93: =VLOOKUP(A93,Сеноман!B:K,8,FALSE) -> 39.32 | P93: =VLOOKUP(A93,Сеноман!B:M,11,FALSE) -> 44.28511043 | Q93: =VLOOKUP(A93,Сеноман!B:M,12,FALSE) -> 1.786951878 | R93: 8 | S93: =VLOOKUP(A93,Сеноман!B:M,9,FALSE) -> 6.5 | T93: =VLOOKUP(A93,Сеноман!B:M,6,FALSE) -> 418 | U93: =VLOOKUP(A93,Сеноман!B:M,10,FALSE) -> 13.71315193 | V93: =VLOOKUP(A93,Тнав!A:D,2,FALSE) -> 11.51953623 | W93: 4.194699021e-25 | X93: 39.85202153 | Y93: =VLOOKUP(A93,Тнав!A:D,3,FALSE) -> 6.220040779 | Z93: =VLOOKUP(A93,'Состояние фонда'!C:AB,20,FALSE) -> 8.16 | AA93: =VLOOKUP(A93,Тнав!A:E,4,FALSE) -> 322.7295052 | AB93: =VLOOKUP(A93,'Состояние фонда'!C:AB,21,FALSE) -> 97.8 | AD93: безгидратный | AE93: 11.30484922 | AF93: 286.597083 | AG93: 0.9763886659 | AH93: 59.81597887 | AI93: 9.50056758e+25
A94: 212 | C94: ННС | D94: 65.9 | E94: 34.2 | F94: 168 | G94: 1076 | H94: 1038-1073 | I94: 904.074 | J94: 114/857,233 | K94: 25.07.2023 | L94: 26.86 | M94: =VLOOKUP(A94,Сеноман!B:K,5,FALSE) -> 45.85382263 | N94: =VLOOKUP(A94,Сеноман!B:K,7,FALSE) -> 35.68 | O94: =VLOOKUP(A94,Сеноман!B:K,8,FALSE) -> 39.4 | P94: =VLOOKUP(A94,Сеноман!B:M,11,FALSE) -> 44.30649953 | Q94: =VLOOKUP(A94,Сеноман!B:M,12,FALSE) -> 1.5473231 | R94: 8 | S94: =VLOOKUP(A94,Сеноман!B:M,9,FALSE) -> 6.7 | T94: =VLOOKUP(A94,Сеноман!B:M,6,FALSE) -> 414 | U94: =VLOOKUP(A94,Сеноман!B:M,10,FALSE) -> 13.56397724 | V94: =VLOOKUP(A94,Тнав!A:D,2,FALSE) -> 11.84584591 | W94: 8.396225784e-25 | X94: 40.34674366 | Y94: =VLOOKUP(A94,Тнав!A:D,3,FALSE) -> 5.507078973 | Z94: =VLOOKUP(A94,'Состояние фонда'!C:AB,20,FALSE) -> 8.01 | AA94: =VLOOKUP(A94,Тнав!A:E,4,FALSE) -> 388.5625522 | AB94: =VLOOKUP(A94,'Состояние фонда'!C:AB,21,FALSE) -> 97.9 | AD94: безгидратный | AE94: 13.44401265 | AF94: 286.5211394 | AG94: 0.9756877179 | AH94: 59.13435572 | AI94: 4.805342865e+25
A95: 213 | C95: ННС | D95: 77.9 | E95: 25 | F95: 168 | G95: 1074.6 | H95: 1025-1050 | I95: 894.47 | J95: 114/843,924 | K95: 25.07.2023 | L95: 26.8 | M95: =VLOOKUP(A95,Сеноман!B:K,5,FALSE) -> 45.80928006 | N95: =VLOOKUP(A95,Сеноман!B:K,7,FALSE) -> 31.49 | O95: =VLOOKUP(A95,Сеноман!B:K,8,FALSE) -> 41.38 | P95: =VLOOKUP(A95,Сеноман!B:M,11,FALSE) -> 46.48095091 | Q95: =VLOOKUP(A95,Сеноман!B:M,12,FALSE) -> -0.6716708473 | R95: 8 | S95: =VLOOKUP(A95,Сеноман!B:M,9,FALSE) -> 6.6 | T95: =VLOOKUP(A95,Сеноман!B:M,6,FALSE) -> 655 | U95: =VLOOKUP(A95,Сеноман!B:M,10,FALSE) -> 20.3697834 | V95: =VLOOKUP(A95,Тнав!A:D,2,FALSE) -> 11.40418779 | W95: 2.439467792e-24 | X95: 41.89202524 | Y95: =VLOOKUP(A95,Тнав!A:D,3,FALSE) -> 3.917254818 | Z95: =VLOOKUP(A95,'Состояние фонда'!C:AB,20,FALSE) -> 8.49 | AA95: =VLOOKUP(A95,Тнав!A:E,4,FALSE) -> 485.3953231 | AB95: =VLOOKUP(A95,'Состояние фонда'!C:AB,21,FALSE) -> 98.4 | AD95: безгидратный | AE95: 16.17486593 | AF95: 286.7641111 | AG95: 0.9767217428 | AH95: 58.10535782 | AI95: 1.717260846e+25
A96: 221 | C96: ННС | D96: 56.9 | E96: 34.5 | F96: 168 | G96: 1079.1 | H96: 1013-1076 | I96: 913.919 | J96: 114/876,524 | R96: 8 | AD96: безгидратный | AE96: =IFERROR([1]!Скорость_газа(AA96,X96,18.8,46.8,190.24,IF(MID(J96,1,2)="73",6,IF(MID(J96,1,2)="89",7.6,IF(MID(J96,1,2)="11",10,0)))),"") ->  | AF96: 282.4457281 | AG96: 1 | AH96: 59.84629888 | AI96: 9.793036358e+25
A97: 222 | C97: ННС | D97: 80.8 | E97: 39.6 | F97: 168 | G97: 1081 | H97: 1012-1071 | I97: 906.198 | J97: 114/867,36 | K97: 25.07.2023 | L97: 26.49 | M97: =VLOOKUP(A97,Сеноман!B:K,5,FALSE) -> 45.35671143 | N97: =VLOOKUP(A97,Сеноман!B:K,7,FALSE) -> 32.47 | O97: =VLOOKUP(A97,Сеноман!B:K,8,FALSE) -> 38.96 | P97: =VLOOKUP(A97,Сеноман!B:M,11,FALSE) -> 43.8691377 | Q97: =VLOOKUP(A97,Сеноман!B:M,12,FALSE) -> 1.487573727 | R97: 8 | S97: =VLOOKUP(A97,Сеноман!B:M,9,FALSE) -> 6.9 | T97: =VLOOKUP(A97,Сеноман!B:M,6,FALSE) -> 519 | U97: =VLOOKUP(A97,Сеноман!B:M,10,FALSE) -> 17.20195007 | V97: =VLOOKUP(A97,Тнав!A:D,2,FALSE) -> 17.7382697 | W97: =X97/AI97 ->  | X97: =M97-Y97 -> 41.58580635 | Y97: =VLOOKUP(A97,Тнав!A:D,3,FALSE) -> 3.770905072 | Z97: =VLOOKUP(A97,'Состояние фонда'!C:AB,20,FALSE) -> 7.2 | AA97: =VLOOKUP(A97,Тнав!A:E,4,FALSE) -> 297.4670211 | AB97: =VLOOKUP(A97,'Состояние фонда'!C:AB,21,FALSE) -> 62 | AD97: безгидратный | AE97: 9.985507817 | AF97: 286.1108088 | AG97: 0.9636445472
A98: 223 | C98: ННС | D98: 84.4 | E98: 35.3 | F98: 168 | G98: 1096.4 | H98: 1051-1090 | I98: 922.284 | J98: 114/876,835 | K98: 25.07.2023 | L98: 29.21 | M98: =VLOOKUP(A98,Сеноман!B:K,5,FALSE) -> 45.44841711 | N98: =VLOOKUP(A98,Сеноман!B:K,7,FALSE) -> 31.88 | O98: =VLOOKUP(A98,Сеноман!B:K,8,FALSE) -> 39.86 | P98: =VLOOKUP(A98,Сеноман!B:M,11,FALSE) -> 44.95931435 | Q98: =VLOOKUP(A98,Сеноман!B:M,12,FALSE) -> 0.489102766 | R98: 8 | S98: =VLOOKUP(A98,Сеноман!B:M,9,FALSE) -> 7.6 | T98: =VLOOKUP(A98,Сеноман!B:M,6,FALSE) -> 573 | U98: =VLOOKUP(A98,Сеноман!B:M,10,FALSE) -> 18.51547623 | V98: =VLOOKUP(A98,Тнав!A:D,2,FALSE) -> 12.34170627 | W98: 1.383013119e-25 | X98: 39.69355975 | Y98: =VLOOKUP(A98,Тнав!A:D,3,FALSE) -> 5.75485736 | Z98: =VLOOKUP(A98,'Состояние фонда'!C:AB,20,FALSE) -> 5.12 | AA98: =VLOOKUP(A98,Тнав!A:E,4,FALSE) -> 102.187383 | AB98: =VLOOKUP(A98,'Состояние фонда'!C:AB,21,FALSE) -> 99.1 | AD98: безгидратный | AE98: 3.593798202 | AF98: 285.0552927 | AG98: 0.9737025487 | AH98: 60.92155174 | AI98: 2.870078324e+26
A99: 231 | B99: 11 | C99: ННС | D99: 81.6 | E99: 32.8 | F99: 168 | G99: 1089 | H99: 999-1054 | I99: 901.748 | J99: 114/816,466 | K99: 25.07.2023 | L99: 25.95 | M99: =VLOOKUP(A99,Сеноман!B:K,5,FALSE) -> 45.13209607 | N99: =VLOOKUP(A99,Сеноман!B:K,7,FALSE) -> 39.97 | O99: =VLOOKUP(A99,Сеноман!B:K,8,FALSE) -> 40.85 | P99: =VLOOKUP(A99,Сеноман!B:M,11,FALSE) -> 45.76394116 | Q99: =VLOOKUP(A99,Сеноман!B:M,12,FALSE) -> -0.6318450977 | R99: 8 | S99: =VLOOKUP(A99,Сеноман!B:M,9,FALSE) -> 4.2 | T99: =VLOOKUP(A99,Сеноман!B:M,6,FALSE) -> 216 | U99: =VLOOKUP(A99,Сеноман!B:M,10,FALSE) -> 6.821899891 | V99: =VLOOKUP(A99,Тнав!A:D,2,FALSE) -> 17.71004815 | W99: 7.844939108e-24 | X99: 43.36137024 | Y99: =VLOOKUP(A99,Тнав!A:D,3,FALSE) -> 1.770725824 | Z99: =VLOOKUP(A99,'Состояние фонда'!C:AB,20,FALSE) -> 8.23 | AA99: =VLOOKUP(A99,Тнав!A:E,4,FALSE) -> 383.4150916 | AB99: =VLOOKUP(A99,'Состояние фонда'!C:AB,21,FALSE) -> 98.7 | AD99: безгидратный | AE99: 12.23628757 | AF99: 286.6325187 | AG99: 0.9641878107 | AH99: 56.97174257 | AI99: 5.527304883e+24
A100: 232 | C100: ННС | D100: 95.4 | E100: 37 | F100: 168 | G100: 1069.5 | H100: 1023-1066 | I100: 918.326 | J100: 114/869,84 | K100: 25.07.2023 | L100: 25.69 | M100: =VLOOKUP(A100,Сеноман!B:K,5,FALSE) -> 45.09848805 | N100: =VLOOKUP(A100,Сеноман!B:K,7,FALSE) -> 32.39 | O100: =VLOOKUP(A100,Сеноман!B:K,8,FALSE) -> 39.6 | P100: =VLOOKUP(A100,Сеноман!B:M,11,FALSE) -> 44.62326526 | Q100: =VLOOKUP(A100,Сеноман!B:M,12,FALSE) -> 0.4752227867 | R100: 8 | S100: =VLOOKUP(A100,Сеноман!B:M,9,FALSE) -> 7.6 | T100: =VLOOKUP(A100,Сеноман!B:M,6,FALSE) -> 565 | U100: =VLOOKUP(A100,Сеноман!B:M,10,FALSE) -> 18.38833618 | V100: =VLOOKUP(A100,Тнав!A:D,2,FALSE) -> 16.09694975 | X100: 41.82370941 | Y100: =VLOOKUP(A100,Тнав!A:D,3,FALSE) -> 3.274778639 | Z100: =VLOOKUP(A100,'Состояние фонда'!C:AB,20,FALSE) -> 9.01 | AA100: =VLOOKUP(A100,Тнав!A:E,4,FALSE) -> 394.8308736 | AB100: =VLOOKUP(A100,'Состояние фонда'!C:AB,21,FALSE) -> 99.4 | AD100: безгидратный | AE100: 13.17847069 | AF100: 287.0271739 | AG100: 0.9676760391 | AH100: =(0.5647*0.03415*MID(J100,5,7)/(AF100*AG100)) -> 
A101: 233 | C101: ННС | D101: 83 | E101: 34.1 | F101: 168 | G101: 1085.5 | H101: 1007-1082 | I101: 915.277 | J101: 114/877,245 | K101: 25.07.2023 | L101: 25.58 | M101: =VLOOKUP(A101,Сеноман!B:K,5,FALSE) -> 45.4160752 | N101: =VLOOKUP(A101,Сеноман!B:K,7,FALSE) -> 32.39 | O101: =VLOOKUP(A101,Сеноман!B:K,8,FALSE) -> 39.62 | P101: =VLOOKUP(A101,Сеноман!B:M,11,FALSE) -> 44.6894062 | Q101: =VLOOKUP(A101,Сеноман!B:M,12,FALSE) -> 0.7266689999 | R101: 8 | S101: =VLOOKUP(A101,Сеноман!B:M,9,FALSE) -> 7.7 | T101: =VLOOKUP(A101,Сеноман!B:M,6,FALSE) -> 557 | U101: =VLOOKUP(A101,Сеноман!B:M,10,FALSE) -> 18.10762215 | V101: =VLOOKUP(A101,Тнав!A:D,2,FALSE) -> 16.35365898 | W101: 1.493610637e-25 | X101: 42.83849876 | Y101: =VLOOKUP(A101,Тнав!A:D,3,FALSE) -> 2.577576438 | Z101: =VLOOKUP(A101,'Состояние фонда'!C:AB,20,FALSE) -> 9.15 | AA101: =VLOOKUP(A101,Тнав!A:E,4,FALSE) -> 352.1294207 | AB101: =VLOOKUP(A101,'Состояние фонда'!C:AB,21,FALSE) -> 100 | AD101: безгидратный | AE101: 11.3750035 | AF101: 287.0979707 | AG101: 0.9672376459 | AH101: 60.92086809 | AI101: 2.868116877e+26
A102: 234 | C102: ННС | D102: 61.8 | E102: 34 | F102: 168 | G102: 972.5 | H102: 934-971 | I102: 920.668 | J102: 114/870,873 | K102: 25.07.2023 | L102: 25.66 | M102: =VLOOKUP(A102,Сеноман!B:K,5,FALSE) -> 45.23287 | N102: =VLOOKUP(A102,Сеноман!B:K,7,FALSE) -> 35.56 | O102: =VLOOKUP(A102,Сеноман!B:K,8,FALSE) -> 38.6 | P102: =VLOOKUP(A102,Сеноман!B:M,11,FALSE) -> 43.48131968 | Q102: =VLOOKUP(A102,Сеноман!B:M,12,FALSE) -> 1.751550315 | R102: 8 | S102: =VLOOKUP(A102,Сеноман!B:M,9,FALSE) -> 7.1 | T102: =VLOOKUP(A102,Сеноман!B:M,6,FALSE) -> 374 | U102: =VLOOKUP(A102,Сеноман!B:M,10,FALSE) -> 12.51223469 | V102: =VLOOKUP(A102,Тнав!A:D,2,FALSE) -> 17.75514517 | W102: 1.798159266e-25 | X102: 42.49329166 | Y102: =VLOOKUP(A102,Тнав!A:D,3,FALSE) -> 2.739578338 | Z102: =VLOOKUP(A102,'Состояние фонда'!C:AB,20,FALSE) -> 8.57 | AA102: =VLOOKUP(A102,Тнав!A:E,4,FALSE) -> 334.1018144 | AB102: =VLOOKUP(A102,'Состояние фонда'!C:AB,21,FALSE) -> 99.1 | AD102: безгидратный | AE102: 10.88032654 | AF102: 286.8045929 | AG102: 0.9642594218 | AH102: 60.72721003 | AI102: 2.363155059e+26
A103: 241 | C103: ННС | D103: 81.6 | E103: 44.5 | F103: 168 | G103: 1096 | H103: 1023-1073 | I103: 909.297 | J103: 114/822,525 | K103: 25.07.2023 | L103: 25.53 | M103: =VLOOKUP(A103,Сеноман!B:K,5,FALSE) -> 44.38678564 | N103: =VLOOKUP(A103,Сеноман!B:K,7,FALSE) -> 33.58 | O103: =VLOOKUP(A103,Сеноман!B:K,8,FALSE) -> 40.54 | P103: =VLOOKUP(A103,Сеноман!B:M,11,FALSE) -> 45.38303855 | Q103: =VLOOKUP(A103,Сеноман!B:M,12,FALSE) -> -0.9962529099 | R103: 8 | S103: =VLOOKUP(A103,Сеноман!B:M,9,FALSE) -> 7.8 | T103: =VLOOKUP(A103,Сеноман!B:M,6,FALSE) -> 542 | U103: =VLOOKUP(A103,Сеноман!B:M,10,FALSE) -> 17.2565918 | V103: =VLOOKUP(A103,Тнав!A:D,2,FALSE) -> 17.77670545 | W103: 5.556773384e-24 | X103: 42.11799423 | Y103: =VLOOKUP(A103,Тнав!A:D,3,FALSE) -> 2.268791408 | Z103: =VLOOKUP(A103,'Состояние фонда'!C:AB,20,FALSE) -> 9.12 | AA103: =VLOOKUP(A103,Тнав!A:E,4,FALSE) -> 384.033697 | AB103: =VLOOKUP(A103,'Состояние фонда'!C:AB,21,FALSE) -> 97.2 | AD103: безгидратный | AE103: 12.72852591 | AF103: 287.0828009 | AG103: 0.9644740786 | AH103: 57.28749968 | AI103: 7.579577448e+24
A104: 242 | C104: ННС | D104: 78.7 | E104: 49.2 | F104: 168 | G104: 1081.5 | H104: 1050-1080 | I104: 925.935 | J104: 114/867,836 | K104: 25.07.2023 | L104: 25.52 | M104: =VLOOKUP(A104,Сеноман!B:K,5,FALSE) -> 44.55732532 | N104: =VLOOKUP(A104,Сеноман!B:K,7,FALSE) -> 33.45 | O104: =VLOOKUP(A104,Сеноман!B:K,8,FALSE) -> 39.9 | P104: =VLOOKUP(A104,Сеноман!B:M,11,FALSE) -> 44.9292597 | Q104: =VLOOKUP(A104,Сеноман!B:M,12,FALSE) -> -0.3719343835 | R104: 8 | S104: =VLOOKUP(A104,Сеноман!B:M,9,FALSE) -> 8.7 | T104: =VLOOKUP(A104,Сеноман!B:M,6,FALSE) -> 513 | U104: =VLOOKUP(A104,Сеноман!B:M,10,FALSE) -> 16.5600605 | V104: =VLOOKUP(A104,Тнав!A:D,2,FALSE) -> 17.74566573 | W104: 2.548556358e-25 | X104: 42.27602229 | Y104: =VLOOKUP(A104,Тнав!A:D,3,FALSE) -> 2.281303027 | Z104: =VLOOKUP(A104,'Состояние фонда'!C:AB,20,FALSE) -> 9.61 | AA104: =VLOOKUP(A104,Тнав!A:E,4,FALSE) -> 395.7546533 | AB104: =VLOOKUP(A104,'Состояние фонда'!C:AB,21,FALSE) -> 100 | AD104: безгидратный | AE104: 12.95434268 | AF104: 287.3305059 | AG104: 0.9647601551 | AH104: 60.37332034 | AI104: 1.658822343e+26
A105: 243 | C105: ННС | D105: 70.7 | E105: 26.8 | F105: 168 | G105: 1083.5 | H105: 1037-1070 | I105: 912.634 | J105: 114/827,081 | K105: 25.07.2023 | L105: 25.56 | M105: =VLOOKUP(A105,Сеноман!B:K,5,FALSE) -> 44.50362705 | N105: =VLOOKUP(A105,Сеноман!B:K,7,FALSE) -> 33.39 | O105: =VLOOKUP(A105,Сеноман!B:K,8,FALSE) -> 39.91 | P105: =VLOOKUP(A105,Сеноман!B:M,11,FALSE) -> 44.70589516 | Q105: =VLOOKUP(A105,Сеноман!B:M,12,FALSE) -> -0.202268108 | R105: 8 | S105: =VLOOKUP(A105,Сеноман!B:M,9,FALSE) -> 7.8 | T105: =VLOOKUP(A105,Сеноман!B:M,6,FALSE) -> 534 | U105: =VLOOKUP(A105,Сеноман!B:M,10,FALSE) -> 17.28672218 | V105: =VLOOKUP(A105,Тнав!A:D,2,FALSE) -> 17.73369541 | W105: 3.85542109e-24 | X105: 41.40903525 | Y105: =VLOOKUP(A105,Тнав!A:D,3,FALSE) -> 3.094591802 | Z105: =VLOOKUP(A105,'Состояние фонда'!C:AB,20,FALSE) -> 8.84 | AA105: =VLOOKUP(A105,Тнав!A:E,4,FALSE) -> 325.7607901 | AB105: =VLOOKUP(A105,'Состояние фонда'!C:AB,21,FALSE) -> 97.4 | AD105: безгидратный | AE105: 10.98196754 | AF105: 286.9411905 | AG105: 0.9644269793 | AH105: 57.6360611 | AI105: 1.074047018e+25
A106: 251 | C106: ННС | D106: 69.8 | E106: 36.4 | F106: 168 | G106: 1086.2 | H106: 1023-1078 | I106: 921.79 | J106: 114/871,625 | K106: 25.07.2023 | L106: 25.35 | M106: =VLOOKUP(A106,Сеноман!B:K,5,FALSE) -> 44.04866884 | N106: =VLOOKUP(A106,Сеноман!B:K,7,FALSE) -> 33.57 | O106: =VLOOKUP(A106,Сеноман!B:K,8,FALSE) -> 38.07 | P106: =VLOOKUP(A106,Сеноман!B:M,11,FALSE) -> 42.85194461 | Q106: =VLOOKUP(A106,Сеноман!B:M,12,FALSE) -> 1.196724236 | R106: 8 | S106: =VLOOKUP(A106,Сеноман!B:M,9,FALSE) -> 8.8 | T106: =VLOOKUP(A106,Сеноман!B:M,6,FALSE) -> 430 | U106: =VLOOKUP(A106,Сеноман!B:M,10,FALSE) -> 14.59864521 | V106: =VLOOKUP(A106,Тнав!A:D,2,FALSE) -> 17.18925978 | W106: 2.046920537e-25 | X106: 40.66979892 | Y106: =VLOOKUP(A106,Тнав!A:D,3,FALSE) -> 3.378869925 | Z106: =VLOOKUP(A106,'Состояние фонда'!C:AB,20,FALSE) -> 9.73 | AA106: =VLOOKUP(A106,Тнав!A:E,4,FALSE) -> 432.7846994 | AB106: =VLOOKUP(A106,'Состояние фонда'!C:AB,21,FALSE) -> 100 | AD106: безгидратный | AE106: 14.85512573 | AF106: 287.3911465 | AG106: 0.965880848 | AH106: 60.55377661 | AI106: 1.986877272e+26
A107: 252 | C107: ННС | D107: 77.9 | E107: 33.7 | F107: 168 | G107: 1085.9 | H107: 1012-1078 | I107: 914.565 | J107: 114/866,18 | K107: 25.07.2023 | L107: 25.69 | M107: =VLOOKUP(A107,Сеноман!B:K,5,FALSE) -> 44.51241668 | N107: =VLOOKUP(A107,Сеноман!B:K,7,FALSE) -> 32.43 | O107: =VLOOKUP(A107,Сеноман!B:K,8,FALSE) -> 39.78 | P107: =VLOOKUP(A107,Сеноман!B:M,11,FALSE) -> 44.79109963 | Q107: =VLOOKUP(A107,Сеноман!B:M,12,FALSE) -> -0.2786829566 | R107: 8 | S107: =VLOOKUP(A107,Сеноман!B:M,9,FALSE) -> 8.3 | T107: =VLOOKUP(A107,Сеноман!B:M,6,FALSE) -> 589 | U107: =VLOOKUP(A107,Сеноман!B:M,10,FALSE) -> 19.07361603 | V107: =VLOOKUP(A107,Тнав!A:D,2,FALSE) -> 15.44012864 | X107: 39.98365604 | Y107: =VLOOKUP(A107,Тнав!A:D,3,FALSE) -> 4.528760634 | Z107: =VLOOKUP(A107,'Состояние фонда'!C:AB,20,FALSE) -> 9.28 | AA107: =VLOOKUP(A107,Тнав!A:E,4,FALSE) -> 187.0842613 | AB107: =VLOOKUP(A107,'Состояние фонда'!C:AB,21,FALSE) -> 100 | AD107: безгидратный | AE107: 6.531774896 | AF107: 287.1637 | AG107: 0.9690639043
A108: 253 | C108: ННС | D108: 77.9 | E108: 37.7 | F108: 168 | G108: 1092 | H108: 1030-1092 | I108: 916.309 | J108: 114/864,978 | K108: 25.07.2023 | L108: 25.58 | M108: =VLOOKUP(A108,Сеноман!B:K,5,FALSE) -> 44.8172395 | N108: =VLOOKUP(A108,Сеноман!B:K,7,FALSE) -> 35.87 | O108: =VLOOKUP(A108,Сеноман!B:K,8,FALSE) -> 38.13 | P108: =VLOOKUP(A108,Сеноман!B:M,11,FALSE) -> 42.91404001 | Q108: =VLOOKUP(A108,Сеноман!B:M,12,FALSE) -> 1.903199495 | R108: 8 | S108: =VLOOKUP(A108,Сеноман!B:M,9,FALSE) -> 7.3 | T108: =VLOOKUP(A108,Сеноман!B:M,6,FALSE) -> 334 | U108: =VLOOKUP(A108,Сеноман!B:M,10,FALSE) -> 11.32279205 | V108: =VLOOKUP(A108,Тнав!A:D,2,FALSE) -> 18.72869581 | W108: 2.335740341e-25 | X108: 41.63959356 | Y108: =VLOOKUP(A108,Тнав!A:D,3,FALSE) -> 3.177645942 | Z108: =VLOOKUP(A108,'Состояние фонда'!C:AB,20,FALSE) -> 8.49 | AA108: =VLOOKUP(A108,Тнав!A:E,4,FALSE) -> 299.5050014 | AB108: =VLOOKUP(A108,'Состояние фонда'!C:AB,21,FALSE) -> 80.2 | AD108: безгидратный | AE108: 10.04093269 | AF108: 286.7641111 | AG108: 0.9623340743 | AH108: 60.4453499 | AI108: 1.782715006e+26
A109: 254 | C109: ННС | D109: 65.4 | E109: 41 | F109: 168 | G109: 1082.7 | H109: 1035-1082 | I109: 926.762 | J109: 114/827,367 | K109: 25.07.2023 | L109: 25.66 | M109: =VLOOKUP(A109,Сеноман!B:K,5,FALSE) -> 44.3758647 | N109: =VLOOKUP(A109,Сеноман!B:K,7,FALSE) -> 35.16 | O109: =VLOOKUP(A109,Сеноман!B:K,8,FALSE) -> 38.42 | P109: =VLOOKUP(A109,Сеноман!B:M,11,FALSE) -> 43.00088677 | Q109: =VLOOKUP(A109,Сеноман!B:M,12,FALSE) -> 1.374977929 | R109: 8 | S109: =VLOOKUP(A109,Сеноман!B:M,9,FALSE) -> 8.4 | T109: =VLOOKUP(A109,Сеноман!B:M,6,FALSE) -> 399 | U109: =VLOOKUP(A109,Сеноман!B:M,10,FALSE) -> 13.45820999 | V109: =VLOOKUP(A109,Тнав!A:D,2,FALSE) -> 18.48477233 | W109: 3.832092008e-24 | X109: 41.315441 | Y109: =VLOOKUP(A109,Тнав!A:D,3,FALSE) -> 3.060423704 | Z109: =VLOOKUP(A109,'Состояние фонда'!C:AB,20,FALSE) -> 9.63 | AA109: =VLOOKUP(A109,Тнав!A:E,4,FALSE) -> 371.1736355 | AB109: =VLOOKUP(A109,'Состояние фонда'!C:AB,21,FALSE) -> 42.8 | AD109: безгидратный | AE109: 12.54126043 | AF109: 287.3406133 | AG109: 0.963355766 | AH109: 57.63986767 | AI109: 1.078143241e+25
A110: 261 | C110: ННС | D110: 73.1 | E110: 32.7 | F110: 168 | G110: 1089.2 | H110: 1020-1073 | I110: 902.663 | J110: 114/817,174 | K110: 23.07.2023 | L110: 27.43 | M110: =VLOOKUP(A110,Сеноман!B:K,5,FALSE) -> 44.19694912 | N110: =VLOOKUP(A110,Сеноман!B:K,7,FALSE) -> 33.03 | O110: =VLOOKUP(A110,Сеноман!B:K,8,FALSE) -> 39.64 | P110: =VLOOKUP(A110,Сеноман!B:M,11,FALSE) -> 44.30445911 | Q110: =VLOOKUP(A110,Сеноман!B:M,12,FALSE) -> -0.1075099867 | R110: 8 | S110: =VLOOKUP(A110,Сеноман!B:M,9,FALSE) -> 8.4 | T110: =VLOOKUP(A110,Сеноман!B:M,6,FALSE) -> 565 | U110: =VLOOKUP(A110,Сеноман!B:M,10,FALSE) -> 18.44804764 | V110: =VLOOKUP(A110,Тнав!A:D,2,FALSE) -> 18.27037084 | W110: 7.488765686e-24 | X110: 37.90868384 | Y110: =VLOOKUP(A110,Тнав!A:D,3,FALSE) -> 6.288265281 | Z110: =VLOOKUP(A110,'Состояние фонда'!C:AB,20,FALSE) -> 9.8 | AA110: =VLOOKUP(A110,Тнав!A:E,4,FALSE) -> 310.4277212 | AB110: =VLOOKUP(A110,'Состояние фонда'!C:AB,21,FALSE) -> 96.2 | AD110: безгидратный | AE110: 11.43136913 | AF110: 287.4265161 | AG110: 0.9638455874 | AH110: 56.88381845 | AI110: 5.062073702e+24
A111: 262 | C111: ННС | D111: 86.8 | E111: 35.6 | F111: 168 | G111: 1082.5 | H111: 1040-1078 | I111: 915.845 | J111: 114/865,226 | K111: 23.07.2023 | L111: 27.42 | M111: =VLOOKUP(A111,Сеноман!B:K,5,FALSE) -> 44.56401516 | N111: =VLOOKUP(A111,Сеноман!B:K,7,FALSE) -> 32.75 | O111: =VLOOKUP(A111,Сеноман!B:K,8,FALSE) -> 40.92 | P111: =VLOOKUP(A111,Сеноман!B:M,11,FALSE) -> 46.06469123 | Q111: =VLOOKUP(A111,Сеноман!B:M,12,FALSE) -> -1.50067607 | R111: 8 | S111: =VLOOKUP(A111,Сеноман!B:M,9,FALSE) -> 8.5 | T111: =VLOOKUP(A111,Сеноман!B:M,6,FALSE) -> 600 | U111: =VLOOKUP(A111,Сеноман!B:M,10,FALSE) -> 18.8551693 | V111: =VLOOKUP(A111,Тнав!A:D,2,FALSE) -> 16.22668503 | W111: 3.603535876e-25 | X111: 39.13275779 | Y111: =VLOOKUP(A111,Тнав!A:D,3,FALSE) -> 5.431257373 | Z111: =VLOOKUP(A111,'Состояние фонда'!C:AB,20,FALSE) -> 10.07 | AA111: =VLOOKUP(A111,Тнав!A:E,4,FALSE) -> 331.079825 | AB111: =VLOOKUP(A111,'Состояние фонда'!C:AB,21,FALSE) -> 95.2 | AD111: безгидратный | AE111: 11.81051188 | AF111: 287.5629145 | AG111: 0.9678729929 | AH111: 59.94967169 | AI111: 1.085954439e+26
A112: 263 | C112: ННС | D112: 53 | E112: 36.8 | F112: 168 | G112: 1091.5 | H112: 1049-1091 | I112: 922.83 | J112: 114/872,67 | K112: 23.07.2023 | L112: 27.43 | M112: =VLOOKUP(A112,Сеноман!B:K,5,FALSE) -> 44.33256299 | N112: =VLOOKUP(A112,Сеноман!B:K,7,FALSE) -> 32.72 | O112: =VLOOKUP(A112,Сеноман!B:K,8,FALSE) -> 38.96 | P112: =VLOOKUP(A112,Сеноман!B:M,11,FALSE) -> 43.87310133 | Q112: =VLOOKUP(A112,Сеноман!B:M,12,FALSE) -> 0.4594616643 | R112: 8 | S112: =VLOOKUP(A112,Сеноман!B:M,9,FALSE) -> 8.5 | T112: =VLOOKUP(A112,Сеноман!B:M,6,FALSE) -> 547 | U112: =VLOOKUP(A112,Сеноман!B:M,10,FALSE) -> 18.11832809 | V112: =VLOOKUP(A112,Тнав!A:D,2,FALSE) -> 16.89551263 | X112: 38.65917662 | Y112: =VLOOKUP(A112,Тнав!A:D,3,FALSE) -> 5.673386374 | Z112: =VLOOKUP(A112,'Состояние фонда'!C:AB,20,FALSE) -> 9.55 | AA112: =VLOOKUP(A112,Тнав!A:E,4,FALSE) -> 334.1327861 | AB112: =VLOOKUP(A112,'Состояние фонда'!C:AB,21,FALSE) -> 97.8 | AD112: безгидратный | AE112: 12.06543406 | AF112: 287.3001825 | AG112: 0.9663652997
A113: 271 | B113: 12 | C113: Суб.ГС | D113: 205.1 | E113: 205.1 | F113: 168 | G113: 1218.51 | H113: 1006,4-1218,21 | I113: 926.733 | J113: 114/871,282 | K113: 26.07.2023 | L113: 26.16 | M113: =VLOOKUP(A113,Сеноман!B:K,5,FALSE) -> 45.63619301 | N113: =VLOOKUP(A113,Сеноман!B:K,7,FALSE) -> 34.4 | O113: =VLOOKUP(A113,Сеноман!B:K,8,FALSE) -> 42.13 | P113: =VLOOKUP(A113,Сеноман!B:M,11,FALSE) -> 47.46388544 | Q113: =VLOOKUP(A113,Сеноман!B:M,12,FALSE) -> -1.827692432 | R113: 8 | S113: =VLOOKUP(A113,Сеноман!B:M,9,FALSE) -> 8.6 | T113: =VLOOKUP(A113,Сеноман!B:M,6,FALSE) -> 476 | U113: =VLOOKUP(A113,Сеноман!B:M,10,FALSE) -> 14.47404385 | V113: =VLOOKUP(A113,Тнав!A:D,2,FALSE) -> 15.34933081 | W113: 2.430656614e-25 | X113: 41.82821987 | Y113: =VLOOKUP(A113,Тнав!A:D,3,FALSE) -> 3.807973142 | Z113: =VLOOKUP(A113,'Состояние фонда'!C:AB,20,FALSE) -> 8.96 | AA113: =VLOOKUP(A113,Тнав!A:E,4,FALSE) -> 288.6421042 | AB113: =VLOOKUP(A113,'Состояние фонда'!C:AB,21,FALSE) -> 98.1 | AD113: безгидратный | AE113: 9.633115296 | AF113: 287.0018864 | AG113: 0.9691106891 | AH113: 60.41003712 | AI113: 1.720860924e+26
A114: 272 | C114: Суб.ГС | D114: 195.6 | E114: 195.3 | F114: 168 | G114: 1281.72 | H114: 1068-1281,72 | I114: 922.724 | J114: 114/832,577 | K114: 26.07.2023 | L114: 26.16 | M114: =VLOOKUP(A114,Сеноман!B:K,5,FALSE) -> 45.53818149 | N114: =VLOOKUP(A114,Сеноман!B:K,7,FALSE) -> 34.22 | O114: =VLOOKUP(A114,Сеноман!B:K,8,FALSE) -> 41.04 | P114: =VLOOKUP(A114,Сеноман!B:M,11,FALSE) -> 45.99028316 | Q114: =VLOOKUP(A114,Сеноман!B:M,12,FALSE) -> -0.4521016677 | R114: 8 | S114: =VLOOKUP(A114,Сеноман!B:M,9,FALSE) -> 8.7 | T114: =VLOOKUP(A114,Сеноман!B:M,6,FALSE) -> 566 | U114: =VLOOKUP(A114,Сеноман!B:M,10,FALSE) -> 17.76375389 | V114: =VLOOKUP(A114,Тнав!A:D,2,FALSE) -> 16.53209886 | W114: 3.298891913e-24 | X114: 42.76635612 | Y114: =VLOOKUP(A114,Тнав!A:D,3,FALSE) -> 2.77182537 | Z114: =VLOOKUP(A114,'Состояние фонда'!C:AB,20,FALSE) -> 9.27 | AA114: =VLOOKUP(A114,Тнав!A:E,4,FALSE) -> 408.4756973 | AB114: =VLOOKUP(A114,'Состояние фонда'!C:AB,21,FALSE) -> 99 | AD114: безгидратный | AE114: 13.21744294 | AF114: 287.1586443 | AG114: 0.9669439996 | AH114: 57.82420733 | AI114: 1.296385491e+25
A115: 273 | C115: Суб.ГС | D115: 185.3 | E115: 185.3 | F115: 168 | G115: 1283.42 | H115: 1079,8-1283,42 | I115: 922.542 | J115: 114/867,44 | K115: 26.07.2023 | L115: 26.16 | M115: =VLOOKUP(A115,Сеноман!B:K,5,FALSE) -> 45.93608869 | N115: =VLOOKUP(A115,Сеноман!B:K,7,FALSE) -> 34.17 | O115: =VLOOKUP(A115,Сеноман!B:K,8,FALSE) -> 37.44 | P115: =VLOOKUP(A115,Сеноман!B:M,11,FALSE) -> 42.13688665 | Q115: =VLOOKUP(A115,Сеноман!B:M,12,FALSE) -> 3.79920204 | R115: 8 | S115: =VLOOKUP(A115,Сеноман!B:M,9,FALSE) -> 8.2 | T115: =VLOOKUP(A115,Сеноман!B:M,6,FALSE) -> 371 | U115: =VLOOKUP(A115,Сеноман!B:M,10,FALSE) -> 12.82455444 | V115: =VLOOKUP(A115,Тнав!A:D,2,FALSE) -> 17.22643232 | X115: 39.06096018 | Y115: =VLOOKUP(A115,Тнав!A:D,3,FALSE) -> 6.875128515 | Z115: =VLOOKUP(A115,'Состояние фонда'!C:AB,20,FALSE) -> 7.48 | AA115: =VLOOKUP(A115,Тнав!A:E,4,FALSE) -> 214.4328074 | AB115: =VLOOKUP(A115,'Состояние фонда'!C:AB,21,FALSE) -> 29.6 | AD115: безгидратный | AE115: 7.663457889 | AF115: 286.2526964 | AG115: 0.9647864587
A116: 274 | C116: Суб.ГС | D116: 125.2 | E116: 125.2 | F116: 168 | G116: 1279.7 | H116: 1124,25-1279,7 | I116: 927.504 | J116: 114/867,864 | K116: 26.07.2023 | L116: 26.06 | M116: =VLOOKUP(A116,Сеноман!B:K,5,FALSE) -> 45.78002793 | N116: =VLOOKUP(A116,Сеноман!B:K,7,FALSE) -> 34.53 | O116: =VLOOKUP(A116,Сеноман!B:K,8,FALSE) -> 37.76 | P116: =VLOOKUP(A116,Сеноман!B:M,11,FALSE) -> 42.49937866 | Q116: =VLOOKUP(A116,Сеноман!B:M,12,FALSE) -> 3.280649277 | R116: 8 | S116: =VLOOKUP(A116,Сеноман!B:M,9,FALSE) -> 8.2 | T116: =VLOOKUP(A116,Сеноман!B:M,6,FALSE) -> 314 | U116: =VLOOKUP(A116,Сеноман!B:M,10,FALSE) -> 10.75432014 | V116: =VLOOKUP(A116,Тнав!A:D,2,FALSE) -> 18.13889984 | W116: 1.83157256e-25 | X116: 40.9262993 | Y116: =VLOOKUP(A116,Тнав!A:D,3,FALSE) -> 4.853728638 | Z116: =VLOOKUP(A116,'Состояние фонда'!C:AB,20,FALSE) -> 7.79 | AA116: =VLOOKUP(A116,Тнав!A:E,4,FALSE) -> 233.6461607 | AB116: =VLOOKUP(A116,'Состояние фонда'!C:AB,21,FALSE) -> 99.7 | AD116: безгидратный | AE116: 7.969528567 | AF116: 286.4097309 | AG116: 0.9631404761 | AH116: 60.67122528 | AI116: 2.234489651e+26
A117: 281 | B117: 11 | C117: ННС | D117: 70.6 | E117: 41.5 | F117: 168 | G117: 1076.2 | H117: 1020-1076 | I117: 912.938 | J117: 114/869,103 | K117: 26.07.2023 | L117: 24.67 | M117: =VLOOKUP(A117,Сеноман!B:K,5,FALSE) -> 43.33407416 | N117: =VLOOKUP(A117,Сеноман!B:K,7,FALSE) -> 34.02 | O117: =VLOOKUP(A117,Сеноман!B:K,8,FALSE) -> 36.63 | P117: =VLOOKUP(A117,Сеноман!B:M,11,FALSE) -> 41.23651081 | Q117: =VLOOKUP(A117,Сеноман!B:M,12,FALSE) -> 2.097563344 | R117: 8 | S117: =VLOOKUP(A117,Сеноман!B:M,9,FALSE) -> 8.1 | T117: =VLOOKUP(A117,Сеноман!B:M,6,FALSE) -> 346 | U117: =VLOOKUP(A117,Сеноман!B:M,10,FALSE) -> 12.25361919 | V117: =VLOOKUP(A117,Тнав!A:D,2,FALSE) -> 18.3914122 | W117: 1.735945532e-25 | X117: 39.45687441 | Y117: =VLOOKUP(A117,Тнав!A:D,3,FALSE) -> 3.877199748 | Z117: =VLOOKUP(A117,'Состояние фонда'!C:AB,20,FALSE) -> 8.52 | AA117: =VLOOKUP(A117,Тнав!A:E,4,FALSE) -> 351.0009048 | AB117: =VLOOKUP(A117,'Состояние фонда'!C:AB,21,FALSE) -> 100 | AD117: безгидратный | AE117: 12.41829622 | AF117: =(($AF$18+273.15)-(Z117+273.15))/(LN(($AF$18+273.15)/(Z117+273.15))) -> 286.7792923 | AG117: =1/(1+(5*10^7*0.098*V117)/(Z117+273.15)^3.825) -> 0.963001809 | AH117: 60.68828337 | AI117: =ROUND(EXP(AH117),4) -> 2.272932744e+26
A118: 282 | C118: ННС | D118: 67.7 | E118: 25.9 | F118: 168 | G118: 1076.6 | H118: 1019-1049 | I118: 906.743 | J118: 114/826,722 | K118: 26.07.2023 | L118: 24.84 | M118: =VLOOKUP(A118,Сеноман!B:K,5,FALSE) -> 43.49938624 | N118: =VLOOKUP(A118,Сеноман!B:K,7,FALSE) -> 32.45 | O118: =VLOOKUP(A118,Сеноман!B:K,8,FALSE) -> 36.67 | P118: =VLOOKUP(A118,Сеноман!B:M,11,FALSE) -> 41.03916887 | Q118: =VLOOKUP(A118,Сеноман!B:M,12,FALSE) -> 2.460217367 | R118: 8 | S118: =VLOOKUP(A118,Сеноман!B:M,9,FALSE) -> 8.4 | T118: =VLOOKUP(A118,Сеноман!B:M,6,FALSE) -> 436 | U118: =VLOOKUP(A118,Сеноман!B:M,10,FALSE) -> 15.47479916 | V118: =VLOOKUP(A118,Тнав!A:D,2,FALSE) -> 16.95529295 | W118: 3.927902328e-24 | X118: 36.8437929 | Y118: =VLOOKUP(A118,Тнав!A:D,3,FALSE) -> 6.65559334 | Z118: =VLOOKUP(A118,'Состояние фонда'!C:AB,20,FALSE) -> 9 | AA118: =VLOOKUP(A118,Тнав!A:E,4,FALSE) -> 234.1356986 | AB118: =VLOOKUP(A118,'Состояние фонда'!C:AB,21,FALSE) -> 98.6 | AD118: безгидратный | AE118: 8.955519028 | AF118: 287.0221165 | AG118: 0.9660065502 | AH118: 57.50062387 | AI118: 9.380017582e+24
A119: 283 | C119: ННС | D119: 78.2 | E119: 22.6 | F119: 168 | G119: 1086.9 | H119: 1036-1090 | I119: 925.464 | J119: 114/871,815 | K119: 26.07.2023 | L119: 25.15 | M119: =VLOOKUP(A119,Сеноман!B:K,5,FALSE) -> 44.05533802 | N119: =VLOOKUP(A119,Сеноман!B:K,7,FALSE) -> 35.16 | O119: =VLOOKUP(A119,Сеноман!B:K,8,FALSE) -> 37.49 | P119: =VLOOKUP(A119,Сеноман!B:M,11,FALSE) -> 42.22331552 | Q119: =VLOOKUP(A119,Сеноман!B:M,12,FALSE) -> 1.832022492 | R119: 8 | S119: =VLOOKUP(A119,Сеноман!B:M,9,FALSE) -> 7.9 | T119: =VLOOKUP(A119,Сеноман!B:M,6,FALSE) -> 324 | U119: =VLOOKUP(A119,Сеноман!B:M,10,FALSE) -> 11.18754768 | V119: =VLOOKUP(A119,Тнав!A:D,2,FALSE) -> 17.78476645 | W119: 1.644664812e-25 | X119: 39.76471691 | Y119: =VLOOKUP(A119,Тнав!A:D,3,FALSE) -> 4.290621107 | Z119: =VLOOKUP(A119,'Состояние фонда'!C:AB,20,FALSE) -> 8.91 | AA119: =VLOOKUP(A119,Тнав!A:E,4,FALSE) -> 285.1641182 | AB119: =VLOOKUP(A119,'Состояние фонда'!C:AB,21,FALSE) -> 95.4 | AD119: безгидратный | AE119: 10.01090734 | AF119: 286.9765975 | AG119: 0.9643608313 | AH119: 60.75007073 | AI119: 2.417800675e+26
A120: 284 | C120: ННС | D120: 76.6 | E120: 45.6 | F120: 168 | G120: 1086.8 | H120: 1030-1089 | I120: 923.978 | J120: 114/873,988 | K120: 26.07.2023 | L120: 24.96 | M120: =VLOOKUP(A120,Сеноман!B:K,5,FALSE) -> 43.77952108 | N120: =VLOOKUP(A120,Сеноман!B:K,7,FALSE) -> 33.87 | O120: =VLOOKUP(A120,Сеноман!B:K,8,FALSE) -> 37.32 | P120: =VLOOKUP(A120,Сеноман!B:M,11,FALSE) -> 42.03435533 | Q120: =VLOOKUP(A120,Сеноман!B:M,12,FALSE) -> 1.745165756 | R120: 8 | S120: =VLOOKUP(A120,Сеноман!B:M,9,FALSE) -> 8.5 | T120: =VLOOKUP(A120,Сеноман!B:M,6,FALSE) -> 401 | U120: =VLOOKUP(A120,Сеноман!B:M,10,FALSE) -> 13.91334248 | V120: =VLOOKUP(A120,Тнав!A:D,2,FALSE) -> 17.36369827 | W120: 1.561276121e-25 | X120: 38.98291253 | Y120: =VLOOKUP(A120,Тнав!A:D,3,FALSE) -> 4.796608555 | Z120: =VLOOKUP(A120,'Состояние фонда'!C:AB,20,FALSE) -> 9.41 | AA120: =VLOOKUP(A120,Тнав!A:E,4,FALSE) -> 281.9142748 | AB120: =VLOOKUP(A120,'Состояние фонда'!C:AB,21,FALSE) -> 99.5 | AD120: безгидратный | AE120: 10.0953003 | AF120: 287.2294192 | AG120: 0.965402219 | AH120: 60.78224722 | AI120: 2.496862151e+26
A121: 291 | C121: Суб.ГС | D121: 111.6 | E121: 111.6 | F121: 168 | G121: 1174.15 | H121: 1037,8-1174,15 | I121: 923.024 | J121: 114/875,94 | K121: 26.07.2023 | L121: 25.09 | M121: =VLOOKUP(A121,Сеноман!B:K,5,FALSE) -> 44.03177026 | N121: =VLOOKUP(A121,Сеноман!B:K,7,FALSE) -> 32.49 | O121: =VLOOKUP(A121,Сеноман!B:K,8,FALSE) -> 39.38 | P121: =VLOOKUP(A121,Сеноман!B:M,11,FALSE) -> 44.33978 | Q121: =VLOOKUP(A121,Сеноман!B:M,12,FALSE) -> -0.3080097497 | R121: 8 | S121: =VLOOKUP(A121,Сеноман!B:M,9,FALSE) -> 9.5 | T121: =VLOOKUP(A121,Сеноман!B:M,6,FALSE) -> 531 | U121: =VLOOKUP(A121,Сеноман!B:M,10,FALSE) -> 17.38784027 | V121: =VLOOKUP(A121,Тнав!A:D,2,FALSE) -> 16.77187802 | X121: 40.98884638 | Y121: =VLOOKUP(A121,Тнав!A:D,3,FALSE) -> 3.042923879 | Z121: =VLOOKUP(A121,'Состояние фонда'!C:AB,20,FALSE) -> 10.38 | AA121: =VLOOKUP(A121,Тнав!A:E,4,FALSE) -> 360.8512268 | AB121: =VLOOKUP(A121,'Состояние фонда'!C:AB,21,FALSE) -> 99 | AD121: безгидратный | AE121: 12.289634 | AF121: 287.7194663 | AG121: 0.96696331
A122: 292 | C122: Суб.ГС | D122: 103.5 | E122: 103.5 | F122: 168 | G122: 1179.7 | H122: 1034,1-1179,7 | I122: 924.286 | J122: 114/875,804 | K122: 26.07.2023 | L122: 24.61 | M122: =VLOOKUP(A122,Сеноман!B:K,5,FALSE) -> 42.94950191 | N122: =VLOOKUP(A122,Сеноман!B:K,7,FALSE) -> 32.31 | O122: =VLOOKUP(A122,Сеноман!B:K,8,FALSE) -> 35.79 | P122: =VLOOKUP(A122,Сеноман!B:M,11,FALSE) ->  | Q122: =VLOOKUP(A122,Сеноман!B:M,12,FALSE) ->  | R122: 8 | S122: =VLOOKUP(A122,Сеноман!B:M,9,FALSE) -> 9 | T122: =VLOOKUP(A122,Сеноман!B:M,6,FALSE) -> 325 | U122: =VLOOKUP(A122,Сеноман!B:M,10,FALSE) -> 11.79912376 | V122: =VLOOKUP(A122,Тнав!A:D,2,FALSE) -> 18.66147706 | W122: 9.728499139e-26 | X122: 39.62961123 | Y122: =VLOOKUP(A122,Тнав!A:D,3,FALSE) -> 3.319890686 | Z122: =VLOOKUP(A122,'Состояние фонда'!C:AB,20,FALSE) -> 7.93 | AA122: =VLOOKUP(A122,Тнав!A:E,4,FALSE) -> 141.3656758 | AB122: =VLOOKUP(A122,'Состояние фонда'!C:AB,21,FALSE) -> 99.9 | AD122: безгидратный | AE122: 4.979670654 | AF122: 286.4806306 | AG122: 0.9621881807 | AH122: 61.27172938 | AI122: 4.073558589e+26
A123: 293 | C123: Суб.ГС | D123: 94.6 | E123: 94.6 | F123: 168 | G123: 1159.7 | H123: 1026,2-1159,7 | I123: 919.121 | J123: 114/865,686 | K123: 26.07.2023 | L123: 24.95 | M123: =VLOOKUP(A123,Сеноман!B:K,5,FALSE) -> 43.42301556 | N123: =VLOOKUP(A123,Сеноман!B:K,7,FALSE) -> 32.67 | O123: =VLOOKUP(A123,Сеноман!B:K,8,FALSE) -> 36.29 | P123: =VLOOKUP(A123,Сеноман!B:M,11,FALSE) -> 40.80329723 | Q123: =VLOOKUP(A123,Сеноман!B:M,12,FALSE) -> 2.619718328 | R123: 8 | S123: =VLOOKUP(A123,Сеноман!B:M,9,FALSE) -> 9.6 | T123: =VLOOKUP(A123,Сеноман!B:M,6,FALSE) -> 399 | U123: =VLOOKUP(A123,Сеноман!B:M,10,FALSE) -> 14.28354263 | V123: =VLOOKUP(A123,Тнав!A:D,2,FALSE) -> 16.66083978 | W123: 2.689565011e-25 | X123: 37.03551801 | Y123: =VLOOKUP(A123,Тнав!A:D,3,FALSE) -> 6.387497552 | Z123: =VLOOKUP(A123,'Состояние фонда'!C:AB,20,FALSE) -> 8.91 | AA123: =VLOOKUP(A123,Тнав!A:E,4,FALSE) -> 242.8542466 | AB123: =VLOOKUP(A123,'Состояние фонда'!C:AB,21,FALSE) -> 84.2 | AD123: безгидратный | AE123: 9.240909917 | AF123: 286.9765975 | AG123: 0.9665377198 | AH123: 60.18712525 | AI123: 1.377007726e+26
A124: 301 | B124: 12 | C124: ННС | D124: 72 | E124: 40.3 | F124: 168 | G124: 1124.6 | H124: 1060-1112 | I124: 915.4 | J124: 114/870,823 | K124: 26.07.2023 | L124: 25.25 | M124: =VLOOKUP(A124,Сеноман!B:K,5,FALSE) -> 44.3435646 | N124: =VLOOKUP(A124,Сеноман!B:K,7,FALSE) -> 34.97 | O124: =VLOOKUP(A124,Сеноман!B:K,8,FALSE) -> 36.72 | P124: =VLOOKUP(A124,Сеноман!B:M,11,FALSE) -> 41.34421873 | Q124: =VLOOKUP(A124,Сеноман!B:M,12,FALSE) -> 2.999345868 | R124: 8 | S124: =VLOOKUP(A124,Сеноман!B:M,9,FALSE) -> 8.3 | T124: =VLOOKUP(A124,Сеноман!B:M,6,FALSE) -> 310 | U124: =VLOOKUP(A124,Сеноман!B:M,10,FALSE) -> 10.95034122 | V124: =VLOOKUP(A124,Тнав!A:D,2,FALSE) -> 16.06792291 | W124: 2.133937273e-25 | X124: 41.71473326 | Y124: =VLOOKUP(A124,Тнав!A:D,3,FALSE) -> 2.628831346 | Z124: =VLOOKUP(A124,'Состояние фонда'!C:AB,20,FALSE) -> 8.42 | AA124: =VLOOKUP(A124,Тнав!A:E,4,FALSE) -> 215.5528726 | AB124: =VLOOKUP(A124,'Состояние фонда'!C:AB,21,FALSE) -> 58.9 | AD124: безгидратный | AE124: 7.213413073 | AF124: 286.7286864 | AG124: 0.9674814944 | AH124: 60.53751295 | AI124: 1.954824717e+26
A125: 302 | C125: ННС | D125: 79.6 | E125: 30 | F125: 168 | G125: 1091.7 | H125: 1063-1094 | I125: 928.56 | J125: 114/877,085 | K125: 26.07.2023 | L125: 26.62 | M125: =VLOOKUP(A125,Сеноман!B:K,5,FALSE) -> 46.2562993 | N125: =VLOOKUP(A125,Сеноман!B:K,7,FALSE) -> 34.1 | O125: =VLOOKUP(A125,Сеноман!B:K,8,FALSE) -> 40.49 | P125: =VLOOKUP(A125,Сеноман!B:M,11,FALSE) ->  | Q125: =VLOOKUP(A125,Сеноман!B:M,12,FALSE) ->  | R125: 8 | S125: =VLOOKUP(A125,Сеноман!B:M,9,FALSE) -> 9 | T125: =VLOOKUP(A125,Сеноман!B:M,6,FALSE) -> 514 | U125: =VLOOKUP(A125,Сеноман!B:M,10,FALSE) -> 16.32806778 | V125: =VLOOKUP(A125,Тнав!A:D,2,FALSE) -> 14.79942941 | W125: 7.2843977e-26 | X125: 40.74531129 | Y125: =VLOOKUP(A125,Тнав!A:D,3,FALSE) -> 5.510988006 | Z125: =VLOOKUP(A125,'Состояние фонда'!C:AB,20,FALSE) -> 2.704166667 | AA125: =VLOOKUP(A125,Тнав!A:E,4,FALSE) -> 332.9837043 | AB125: =VLOOKUP(A125,'Состояние фонда'!C:AB,21,FALSE) -> 97.3 | AD125: безгидратный | AE125: 11.40832274 | AF125: 283.8260209 | AG125: 0.9676005321 | AH125: 61.58881843 | AI125: 5.593504498e+26
A126: 303 | C126: ННС | D126: 61.6 | E126: 25 | F126: 168 | G126: 1088 | H126: 1033-1079 | I126: 912.47 | J126: 114/866,987 | K126: 26.07.2023 | L126: 25.1 | M126: =VLOOKUP(A126,Сеноман!B:K,5,FALSE) -> 43.98701836 | N126: =VLOOKUP(A126,Сеноман!B:K,7,FALSE) -> 35.35 | O126: =VLOOKUP(A126,Сеноман!B:K,8,FALSE) -> 36.75 | P126: =VLOOKUP(A126,Сеноман!B:M,11,FALSE) ->  | Q126: =VLOOKUP(A126,Сеноман!B:M,12,FALSE) ->  | R126: 8 | S126: =VLOOKUP(A126,Сеноман!B:M,9,FALSE) -> 8 | T126: =VLOOKUP(A126,Сеноман!B:M,6,FALSE) -> 283 | U126: =VLOOKUP(A126,Сеноман!B:M,10,FALSE) -> 9.990171432 | V126: =VLOOKUP(A126,Тнав!A:D,2,FALSE) -> 15.75277994 | W126: 1.301240849e-25 | X126: 40.67003807 | Y126: =VLOOKUP(A126,Тнав!A:D,3,FALSE) -> 3.316980282 | Z126: =VLOOKUP(A126,'Состояние фонда'!C:AB,20,FALSE) -> 2.704166667 | AA126: =VLOOKUP(A126,Тнав!A:E,4,FALSE) -> 189.4832984 | AB126: =VLOOKUP(A126,'Состояние фонда'!C:AB,21,FALSE) -> 31 | AD126: безгидратный | AE126: 6.503884431 | AF126: 283.8260209 | AG126: 0.9655852486 | AH126: 61.00680067 | AI126: 3.125481199e+26
A127: 304 | C127: ННС | D127: 65.7 | E127: 35.2 | F127: 168 | G127: 1096 | H127: 1026,6-1087 | I127: 916.719 | J127: 114/833,23 | K127: 26.07.2023 | L127: 26.18 | M127: =VLOOKUP(A127,Сеноман!B:K,5,FALSE) -> 45.4009888 | N127: =VLOOKUP(A127,Сеноман!B:K,7,FALSE) -> 34.02 | O127: =VLOOKUP(A127,Сеноман!B:K,8,FALSE) -> 39.74 | P127: =VLOOKUP(A127,Сеноман!B:M,11,FALSE) -> 44.51999546 | Q127: =VLOOKUP(A127,Сеноман!B:M,12,FALSE) -> 0.8809933401 | R127: 8 | S127: =VLOOKUP(A127,Сеноман!B:M,9,FALSE) -> 9.2 | T127: =VLOOKUP(A127,Сеноман!B:M,6,FALSE) -> 525 | U127: =VLOOKUP(A127,Сеноман!B:M,10,FALSE) -> 17.0787487 | V127: =VLOOKUP(A127,Тнав!A:D,2,FALSE) -> 15.72703518 | X127: 40.07656228 | Y127: =VLOOKUP(A127,Тнав!A:D,3,FALSE) -> 5.324426516 | Z127: =VLOOKUP(A127,'Состояние фонда'!C:AB,20,FALSE) -> 10.22 | AA127: =VLOOKUP(A127,Тнав!A:E,4,FALSE) -> 476.9652774 | AB127: =VLOOKUP(A127,'Состояние фонда'!C:AB,21,FALSE) -> 95.1 | AD127: безгидратный | AE127: 16.61394473 | AF127: 287.6386725 | AG127: 0.9688925091
A128: 311 | C128: Суб.ГС | D128: 171.2 | E128: 171.2 | F128: 165 | G128: 1217.7 | H128: 1011,2-1217,7 | I128: 914.511 | J128: 114/874,331 | K128: 28.07.2023 | L128: 26.71 | M128: =VLOOKUP(A128,Сеноман!B:K,5,FALSE) -> 46.64802193 | N128: =VLOOKUP(A128,Сеноман!B:K,7,FALSE) -> 34.73 | O128: =VLOOKUP(A128,Сеноман!B:K,8,FALSE) -> 41.22 | P128: =VLOOKUP(A128,Сеноман!B:M,11,FALSE) -> 46.44247015 | Q128: =VLOOKUP(A128,Сеноман!B:M,12,FALSE) -> 0.205551779 | R128: 8 | S128: =VLOOKUP(A128,Сеноман!B:M,9,FALSE) -> 8.9 | T128: =VLOOKUP(A128,Сеноман!B:M,6,FALSE) -> 438 | U128: =VLOOKUP(A128,Сеноман!B:M,10,FALSE) -> 13.65559101 | V128: =VLOOKUP(A128,Тнав!A:D,2,FALSE) -> 16.4149278 | W128: 1.824300086e-25 | X128: 41.4176705 | Y128: =VLOOKUP(A128,Тнав!A:D,3,FALSE) -> 5.230351434 | Z128: =VLOOKUP(A128,'Состояние фонда'!C:AB,20,FALSE) -> 9.44 | AA128: =VLOOKUP(A128,Тнав!A:E,4,FALSE) -> 243.7651154 | AB128: =VLOOKUP(A128,'Состояние фонда'!C:AB,21,FALSE) -> 97.8 | AD128: безгидратный | AE128: 8.216036214 | AF128: 287.2445838 | AG128: 0.9672435973 | AH128: 60.68713854 | AI128: 2.270332103e+26
A129: 312 | C129: Суб.ГС | D129: 143.4 | E129: 140.2 | F129: 168 | G129: 1167.3 | H129: 1009,6-1167,3 | I129: 904.979 | J129: 114/863,956 | K129: 28.07.2023 | L129: 26.6 | M129: =VLOOKUP(A129,Сеноман!B:K,5,FALSE) -> 46.47337846 | N129: =VLOOKUP(A129,Сеноман!B:K,7,FALSE) -> 34.99 | O129: =VLOOKUP(A129,Сеноман!B:K,8,FALSE) -> 42.52 | P129: =VLOOKUP(A129,Сеноман!B:M,11,FALSE) -> 47.85516032 | Q129: =VLOOKUP(A129,Сеноман!B:M,12,FALSE) -> -1.38178186 | R129: 8 | S129: =VLOOKUP(A129,Сеноман!B:M,9,FALSE) -> 8.6 | T129: =VLOOKUP(A129,Сеноман!B:M,6,FALSE) -> 712 | U129: =VLOOKUP(A129,Сеноман!B:M,10,FALSE) -> 21.47726631 | V129: =VLOOKUP(A129,Тнав!A:D,2,FALSE) -> 16.19757406 | W129: =X129/AI129 -> 4.106495125e-25 | X129: =M129-Y129 -> 43.06118955 | Y129: =VLOOKUP(A129,Тнав!A:D,3,FALSE) -> 3.41218891 | Z129: =VLOOKUP(A129,'Состояние фонда'!C:AB,20,FALSE) -> 9.64 | AA129: =VLOOKUP(A129,Тнав!A:E,4,FALSE) -> 311.5444704 | AB129: =VLOOKUP(A129,'Состояние фонда'!C:AB,21,FALSE) -> 96.6 | AD129: безгидратный | AE129: 10.01192284 | AF129: 287.3456669 | AG129: 0.9677478777 | AH129: 59.91467954 | AI129: 1.048611729e+26
A130: 313 | C130: Суб.ГС | D130: 154.9 | E130: 154.9 | F130: 168 | G130: 1195.83 | H130: 1006,8-1195,83 | I130: 915.797 | J130: 114/873,285 | K130: 28.07.2023 | L130: 26.44 | M130: =VLOOKUP(A130,Сеноман!B:K,5,FALSE) -> 46.28689736 | N130: =VLOOKUP(A130,Сеноман!B:K,7,FALSE) -> 35.83 | O130: =VLOOKUP(A130,Сеноман!B:K,8,FALSE) -> 38.72 | P130: =VLOOKUP(A130,Сеноман!B:M,11,FALSE) -> 43.61174476 | Q130: =VLOOKUP(A130,Сеноман!B:M,12,FALSE) -> 2.675152603 | R130: 8 | S130: =VLOOKUP(A130,Сеноман!B:M,9,FALSE) -> 8.2 | T130: =VLOOKUP(A130,Сеноман!B:M,6,FALSE) -> 313 | U130: =VLOOKUP(A130,Сеноман!B:M,10,FALSE) -> 10.44343662 | V130: =VLOOKUP(A130,Тнав!A:D,2,FALSE) -> 17.70147113 | W130: 1.360767844e-25 | X130: 39.70970062 | Y130: =VLOOKUP(A130,Тнав!A:D,3,FALSE) -> 6.577196738 | Z130: =VLOOKUP(A130,'Состояние фонда'!C:AB,20,FALSE) -> 8.21 | AA130: =VLOOKUP(A130,Тнав!A:E,4,FALSE) -> 143.2810082 | AB130: =VLOOKUP(A130,'Состояние фонда'!C:AB,21,FALSE) -> 96 | AD130: безгидратный | AE130: 5.036959681 | AF130: 286.6223945 | AG130: 0.9641951487 | AH130: 60.9381737 | AI130: 2.918183347e+26
A131: 314 | C131: Суб.ГС | D131: 178.5 | E131: 178.5 | F131: 168 | G131: 1224.7 | H131: 989,7-1225,25 | I131: 908.9 | J131: 114/872,017 | K131: 28.07.2023 | L131: 26.39 | M131: =VLOOKUP(A131,Сеноман!B:K,5,FALSE) -> 46.18810924 | N131: =VLOOKUP(A131,Сеноман!B:K,7,FALSE) -> 34.65 | O131: =VLOOKUP(A131,Сеноман!B:K,8,FALSE) -> 42.44 | P131: =VLOOKUP(A131,Сеноман!B:M,11,FALSE) -> 47.79402275 | Q131: =VLOOKUP(A131,Сеноман!B:M,12,FALSE) -> -1.605913517 | R131: 8 | S131: =VLOOKUP(A131,Сеноман!B:M,9,FALSE) -> 9.3 | T131: =VLOOKUP(A131,Сеноман!B:M,6,FALSE) -> 473 | U131: =VLOOKUP(A131,Сеноман!B:M,10,FALSE) -> 14.28966618 | V131: =VLOOKUP(A131,Тнав!A:D,2,FALSE) -> 15.33315246 | W131: 2.554017225e-25 | X131: 41.22587522 | Y131: =VLOOKUP(A131,Тнав!A:D,3,FALSE) -> 4.962234012 | Z131: =VLOOKUP(A131,'Состояние фонда'!C:AB,20,FALSE) -> 9.82 | AA131: =VLOOKUP(A131,Тнав!A:E,4,FALSE) -> 279.9093564 | AB131: =VLOOKUP(A131,'Состояние фонда'!C:AB,21,FALSE) -> 97.9 | AD131: безгидратный | AE131: 9.478158998 | AF131: 287.4366212 | AG131: 0.9694885254 | AH131: 60.34602592 | AI131: 1.614158073e+26
A132: 321 | C132: Суб.ГС | D132: 123.5 | E132: 123.5 | F132: 168 | G132: 1165.32 | H132: 1026,74-1165,32 | I132: 924.923 | J132: 114/877,882 | K132: 26.07.2023 | L132: 25.07 | M132: =VLOOKUP(A132,Сеноман!B:K,5,FALSE) -> 44.27467972 | N132: =VLOOKUP(A132,Сеноман!B:K,7,FALSE) -> 34 | O132: =VLOOKUP(A132,Сеноман!B:K,8,FALSE) -> 36.7 | P132: =VLOOKUP(A132,Сеноман!B:M,11,FALSE) -> 41.33559893 | Q132: =VLOOKUP(A132,Сеноман!B:M,12,FALSE) -> 2.939080792 | R132: 8 | S132: =VLOOKUP(A132,Сеноман!B:M,9,FALSE) -> 9.4 | T132: =VLOOKUP(A132,Сеноман!B:M,6,FALSE) -> 348 | U132: =VLOOKUP(A132,Сеноман!B:M,10,FALSE) -> 12.29730129 | V132: =VLOOKUP(A132,Тнав!A:D,2,FALSE) -> 16.11726212 | W132: 9.16822326e-26 | X132: 39.34511673 | Y132: =VLOOKUP(A132,Тнав!A:D,3,FALSE) -> 4.929562996 | Z132: =VLOOKUP(A132,'Состояние фонда'!C:AB,20,FALSE) -> 6.29 | AA132: =VLOOKUP(A132,Тнав!A:E,4,FALSE) -> 130.2899947 | AB132: =VLOOKUP(A132,'Состояние фонда'!C:AB,21,FALSE) -> 82.1 | AD132: безгидратный | AE132: 4.622710398 | AF132: 285.6493452 | AG132: 0.9664559406 | AH132: =(0.5647*0.03415*MID(J132,5,7)/(AF132*AG132)) -> 61.32384077 | AI132: 4.291465818e+26
A133: 322 | C133: Суб.ГС | D133: 140.6 | E133: 140 | F133: 168 | G133: 1180.1 | H133: 1023,3-1180,1 | I133: 922.632 | J133: 114/876,779 | K133: 26.07.2023 | L133: 25.43 | M133: =VLOOKUP(A133,Сеноман!B:K,5,FALSE) -> 44.87938809 | N133: =VLOOKUP(A133,Сеноман!B:K,7,FALSE) -> 33.8 | O133: =VLOOKUP(A133,Сеноман!B:K,8,FALSE) -> 38.52 | P133: =VLOOKUP(A133,Сеноман!B:M,11,FALSE) -> 43.37495937 | Q133: =VLOOKUP(A133,Сеноман!B:M,12,FALSE) -> 1.504428725 | R133: 8 | S133: =VLOOKUP(A133,Сеноман!B:M,9,FALSE) -> 9.6 | T133: =VLOOKUP(A133,Сеноман!B:M,6,FALSE) -> 436 | U133: =VLOOKUP(A133,Сеноман!B:M,10,FALSE) -> 14.62355328 | V133: =VLOOKUP(A133,Тнав!A:D,2,FALSE) -> 16.0250444 | W133: 1.515409394e-25 | X133: 39.57146752 | Y133: =VLOOKUP(A133,Тнав!A:D,3,FALSE) -> 5.307920577 | Z133: =VLOOKUP(A133,'Состояние фонда'!C:AB,20,FALSE) -> 9.31 | AA133: =VLOOKUP(A133,Тнав!A:E,4,FALSE) -> 225.4102045 | AB133: =VLOOKUP(A133,'Состояние фонда'!C:AB,21,FALSE) -> 98.8 | AD133: безгидратный | AE133: 7.951844432 | AF133: 287.1788669 | AG133: 0.9679421515 | AH133: 60.82705004 | AI133: 2.611272417e+26
A134: 323 | C134: Суб.ГС | D134: 121.7 | E134: 114.6 | F134: 168 | G134: 1176.3 | H134: 1049,6-1176,46 | I134: 922.368 | J134: 114/872,762 | K134: 26.07.2023 | L134: 25.61 | M134: =VLOOKUP(A134,Сеноман!B:K,5,FALSE) -> 45.22094798 | N134: =VLOOKUP(A134,Сеноман!B:K,7,FALSE) -> 36.92 | O134: =VLOOKUP(A134,Сеноман!B:K,8,FALSE) -> 38.97 | P134: =VLOOKUP(A134,Сеноман!B:M,11,FALSE) -> 43.89012071 | Q134: =VLOOKUP(A134,Сеноман!B:M,12,FALSE) -> 1.330827272 | R134: 8 | S134: =VLOOKUP(A134,Сеноман!B:M,9,FALSE) -> 8.2 | T134: =VLOOKUP(A134,Сеноман!B:M,6,FALSE) -> 349 | U134: =VLOOKUP(A134,Сеноман!B:M,10,FALSE) -> 11.5602293 | V134: =VLOOKUP(A134,Тнав!A:D,2,FALSE) -> 16.85154668 | W134: 1.697873069e-25 | X134: 39.56194228 | Y134: =VLOOKUP(A134,Тнав!A:D,3,FALSE) -> 5.659005694 | Z134: =VLOOKUP(A134,'Состояние фонда'!C:AB,20,FALSE) -> 8.83 | AA134: =VLOOKUP(A134,Тнав!A:E,4,FALSE) -> 234.7589007 | AB134: =VLOOKUP(A134,'Состояние фонда'!C:AB,21,FALSE) -> 99.7 | AD134: безгидратный | AE134: 8.283634358 | AF134: 286.9361321 | AG134: 0.9661321701 | AH134: 60.7131186 | AI134: 2.330088333e+26
A135: 331 | C135: ННС | D135: 64.2 | E135: 28.8 | F135: 168 | G135: 1071.5 | H135: 1028-1071,5 | I135: 905.786 | J135: 114/860,95 | K135: 27.07.2023 | L135: 26.88 | M135: =VLOOKUP(A135,Сеноман!B:K,5,FALSE) -> 46.95065781 | N135: =VLOOKUP(A135,Сеноман!B:K,7,FALSE) -> 37.21 | O135: =VLOOKUP(A135,Сеноман!B:K,8,FALSE) -> 40.09 | P135: =VLOOKUP(A135,Сеноман!B:M,11,FALSE) -> 45.11660881 | Q135: =VLOOKUP(A135,Сеноман!B:M,12,FALSE) -> 1.834049007 | R135: 8 | S135: =VLOOKUP(A135,Сеноман!B:M,9,FALSE) -> 7.8 | T135: =VLOOKUP(A135,Сеноман!B:M,6,FALSE) -> 383 | U135: =VLOOKUP(A135,Сеноман!B:M,10,FALSE) -> 12.31504154 | V135: =VLOOKUP(A135,Тнав!A:D,2,FALSE) -> 17.42706233 | X135: 41.78957529 | Y135: =VLOOKUP(A135,Тнав!A:D,3,FALSE) -> 5.161082525 | Z135: =VLOOKUP(A135,'Состояние фонда'!C:AB,20,FALSE) -> 9.41 | AA135: =VLOOKUP(A135,Тнав!A:E,4,FALSE) -> 350.9370463 | AB135: =VLOOKUP(A135,'Состояние фонда'!C:AB,21,FALSE) -> 100 | AD135: безгидратный | AE135: 11.72297173 | AF135: 287.2294192 | AG135: 0.9652803474
A136: 332 | C136: ННС | D136: 63.3 | E136: 34 | F136: 168 | G136: 1087.2 | H136: 1029-1092 | I136: 915.946 | J136: 114/876,155 | K136: 27.07.2023 | L136: 27.45 | M136: =VLOOKUP(A136,Сеноман!B:K,5,FALSE) -> 47.76627168 | N136: =VLOOKUP(A136,Сеноман!B:K,7,FALSE) -> 38.27 | O136: =VLOOKUP(A136,Сеноман!B:K,8,FALSE) -> 41.17 | P136: =VLOOKUP(A136,Сеноман!B:M,11,FALSE) -> 46.42842222 | Q136: =VLOOKUP(A136,Сеноман!B:M,12,FALSE) -> 1.337849464 | R136: 8 | S136: =VLOOKUP(A136,Сеноман!B:M,9,FALSE) -> 7.8 | T136: =VLOOKUP(A136,Сеноман!B:M,6,FALSE) -> 352 | U136: =VLOOKUP(A136,Сеноман!B:M,10,FALSE) -> 10.98283005 | V136: =VLOOKUP(A136,Тнав!A:D,2,FALSE) -> 16.8505213 | W136: 1.577288561e-25 | X136: 42.04850136 | Y136: =VLOOKUP(A136,Тнав!A:D,3,FALSE) -> 5.717770326 | Z136: =VLOOKUP(A136,'Состояние фонда'!C:AB,20,FALSE) -> 9.58 | AA136: =VLOOKUP(A136,Тнав!A:E,4,FALSE) -> 346.745503 | AB136: =VLOOKUP(A136,'Состояние фонда'!C:AB,21,FALSE) -> 100 | AD136: безгидратный | AE136: 11.51162872 | AF136: 287.3153445 | AG136: 0.9664650187 | AH136: 60.8477438 | AI136: 2.665872459e+26
A137: 333 | C137: ННС | D137: 59.6 | E137: 37.7 | F137: 168 | G137: 1078.5 | H137: 1031-1077 | I137: 909.82 | J137: 114/867,185 | K137: 27.07.2023 | L137: 26.81 | M137: =VLOOKUP(A137,Сеноман!B:K,5,FALSE) -> 46.81853993 | N137: =VLOOKUP(A137,Сеноман!B:K,7,FALSE) -> 34.21 | O137: =VLOOKUP(A137,Сеноман!B:K,8,FALSE) -> 40.48 | P137: =VLOOKUP(A137,Сеноман!B:M,11,FALSE) -> 45.55376587 | Q137: =VLOOKUP(A137,Сеноман!B:M,12,FALSE) -> 1.264774059 | R137: 8 | S137: =VLOOKUP(A137,Сеноман!B:M,9,FALSE) -> 9.5 | T137: =VLOOKUP(A137,Сеноман!B:M,6,FALSE) -> 554 | U137: =VLOOKUP(A137,Сеноман!B:M,10,FALSE) -> 17.62368965 | V137: =VLOOKUP(A137,Тнав!A:D,2,FALSE) -> 16.86849338 | W137: 3.550475493e-25 | X137: 42.42663288 | Y137: =VLOOKUP(A137,Тнав!A:D,3,FALSE) -> 4.391907042 | Z137: =VLOOKUP(A137,'Состояние фонда'!C:AB,20,FALSE) -> 10.95 | AA137: =VLOOKUP(A137,Тнав!A:E,4,FALSE) -> 380.1088105 | AB137: =VLOOKUP(A137,'Состояние фонда'!C:AB,21,FALSE) -> 100 | AD137: безгидратный | AE137: 12.39803447 | AF137: 288.0071701 | AG137: 0.9670251613 | AH137: 60.04532209 | AI137: 1.194956365e+26
A138: 334 | C138: ННС | D138: 58.9 | E138: 34.9 | F138: 168 | G138: 1086.2 | H138: 1034,4-1087 | I138: 915.231 | J138: 114/876,029 | K138: 27.07.2023 | L138: 26.96 | M138: =VLOOKUP(A138,Сеноман!B:K,5,FALSE) -> 47.06717874 | N138: =VLOOKUP(A138,Сеноман!B:K,7,FALSE) -> 36.7 | O138: =VLOOKUP(A138,Сеноман!B:K,8,FALSE) -> 40.21 | P138: =VLOOKUP(A138,Сеноман!B:M,11,FALSE) -> 45.33624157 | Q138: =VLOOKUP(A138,Сеноман!B:M,12,FALSE) -> 1.73093717 | R138: 8 | S138: =VLOOKUP(A138,Сеноман!B:M,9,FALSE) -> 8.3 | T138: =VLOOKUP(A138,Сеноман!B:M,6,FALSE) -> 378 | U138: =VLOOKUP(A138,Сеноман!B:M,10,FALSE) -> 12.10154819 | V138: =VLOOKUP(A138,Тнав!A:D,2,FALSE) -> 16.57573408 | W138: 1.570077737e-25 | X138: 40.73056517 | Y138: =VLOOKUP(A138,Тнав!A:D,3,FALSE) -> 6.336613575 | Z138: =VLOOKUP(A138,'Состояние фонда'!C:AB,20,FALSE) -> 9.47 | AA138: =VLOOKUP(A138,Тнав!A:E,4,FALSE) -> 269.0652583 | AB138: =VLOOKUP(A138,'Состояние фонда'!C:AB,21,FALSE) -> 98.3 | AD138: безгидратный | AE138: 9.221756438 | AF138: 287.2597478 | AG138: 0.9669462953 | AH138: 60.82048099 | AI138: 2.594175067e+26
A139: 341 | C139: ННС | D139: 68 | E139: 22 | F139: 168 | G139: 1082.8 | H139: 1028-1051 | I139: 900.386 | J139: 114/832,088 | K139: 23.07.2023 | L139: 28.03 | M139: =VLOOKUP(A139,Сеноман!B:K,5,FALSE) -> 48.49693971 | N139: =VLOOKUP(A139,Сеноман!B:K,7,FALSE) -> 34.76 | O139: =VLOOKUP(A139,Сеноман!B:K,8,FALSE) -> 42.92 | P139: =VLOOKUP(A139,Сеноман!B:M,11,FALSE) ->  | Q139: =VLOOKUP(A139,Сеноман!B:M,12,FALSE) ->  | R139: 8 | S139: =VLOOKUP(A139,Сеноман!B:M,9,FALSE) -> 8 | T139: =VLOOKUP(A139,Сеноман!B:M,6,FALSE) -> 610 | U139: =VLOOKUP(A139,Сеноман!B:M,10,FALSE) -> 18.2544117 | V139: =VLOOKUP(A139,Тнав!A:D,2,FALSE) -> 17.85841367 | W139: 3.090484931e-24 | X139: 45.19962774 | Y139: =VLOOKUP(A139,Тнав!A:D,3,FALSE) -> 3.297311966 | Z139: =VLOOKUP(A139,'Состояние фонда'!C:AB,20,FALSE) -> 9.26 | AA139: =VLOOKUP(A139,Тнав!A:E,4,FALSE) -> 420.8827593 | AB139: =VLOOKUP(A139,'Состояние фонда'!C:AB,21,FALSE) -> 51 | AD139: безгидратный | AE139: 12.88575137 | AF139: 287.1535885 | AG139: 0.9643818217 | AH139: 57.94480307 | AI139: 1.4625416e+25
A140: 342 | C140: ННС | D140: 64.5 | E140: 20.6 | F140: 168 | G140: 1088.8 | H140: 1030-1050 | I140: 898.35 | J140: 114/830,64 | K140: 23.07.2023 | L140: 27.81 | M140: =VLOOKUP(A140,Сеноман!B:K,5,FALSE) -> 48.25194267 | N140: =VLOOKUP(A140,Сеноман!B:K,7,FALSE) -> 34.96 | O140: =VLOOKUP(A140,Сеноман!B:K,8,FALSE) -> 42.46 | P140: =VLOOKUP(A140,Сеноман!B:M,11,FALSE) -> 47.58478121 | Q140: =VLOOKUP(A140,Сеноман!B:M,12,FALSE) -> 0.6671614597 | R140: 8 | S140: =VLOOKUP(A140,Сеноман!B:M,9,FALSE) -> 7.8 | T140: =VLOOKUP(A140,Сеноман!B:M,6,FALSE) -> 616 | U140: =VLOOKUP(A140,Сеноман!B:M,10,FALSE) -> 18.6529808 | V140: =VLOOKUP(A140,Тнав!A:D,2,FALSE) -> 16.59398119 | X140: 42.05772584 | Y140: =VLOOKUP(A140,Тнав!A:D,3,FALSE) -> 6.194216829 | Z140: =VLOOKUP(A140,'Состояние фонда'!C:AB,20,FALSE) -> 9.34 | AA140: =VLOOKUP(A140,Тнав!A:E,4,FALSE) -> 312.5532946 | AB140: =VLOOKUP(A140,'Состояние фонда'!C:AB,21,FALSE) -> 39 | AD140: безгидратный | AE140: 10.37420329 | AF140: 287.1940332 | AG140: 0.9668547623
A141: 343 | C141: ННС | D141: 48.2 | E141: 21.2 | F141: 168 | G141: 1102.6 | H141: 1050-1104 | I141: 918.493 | J141: 114/874,4 | K141: 23.07.2023 | L141: 27.56 | M141: =VLOOKUP(A141,Сеноман!B:K,5,FALSE) -> 48.04552194 | N141: =VLOOKUP(A141,Сеноман!B:K,7,FALSE) -> 35.13 | O141: =VLOOKUP(A141,Сеноман!B:K,8,FALSE) -> 42.72 | P141: =VLOOKUP(A141,Сеноман!B:M,11,FALSE) ->  | Q141: =VLOOKUP(A141,Сеноман!B:M,12,FALSE) ->  | R141: 8 | S141: =VLOOKUP(A141,Сеноман!B:M,9,FALSE) -> 8 | T141: =VLOOKUP(A141,Сеноман!B:M,6,FALSE) -> 529 | U141: =VLOOKUP(A141,Сеноман!B:M,10,FALSE) -> 15.85669422 | V141: =VLOOKUP(A141,Тнав!A:D,2,FALSE) -> 17.46700365 | X141: 44.64623675 | Y141: =VLOOKUP(A141,Тнав!A:D,3,FALSE) -> 3.399285183 | Z141: =VLOOKUP(A141,'Состояние фонда'!C:AB,20,FALSE) -> 9.26 | AA141: =VLOOKUP(A141,Тнав!A:E,4,FALSE) -> 331.5863159 | AB141: =VLOOKUP(A141,'Состояние фонда'!C:AB,21,FALSE) -> 49.1 | AD141: безгидратный | AE141: 10.27768283 | AF141: 287.1535885 | AG141: 0.9651352622
A142: 351 | C142: Суб.ГС | D142: 155 | E142: 152.7 | F142: 168 | G142: 1246 | H142: 1072,8-1245,7 | I142: 916.348 | J142: 114/876,357 | K142: 28.07.2023 | L142: 27.7 | M142: =VLOOKUP(A142,Сеноман!B:K,5,FALSE) -> 48.22598045 | N142: =VLOOKUP(A142,Сеноман!B:K,7,FALSE) -> 34.5 | O142: =VLOOKUP(A142,Сеноман!B:K,8,FALSE) -> 42.19 | P142: =VLOOKUP(A142,Сеноман!B:M,11,FALSE) -> 47.53877344 | Q142: =VLOOKUP(A142,Сеноман!B:M,12,FALSE) -> 0 | R142: 8 | S142: =VLOOKUP(A142,Сеноман!B:M,9,FALSE) -> 9.4 | T142: =VLOOKUP(A142,Сеноман!B:M,6,FALSE) -> 504 | U142: =VLOOKUP(A142,Сеноман!B:M,10,FALSE) -> 15.32387066 | V142: =VLOOKUP(A142,Тнав!A:D,2,FALSE) -> 19.10827845 | W142: 6.839527424e-26 | X142: 44.13150215 | Y142: =VLOOKUP(A142,Тнав!A:D,3,FALSE) -> 4.094478294 | Z142: =VLOOKUP(A142,'Состояние фонда'!C:AB,20,FALSE) -> 5.36 | AA142: =VLOOKUP(A142,Тнав!A:E,4,FALSE) -> 92.80469133 | AB142: =VLOOKUP(A142,'Состояние фонда'!C:AB,21,FALSE) -> 90.2 | AE142: 2.910078403 | AF142: 285.1772179 | AG142: 0.9599900208 | AH142: 61.73166764 | AI142: 6.452419798e+26
A143: 352 | C143: Суб.ГС | D143: 117.9 | E143: 117.9 | F143: 168 | G143: 1220.1 | H143: 1074,6-1220,1 | I143: 915.938 | J143: 114/876,813 | K143: 28.07.2023 | L143: 27.52 | M143: =VLOOKUP(A143,Сеноман!B:K,5,FALSE) -> 48.17986428 | N143: =VLOOKUP(A143,Сеноман!B:K,7,FALSE) -> 39.18 | O143: =VLOOKUP(A143,Сеноман!B:K,8,FALSE) -> 41.51 | P143: =VLOOKUP(A143,Сеноман!B:M,11,FALSE) -> 46.82538249 | Q143: =VLOOKUP(A143,Сеноман!B:M,12,FALSE) -> 1.354481796 | R143: 8 | S143: =VLOOKUP(A143,Сеноман!B:M,9,FALSE) -> 7.3 | T143: =VLOOKUP(A143,Сеноман!B:M,6,FALSE) -> 196 | U143: =VLOOKUP(A143,Сеноман!B:M,10,FALSE) -> 6.063066006 | V143: =VLOOKUP(A143,Тнав!A:D,2,FALSE) -> 14.61829166 | X143: 41.39058025 | Y143: =VLOOKUP(A143,Тнав!A:D,3,FALSE) -> 6.78928403 | Z143: =VLOOKUP(A143,'Состояние фонда'!C:AB,20,FALSE) -> 6.77 | AA143: =VLOOKUP(A143,Тнав!A:E,4,FALSE) -> 88.14193761 | AB143: =VLOOKUP(A143,'Состояние фонда'!C:AB,21,FALSE) -> 100 | AD143: безгидратный | AE143: 2.972744177 | AF143: 285.8928173 | AG143: 0.9696740987 | AH143: =(0.5647*0.03415*MID(J143,4,7)/(AF143*AG143)) -> 
A144: 353 | C144: Суб.ГС | D144: 114.6 | E144: 113.3 | F144: 168 | G144: 1257.85 | H144: 1116,09-1257,55 | I144: 915.163 | J144: 114/877,382 | K144: 28.07.2023 | L144: 27.84 | M144: =VLOOKUP(A144,Сеноман!B:K,5,FALSE) -> 48.85270879 | N144: =VLOOKUP(A144,Сеноман!B:K,7,FALSE) -> 34.18 | O144: =VLOOKUP(A144,Сеноман!B:K,8,FALSE) -> 42.06 | P144: =VLOOKUP(A144,Сеноман!B:M,11,FALSE) -> 47.4045942 | Q144: =VLOOKUP(A144,Сеноман!B:M,12,FALSE) -> 1.448114596 | R144: 8 | S144: =VLOOKUP(A144,Сеноман!B:M,9,FALSE) -> 9.1 | T144: =VLOOKUP(A144,Сеноман!B:M,6,FALSE) -> 405 | U144: =VLOOKUP(A144,Сеноман!B:M,10,FALSE) -> 12.35359192 | V144: =VLOOKUP(A144,Тнав!A:D,2,FALSE) -> 14.52783461 | X144: 43.21042621 | Y144: =VLOOKUP(A144,Тнав!A:D,3,FALSE) -> 5.642282579 | Z144: =VLOOKUP(A144,'Состояние фонда'!C:AB,20,FALSE) -> 8.91 | AA144: =VLOOKUP(A144,Тнав!A:E,4,FALSE) -> 82.50472181 | AB144: =VLOOKUP(A144,'Состояние фонда'!C:AB,21,FALSE) -> 100 | AD144: безгидратный | AE144: 2.642248888 | AF144: 286.9765975 | AG144: 0.9706961927 | AH144: =(0.5647*0.03415*MID(J144,4,7)/(AF144*AG144)) -> 
A145: 361 | C145: Суб.ГС | D145: 183.6 | E145: 182.4 | F145: 168 | G145: 1290 | H145: 1084,81-1289,65 | I145: 913.712 | J145: 114/834,722 | K145: 27.07.2023 | L145: 29.34 | M145: =VLOOKUP(A145,Сеноман!B:K,5,FALSE) -> 50.07851474 | N145: =VLOOKUP(A145,Сеноман!B:K,7,FALSE) -> 35.24 | O145: =VLOOKUP(A145,Сеноман!B:K,8,FALSE) -> 45.55 | P145: =VLOOKUP(A145,Сеноман!B:M,11,FALSE) -> 51.09572502 | Q145: =VLOOKUP(A145,Сеноман!B:M,12,FALSE) -> -1.017210284 | R145: 8 | S145: =VLOOKUP(A145,Сеноман!B:M,9,FALSE) -> 8.2 | T145: =VLOOKUP(A145,Сеноман!B:M,6,FALSE) -> 686 | U145: =VLOOKUP(A145,Сеноман!B:M,10,FALSE) -> 19.2154274 | V145: =VLOOKUP(A145,Тнав!A:D,2,FALSE) -> 16.6321252 | W145: 3.397425174e-24 | X145: 47.83410715 | Y145: =VLOOKUP(A145,Тнав!A:D,3,FALSE) -> 2.244407584 | Z145: =VLOOKUP(A145,'Состояние фонда'!C:AB,20,FALSE) -> 9.88 | AA145: =VLOOKUP(A145,Тнав!A:E,4,FALSE) -> 490.2390055 | AB145: =VLOOKUP(A145,'Состояние фонда'!C:AB,21,FALSE) -> 100 | AD145: безгидратный | AE145: 14.05034469 | AF145: 287.466935 | AG145: 0.9670149012 | AH145: =(0.5647*0.03415*MID(J145,5,7)/(AF145*AG145)) -> 57.90676331 | AI145: 1.407951749e+25
A146: 362 | C146: Суб.ГС | D146: 166.5 | E146: 150 | F146: 168 | G146: 1276.87 | H146: 1086,29-1276,7 | I146: 914.206 | J146: 114/870,295 | K146: 27.07.2023 | L146: 28.52 | M146: =VLOOKUP(A146,Сеноман!B:K,5,FALSE) -> 49.08868072 | N146: =VLOOKUP(A146,Сеноман!B:K,7,FALSE) -> 34.4 | O146: =VLOOKUP(A146,Сеноман!B:K,8,FALSE) -> 42.67 | P146: =VLOOKUP(A146,Сеноман!B:M,11,FALSE) -> 48.06941278 | Q146: =VLOOKUP(A146,Сеноман!B:M,12,FALSE) -> 1.019267945 | R146: 8 | S146: =VLOOKUP(A146,Сеноман!B:M,9,FALSE) -> 8.4 | T146: =VLOOKUP(A146,Сеноман!B:M,6,FALSE) -> 435 | U146: =VLOOKUP(A146,Сеноман!B:M,10,FALSE) -> 13.05767727 | V146: =VLOOKUP(A146,Тнав!A:D,2,FALSE) -> 16.62943553 | W146: 2.310992587e-25 | X146: 43.26831468 | Y146: =VLOOKUP(A146,Тнав!A:D,3,FALSE) -> 5.820366043 | Z146: =VLOOKUP(A146,'Состояние фонда'!C:AB,20,FALSE) -> 8.98 | AA146: =VLOOKUP(A146,Тнав!A:E,4,FALSE) -> 260.1118121 | AB146: =VLOOKUP(A146,'Состояние фонда'!C:AB,21,FALSE) -> 100 | AD146: безгидратный | AE146: 8.319046744 | AF146: 287.0120016 | AG146: 0.9666293169 | AH146: 60.49437081 | AI146: 1.872282712e+26
A147: 363 | C147: Суб.ГС | D147: 219 | E147: 102.7 | F147: 168 | G147: 1313 | H147: 1074,4-1312,7 | I147: 920.277 | J147: 114/872,627 | K147: 27.07.2023 | L147: 28.92 | M147: =VLOOKUP(A147,Сеноман!B:K,5,FALSE) -> 49.40292408 | N147: =VLOOKUP(A147,Сеноман!B:K,7,FALSE) -> 34.8 | O147: =VLOOKUP(A147,Сеноман!B:K,8,FALSE) -> 44.02 | P147: =VLOOKUP(A147,Сеноман!B:M,11,FALSE) -> 49.61672492 | Q147: =VLOOKUP(A147,Сеноман!B:M,12,FALSE) -> -0.2138008413 | R147: 8 | S147: =VLOOKUP(A147,Сеноман!B:M,9,FALSE) -> 8.8 | T147: =VLOOKUP(A147,Сеноман!B:M,6,FALSE) -> 526 | U147: =VLOOKUP(A147,Сеноман!B:M,10,FALSE) -> 15.2576046 | V147: =VLOOKUP(A147,Тнав!A:D,2,FALSE) -> 15.70940959 | W147: 2.568068192e-25 | X147: 43.89082988 | Y147: =VLOOKUP(A147,Тнав!A:D,3,FALSE) -> 5.512094198 | Z147: =VLOOKUP(A147,'Состояние фонда'!C:AB,20,FALSE) -> 10.05 | AA147: =VLOOKUP(A147,Тнав!A:E,4,FALSE) -> 354.6924353 | AB147: =VLOOKUP(A147,'Состояние фонда'!C:AB,21,FALSE) -> 99.8 | AD147: безгидратный | AE147: 11.18308442 | AF147: 287.5528124 | AG147: 0.9688571041 | AH147: 60.4031788 | AI147: 1.709099081e+26
A148: 371 | C148: Суб.ГС | D148: 191.6 | E148: 130.9 | F148: 168 | G148: 1345 | H148: 1141,1-1344,5 | I148: 936.245 | J148: 114/875,347 | K148: 23.07.2023 | L148: 30.45 | M148: =VLOOKUP(A148,Сеноман!B:K,5,FALSE) -> 50.71258777 | N148: =VLOOKUP(A148,Сеноман!B:K,7,FALSE) -> 40.66 | O148: =VLOOKUP(A148,Сеноман!B:K,8,FALSE) -> 43.19 | P148: =VLOOKUP(A148,Сеноман!B:M,11,FALSE) -> 48.7436761 | Q148: =VLOOKUP(A148,Сеноман!B:M,12,FALSE) -> 1.968911674 | R148: 8 | S148: =VLOOKUP(A148,Сеноман!B:M,9,FALSE) -> 5.6 | T148: =VLOOKUP(A148,Сеноман!B:M,6,FALSE) -> 294 | U148: =VLOOKUP(A148,Сеноман!B:M,10,FALSE) -> 8.693922997 | V148: =VLOOKUP(A148,Тнав!A:D,2,FALSE) -> 22.76643585 | W148: 4.917366861e-26 | X148: 45.56580968 | Y148: =VLOOKUP(A148,Тнав!A:D,3,FALSE) -> 5.146778087 | Z148: =VLOOKUP(A148,'Состояние фонда'!C:AB,20,FALSE) -> 5.62 | AA148: =VLOOKUP(A148,Тнав!A:E,4,FALSE) -> 153.6746296 | AB148: =VLOOKUP(A148,'Состояние фонда'!C:AB,21,FALSE) -> 31.4 | AD148: безгидратный | AE148: 4.66709405 | AF148: 285.3092638 | AG148: 0.9528533223 | AH148: 62.09359687 | AI148: 9.266302673e+26
A149: 372 | C149: Суб.ГС | D149: 151.2 | E149: 111.6 | F149: 168 | G149: 1314 | H149: 1172,09-1313,53 | I149: 936.793 | J149: 114/875,065 | K149: 23.07.2023 | L149: 29.58 | M149: =VLOOKUP(A149,Сеноман!B:K,5,FALSE) -> 50.46969106 | N149: =VLOOKUP(A149,Сеноман!B:K,7,FALSE) -> 39.49 | O149: =VLOOKUP(A149,Сеноман!B:K,8,FALSE) -> 42.52 | P149: =VLOOKUP(A149,Сеноман!B:M,11,FALSE) ->  | Q149: =VLOOKUP(A149,Сеноман!B:M,12,FALSE) ->  | R149: 8 | S149: =VLOOKUP(A149,Сеноман!B:M,9,FALSE) -> 6 | T149: =VLOOKUP(A149,Сеноман!B:M,6,FALSE) -> 284 | U149: =VLOOKUP(A149,Сеноман!B:M,10,FALSE) -> 8.543416023 | V149: =VLOOKUP(A149,Тнав!A:D,2,FALSE) -> 21.48461107 | W149: 6.045791196e-26 | X149: 44.61544679 | Y149: =VLOOKUP(A149,Тнав!A:D,3,FALSE) -> 5.854244273 | Z149: =VLOOKUP(A149,'Состояние фонда'!C:AB,20,FALSE) -> 5.91 | AA149: =VLOOKUP(A149,Тнав!A:E,4,FALSE) -> 132.1873548 | AB149: =VLOOKUP(A149,'Состояние фонда'!C:AB,21,FALSE) -> 31.6 | AD149: безгидратный | AE149: 4.100040391 | AF149: =(($AF$18+273.15)-(Z149+273.15))/(LN(($AF$18+273.15)/(Z149+273.15))) -> 285.4564969 | AG149: =1/(1+(5*10^7*0.098*V149)/(Z149+273.15)^3.825) -> 0.9555586109 | AH149: 61.8659302 | AI149: =ROUND(EXP(AH149),4) -> 7.379587773e+26
A150: 373 | C150: Суб.ГС | D150: 194.8 | E150: 152.4 | F150: 168 | G150: 1304.7 | H150: 1135,94-1315,66 | I150: 931.896 | J150: 114/875,074 | K150: 23.07.2023 | L150: 29.68 | M150: =VLOOKUP(A150,Сеноман!B:K,5,FALSE) -> 50.77162404 | N150: =VLOOKUP(A150,Сеноман!B:K,7,FALSE) -> 34.58 | O150: =VLOOKUP(A150,Сеноман!B:K,8,FALSE) -> 43.38 | P150: =VLOOKUP(A150,Сеноман!B:M,11,FALSE) -> 48.91667868 | Q150: =VLOOKUP(A150,Сеноман!B:M,12,FALSE) -> 1.854945358 | R150: 8 | S150: =VLOOKUP(A150,Сеноман!B:M,9,FALSE) -> 7.6 | T150: =VLOOKUP(A150,Сеноман!B:M,6,FALSE) -> 498 | U150: =VLOOKUP(A150,Сеноман!B:M,10,FALSE) -> 14.66122723 | V150: =VLOOKUP(A150,Тнав!A:D,2,FALSE) -> 21.20432699 | W150: 6.15184269e-26 | X150: 43.76199465 | Y150: =VLOOKUP(A150,Тнав!A:D,3,FALSE) -> 7.009629385 | Z150: =VLOOKUP(A150,'Состояние фонда'!C:AB,20,FALSE) -> 5.92 | AA150: =VLOOKUP(A150,Тнав!A:E,4,FALSE) -> 131.5249641 | AB150: =VLOOKUP(A150,'Состояние фонда'!C:AB,21,FALSE) -> 99.2 | AD150: безгидратный | AE150: 4.159053939 | AF150: 285.4615729 | AG150: 0.9561186911 | AH150: 61.8292265 | AI150: 7.113640068e+26
A151: 382 | C151: Суб.ГС | D151: 140.9 | E151: 139.6 | F151: 168 | G151: 1290.7 | H151: 1136,65-1290,7 | I151: 937.079 | J151: 114/868,821 | R151: 8 | AE151: =IFERROR([1]!Скорость_газа(AA151,X151,18.8,46.8,190.24,IF(MID(J151,1,2)="73",6,IF(MID(J151,1,2)="89",7.6,IF(MID(J151,1,2)="11",10,0)))),"") ->  | AF151: 282.4457281 | AG151: 1 | AH151: 59.3203623 | AI151: 5.787699972e+25
A152: 391 | B152: 8 | C152: Суб.ГС | D152: 98.2 | E152: 98.2 | F152: 168 | G152: 1227.8 | H152: 1108,8-1227,8 | I152: 940.906 | J152: 114/886,178 | K152: 25.07.2023 | L152: 38.19 | M152: =VLOOKUP(A152,Сеноман!B:K,5,FALSE) -> 57.45519096 | N152: =VLOOKUP(A152,Сеноман!B:K,7,FALSE) -> 38.97 | O152: =VLOOKUP(A152,Сеноман!B:K,8,FALSE) -> 51.62 | P152: =VLOOKUP(A152,Сеноман!B:M,11,FALSE) -> 58.37811348 | Q152: =VLOOKUP(A152,Сеноман!B:M,12,FALSE) -> -0.9229225254 | R152: 8 | S152: =VLOOKUP(A152,Сеноман!B:M,9,FALSE) -> 7.3 | T152: =VLOOKUP(A152,Сеноман!B:M,6,FALSE) -> 785 | U152: =VLOOKUP(A152,Сеноман!B:M,10,FALSE) -> 19.04838943 | V152: =VLOOKUP(A152,Тнав!A:D,2,FALSE) -> 24.51145431 | W152: =X152/AI152 -> 3.751049109e-26 | X152: =M152-Y152 -> 53.23112295 | Y152: =VLOOKUP(A152,Тнав!A:D,3,FALSE) -> 4.224068003 | Z152: =VLOOKUP(A152,'Состояние фонда'!C:AB,20,FALSE) -> 9.33 | AA152: =VLOOKUP(A152,Тнав!A:E,4,FALSE) -> 541.6688293 | AB152: =VLOOKUP(A152,'Состояние фонда'!C:AB,21,FALSE) -> 99 | AD152: безгидратный | AE152: 13.82296401 | AF152: 287.1889779 | AG152: 0.9517962126 | AH152: 62.5198201 | AI152: 1.419099601e+27
A153: 392 | C153: Суб.ГС | D153: 64.3 | E153: 64.3 | F153: 168 | G153: 1199.7 | H153: 1113,86-1199,7 | I153: 936.466 | J153: 114/886,69 | K153: 25.07.2023 | L153: 38.41 | M153: =VLOOKUP(A153,Сеноман!B:K,5,FALSE) -> 57.65611906 | N153: =VLOOKUP(A153,Сеноман!B:K,7,FALSE) -> 38.98 | O153: =VLOOKUP(A153,Сеноман!B:K,8,FALSE) -> 49.66 | P153: =VLOOKUP(A153,Сеноман!B:M,11,FALSE) -> 56.18454291 | Q153: =VLOOKUP(A153,Сеноман!B:M,12,FALSE) -> 1.471576153 | R153: 8 | S153: =VLOOKUP(A153,Сеноман!B:M,9,FALSE) -> 6.5 | T153: =VLOOKUP(A153,Сеноман!B:M,6,FALSE) -> 744 | U153: =VLOOKUP(A153,Сеноман!B:M,10,FALSE) -> 18.84087563 | V153: =VLOOKUP(A153,Тнав!A:D,2,FALSE) -> 25.69986487 | X153: 55.40179964 | Y153: =VLOOKUP(A153,Тнав!A:D,3,FALSE) -> 2.254319421 | Z153: =VLOOKUP(A153,'Состояние фонда'!C:AB,20,FALSE) -> 8.69 | AA153: =VLOOKUP(A153,Тнав!A:E,4,FALSE) -> 562.1374031 | AB153: =VLOOKUP(A153,'Состояние фонда'!C:AB,21,FALSE) -> 99.2 | AD153: безгидратный | AE153: 13.78324804 | AF153: 286.8653084 | AG153: 0.9491599172
A154: 393 | C154: Суб.ГС | D154: 97 | E154: 94.8 | F154: 168 | G154: 1176 | H154: 1072,6-1175,7 | I154: 934.183 | J154: 114/878,805 | K154: 25.07.2023 | L154: 37.88 | M154: =VLOOKUP(A154,Сеноман!B:K,5,FALSE) -> 57.17993185 | N154: =VLOOKUP(A154,Сеноман!B:K,7,FALSE) -> 38.95 | O154: =VLOOKUP(A154,Сеноман!B:K,8,FALSE) -> 50.93 | P154: =VLOOKUP(A154,Сеноман!B:M,11,FALSE) -> 57.55549888 | Q154: =VLOOKUP(A154,Сеноман!B:M,12,FALSE) -> -0.3755670263 | R154: 8 | S154: =VLOOKUP(A154,Сеноман!B:M,9,FALSE) -> 6.6 | T154: =VLOOKUP(A154,Сеноман!B:M,6,FALSE) -> 724 | U154: =VLOOKUP(A154,Сеноман!B:M,10,FALSE) -> 17.84194565 | V154: =VLOOKUP(A154,Тнав!A:D,2,FALSE) -> 23.29272506 | W154: 6.512252157e-26 | X154: 51.12746478 | Y154: =VLOOKUP(A154,Тнав!A:D,3,FALSE) -> 6.052467075 | Z154: =VLOOKUP(A154,'Состояние фонда'!C:AB,20,FALSE) -> 8.81 | AA154: =VLOOKUP(A154,Тнав!A:E,4,FALSE) -> 445.5619941 | AB154: =VLOOKUP(A154,'Состояние фонда'!C:AB,21,FALSE) -> 98.9 | AD154: безгидратный | AE154: 11.94732475 | AF154: 286.9260152 | AG154: 0.9537731523 | AH154: 61.92784889 | AI154: 7.850965157e+26
A155: 401 | C155: Суб.ГС | D155: 119.97 | E155: 100.4 | F155: 168 | G155: 1190 | H155: 1055-1175 | I155: 925.325 | J155: 114/854,951 | K155: 24.07.2023 | L155: 36.65 | M155: =VLOOKUP(A155,Сеноман!B:K,5,FALSE) -> 55.17049024 | N155: =VLOOKUP(A155,Сеноман!B:K,7,FALSE) -> 47.52 | O155: =VLOOKUP(A155,Сеноман!B:K,8,FALSE) -> 49.69 | P155: =VLOOKUP(A155,Сеноман!B:M,11,FALSE) -> 56.0437363 | Q155: =VLOOKUP(A155,Сеноман!B:M,12,FALSE) -> -0.8732460611 | R155: 8 | S155: =VLOOKUP(A155,Сеноман!B:M,9,FALSE) -> 3.9 | T155: =VLOOKUP(A155,Сеноман!B:M,6,FALSE) -> 322 | U155: =VLOOKUP(A155,Сеноман!B:M,10,FALSE) -> 8.16986084 | V155: =VLOOKUP(A155,Тнав!A:D,2,FALSE) -> 20.48702511 | W155: 3.775604732e-25 | X155: 48.32549087 | Y155: =VLOOKUP(A155,Тнав!A:D,3,FALSE) -> 6.844999371 | Z155: =VLOOKUP(A155,'Состояние фонда'!C:AB,20,FALSE) -> 7.36 | AA155: =VLOOKUP(A155,Тнав!A:E,4,FALSE) -> 452.1585959 | AB155: =VLOOKUP(A155,'Состояние фонда'!C:AB,21,FALSE) -> 80.4 | AD155: безгидратный | AE155: 12.82718344 | AF155: 286.1918933 | AG155: 0.958333298 | AH155: 60.11402594 | AI155: 1.279940415e+26
A156: 402 | C156: Суб.ГС | D156: 153.8 | E156: 153.8 | F156: 168 | G156: 1257.5 | H156: 1048,5-1257,5 | I156: 928.695 | J156: 114/883,09 | K156: 24.07.2023 | L156: 36.6 | M156: =VLOOKUP(A156,Сеноман!B:K,5,FALSE) -> 54.63095953 | N156: =VLOOKUP(A156,Сеноман!B:K,7,FALSE) -> 46.07 | O156: =VLOOKUP(A156,Сеноман!B:K,8,FALSE) -> 50.08 | P156: =VLOOKUP(A156,Сеноман!B:M,11,FALSE) -> 56.68386809 | Q156: =VLOOKUP(A156,Сеноман!B:M,12,FALSE) -> -2.052908553 | R156: 8 | S156: =VLOOKUP(A156,Сеноман!B:M,9,FALSE) -> 4.9 | T156: =VLOOKUP(A156,Сеноман!B:M,6,FALSE) -> 477 | U156: =VLOOKUP(A156,Сеноман!B:M,10,FALSE) -> 11.94266605 | V156: =VLOOKUP(A156,Тнав!A:D,2,FALSE) -> 23.72513178 | X156: 47.80088485 | Y156: =VLOOKUP(A156,Тнав!A:D,3,FALSE) -> 6.830074678 | Z156: =VLOOKUP(A156,'Состояние фонда'!C:AB,20,FALSE) -> 7.13 | AA156: =VLOOKUP(A156,Тнав!A:E,4,FALSE) -> 408.3439207 | AB156: =VLOOKUP(A156,'Состояние фонда'!C:AB,21,FALSE) -> 59.7 | AD156: безгидратный | AE156: 11.71134963 | AF156: 286.0753295 | AG156: 0.9519199062
A157: 403 | C157: Суб.ГС | D157: 146.6 | E157: 146.6 | F157: 168 | G157: 1242.7 | H157: 1073,6-1242,7 | I157: 923.741 | J157: 114/876,137 | K157: 2023-10-06 | L157: 35.1 | M157: =VLOOKUP(A157,Сеноман!B:K,5,FALSE) -> 54.23783566 | N157: =VLOOKUP(A157,Сеноман!B:K,7,FALSE) -> 44.8 | O157: =VLOOKUP(A157,Сеноман!B:K,8,FALSE) -> 49.85 | P157: =VLOOKUP(A157,Сеноман!B:M,11,FALSE) -> 56.34673833 | Q157: =VLOOKUP(A157,Сеноман!B:M,12,FALSE) -> -2.108902676 | R157: 8 | S157: =VLOOKUP(A157,Сеноман!B:M,9,FALSE) -> 5.2 | T157: =VLOOKUP(A157,Сеноман!B:M,6,FALSE) -> 418 | U157: =VLOOKUP(A157,Сеноман!B:M,10,FALSE) -> 10.55225468 | V157: =VLOOKUP(A157,Тнав!A:D,2,FALSE) -> 26.93662844 | X157: 51.23517968 | Y157: =VLOOKUP(A157,Тнав!A:D,3,FALSE) -> 3.002655973 | Z157: =VLOOKUP(A157,'Состояние фонда'!C:AB,20,FALSE) -> 5.77 | AA157: =VLOOKUP(A157,Тнав!A:E,4,FALSE) -> 100.6928251 | AB157: =VLOOKUP(A157,'Состояние фонда'!C:AB,21,FALSE) -> 92.8 | AC157: 16 | AD157: безгидратный | AE157: 2.69430682 | AF157: 285.3854252 | AG157: 0.9448023493 | AH157: =(0.5647*0.03415*MID(J157,4,7)/(AF157*AG157)) -> 
A158: 411 | C158: Суб.ГС | D158: 45.9 | E158: 45.9 | F158: 168 | G158: 1173.7 | H158: 1125,48-1173,7 | I158: 931.408 | J158: 114/876,189 | K158: 25.07.2023 | L158: 34.44 | M158: =VLOOKUP(A158,Сеноман!B:K,5,FALSE) -> 53.65500158 | N158: =VLOOKUP(A158,Сеноман!B:K,7,FALSE) -> 44.79 | O158: =VLOOKUP(A158,Сеноман!B:K,8,FALSE) -> 46.51 | P158: =VLOOKUP(A158,Сеноман!B:M,11,FALSE) -> 52.55550498 | Q158: =VLOOKUP(A158,Сеноман!B:M,12,FALSE) -> 1.099496598 | R158: 8 | S158: =VLOOKUP(A158,Сеноман!B:M,9,FALSE) -> 4.8 | T158: =VLOOKUP(A158,Сеноман!B:M,6,FALSE) -> 305 | U158: =VLOOKUP(A158,Сеноман!B:M,10,FALSE) -> 8.314401627 | V158: =VLOOKUP(A158,Тнав!A:D,2,FALSE) -> 21.85464131 | W158: 7.926485455e-26 | X158: 45.32244173 | Y158: =VLOOKUP(A158,Тнав!A:D,3,FALSE) -> 8.332559845 | Z158: =VLOOKUP(A158,'Состояние фонда'!C:AB,20,FALSE) -> 8.51 | AA158: =VLOOKUP(A158,Тнав!A:E,4,FALSE) -> 287.0168041 | AB158: =VLOOKUP(A158,'Состояние фонда'!C:AB,21,FALSE) -> 82.2 | AD158: безгидратный | AE158: 8.763498052 | AF158: 286.7742319 | AG158: 0.956333312 | AH158: =(0.5647*0.03415*MID(J158,5,7)/(AF158*AG158)) -> 61.61080499 | AI158: 5.717848344e+26
A159: 412 | C159: Суб.ГС | D159: 31.9 | E159: 31.9 | F159: 168 | G159: 1188.7 | H159: 1149,1-1188,7 | I159: 937.227 | J159: 114/882,355 | K159: 25.07.2023 | L159: 34.97 | M159: =VLOOKUP(A159,Сеноман!B:K,5,FALSE) -> 54.25639479 | N159: =VLOOKUP(A159,Сеноман!B:K,7,FALSE) -> 43 | O159: =VLOOKUP(A159,Сеноман!B:K,8,FALSE) -> 46.19 | P159: =VLOOKUP(A159,Сеноман!B:M,11,FALSE) -> 52.2139348 | Q159: =VLOOKUP(A159,Сеноман!B:M,12,FALSE) -> 2.042459988 | R159: 8 | S159: =VLOOKUP(A159,Сеноман!B:M,9,FALSE) -> 5.4 | T159: =VLOOKUP(A159,Сеноман!B:M,6,FALSE) -> 426 | U159: =VLOOKUP(A159,Сеноман!B:M,10,FALSE) -> 11.69827557 | V159: =VLOOKUP(A159,Тнав!A:D,2,FALSE) -> 23.70684352 | W159: 4.417792396e-26 | X159: 48.22848997 | Y159: =VLOOKUP(A159,Тнав!A:D,3,FALSE) -> 6.027904824 | Z159: =VLOOKUP(A159,'Состояние фонда'!C:AB,20,FALSE) -> 8.62 | AA159: =VLOOKUP(A159,Тнав!A:E,4,FALSE) -> 354.8006014 | AB159: =VLOOKUP(A159,'Состояние фонда'!C:AB,21,FALSE) -> 95.3 | AD159: безгидратный | AE159: 10.08550087 | AF159: 286.8298921 | AG159: 0.9528742807 | AH159: =(0.5647*0.03415*MID(J159,5,7)/(AF159*AG159)) -> 62.25752223 | AI159: 1.091687559e+27
A160: 413 | C160: Суб.ГС | D160: 61.9 | E160: 61.9 | F160: 168 | G160: 1250.38 | H160: 1177,51-1250,38 | I160: 940.017 | J160: 114/887,655 | K160: 25.07.2023 | L160: 33.77 | M160: =VLOOKUP(A160,Сеноман!B:K,5,FALSE) -> 53.20937555 | N160: =VLOOKUP(A160,Сеноман!B:K,7,FALSE) -> 43.37 | O160: =VLOOKUP(A160,Сеноман!B:K,8,FALSE) -> 46.12 | P160: =VLOOKUP(A160,Сеноман!B:M,11,FALSE) -> 52.16889723 | Q160: =VLOOKUP(A160,Сеноман!B:M,12,FALSE) -> 1.040478317 | R160: 8 | S160: =VLOOKUP(A160,Сеноман!B:M,9,FALSE) -> 5.6 | T160: =VLOOKUP(A160,Сеноман!B:M,6,FALSE) -> 363 | U160: =VLOOKUP(A160,Сеноман!B:M,10,FALSE) -> 9.981111526 | V160: =VLOOKUP(A160,Тнав!A:D,2,FALSE) -> 20.75427289 | W160: 3.947138127e-26 | X160: 43.80750806 | Y160: =VLOOKUP(A160,Тнав!A:D,3,FALSE) -> 9.401867487 | Z160: =VLOOKUP(A160,'Состояние фонда'!C:AB,20,FALSE) -> 8.55 | AA160: =VLOOKUP(A160,Тнав!A:E,4,FALSE) -> 224.8468708 | AB160: =VLOOKUP(A160,'Состояние фонда'!C:AB,21,FALSE) -> 98.2 | AD160: безгидратный | AE160: 7.102672137 | AF160: 286.7944728 | AG160: 0.9584621622 | AH160: =(0.5647*0.03415*MID(J160,5,7)/(AF160*AG160)) -> 62.27402685 | AI160: 1.109854954e+27
A161: ИТОГО по ПК1 | L161: =AVERAGE(L21:L160) -> 28.27262774 | M161: 47.46546694 | N161: 35.05978102 | O161: 41.47189781 | S161: =AVERAGE(S21:S160) -> 7.028467153 | T161: =SUM(T21:T160) -> 70881 | U161: =AVERAGE(U21:U160) -> 15.98408507 | V161: 15.54614722 | X161: 43.16229405 | Y161: 4.303172885 | Z161: 7.535754258 | AA161: =SUM(AA21:AA160) -> 40654.32199 | AB161: =AVERAGE(AB21:AB160) -> 82.36248175 | AE161: =AVERAGE(AE21:AE160) -> 10.70576774
A162: Объект Т1-2 | AF162: =Турон!I2 -> 15.6
A163: 174БОК | B163: 3 | C163: ГС | D163: 211.4 | E163: 211.4 | F163: 245 | G163: 1485.96 | H163: 1155,09-1482,25 | I163: 790.648 | J163: 73/803,931 | K163: 23.07.2023 | L163: 66.24 | M163: =VLOOKUP(A163,Турон!B:K,5,FALSE) -> 89.00886108 | N163: =VLOOKUP(A163,Турон!B:K,7,FALSE) -> 46.83 | O163: =VLOOKUP(A163,Турон!B:K,8,FALSE) -> 47.67 | P163: =VLOOKUP(A163,Турон!B:M,11,FALSE) -> 53.48956387 | Q163: =VLOOKUP(A163,Турон!B:M,12,FALSE) -> 35.51929721 | R163: 28.13 | S163: =VLOOKUP(A163,Турон!B:M,9,FALSE) -> 1.2 | T163: =VLOOKUP(A163,Турон!B:M,6,FALSE) -> 33 | U163: =VLOOKUP(A163,Турон!B:M,10,FALSE) -> 2.210478067 | V163: =VLOOKUP(A163,Тнав!A:D,2,FALSE) -> 16.08262235 | W163: =X163/AI163 -> 8.033859352e-24 | X163: =M163-Y163 -> 42.42165638 | Y163: =VLOOKUP(A163,Тнав!A:D,3,FALSE) -> 46.5872047 | Z163: =VLOOKUP(A163,'Состояние фонда'!C:AB,20,FALSE) -> 2.704166667 | AA163: =VLOOKUP(A163,Тнав!A:E,4,FALSE) -> 39.89362249 | AB163: =VLOOKUP(A163,'Состояние фонда'!C:AB,21,FALSE) -> 33.1 | AD163: гидратный | AE163: 3.614904435 | AF163: =(($AF$162+273.15)-(Z163+273.15))/(LN(($AF$162+273.15)/(Z163+273.15))) -> 282.2529853 | AG163: =1/(1+(5*10^7*0.098*V163)/(Z163+273.15)^3.825) -> 0.9648899494 | AH163: =(0.5647*0.03415*MID(J163,4,7)/(AF163*AG163)) -> 56.9260362 | AI163: =ROUND(EXP(AH163),4) -> 5.280358359e+24
A164: 174ОСН | C164: ГС | D164: 109.8 | E164: 109.8 | F164: 245 | G164: 1802 | H164: 1501,27-1755,43 | I164: 822.322 | J164: 73/829,923 | K164: 23.07.2023 | L164: 61.5 | M164: =VLOOKUP(A164,Турон!B:K,5,FALSE) -> 85.75990143 | N164: =VLOOKUP(A164,Турон!B:K,7,FALSE) -> 49.99 | O164: =VLOOKUP(A164,Турон!B:K,8,FALSE) -> 0 | P164: =VLOOKUP(A164,Турон!B:M,11,FALSE) ->  | Q164: =VLOOKUP(A164,Турон!B:M,12,FALSE) ->  | R164: 21.46 | S164: =VLOOKUP(A164,Турон!B:M,9,FALSE) -> 1.8 | T164: =VLOOKUP(A164,Турон!B:M,6,FALSE) -> 43 | U164: =VLOOKUP(A164,Турон!B:M,10,FALSE) -> 0 | V164: =VLOOKUP(A164,Тнав!A:D,2,FALSE) -> 29.46428429 | W164: 3.195552432e-25 | X164: 59.1710246 | Y164: =VLOOKUP(A164,Тнав!A:D,3,FALSE) -> 26.58887683 | Z164: =VLOOKUP(A164,'Состояние фонда'!C:AB,20,FALSE) -> 2.704166667 | AA164: =VLOOKUP(A164,Тнав!A:E,4,FALSE) -> 178.8278166 | AB164: =VLOOKUP(A164,'Состояние фонда'!C:AB,21,FALSE) -> 3.2 | AD164: гидратный | AE164: 11.30844255 | AF164: 282.2529853 | AG164: 0.9375021636 | AH164: 60.48329932 | AI164: 1.851668087e+26
A165: 184 | B165: 2 | C165: ГС | D165: 0 | E165: 0 | F165: 168 | G165: 1804 | H165: 948,99-1802,4 | I165: 827.369 | J165: 89/777,404 | K165: 25.07.2023 | L165: 54.81 | M165: =VLOOKUP(A165,Турон!B:K,5,FALSE) -> 84.0964389 | N165: =VLOOKUP(A165,Турон!B:K,7,FALSE) -> 44.32 | O165: =VLOOKUP(A165,Турон!B:K,8,FALSE) -> 59.41 | P165: =VLOOKUP(A165,Турон!B:M,11,FALSE) -> 66.59783066 | Q165: =VLOOKUP(A165,Турон!B:M,12,FALSE) -> 17.49860824 | R165: 22.3 | S165: =VLOOKUP(A165,Турон!B:M,9,FALSE) -> -0.5 | T165: =VLOOKUP(A165,Турон!B:M,6,FALSE) -> 310 | U165: =VLOOKUP(A165,Турон!B:M,10,FALSE) -> 16.12129402 | V165: =VLOOKUP(A165,Тнав!A:D,2,FALSE) -> 13.18234522 | W165: 6.78947904e-23 | X165: 57.85434955 | Y165: =VLOOKUP(A165,Тнав!A:D,3,FALSE) -> 26.24208935 | Z165: =VLOOKUP(A165,'Состояние фонда'!C:AB,20,FALSE) -> -0.6 | AA165: =VLOOKUP(A165,Тнав!A:E,4,FALSE) -> 163.8087461 | AB165: =VLOOKUP(A165,'Состояние фонда'!C:AB,21,FALSE) -> 43 | AD165: гидратный | AE165: 6.603180946 | AF165: 280.5720564 | AG165: 0.9697134018 | AH165: 55.10201156 | AI165: 8.521176546e+23
A166: 1902 | B166: 10 | C166: ГС + МГРП | D166: 505.5 | E166: 205 | F166: 168 | G166: 1434 | H166: 1011-1418 | I166: 808.541 | J166: 89/nan | K166: 23.07.2023 | L166: 70.49 | M166: =VLOOKUP(A166,Турон!B:K,5,FALSE) -> 93.37096649 | N166: =VLOOKUP(A166,Турон!B:K,7,FALSE) -> 56.26 | O166: =VLOOKUP(A166,Турон!B:K,8,FALSE) -> 59.41 | P166: =VLOOKUP(A166,Турон!B:M,11,FALSE) ->  | Q166: =VLOOKUP(A166,Турон!B:M,12,FALSE) ->  | R166: 12.57 | S166: =VLOOKUP(A166,Турон!B:M,9,FALSE) -> 2.7 | T166: =VLOOKUP(A166,Турон!B:M,6,FALSE) -> 178 | U166: =VLOOKUP(A166,Турон!B:M,10,FALSE) -> 9.289997101 | V166: =VLOOKUP(A166,Тнав!A:D,2,FALSE) -> 58.5032934 | X166: 82.03667738 | Y166: =VLOOKUP(A166,Тнав!A:D,3,FALSE) -> 11.33428911 | Z166: =VLOOKUP(A166,'Состояние фонда'!C:AB,20,FALSE) -> -1.025 | AA166: =VLOOKUP(A166,Тнав!A:E,4,FALSE) -> 61.46068295 | AB166: =VLOOKUP(A166,'Состояние фонда'!C:AB,21,FALSE) -> 6.4 | AD166: гидратный | AE166: =IFERROR([1]!Скорость_газа(AA166,X166,18.8,46.8,190.24,IF(MID(J166,1,2)="73",6,IF(MID(J166,1,2)="89",7.6,IF(MID(J166,1,2)="11",10,0)))),"") ->  | AF166: 280.35535 | AG166: 0.8776241628
A167: 35Р | B167: 12 | C167: ВС + ГРП | D167: 0 | E167: 0 | F167: 146 | G167: 869.5 | H167: 800-856 | I167: 827.95 | J167: 73/797,69 | K167: 26.07.2023 | L167: 74.36 | M167: =VLOOKUP(A167,Турон!B:K,5,FALSE) -> 0 | N167: =VLOOKUP(A167,Турон!B:K,7,FALSE) -> 0 | O167: =VLOOKUP(A167,Турон!B:K,8,FALSE) -> 0 | P167: =VLOOKUP(A167,Турон!B:M,11,FALSE) ->  | Q167: =VLOOKUP(A167,Турон!B:M,12,FALSE) ->  | R167: 50.89 | S167: =VLOOKUP(A167,Турон!B:M,9,FALSE) -> 0 | T167: =VLOOKUP(A167,Турон!B:M,6,FALSE) -> 0 | U167: =VLOOKUP(A167,Турон!B:M,10,FALSE) -> 0 | V167: =VLOOKUP(A167,Тнав!A:D,2,FALSE) -> 16.08419749 | X167: -51.19944458 | Y167: =VLOOKUP(A167,Тнав!A:D,3,FALSE) -> 51.19944458 | Z167: =VLOOKUP(A167,'Состояние фонда'!C:AB,20,FALSE) -> -1.083333333 | AA167: =VLOOKUP(A167,Тнав!A:E,4,FALSE) -> 120.0469892 | AB167: =VLOOKUP(A167,'Состояние фонда'!C:AB,21,FALSE) -> 90.4 | AD167: гидратный | AE167: =IFERROR([1]!Скорость_газа(AA167,X167,18.8,46.8,190.24,IF(MID(J167,1,2)="73",6,IF(MID(J167,1,2)="89",7.6,IF(MID(J167,1,2)="11",10,0)))),"") ->  | AF167: 280.325597 | AG167: 0.9630502695
A168: 51Р | B168: 6 | C168: ВС + ГРП | D168: 0 | E168: 0 | F168: 146 | G168: 804 | H168: 765-795 | I168: 779.99 | J168: 73/702,7 | K168: 26.07.2023 | L168: 47.07 | M168: =VLOOKUP(A168,Турон!B:K,5,FALSE) -> 0 | N168: =VLOOKUP(A168,Турон!B:K,7,FALSE) -> 0 | O168: =VLOOKUP(A168,Турон!B:K,8,FALSE) -> 0 | P168: =VLOOKUP(A168,Турон!B:M,11,FALSE) ->  | Q168: =VLOOKUP(A168,Турон!B:M,12,FALSE) ->  | R168: 50.89 | S168: =VLOOKUP(A168,Турон!B:M,9,FALSE) -> 0 | T168: =VLOOKUP(A168,Турон!B:M,6,FALSE) -> 0 | U168: =VLOOKUP(A168,Турон!B:M,10,FALSE) -> 0 | V168: =VLOOKUP(A168,Тнав!A:D,2,FALSE) -> 13.01075446 | X168: -20.82563341 | Y168: =VLOOKUP(A168,Тнав!A:D,3,FALSE) -> 20.82563341 | Z168: =VLOOKUP(A168,'Состояние фонда'!C:AB,20,FALSE) -> -0.6 | AA168: =VLOOKUP(A168,Тнав!A:E,4,FALSE) -> 163.610314 | AB168: =VLOOKUP(A168,'Состояние фонда'!C:AB,21,FALSE) -> 43 | AD168: гидратный | AE168: =IFERROR([1]!Скорость_газа(AA168,X168,18.8,46.8,190.24,IF(MID(J168,1,2)="73",6,IF(MID(J168,1,2)="89",7.6,IF(MID(J168,1,2)="11",10,0)))),"") ->  | AF168: 280.5720564 | AG168: 0.9700958445
A169: 1101 | B169: 4 | C169: ГС | K169: 23.07.2023 | L169: 47.61 | M169: =VLOOKUP(A169,Турон!B:K,5,FALSE) -> 52.31747186 | N169: =VLOOKUP(A169,Турон!B:K,7,FALSE) -> 0 | O169: =VLOOKUP(A169,Турон!B:K,8,FALSE) -> 0 | P169: =VLOOKUP(A169,Турон!B:M,11,FALSE) ->  | Q169: =VLOOKUP(A169,Турон!B:M,12,FALSE) ->  | R169: 50.89 | S169: =VLOOKUP(A169,Турон!B:M,9,FALSE) -> 0 | T169: =VLOOKUP(A169,Турон!B:M,6,FALSE) -> 0 | U169: =VLOOKUP(A169,Турон!B:M,10,FALSE) -> 0 | V169: =VLOOKUP(A169,Тнав!A:D,2,FALSE) -> 12.02384822 | X169: 32.73062104 | Y169: =VLOOKUP(A169,Тнав!A:D,3,FALSE) -> 19.58685081 | Z169: =VLOOKUP(A169,'Состояние фонда'!C:AB,20,FALSE) -> 1.865217391 | AA169: =VLOOKUP(A169,Тнав!A:E,4,FALSE) -> 167.8191961 | AB169: =VLOOKUP(A169,'Состояние фонда'!C:AB,21,FALSE) -> 98.1 | AD169: гидратный | AE169: =IFERROR([1]!Скорость_газа(AA169,X169,18.8,46.8,190.24,IF(MID(J169,1,2)="73",6,IF(MID(J169,1,2)="89",7.6,IF(MID(J169,1,2)="11",10,0)))),"") ->  | AF169: 281.8268307 | AG169: 0.9732139655
A170: 1102 | C170: ГС | K170: 23.07.2023 | L170: 45.51 | M170: =VLOOKUP(A170,Турон!B:K,5,FALSE) -> 51.87305394 | N170: =VLOOKUP(A170,Турон!B:K,7,FALSE) -> 0 | O170: =VLOOKUP(A170,Турон!B:K,8,FALSE) -> 0 | P170: =VLOOKUP(A170,Турон!B:M,11,FALSE) ->  | Q170: =VLOOKUP(A170,Турон!B:M,12,FALSE) ->  | R170: 50.89 | S170: =VLOOKUP(A170,Турон!B:M,9,FALSE) -> 0 | T170: =VLOOKUP(A170,Турон!B:M,6,FALSE) -> 0 | U170: =VLOOKUP(A170,Турон!B:M,10,FALSE) -> 0 | V170: =VLOOKUP(A170,Тнав!A:D,2,FALSE) -> 11.83072799 | X170: 33.02967357 | Y170: =VLOOKUP(A170,Тнав!A:D,3,FALSE) -> 18.84338038 | Z170: =VLOOKUP(A170,'Состояние фонда'!C:AB,20,FALSE) -> 1.382608696 | AA170: =VLOOKUP(A170,Тнав!A:E,4,FALSE) -> 164.1653664 | AB170: =VLOOKUP(A170,'Состояние фонда'!C:AB,21,FALSE) -> 100 | AD170: гидратный | AE170: =IFERROR([1]!Скорость_газа(AA170,X170,18.8,46.8,190.24,IF(MID(J170,1,2)="73",6,IF(MID(J170,1,2)="89",7.6,IF(MID(J170,1,2)="11",10,0)))),"") ->  | AF170: 281.5814858 | AG170: 0.9734598255
A171: 1103 | C171: ГС | K171: 23.07.2023 | L171: 49.21 | M171: =VLOOKUP(A171,Турон!B:K,5,FALSE) -> 56.0099712 | N171: =VLOOKUP(A171,Турон!B:K,7,FALSE) -> 0 | O171: =VLOOKUP(A171,Турон!B:K,8,FALSE) -> 0 | P171: =VLOOKUP(A171,Турон!B:M,11,FALSE) ->  | Q171: =VLOOKUP(A171,Турон!B:M,12,FALSE) ->  | R171: 50.89 | S171: =VLOOKUP(A171,Турон!B:M,9,FALSE) -> 0 | T171: =VLOOKUP(A171,Турон!B:M,6,FALSE) -> 0 | U171: =VLOOKUP(A171,Турон!B:M,10,FALSE) -> 0 | V171: =VLOOKUP(A171,Тнав!A:D,2,FALSE) -> 12.48131879 | X171: 37.97576886 | Y171: =VLOOKUP(A171,Тнав!A:D,3,FALSE) -> 18.03420234 | Z171: =VLOOKUP(A171,'Состояние фонда'!C:AB,20,FALSE) -> 0.752173913 | AA171: =VLOOKUP(A171,Тнав!A:E,4,FALSE) -> 197.8618894 | AB171: =VLOOKUP(A171,'Состояние фонда'!C:AB,21,FALSE) -> 99.2 | AD171: гидратный | AE171: =IFERROR([1]!Скорость_газа(AA171,X171,18.8,46.8,190.24,IF(MID(J171,1,2)="73",6,IF(MID(J171,1,2)="89",7.6,IF(MID(J171,1,2)="11",10,0)))),"") ->  | AF171: 281.2607716 | AG171: 0.9718011589
A172: 1104 | C172: ГС + МГРП | K172: 23.07.2023 | L172: 47.89 | M172: =VLOOKUP(A172,Турон!B:K,5,FALSE) -> 58.36013737 | N172: =VLOOKUP(A172,Турон!B:K,7,FALSE) -> 0 | O172: =VLOOKUP(A172,Турон!B:K,8,FALSE) -> 0 | P172: =VLOOKUP(A172,Турон!B:M,11,FALSE) ->  | Q172: =VLOOKUP(A172,Турон!B:M,12,FALSE) ->  | R172: 50.89 | S172: =VLOOKUP(A172,Турон!B:M,9,FALSE) -> 0 | T172: =VLOOKUP(A172,Турон!B:M,6,FALSE) -> 0 | U172: =VLOOKUP(A172,Турон!B:M,10,FALSE) -> 0 | V172: =VLOOKUP(A172,Тнав!A:D,2,FALSE) -> 12.01222373 | X172: 38.25989502 | Y172: =VLOOKUP(A172,Тнав!A:D,3,FALSE) -> 20.10024236 | Z172: =VLOOKUP(A172,'Состояние фонда'!C:AB,20,FALSE) -> 0.5869565217 | AA172: =VLOOKUP(A172,Тнав!A:E,4,FALSE) -> 192.4746271 | AB172: =VLOOKUP(A172,'Состояние фонда'!C:AB,21,FALSE) -> 99.7 | AD172: гидратный | AE172: =IFERROR([1]!Скорость_газа(AA172,X172,18.8,46.8,190.24,IF(MID(J172,1,2)="73",6,IF(MID(J172,1,2)="89",7.6,IF(MID(J172,1,2)="11",10,0)))),"") ->  | AF172: 281.1766814 | AG172: 0.9727711202
A173: 1301 | B173: 1 | C173: ГС | K173: 24.07.2023 | L173: 55.2 | M173: =VLOOKUP(A173,Турон!B:K,5,FALSE) -> 61.38095691 | N173: =VLOOKUP(A173,Турон!B:K,7,FALSE) -> 0 | O173: =VLOOKUP(A173,Турон!B:K,8,FALSE) -> 0 | P173: =VLOOKUP(A173,Турон!B:M,11,FALSE) ->  | Q173: =VLOOKUP(A173,Турон!B:M,12,FALSE) ->  | R173: 50.89 | S173: =VLOOKUP(A173,Турон!B:M,9,FALSE) -> 0 | T173: =VLOOKUP(A173,Турон!B:M,6,FALSE) -> 0 | U173: =VLOOKUP(A173,Турон!B:M,10,FALSE) -> 0 | V173: =VLOOKUP(A173,Тнав!A:D,2,FALSE) -> 8.370364835 | X173: 36.09737139 | Y173: =VLOOKUP(A173,Тнав!A:D,3,FALSE) -> 25.28358552 | Z173: =VLOOKUP(A173,'Состояние фонда'!C:AB,20,FALSE) -> -0.7083333333 | AA173: =VLOOKUP(A173,Тнав!A:E,4,FALSE) -> 207.3665146 | AB173: =VLOOKUP(A173,'Состояние фонда'!C:AB,21,FALSE) -> 97.6 | AD173: гидратный | AE173: =IFERROR([1]!Скорость_газа(AA173,X173,18.8,46.8,190.24,IF(MID(J173,1,2)="73",6,IF(MID(J173,1,2)="89",7.6,IF(MID(J173,1,2)="11",10,0)))),"") ->  | AF173: 280.5168283 | AG173: 0.9805249813
A174: 1302 | C174: ГС | K174: 24.07.2023 | L174: 54.6 | M174: =VLOOKUP(A174,Турон!B:K,5,FALSE) -> 63.54764043 | N174: =VLOOKUP(A174,Турон!B:K,7,FALSE) -> 0 | O174: =VLOOKUP(A174,Турон!B:K,8,FALSE) -> 0 | P174: =VLOOKUP(A174,Турон!B:M,11,FALSE) ->  | Q174: =VLOOKUP(A174,Турон!B:M,12,FALSE) ->  | R174: 50.89 | S174: =VLOOKUP(A174,Турон!B:M,9,FALSE) -> 0 | T174: =VLOOKUP(A174,Турон!B:M,6,FALSE) -> 0 | U174: =VLOOKUP(A174,Турон!B:M,10,FALSE) -> 0 | V174: =VLOOKUP(A174,Тнав!A:D,2,FALSE) -> 8.873894788 | X174: 36.19207146 | Y174: =VLOOKUP(A174,Тнав!A:D,3,FALSE) -> 27.35556897 | Z174: =VLOOKUP(A174,'Состояние фонда'!C:AB,20,FALSE) -> 0.4375 | AA174: =VLOOKUP(A174,Тнав!A:E,4,FALSE) -> 169.5837485 | AB174: =VLOOKUP(A174,'Состояние фонда'!C:AB,21,FALSE) -> 98.7 | AD174: гидратный | AE174: =IFERROR([1]!Скорость_газа(AA174,X174,18.8,46.8,190.24,IF(MID(J174,1,2)="73",6,IF(MID(J174,1,2)="89",7.6,IF(MID(J174,1,2)="11",10,0)))),"") ->  | AF174: 281.1005982 | AG174: 0.9796993467
A175: 1303 | C175: ГС + МГРП | K175: 24.07.2023 | L175: 47.2 | M175: =VLOOKUP(A175,Турон!B:K,5,FALSE) -> 51.94608066 | N175: =VLOOKUP(A175,Турон!B:K,7,FALSE) -> 0 | O175: =VLOOKUP(A175,Турон!B:K,8,FALSE) -> 0 | P175: =VLOOKUP(A175,Турон!B:M,11,FALSE) ->  | Q175: =VLOOKUP(A175,Турон!B:M,12,FALSE) ->  | R175: 50.89 | S175: =VLOOKUP(A175,Турон!B:M,9,FALSE) -> 0 | T175: =VLOOKUP(A175,Турон!B:M,6,FALSE) -> 0 | U175: =VLOOKUP(A175,Турон!B:M,10,FALSE) -> 0 | V175: =VLOOKUP(A175,Тнав!A:D,2,FALSE) -> 7.74955716 | X175: 26.46126036 | Y175: =VLOOKUP(A175,Тнав!A:D,3,FALSE) -> 25.4848203 | Z175: =VLOOKUP(A175,'Состояние фонда'!C:AB,20,FALSE) -> 0.7541666667 | AA175: =VLOOKUP(A175,Тнав!A:E,4,FALSE) -> 238.7951035 | AB175: =VLOOKUP(A175,'Состояние фонда'!C:AB,21,FALSE) -> 98.4 | AD175: гидратный | AE175: =IFERROR([1]!Скорость_газа(AA175,X175,18.8,46.8,190.24,IF(MID(J175,1,2)="73",6,IF(MID(J175,1,2)="89",7.6,IF(MID(J175,1,2)="11",10,0)))),"") ->  | AF175: 281.2617858 | AG175: 0.9823028402
A176: 1304 | C176: ГС + МГРП | K176: 24.07.2023 | L176: 50.21 | M176: =VLOOKUP(A176,Турон!B:K,5,FALSE) -> 57.08353783 | N176: =VLOOKUP(A176,Турон!B:K,7,FALSE) -> 0 | O176: =VLOOKUP(A176,Турон!B:K,8,FALSE) -> 0 | P176: =VLOOKUP(A176,Турон!B:M,11,FALSE) ->  | Q176: =VLOOKUP(A176,Турон!B:M,12,FALSE) ->  | R176: 50.89 | S176: =VLOOKUP(A176,Турон!B:M,9,FALSE) -> 0 | T176: =VLOOKUP(A176,Турон!B:M,6,FALSE) -> 0 | U176: =VLOOKUP(A176,Турон!B:M,10,FALSE) -> 0 | V176: =VLOOKUP(A176,Тнав!A:D,2,FALSE) -> 13.70732764 | X176: 36.83436352 | Y176: =VLOOKUP(A176,Тнав!A:D,3,FALSE) -> 20.24917431 | Z176: =VLOOKUP(A176,'Состояние фонда'!C:AB,20,FALSE) -> 1.220833333 | AA176: =VLOOKUP(A176,Тнав!A:E,4,FALSE) -> 215.167715 | AB176: =VLOOKUP(A176,'Состояние фонда'!C:AB,21,FALSE) -> 99.2 | AD176: гидратный | AE176: =IFERROR([1]!Скорость_газа(AA176,X176,18.8,46.8,190.24,IF(MID(J176,1,2)="73",6,IF(MID(J176,1,2)="89",7.6,IF(MID(J176,1,2)="11",10,0)))),"") ->  | AF176: 281.4992112 | AG176: 0.9693119145
A177: 1401 | B177: 3 | C177: ГС | K177: 26.07.2023 | L177: 53.12 | M177: =VLOOKUP(A177,Турон!B:K,5,FALSE) -> 59.18032632 | N177: =VLOOKUP(A177,Турон!B:K,7,FALSE) -> 0 | O177: =VLOOKUP(A177,Турон!B:K,8,FALSE) -> 0 | P177: =VLOOKUP(A177,Турон!B:M,11,FALSE) ->  | Q177: =VLOOKUP(A177,Турон!B:M,12,FALSE) ->  | R177: 50.9 | S177: =VLOOKUP(A177,Турон!B:M,9,FALSE) -> 0 | T177: =VLOOKUP(A177,Турон!B:M,6,FALSE) -> 0 | U177: =VLOOKUP(A177,Турон!B:M,10,FALSE) -> 0 | V177: =VLOOKUP(A177,Тнав!A:D,2,FALSE) -> 11.70323759 | X177: 38.34783168 | Y177: =VLOOKUP(A177,Тнав!A:D,3,FALSE) -> 20.83249464 | Z177: =VLOOKUP(A177,'Состояние фонда'!C:AB,20,FALSE) -> 0.5458333333 | AA177: =VLOOKUP(A177,Тнав!A:E,4,FALSE) -> 222.254373 | AB177: =VLOOKUP(A177,'Состояние фонда'!C:AB,21,FALSE) -> 99.1 | AD177: гидратный | AE177: =IFERROR([1]!Скорость_газа(AA177,X177,18.8,46.8,190.24,IF(MID(J177,1,2)="73",6,IF(MID(J177,1,2)="89",7.6,IF(MID(J177,1,2)="11",10,0)))),"") ->  | AF177: 281.1557483 | AG177: 0.9734380706
A178: 1402 | C178: ГС | K178: 26.07.2023 | L178: 51.51 | M178: =VLOOKUP(A178,Турон!B:K,5,FALSE) -> 56.71455421 | N178: =VLOOKUP(A178,Турон!B:K,7,FALSE) -> 0 | O178: =VLOOKUP(A178,Турон!B:K,8,FALSE) -> 0 | P178: =VLOOKUP(A178,Турон!B:M,11,FALSE) ->  | Q178: =VLOOKUP(A178,Турон!B:M,12,FALSE) ->  | R178: 50.9 | S178: =VLOOKUP(A178,Турон!B:M,9,FALSE) -> 0 | T178: =VLOOKUP(A178,Турон!B:M,6,FALSE) -> 0 | U178: =VLOOKUP(A178,Турон!B:M,10,FALSE) -> 0 | V178: =VLOOKUP(A178,Тнав!A:D,2,FALSE) -> 10.86940297 | X178: 32.52243434 | Y178: =VLOOKUP(A178,Тнав!A:D,3,FALSE) -> 24.19211987 | Z178: =VLOOKUP(A178,'Состояние фонда'!C:AB,20,FALSE) -> 2.704166667 | AA178: =VLOOKUP(A178,Тнав!A:E,4,FALSE) -> 154.3436279 | AB178: =VLOOKUP(A178,'Состояние фонда'!C:AB,21,FALSE) -> 100 | AD178: гидратный | AE178: =IFERROR([1]!Скорость_газа(AA178,X178,18.8,46.8,190.24,IF(MID(J178,1,2)="73",6,IF(MID(J178,1,2)="89",7.6,IF(MID(J178,1,2)="11",10,0)))),"") ->  | AF178: 282.2529853 | AG178: 0.9759977845
A179: 1403 | C179: ГС | K179: 27.08.2022 | L179: 57.41 | M179: =VLOOKUP(A179,Турон!B:K,5,FALSE) -> 52.61894315 | N179: =VLOOKUP(A179,Турон!B:K,7,FALSE) -> 0 | O179: =VLOOKUP(A179,Турон!B:K,8,FALSE) -> 0 | P179: =VLOOKUP(A179,Турон!B:M,11,FALSE) ->  | Q179: =VLOOKUP(A179,Турон!B:M,12,FALSE) ->  | R179: 50.89 | S179: =VLOOKUP(A179,Турон!B:M,9,FALSE) -> 0 | T179: =VLOOKUP(A179,Турон!B:M,6,FALSE) -> 0 | U179: =VLOOKUP(A179,Турон!B:M,10,FALSE) -> 0 | V179: =VLOOKUP(A179,Тнав!A:D,2,FALSE) -> 11.33310512 | X179: 33.18824266 | Y179: =VLOOKUP(A179,Тнав!A:D,3,FALSE) -> 19.43070049 | Z179: =VLOOKUP(A179,'Состояние фонда'!C:AB,20,FALSE) -> 2.704166667 | AA179: =VLOOKUP(A179,Тнав!A:E,4,FALSE) -> 169.2390378 | AB179: =VLOOKUP(A179,'Состояние фонда'!C:AB,21,FALSE) -> 99.2 | AD179: гидратный | AE179: =IFERROR([1]!Скорость_газа(AA179,X179,18.8,46.8,190.24,IF(MID(J179,1,2)="73",6,IF(MID(J179,1,2)="89",7.6,IF(MID(J179,1,2)="11",10,0)))),"") ->  | AF179: 282.2529853 | AG179: 0.9749994201
A180: 1404 | C180: ГС | K180: 26.07.2023 | L180: 49.52 | M180: =VLOOKUP(A180,Турон!B:K,5,FALSE) -> 51.74715997 | N180: =VLOOKUP(A180,Турон!B:K,7,FALSE) -> 0 | O180: =VLOOKUP(A180,Турон!B:K,8,FALSE) -> 0 | P180: =VLOOKUP(A180,Турон!B:M,11,FALSE) ->  | Q180: =VLOOKUP(A180,Турон!B:M,12,FALSE) ->  | R180: 50.89 | S180: =VLOOKUP(A180,Турон!B:M,9,FALSE) -> 0 | T180: =VLOOKUP(A180,Турон!B:M,6,FALSE) -> 0 | U180: =VLOOKUP(A180,Турон!B:M,10,FALSE) -> 0 | V180: =VLOOKUP(A180,Тнав!A:D,2,FALSE) -> 11.23971672 | X180: 30.54791409 | Y180: =VLOOKUP(A180,Тнав!A:D,3,FALSE) -> 21.19924588 | Z180: =VLOOKUP(A180,'Состояние фонда'!C:AB,20,FALSE) -> 2.704166667 | AA180: =VLOOKUP(A180,Тнав!A:E,4,FALSE) -> 177.8000658 | AB180: =VLOOKUP(A180,'Состояние фонда'!C:AB,21,FALSE) -> 98.5 | AD180: гидратный | AE180: =IFERROR([1]!Скорость_газа(AA180,X180,18.8,46.8,190.24,IF(MID(J180,1,2)="73",6,IF(MID(J180,1,2)="89",7.6,IF(MID(J180,1,2)="11",10,0)))),"") ->  | AF180: 282.2529853 | AG180: 0.9752003238
A181: 801 | B181: 5 | C181: ГС | K181: 24.07.2023 | L181: 63.02 | M181: =VLOOKUP(A181,Турон!B:K,5,FALSE) -> 67.45380821 | N181: =VLOOKUP(A181,Турон!B:K,7,FALSE) -> 0 | O181: =VLOOKUP(A181,Турон!B:K,8,FALSE) -> 0 | P181: =VLOOKUP(A181,Турон!B:M,11,FALSE) ->  | Q181: =VLOOKUP(A181,Турон!B:M,12,FALSE) ->  | R181: 50.9 | S181: =VLOOKUP(A181,Турон!B:M,9,FALSE) -> 0 | T181: =VLOOKUP(A181,Турон!B:M,6,FALSE) -> 0 | U181: =VLOOKUP(A181,Турон!B:M,10,FALSE) -> 0 | V181: =VLOOKUP(A181,Тнав!A:D,2,FALSE) -> 15.47957688 | X181: 44.12843973 | Y181: =VLOOKUP(A181,Тнав!A:D,3,FALSE) -> 23.32536848 | Z181: =VLOOKUP(A181,'Состояние фонда'!C:AB,20,FALSE) -> -2.820833333 | AA181: =VLOOKUP(A181,Тнав!A:E,4,FALSE) -> 267.0338053 | AB181: =VLOOKUP(A181,'Состояние фонда'!C:AB,21,FALSE) -> 96.9 | AD181: гидратный | AE181: =IFERROR([1]!Скорость_газа(AA181,X181,18.8,46.8,190.24,IF(MID(J181,1,2)="73",6,IF(MID(J181,1,2)="89",7.6,IF(MID(J181,1,2)="11",10,0)))),"") ->  | AF181: 279.4383975 | AG181: 0.9635385532
A182: 802 | C182: ГС | K182: 24.07.2023 | L182: 57.23 | M182: =VLOOKUP(A182,Турон!B:K,5,FALSE) -> 64.21589657 | N182: =VLOOKUP(A182,Турон!B:K,7,FALSE) -> 0 | O182: =VLOOKUP(A182,Турон!B:K,8,FALSE) -> 0 | P182: =VLOOKUP(A182,Турон!B:M,11,FALSE) ->  | Q182: =VLOOKUP(A182,Турон!B:M,12,FALSE) ->  | R182: 50.89 | S182: =VLOOKUP(A182,Турон!B:M,9,FALSE) -> 0 | T182: =VLOOKUP(A182,Турон!B:M,6,FALSE) -> 0 | U182: =VLOOKUP(A182,Турон!B:M,10,FALSE) -> 0 | V182: =VLOOKUP(A182,Тнав!A:D,2,FALSE) -> 14.57974458 | X182: 41.01612848 | Y182: =VLOOKUP(A182,Тнав!A:D,3,FALSE) -> 23.19976809 | Z182: =VLOOKUP(A182,'Состояние фонда'!C:AB,20,FALSE) -> -1.095833333 | AA182: =VLOOKUP(A182,Тнав!A:E,4,FALSE) -> 211.7842589 | AB182: =VLOOKUP(A182,'Состояние фонда'!C:AB,21,FALSE) -> 97.5 | AD182: гидратный | AE182: =IFERROR([1]!Скорость_газа(AA182,X182,18.8,46.8,190.24,IF(MID(J182,1,2)="73",6,IF(MID(J182,1,2)="89",7.6,IF(MID(J182,1,2)="11",10,0)))),"") ->  | AF182: 280.3192211 | AG182: 0.9663845343
A183: 1001 | B183: 6 | C183: ГС | K183: 26.07.2023 | L183: 61.81 | M183: =VLOOKUP(A183,Турон!B:K,5,FALSE) -> 67.16268287 | N183: =VLOOKUP(A183,Турон!B:K,7,FALSE) -> 0 | O183: =VLOOKUP(A183,Турон!B:K,8,FALSE) -> 0 | P183: =VLOOKUP(A183,Турон!B:M,11,FALSE) ->  | Q183: =VLOOKUP(A183,Турон!B:M,12,FALSE) ->  | R183: 50.89 | S183: =VLOOKUP(A183,Турон!B:M,9,FALSE) -> 0 | T183: =VLOOKUP(A183,Турон!B:M,6,FALSE) -> 0 | U183: =VLOOKUP(A183,Турон!B:M,10,FALSE) -> 0 | V183: =VLOOKUP(A183,Тнав!A:D,2,FALSE) -> 15.60789576 | X183: 45.50671263 | Y183: =VLOOKUP(A183,Тнав!A:D,3,FALSE) -> 21.65597024 | Z183: =VLOOKUP(A183,'Состояние фонда'!C:AB,20,FALSE) -> -2.075 | AA183: =VLOOKUP(A183,Тнав!A:E,4,FALSE) -> 298.1486761 | AB183: =VLOOKUP(A183,'Состояние фонда'!C:AB,21,FALSE) -> 97.1 | AD183: гидратный | AE183: =IFERROR([1]!Скорость_газа(AA183,X183,18.8,46.8,190.24,IF(MID(J183,1,2)="73",6,IF(MID(J183,1,2)="89",7.6,IF(MID(J183,1,2)="11",10,0)))),"") ->  | AF183: 279.8194683 | AG183: 0.9636186812
A184: 1002 | C184: ГС | K184: 26.07.2023 | L184: 54.7 | M184: =VLOOKUP(A184,Турон!B:K,5,FALSE) -> 59.08849888 | N184: =VLOOKUP(A184,Турон!B:K,7,FALSE) -> 0 | O184: =VLOOKUP(A184,Турон!B:K,8,FALSE) -> 0 | P184: =VLOOKUP(A184,Турон!B:M,11,FALSE) ->  | Q184: =VLOOKUP(A184,Турон!B:M,12,FALSE) ->  | R184: 50.89 | S184: =VLOOKUP(A184,Турон!B:M,9,FALSE) -> 0 | T184: =VLOOKUP(A184,Турон!B:M,6,FALSE) -> 0 | U184: =VLOOKUP(A184,Турон!B:M,10,FALSE) -> 0 | V184: =VLOOKUP(A184,Тнав!A:D,2,FALSE) -> 10.32583841 | X184: 34.73799163 | Y184: =VLOOKUP(A184,Тнав!A:D,3,FALSE) -> 24.35050726 | Z184: =VLOOKUP(A184,'Состояние фонда'!C:AB,20,FALSE) -> -0.6583333333 | AA184: =VLOOKUP(A184,Тнав!A:E,4,FALSE) -> 216.8083705 | AB184: =VLOOKUP(A184,'Состояние фонда'!C:AB,21,FALSE) -> 96.2 | AD184: гидратный | AE184: =IFERROR([1]!Скорость_газа(AA184,X184,18.8,46.8,190.24,IF(MID(J184,1,2)="73",6,IF(MID(J184,1,2)="89",7.6,IF(MID(J184,1,2)="11",10,0)))),"") ->  | AF184: 280.5423192 | AG184: 0.9761004442
A185: 1003 | C185: ГС | K185: 26.07.2023 | L185: 56.9 | M185: =VLOOKUP(A185,Турон!B:K,5,FALSE) -> 61.83495532 | N185: =VLOOKUP(A185,Турон!B:K,7,FALSE) -> 0 | O185: =VLOOKUP(A185,Турон!B:K,8,FALSE) -> 0 | P185: =VLOOKUP(A185,Турон!B:M,11,FALSE) ->  | Q185: =VLOOKUP(A185,Турон!B:M,12,FALSE) ->  | R185: 50.89 | S185: =VLOOKUP(A185,Турон!B:M,9,FALSE) -> 0 | T185: =VLOOKUP(A185,Турон!B:M,6,FALSE) -> 0 | U185: =VLOOKUP(A185,Турон!B:M,10,FALSE) -> 0 | V185: =VLOOKUP(A185,Тнав!A:D,2,FALSE) -> 10.08793976 | X185: 34.91490339 | Y185: =VLOOKUP(A185,Тнав!A:D,3,FALSE) -> 26.92005193 | Z185: =VLOOKUP(A185,'Состояние фонда'!C:AB,20,FALSE) -> -1.2375 | AA185: =VLOOKUP(A185,Тнав!A:E,4,FALSE) -> 214.7246173 | AB185: =VLOOKUP(A185,'Состояние фонда'!C:AB,21,FALSE) -> 98.4 | AD185: гидратный | AE185: =IFERROR([1]!Скорость_газа(AA185,X185,18.8,46.8,190.24,IF(MID(J185,1,2)="73",6,IF(MID(J185,1,2)="89",7.6,IF(MID(J185,1,2)="11",10,0)))),"") ->  | AF185: 280.246954 | AG185: 0.9764517964
A186: 701 | B186: 6 | C186: ГС | K186: 24.07.2023 | L186: 63.59 | M186: =VLOOKUP(A186,Турон!B:K,5,FALSE) -> 68.61357607 | N186: =VLOOKUP(A186,Турон!B:K,7,FALSE) -> 0 | O186: =VLOOKUP(A186,Турон!B:K,8,FALSE) -> 0 | P186: =VLOOKUP(A186,Турон!B:M,11,FALSE) ->  | Q186: =VLOOKUP(A186,Турон!B:M,12,FALSE) ->  | R186: 50.89 | S186: =VLOOKUP(A186,Турон!B:M,9,FALSE) -> 0 | T186: =VLOOKUP(A186,Турон!B:M,6,FALSE) -> 0 | U186: =VLOOKUP(A186,Турон!B:M,10,FALSE) -> 0 | V186: =VLOOKUP(A186,Тнав!A:D,2,FALSE) -> 20.40953365 | X186: 45.20592644 | Y186: =VLOOKUP(A186,Тнав!A:D,3,FALSE) -> 23.40764963 | Z186: =VLOOKUP(A186,'Состояние фонда'!C:AB,20,FALSE) -> -0.6583333333 | AA186: =VLOOKUP(A186,Тнав!A:E,4,FALSE) -> 262.3741764 | AB186: =VLOOKUP(A186,'Состояние фонда'!C:AB,21,FALSE) -> 97.2 | AD186: гидратный | AE186: =IFERROR([1]!Скорость_газа(AA186,X186,18.8,46.8,190.24,IF(MID(J186,1,2)="73",6,IF(MID(J186,1,2)="89",7.6,IF(MID(J186,1,2)="11",10,0)))),"") ->  | AF186: 280.5423192 | AG186: 0.9538387017
A187: 702 | C187: ГС | K187: 24.07.2023 | L187: 67.13 | M187: =VLOOKUP(A187,Турон!B:K,5,FALSE) -> 70.55758948 | N187: =VLOOKUP(A187,Турон!B:K,7,FALSE) -> 0 | O187: =VLOOKUP(A187,Турон!B:K,8,FALSE) -> 0 | P187: =VLOOKUP(A187,Турон!B:M,11,FALSE) ->  | Q187: =VLOOKUP(A187,Турон!B:M,12,FALSE) ->  | R187: 50.89 | S187: =VLOOKUP(A187,Турон!B:M,9,FALSE) -> 0 | T187: =VLOOKUP(A187,Турон!B:M,6,FALSE) -> 0 | U187: =VLOOKUP(A187,Турон!B:M,10,FALSE) -> 0 | V187: =VLOOKUP(A187,Тнав!A:D,2,FALSE) -> 16.56555993 | X187: 42.80629736 | Y187: =VLOOKUP(A187,Тнав!A:D,3,FALSE) -> 27.75129211 | Z187: =VLOOKUP(A187,'Состояние фонда'!C:AB,20,FALSE) -> -3.0375 | AA187: =VLOOKUP(A187,Тнав!A:E,4,FALSE) -> 297.4018037 | AB187: =VLOOKUP(A187,'Состояние фонда'!C:AB,21,FALSE) -> 97.5 | AD187: гидратный | AE187: =IFERROR([1]!Скорость_газа(AA187,X187,18.8,46.8,190.24,IF(MID(J187,1,2)="73",6,IF(MID(J187,1,2)="89",7.6,IF(MID(J187,1,2)="11",10,0)))),"") ->  | AF187: 279.327629 | AG187: 0.9609652439
A188: 703 | C188: ГС | K188: 24.07.2023 | L188: 60.48 | M188: =VLOOKUP(A188,Турон!B:K,5,FALSE) -> 69.23338143 | N188: =VLOOKUP(A188,Турон!B:K,7,FALSE) -> 0 | O188: =VLOOKUP(A188,Турон!B:K,8,FALSE) -> 0 | P188: =VLOOKUP(A188,Турон!B:M,11,FALSE) ->  | Q188: =VLOOKUP(A188,Турон!B:M,12,FALSE) ->  | R188: 50.89 | S188: =VLOOKUP(A188,Турон!B:M,9,FALSE) -> 0 | T188: =VLOOKUP(A188,Турон!B:M,6,FALSE) -> 0 | U188: =VLOOKUP(A188,Турон!B:M,10,FALSE) -> 0 | V188: =VLOOKUP(A188,Тнав!A:D,2,FALSE) -> 17.43240915 | X188: 47.94242564 | Y188: =VLOOKUP(A188,Тнав!A:D,3,FALSE) -> 21.29095579 | Z188: =VLOOKUP(A188,'Состояние фонда'!C:AB,20,FALSE) -> -0.9583333333 | AA188: =VLOOKUP(A188,Тнав!A:E,4,FALSE) -> 255.5868222 | AB188: =VLOOKUP(A188,'Состояние фонда'!C:AB,21,FALSE) -> 96.6 | AD188: гидратный | AE188: =IFERROR([1]!Скорость_газа(AA188,X188,18.8,46.8,190.24,IF(MID(J188,1,2)="73",6,IF(MID(J188,1,2)="89",7.6,IF(MID(J188,1,2)="11",10,0)))),"") ->  | AF188: 280.3893507 | AG188: 0.9601440046
A189: 1501 | B189: 3 | C189: ГС | K189: 26.07.2023 | L189: 60.77 | M189: =VLOOKUP(A189,Турон!B:K,5,FALSE) -> 69.22731216 | N189: =VLOOKUP(A189,Турон!B:K,7,FALSE) -> 0 | O189: =VLOOKUP(A189,Турон!B:K,8,FALSE) -> 0 | P189: =VLOOKUP(A189,Турон!B:M,11,FALSE) ->  | Q189: =VLOOKUP(A189,Турон!B:M,12,FALSE) ->  | R189: 50.89 | S189: =VLOOKUP(A189,Турон!B:M,9,FALSE) -> 0 | T189: =VLOOKUP(A189,Турон!B:M,6,FALSE) -> 0 | U189: =VLOOKUP(A189,Турон!B:M,10,FALSE) -> 0 | V189: =VLOOKUP(A189,Тнав!A:D,2,FALSE) -> 19.37564424 | X189: 41.3206226 | Y189: =VLOOKUP(A189,Тнав!A:D,3,FALSE) -> 27.90668956 | Z189: =VLOOKUP(A189,'Состояние фонда'!C:AB,20,FALSE) -> 2.704166667 | AA189: =VLOOKUP(A189,Тнав!A:E,4,FALSE) -> 361.0258441 | AB189: =VLOOKUP(A189,'Состояние фонда'!C:AB,21,FALSE) -> 99.3 | AD189: гидратный | AE189: =IFERROR([1]!Скорость_газа(AA189,X189,18.8,46.8,190.24,IF(MID(J189,1,2)="73",6,IF(MID(J189,1,2)="89",7.6,IF(MID(J189,1,2)="11",10,0)))),"") ->  | AF189: 282.2529853 | AG189: 0.9580028554
A190: 1502 | C190: ГС | K190: 26.07.2023 | L190: 59.24 | M190: =VLOOKUP(A190,Турон!B:K,5,FALSE) -> 66.90417415 | N190: =VLOOKUP(A190,Турон!B:K,7,FALSE) -> 0 | O190: =VLOOKUP(A190,Турон!B:K,8,FALSE) -> 0 | P190: =VLOOKUP(A190,Турон!B:M,11,FALSE) ->  | Q190: =VLOOKUP(A190,Турон!B:M,12,FALSE) ->  | R190: 50.89 | S190: =VLOOKUP(A190,Турон!B:M,9,FALSE) -> 0 | T190: =VLOOKUP(A190,Турон!B:M,6,FALSE) -> 0 | U190: =VLOOKUP(A190,Турон!B:M,10,FALSE) -> 0 | V190: =VLOOKUP(A190,Тнав!A:D,2,FALSE) -> 15.69407154 | X190: 42.98415153 | Y190: =VLOOKUP(A190,Тнав!A:D,3,FALSE) -> 23.92002262 | Z190: =VLOOKUP(A190,'Состояние фонда'!C:AB,20,FALSE) -> 2.704166667 | AA190: =VLOOKUP(A190,Тнав!A:E,4,FALSE) -> 243.1169717 | AB190: =VLOOKUP(A190,'Состояние фонда'!C:AB,21,FALSE) -> 95.8 | AD190: гидратный | AE190: =IFERROR([1]!Скорость_газа(AA190,X190,18.8,46.8,190.24,IF(MID(J190,1,2)="73",6,IF(MID(J190,1,2)="89",7.6,IF(MID(J190,1,2)="11",10,0)))),"") ->  | AF190: 282.2529853 | AG190: 0.9657091094
A191: 1503 | C191: ГС | K191: 26.07.2023 | L191: 55.44 | M191: =VLOOKUP(A191,Турон!B:K,5,FALSE) -> 62.28454244 | N191: =VLOOKUP(A191,Турон!B:K,7,FALSE) -> 0 | O191: =VLOOKUP(A191,Турон!B:K,8,FALSE) -> 0 | P191: =VLOOKUP(A191,Турон!B:M,11,FALSE) ->  | Q191: =VLOOKUP(A191,Турон!B:M,12,FALSE) ->  | R191: 50.89 | S191: =VLOOKUP(A191,Турон!B:M,9,FALSE) -> 0 | T191: =VLOOKUP(A191,Турон!B:M,6,FALSE) -> 0 | U191: =VLOOKUP(A191,Турон!B:M,10,FALSE) -> 0 | V191: =VLOOKUP(A191,Тнав!A:D,2,FALSE) -> 14.68551163 | X191: 43.60094359 | Y191: =VLOOKUP(A191,Тнав!A:D,3,FALSE) -> 18.68359885 | Z191: =VLOOKUP(A191,'Состояние фонда'!C:AB,20,FALSE) -> 2.704166667 | AA191: =VLOOKUP(A191,Тнав!A:E,4,FALSE) -> 234.6579743 | AB191: =VLOOKUP(A191,'Состояние фонда'!C:AB,21,FALSE) -> 85 | AD191: гидратный | AE191: =IFERROR([1]!Скорость_газа(AA191,X191,18.8,46.8,190.24,IF(MID(J191,1,2)="73",6,IF(MID(J191,1,2)="89",7.6,IF(MID(J191,1,2)="11",10,0)))),"") ->  | AF191: 282.2529853 | AG191: 0.9678419052
A192: 501 | B192: 7 | C192: ГС | K192: 24.07.2023 | L192: 64.74 | M192: =VLOOKUP(A192,Турон!B:K,5,FALSE) -> 70.86041051 | N192: =VLOOKUP(A192,Турон!B:K,7,FALSE) -> 0 | O192: =VLOOKUP(A192,Турон!B:K,8,FALSE) -> 0 | P192: =VLOOKUP(A192,Турон!B:M,11,FALSE) ->  | Q192: =VLOOKUP(A192,Турон!B:M,12,FALSE) ->  | R192: 50.89 | S192: =VLOOKUP(A192,Турон!B:M,9,FALSE) -> 0 | T192: =VLOOKUP(A192,Турон!B:M,6,FALSE) -> 0 | U192: =VLOOKUP(A192,Турон!B:M,10,FALSE) -> 0 | V192: =VLOOKUP(A192,Тнав!A:D,2,FALSE) -> 12.4070704 | X192: 45.8981114 | Y192: =VLOOKUP(A192,Тнав!A:D,3,FALSE) -> 24.9622991 | Z192: =VLOOKUP(A192,'Состояние фонда'!C:AB,20,FALSE) -> -6.283333333 | AA192: =VLOOKUP(A192,Тнав!A:E,4,FALSE) -> 308.1794622 | AB192: =VLOOKUP(A192,'Состояние фонда'!C:AB,21,FALSE) -> 61.5 | AD192: гидратный | AE192: =IFERROR([1]!Скорость_газа(AA192,X192,18.8,46.8,190.24,IF(MID(J192,1,2)="73",6,IF(MID(J192,1,2)="89",7.6,IF(MID(J192,1,2)="11",10,0)))),"") ->  | AF192: 277.6646256 | AG192: 0.9691207046
A193: 502 | C193: ГС | K193: 07.07.2023 | L193: 65.63 | M193: =VLOOKUP(A193,Турон!B:K,5,FALSE) -> 70.45033369 | N193: =VLOOKUP(A193,Турон!B:K,7,FALSE) -> 0 | O193: =VLOOKUP(A193,Турон!B:K,8,FALSE) -> 0 | P193: =VLOOKUP(A193,Турон!B:M,11,FALSE) ->  | Q193: =VLOOKUP(A193,Турон!B:M,12,FALSE) ->  | R193: 9.1 | S193: =VLOOKUP(A193,Турон!B:M,9,FALSE) -> 0 | T193: =VLOOKUP(A193,Турон!B:M,6,FALSE) -> 0 | U193: =VLOOKUP(A193,Турон!B:M,10,FALSE) -> 0 | V193: =VLOOKUP(A193,Тнав!A:D,2,FALSE) -> 23.23239829 | X193: 44.65421457 | Y193: =VLOOKUP(A193,Тнав!A:D,3,FALSE) -> 25.79611913 | Z193: =VLOOKUP(A193,'Состояние фонда'!C:AB,20,FALSE) -> -1.425 | AA193: =VLOOKUP(A193,Тнав!A:E,4,FALSE) -> 257.9566839 | AB193: =VLOOKUP(A193,'Состояние фонда'!C:AB,21,FALSE) -> 17.2 | AD193: гидратный | AE193: =IFERROR([1]!Скорость_газа(AA193,X193,18.8,46.8,190.24,IF(MID(J193,1,2)="73",6,IF(MID(J193,1,2)="89",7.6,IF(MID(J193,1,2)="11",10,0)))),"") ->  | AF193: 280.1512868 | AG193: 0.9472515458
A194: 503 | C194: ГС | K194: 24.07.2023 | L194: 68.06 | M194: =VLOOKUP(A194,Турон!B:K,5,FALSE) -> 72.98622653 | N194: =VLOOKUP(A194,Турон!B:K,7,FALSE) -> 0 | O194: =VLOOKUP(A194,Турон!B:K,8,FALSE) -> 0 | P194: =VLOOKUP(A194,Турон!B:M,11,FALSE) ->  | Q194: =VLOOKUP(A194,Турон!B:M,12,FALSE) ->  | R194: 11.12 | S194: =VLOOKUP(A194,Турон!B:M,9,FALSE) -> 0 | T194: =VLOOKUP(A194,Турон!B:M,6,FALSE) -> 0 | U194: =VLOOKUP(A194,Турон!B:M,10,FALSE) -> 0 | V194: =VLOOKUP(A194,Тнав!A:D,2,FALSE) -> 25.22736114 | X194: 52.49496238 | Y194: =VLOOKUP(A194,Тнав!A:D,3,FALSE) -> 20.49126415 | Z194: =VLOOKUP(A194,'Состояние фонда'!C:AB,20,FALSE) -> -1.933333333 | AA194: =VLOOKUP(A194,Тнав!A:E,4,FALSE) -> 333.3719469 | AB194: =VLOOKUP(A194,'Состояние фонда'!C:AB,21,FALSE) -> 21 | AD194: гидратный | AE194: =IFERROR([1]!Скорость_газа(AA194,X194,18.8,46.8,190.24,IF(MID(J194,1,2)="73",6,IF(MID(J194,1,2)="89",7.6,IF(MID(J194,1,2)="11",10,0)))),"") ->  | AF194: 279.8918106 | AG194: 0.9425939803
A195: 1801 | B195: 2 | C195: ГС | K195: 25.07.2023 | L195: 51.71 | M195: =VLOOKUP(A195,Турон!B:K,5,FALSE) -> 57.32904741 | N195: =VLOOKUP(A195,Турон!B:K,7,FALSE) -> 0 | O195: =VLOOKUP(A195,Турон!B:K,8,FALSE) -> 0 | P195: =VLOOKUP(A195,Турон!B:M,11,FALSE) ->  | Q195: =VLOOKUP(A195,Турон!B:M,12,FALSE) ->  | R195: 50.89 | S195: =VLOOKUP(A195,Турон!B:M,9,FALSE) -> 0 | T195: =VLOOKUP(A195,Турон!B:M,6,FALSE) -> 0 | U195: =VLOOKUP(A195,Турон!B:M,10,FALSE) -> 0 | V195: =VLOOKUP(A195,Тнав!A:D,2,FALSE) -> 0 | W195: =X195/AI195 ->  | X195: =M195-Y195 -> 57.32904741 | Y195: =VLOOKUP(A195,Тнав!A:D,3,FALSE) -> 0 | Z195: =VLOOKUP(A195,'Состояние фонда'!C:AB,20,FALSE) -> -1.025 | AA195: =VLOOKUP(A195,Тнав!A:E,4,FALSE) -> 0 | AB195: =VLOOKUP(A195,'Состояние фонда'!C:AB,21,FALSE) -> 98.1 | AD195: гидратный | AE195: =IFERROR([1]!Скорость_газа(AA195,X195,18.8,46.8,190.24,IF(MID(J195,1,2)="73",6,IF(MID(J195,1,2)="89",7.6,IF(MID(J195,1,2)="11",10,0)))),"") ->  | AF195: =(($AF$162+273.15)-(Z195+273.15))/(LN(($AF$162+273.15)/(Z195+273.15))) -> 280.35535 | AG195: =1/(1+(5*10^7*0.098*V195)/(Z195+273.15)^3.825) -> 1 | AH195: =(0.5647*0.03415*MID(J195,4,7)/(AF195*AG195)) ->  | AI195: =ROUND(EXP(AH195),4) -> 
A196: 1802 | C196: ГС | K196: 25.07.2023 | L196: 58.37 | M196: =VLOOKUP(A196,Турон!B:K,5,FALSE) -> 65.88709304 | N196: =VLOOKUP(A196,Турон!B:K,7,FALSE) -> 0 | O196: =VLOOKUP(A196,Турон!B:K,8,FALSE) -> 0 | P196: =VLOOKUP(A196,Турон!B:M,11,FALSE) ->  | Q196: =VLOOKUP(A196,Турон!B:M,12,FALSE) ->  | R196: 18.41 | S196: =VLOOKUP(A196,Турон!B:M,9,FALSE) -> 0 | T196: =VLOOKUP(A196,Турон!B:M,6,FALSE) -> 0 | U196: =VLOOKUP(A196,Турон!B:M,10,FALSE) -> 0 | V196: =VLOOKUP(A196,Тнав!A:D,2,FALSE) -> 0 | X196: 65.88709304 | Y196: =VLOOKUP(A196,Тнав!A:D,3,FALSE) -> 0 | Z196: =VLOOKUP(A196,'Состояние фонда'!C:AB,20,FALSE) -> -1.025 | AA196: =VLOOKUP(A196,Тнав!A:E,4,FALSE) -> 0 | AB196: =VLOOKUP(A196,'Состояние фонда'!C:AB,21,FALSE) -> 27.4 | AD196: гидратный | AE196: =IFERROR([1]!Скорость_газа(AA196,X196,18.8,46.8,190.24,IF(MID(J196,1,2)="73",6,IF(MID(J196,1,2)="89",7.6,IF(MID(J196,1,2)="11",10,0)))),"") ->  | AF196: 280.35535 | AG196: 1
A197: 1803 | C197: ГС | K197: 25.07.2023 | L197: 54.34 | M197: =VLOOKUP(A197,Турон!B:K,5,FALSE) -> 60.87528142 | N197: =VLOOKUP(A197,Турон!B:K,7,FALSE) -> 0 | O197: =VLOOKUP(A197,Турон!B:K,8,FALSE) -> 0 | P197: =VLOOKUP(A197,Турон!B:M,11,FALSE) ->  | Q197: =VLOOKUP(A197,Турон!B:M,12,FALSE) ->  | R197: 32.25 | S197: =VLOOKUP(A197,Турон!B:M,9,FALSE) -> 0 | T197: =VLOOKUP(A197,Турон!B:M,6,FALSE) -> 0 | U197: =VLOOKUP(A197,Турон!B:M,10,FALSE) -> 0 | V197: =VLOOKUP(A197,Тнав!A:D,2,FALSE) -> 0 | X197: 60.87528142 | Y197: =VLOOKUP(A197,Тнав!A:D,3,FALSE) -> 0 | Z197: =VLOOKUP(A197,'Состояние фонда'!C:AB,20,FALSE) -> -1.025 | AA197: =VLOOKUP(A197,Тнав!A:E,4,FALSE) -> 0 | AB197: =VLOOKUP(A197,'Состояние фонда'!C:AB,21,FALSE) -> 97.1 | AD197: гидратный | AE197: =IFERROR([1]!Скорость_газа(AA197,X197,18.8,46.8,190.24,IF(MID(J197,1,2)="73",6,IF(MID(J197,1,2)="89",7.6,IF(MID(J197,1,2)="11",10,0)))),"") ->  | AF197: 280.35535 | AG197: 1
A198: 1701 | B198: 3 | C198: ГС | K198: 23.07.2023 | L198: 62.75 | M198: =VLOOKUP(A198,Турон!B:K,5,FALSE) -> 69.09717051 | N198: =VLOOKUP(A198,Турон!B:K,7,FALSE) -> 0 | O198: =VLOOKUP(A198,Турон!B:K,8,FALSE) -> 0 | P198: =VLOOKUP(A198,Турон!B:M,11,FALSE) ->  | Q198: =VLOOKUP(A198,Турон!B:M,12,FALSE) ->  | R198: 27.61 | S198: =VLOOKUP(A198,Турон!B:M,9,FALSE) -> 0 | T198: =VLOOKUP(A198,Турон!B:M,6,FALSE) -> 0 | U198: =VLOOKUP(A198,Турон!B:M,10,FALSE) -> 0 | V198: =VLOOKUP(A198,Тнав!A:D,2,FALSE) -> 16.9963327 | X198: 42.70568926 | Y198: =VLOOKUP(A198,Тнав!A:D,3,FALSE) -> 26.39148124 | Z198: =VLOOKUP(A198,'Состояние фонда'!C:AB,20,FALSE) -> 2.704166667 | AA198: =VLOOKUP(A198,Тнав!A:E,4,FALSE) -> 239.1414211 | AB198: =VLOOKUP(A198,'Состояние фонда'!C:AB,21,FALSE) -> 97 | AD198: гидратный | AE198: =IFERROR([1]!Скорость_газа(AA198,X198,18.8,46.8,190.24,IF(MID(J198,1,2)="73",6,IF(MID(J198,1,2)="89",7.6,IF(MID(J198,1,2)="11",10,0)))),"") ->  | AF198: 282.2529853 | AG198: 0.9629690905
A199: 1702 | C199: ГС | K199: 23.07.2023 | L199: 55.26 | M199: =VLOOKUP(A199,Турон!B:K,5,FALSE) -> 63.08344281 | N199: =VLOOKUP(A199,Турон!B:K,7,FALSE) -> 0 | O199: =VLOOKUP(A199,Турон!B:K,8,FALSE) -> 0 | P199: =VLOOKUP(A199,Турон!B:M,11,FALSE) ->  | Q199: =VLOOKUP(A199,Турон!B:M,12,FALSE) ->  | R199: 25.13 | S199: =VLOOKUP(A199,Турон!B:M,9,FALSE) -> 0 | T199: =VLOOKUP(A199,Турон!B:M,6,FALSE) -> 0 | U199: =VLOOKUP(A199,Турон!B:M,10,FALSE) -> 0 | V199: =VLOOKUP(A199,Тнав!A:D,2,FALSE) -> 14.62829358 | X199: 37.15929776 | Y199: =VLOOKUP(A199,Тнав!A:D,3,FALSE) -> 25.92414505 | Z199: =VLOOKUP(A199,'Состояние фонда'!C:AB,20,FALSE) -> 2.704166667 | AA199: =VLOOKUP(A199,Тнав!A:E,4,FALSE) -> 189.7805338 | AB199: =VLOOKUP(A199,'Состояние фонда'!C:AB,21,FALSE) -> 98.6 | AD199: гидратный | AE199: =IFERROR([1]!Скорость_газа(AA199,X199,18.8,46.8,190.24,IF(MID(J199,1,2)="73",6,IF(MID(J199,1,2)="89",7.6,IF(MID(J199,1,2)="11",10,0)))),"") ->  | AF199: 282.2529853 | AG199: 0.9679631863
A200: 1703 | C200: ГС | K200: 23.07.2023 | L200: 54.18 | M200: =VLOOKUP(A200,Турон!B:K,5,FALSE) -> 60.89741703 | N200: =VLOOKUP(A200,Турон!B:K,7,FALSE) -> 0 | O200: =VLOOKUP(A200,Турон!B:K,8,FALSE) -> 0 | P200: =VLOOKUP(A200,Турон!B:M,11,FALSE) ->  | Q200: =VLOOKUP(A200,Турон!B:M,12,FALSE) ->  | R200: 50.89 | S200: =VLOOKUP(A200,Турон!B:M,9,FALSE) -> 0 | T200: =VLOOKUP(A200,Турон!B:M,6,FALSE) -> 0 | U200: =VLOOKUP(A200,Турон!B:M,10,FALSE) -> 0 | V200: =VLOOKUP(A200,Тнав!A:D,2,FALSE) -> 15.872644 | X200: 38.58632195 | Y200: =VLOOKUP(A200,Тнав!A:D,3,FALSE) -> 22.31109508 | Z200: =VLOOKUP(A200,'Состояние фонда'!C:AB,20,FALSE) -> 2.704166667 | AA200: =VLOOKUP(A200,Тнав!A:E,4,FALSE) -> 203.9679993 | AB200: =VLOOKUP(A200,'Состояние фонда'!C:AB,21,FALSE) -> 97.6 | AD200: гидратный | AE200: =IFERROR([1]!Скорость_газа(AA200,X200,18.8,46.8,190.24,IF(MID(J200,1,2)="73",6,IF(MID(J200,1,2)="89",7.6,IF(MID(J200,1,2)="11",10,0)))),"") ->  | AF200: 282.2529853 | AG200: 0.9653324624
A201: 901 | B201: 5 | C201: ГС | K201: 26.07.2023 | L201: 61.77 | M201: =VLOOKUP(A201,Турон!B:K,5,FALSE) -> 68.27422893 | N201: =VLOOKUP(A201,Турон!B:K,7,FALSE) -> 0 | O201: =VLOOKUP(A201,Турон!B:K,8,FALSE) -> 0 | P201: =VLOOKUP(A201,Турон!B:M,11,FALSE) ->  | Q201: =VLOOKUP(A201,Турон!B:M,12,FALSE) ->  | R201: 50.89 | S201: =VLOOKUP(A201,Турон!B:M,9,FALSE) -> 0 | T201: =VLOOKUP(A201,Турон!B:M,6,FALSE) -> 0 | U201: =VLOOKUP(A201,Турон!B:M,10,FALSE) -> 0 | V201: =VLOOKUP(A201,Тнав!A:D,2,FALSE) -> 16.03647376 | X201: 41.03997757 | Y201: =VLOOKUP(A201,Тнав!A:D,3,FALSE) -> 27.23425136 | Z201: =VLOOKUP(A201,'Состояние фонда'!C:AB,20,FALSE) -> -1.28 | AA201: =VLOOKUP(A201,Тнав!A:E,4,FALSE) -> 236.2999405 | AB201: =VLOOKUP(A201,'Состояние фонда'!C:AB,21,FALSE) -> 97.8 | AD201: гидратный | AE201: =IFERROR([1]!Скорость_газа(AA201,X201,18.8,46.8,190.24,IF(MID(J201,1,2)="73",6,IF(MID(J201,1,2)="89",7.6,IF(MID(J201,1,2)="11",10,0)))),"") ->  | AF201: 280.2252714 | AG201: 0.9630575844
A202: 902 | C202: ГС + МГРП | K202: 26.07.2023 | L202: 58.59 | M202: =VLOOKUP(A202,Турон!B:K,5,FALSE) -> 64.44975887 | N202: =VLOOKUP(A202,Турон!B:K,7,FALSE) -> 0 | O202: =VLOOKUP(A202,Турон!B:K,8,FALSE) -> 0 | P202: =VLOOKUP(A202,Турон!B:M,11,FALSE) ->  | Q202: =VLOOKUP(A202,Турон!B:M,12,FALSE) ->  | R202: 50.89 | S202: =VLOOKUP(A202,Турон!B:M,9,FALSE) -> 0 | T202: =VLOOKUP(A202,Турон!B:M,6,FALSE) -> 0 | U202: =VLOOKUP(A202,Турон!B:M,10,FALSE) -> 0 | V202: =VLOOKUP(A202,Тнав!A:D,2,FALSE) -> 21.52541743 | X202: 42.04050538 | Y202: =VLOOKUP(A202,Тнав!A:D,3,FALSE) -> 22.40925349 | Z202: =VLOOKUP(A202,'Состояние фонда'!C:AB,20,FALSE) -> 1.5 | AA202: =VLOOKUP(A202,Тнав!A:E,4,FALSE) -> 295.3988485 | AB202: =VLOOKUP(A202,'Состояние фонда'!C:AB,21,FALSE) -> 98 | AC202: 29 | AD202: гидратный | AE202: =IFERROR([1]!Скорость_газа(AA202,X202,18.8,46.8,190.24,IF(MID(J202,1,2)="73",6,IF(MID(J202,1,2)="89",7.6,IF(MID(J202,1,2)="11",10,0)))),"") ->  | AF202: 281.6411776 | AG202: 0.9528128979
A203: 301Т | B203: 8 | C203: ГС | K203: 24.07.2023 | L203: 67.51 | M203: =VLOOKUP(A203,Турон!B:K,5,FALSE) -> 74.74799393 | N203: =VLOOKUP(A203,Турон!B:K,7,FALSE) -> 0 | O203: =VLOOKUP(A203,Турон!B:K,8,FALSE) -> 0 | P203: =VLOOKUP(A203,Турон!B:M,11,FALSE) ->  | Q203: =VLOOKUP(A203,Турон!B:M,12,FALSE) ->  | R203: 50.89 | S203: =VLOOKUP(A203,Турон!B:M,9,FALSE) -> 0 | T203: =VLOOKUP(A203,Турон!B:M,6,FALSE) -> 0 | U203: =VLOOKUP(A203,Турон!B:M,10,FALSE) -> 0 | V203: =VLOOKUP(A203,Тнав!A:D,2,FALSE) -> 18.14229177 | X203: 45.64895431 | Y203: =VLOOKUP(A203,Тнав!A:D,3,FALSE) -> 29.09903963 | Z203: =VLOOKUP(A203,'Состояние фонда'!C:AB,20,FALSE) -> -1.754166667 | AA203: =VLOOKUP(A203,Тнав!A:E,4,FALSE) -> 260.4106561 | AB203: =VLOOKUP(A203,'Состояние фонда'!C:AB,21,FALSE) -> 96.5 | AD203: гидратный | AE203: =IFERROR([1]!Скорость_газа(AA203,X203,18.8,46.8,190.24,IF(MID(J203,1,2)="73",6,IF(MID(J203,1,2)="89",7.6,IF(MID(J203,1,2)="11",10,0)))),"") ->  | AF203: 279.983284 | AG203: 0.9581413089
A204: 302Т | C204: ГС | K204: 24.07.2023 | L204: 68.16 | M204: =VLOOKUP(A204,Турон!B:K,5,FALSE) -> 76.08060436 | N204: =VLOOKUP(A204,Турон!B:K,7,FALSE) -> 0 | O204: =VLOOKUP(A204,Турон!B:K,8,FALSE) -> 0 | P204: =VLOOKUP(A204,Турон!B:M,11,FALSE) ->  | Q204: =VLOOKUP(A204,Турон!B:M,12,FALSE) ->  | R204: 50.89 | S204: =VLOOKUP(A204,Турон!B:M,9,FALSE) -> 0 | T204: =VLOOKUP(A204,Турон!B:M,6,FALSE) -> 0 | U204: =VLOOKUP(A204,Турон!B:M,10,FALSE) -> 0 | V204: =VLOOKUP(A204,Тнав!A:D,2,FALSE) -> 15.42909395 | X204: 44.44196226 | Y204: =VLOOKUP(A204,Тнав!A:D,3,FALSE) -> 31.6386421 | Z204: =VLOOKUP(A204,'Состояние фонда'!C:AB,20,FALSE) -> -2.958333333 | AA204: =VLOOKUP(A204,Тнав!A:E,4,FALSE) -> 244.6392511 | AB204: =VLOOKUP(A204,'Состояние фонда'!C:AB,21,FALSE) -> 97 | AD204: гидратный | AE204: =IFERROR([1]!Скорость_газа(AA204,X204,18.8,46.8,190.24,IF(MID(J204,1,2)="73",6,IF(MID(J204,1,2)="89",7.6,IF(MID(J204,1,2)="11",10,0)))),"") ->  | AF204: 279.3681055 | AG204: 0.9635849184
... 91 more rows

Sheet Состояние фонда
E1: Суточная добыча газа по месторождению: | H1: 66103.66083 | I1: тыс.м³/сут | BQ1: ρ газа по воздуху | BR1: Ркр, ата | BS1: Ткр, К | BT1: Тустья | BU1: Тпласт | CU1: Давл. труб., кгс/см2 | CV1: Давл. затр., кгс/см2 | CW1: Давл. забойн., кгс/см2 | CX1: Депр., кгс/см2 | CY1: Т уст., 0С | CZ1: Дебит газа, тыс.м3 | DA1: Диаметр штуцера, % | DB1: Лимитная шайба ,мм | DC1: Гидратный / безгидратный режим | DD1: Скорость газа в НКТ м/сек | DE1: Предельная депрессия, обеспечивающя запас 3°C, кгс/см2 (изб.) | DG1: Давл. пласт, кгс/см2
D2: сентябрь 2024 г. | H2: План-факт | V2: Технологический режим работы газовых скважин | BP2: Сеноман | BQ2: 0.5647 | BR2: 46.8 | BS2: 190.24 | BT2: 5 | BU2: 18.8
C3: № скв | D3: № куста | E3: Шлейф | F3: Плановый режим | R3: Фактический режим на 8:00 | AE3: Разница факт/план | AF3: Разница факт/план | BG3: № шлейфа | BH3: Статисти-ческие параметры | BI3: Разница факт/план | BN3: Разница факт/план | BP3: Турон | BQ3: 0.563 | BR3: 46.91 | BS3: 191.3 | BU3: 16.5
CS4: 11 | CT4: 1 | CU4: 19.56474604 | CV4: 24.89234541 | CW4: 26.58253566 | CX4: 6.81637188 | CY4: 8.368481 | CZ4: 383.1058116 | DA4: 95.20817 | DC4: безгидратный | DD4: 20.67814064 | DE4: 8 | DG4: 31.41432571
CS5: 12 | CU5: 20.46643549 | CV5: 27.52815785 | CW5: 29.4028254 | CX5: 0.5667655689 | CY5: 8.372116 | CZ5: 480.8016369 | DA5: 56.855797 | DC5: безгидратный | DD5: 23.31954193 | DE5: 8 | DG5: 31.38910294
BN6: Шлейф | CS6: 13 | CU6: 20.24967171 | CV6: 27.43987149 | CW6: 29.30852673 | CX6: 0.8804105072 | CY6: 8.196926 | CZ6: 511.6750631 | DA6: 54.954536 | DC6: безгидратный | DD6: 24.90159416 | DE6: 8 | DG6: 31.76101685
F7: Давл. труб., кгс/см2 | G7: Давл. затр., кгс/см2 | H7: Давл. забойн., кгс/см2 | I7: Депр., кгс/см2 | J7: Т уст., 0С | K7: Процент открытия УР, % | L7: Лимитная шайба, мм | M7: Скорость газа в НКТ, м/сек | N7: Скорость газа на устье, м/сек | O7: Давл. ЗПА, кгс/см2 | P7: Давл. ЗПА, кгс/см2 | Q7: Дебит газа, тыс.м3 | R7: Давл. тр., кгс/см2 | S7: Давл. затр., кгс/см2 | T7: Давл. забойн., кгс/см2 | U7: Депр.(норма 8 кгс/см2), кгс/см2 | V7: Т уст., 0С | W7: Диаметр штуцера, % | X7: Лимитная шайба, мм | Y7: Скорость газа в НКТ, м/сек | Z7: Скорость газа на устье, м/сек | AA7: Давл. ЗПА, кгс/см2 | AB7: Т ЗПА, 0С | AC7: Дата/Время | AD7: Дебит газа, тыс.м3 | AE7: Давл. тр., кгс/см2 | AF7: Давл. труб. | AH7: Давл. затр. | AJ7: Дебит газа, тыс.м3 | AK7: Дебит газа, % | AL7: Депр. | AN7: Т уст., 0С | AP7: Диаметр штуцера, мм | AR7: Лимитная шайба, мм | AS7: Лимитная шайба, % | AT7: Скорость газа в НКТ, м/сек | AU7: Скорость газа в НКТ, % | AV7: Давл. ЗПА, кгс/см2 | AW7: Давл. ЗПА, % | AX7: Дебит газа, тыс.м3 | AY7: Дебит газа, % | AZ7: Скорость газа на устье, м/сек | BA7: Скорость газа на устье, % | BB7: Давл. ЗПА, кгс/см2 | BC7: Давл. ЗПА, % | BD7: Дебит газа, тыс.м3 | BE7: Дебит газа, % | BI7: Давл. ЗПА, кгс/см2 | BJ7: %Давл. ЗПА, кгс/см2 | BM7: Pпл, кгс/см2 | BN7: %Давл. ЗПА, кгс/см2 | CS7: 21 | CT7: 2 | CU7: 19.74356183 | CV7: 23.96820643 | CW7: 25.60523493 | CX7: 3.03751594 | CY7: 8.421628 | CZ7: 319.7592949 | DA7: 100 | DC7: безгидратный | DD7: 17.95732307 | DE7: 8 | DG7: 29.57133675
A8: 1 | B8: 2 | C8: 1 | D8: 2 | E8: 3 | F8: 4 | G8: 5 | H8: 6 | I8: 7 | J8: 8 | K8: 9 | L8: 10 | M8: 11 | N8: 12 | O8: 13 | P8: 13 | Q8: 14 | R8: 15 | S8: 16 | T8: 17 | U8: 18 | V8: 19 | W8: 20 | X8: 21 | Y8: 22 | Z8: 23 | AA8: 24 | AB8: 25 | AC8: 26 | AD8: 26 | AE8: 27 | AF8: кгс/см2 | AG8: % | AH8: кгс/см2 | AI8: % | AJ8: тыс.м3 | AK8: % | AL8: кгс/см2 | AM8: % | AN8: оС | AO8: % | AP8: % | AQ8: отл. % | AR8: мм | AS8: % | AT8: м/сек | AU8: % | AV8: кгс/см2 | AW8: % | AX8: тыс.м3 | AY8: % | AZ8: 48 | BA8: 49 | BB8: 50 | BC8: 51 | BD8: 50 | BE8: 51 | CS8: 22 | CU8: 19.80253536 | CV8: 26.14290508 | CW8: 27.9284655 | CX8: 4.313564552 | CY8: 8.421628 | CZ8: 348.9961141 | DA8: 96.595 | DC8: безгидратный | DD8: 17.87474251 | DE8: 8 | DG8: 30.09869194
A9: 6.2 | B9: 967.25 | C9: 131 | D9: 13 | E9: 1 | F9: =VLOOKUP($C9,Тнав!$A$3:$E$250,2,FALSE) -> 0 | G9: =VLOOKUP($C9,$CS:$DG,3,FALSE) -> 15.74926307 | H9: =VLOOKUP($C9,$CS:$DG,5,FALSE) -> 25.51710863 | I9: =VLOOKUP($C9,Тнав!$A$3:$E$250,3,FALSE) -> 0 | J9: =VLOOKUP($C9,$CS:$DG,7,FALSE) -> 4.4986305 | K9: =VLOOKUP($C9,$CS:$DG,9,FALSE) -> 40.23486 | L9: =VLOOKUP($C9,$CS:$DG,10,FALSE) -> 0 | M9: =VLOOKUP($C9,$CS:$DG,12,FALSE) -> 19.47486496 | P9: =Шлейфы!$L$2 -> 5.368657296 | Q9: =VLOOKUP($C9,Тнав!$A$3:$E$250,4,FALSE) -> 0 | R9: 15.91 | S9: 23.81 | T9: 25.66 | U9: =(H9+I9)-S9 -> 1.70710863 | V9: 3.82 | W9: 40.2 | X9: 0.0 | Y9: =(AD9*(1/(1+(5*10^7*0.098*R9)/(18.8+273.15)^3.825))*(18.8+273.15)*0.052)/((POWER(A9,2))*(R9/10.197)) -> 27.86621825 | Z9: 7.8335495 | AB9: 25 | AC9: 1900-01-26 | AD9: 113.28 | AE9: -2.239067863 | AF9: =IF(R9="","",(R9-F9)) -> 15.91 | AG9: =IF(R9="","",(R9/F9*100-100)) ->  | AH9: =IF(R9="","",(S9-G9)) -> 8.060736929 | AI9: =IF(R9="","",(S9/G9*100-100)) -> 51.18167684 | AJ9: =IF(AD9="","",(Q9-E9)) -> -1 | AK9: =IF(AD9="","",(AD9/Q9*100-100)) ->  | AL9: -3.062914289 | AM9: 0.1913315055 | AN9: -2.663964455 | AO9: 0.7449958414 | AP9: 71.28345175 | AQ9: -3.357669 | AR9: -56.79220933 | AS9: -0.16517 | AT9: -0.412925 | AV9: 0 | AW9: -56.79220933 | AX9: 5.692282618 | AY9: 26.68070708 | AZ9: 7.8335495 | BB9: -0.749172201 | BC9: -5.072255931 | BD9: -1.506673426 | BE9: -1.24075659 | BG9: 1 | BH9: минимум | BI9: -0.749172201 | BJ9: -5.072255931 | BM9: 29.4970665 | CS9: 23 | CU9: 19.67128078 | CV9: 25.16628408 | CW9: 26.88514129 | CX9: 3.019223429 | CY9: 8.488702 | CZ9: 383.1576723 | DA9: 100 | DC9: безгидратный | DD9: 20.43418121 | DE9: 8 | DG9: 30.82581139
A10: 6.2 | B10: 867.11 | C10: 132 | F10: =VLOOKUP($C10,Тнав!$A$3:$E$250,2,FALSE) -> 0 | G10: 20.80597263 | H10: 24.71955286 | I10: =VLOOKUP($C10,Тнав!$A$3:$E$250,3,FALSE) -> 0 | J10: 2.1788597 | K10: 19.93982 | L10: 0 | M10: 11.15800762 | P10: =Шлейфы!$L$2 -> 5.368657296 | Q10: =VLOOKUP($C10,Тнав!$A$3:$E$250,4,FALSE) -> 0 | R10: 20.35 | S10: 22.82 | T10: 25.05 | U10: 1.899552857 | V10: 1.17 | W10: 19.9 | X10: 0.0 | Y10: 12.18214186 | AB10: 25 | AC10: 1900-01-26 | AD10: 63.84 | AE10: -0.496912697 | AF10: 20.35 | AH10: 2.014027371 | AI10: 9.680044315 | AJ10: 0 | AL10: -6.302168874 | AM10: -1.10708294 | AN10: -6.132611785 | AO10: 1.633628367 | AP10: 104.6947256 | AQ10: 0.8504657 | AR10: 1063.082125 | AS10: -17.18994 | AT10: -34.37988 | AV10: 0 | AW10: 1063.082125 | AX10: 15.94097835 | AY10: 294.1142891 | BB10: -0.749172201 | BC10: -5.072255931 | BD10: -12.35691631 | BE10: -11.09914955 | BH10: максимум | BI10: -0.749172201 | BJ10: -5.072255931 | BM10: 28.63228607 | CS10: 31 | CT10: 3 | CU10: 20.19627152 | CV10: 22.31622259 | CW10: 23.86720006 | CX10: 4.815247711 | CY10: 6.132042 | CZ10: 220.1626309 | DA10: 47.195297 | DC10: безгидратный | DD10: 13.31643295 | DE10: 8 | DG10: 28.90143394
A11: 6.2 | B11: 928.03 | C11: 133 | F11: =VLOOKUP($C11,Тнав!$A$3:$E$250,2,FALSE) -> 13.98751489 | G11: 17.03925314 | H11: 20.45486846 | I11: =VLOOKUP($C11,Тнав!$A$3:$E$250,3,FALSE) -> 6.256934212 | J11: 3.5617752 | K11: 23.049675 | L11: 0 | M11: 13.22070312 | P11: =Шлейфы!$L$2 -> 5.368657296 | Q11: =VLOOKUP($C11,Тнав!$A$3:$E$250,4,FALSE) -> 71.17683031 | R11: 17.06 | S11: 19.09 | T11: 20.47 | U11: 7.621802672 | V11: 2.5 | W11: 23.1 | X11: 0.0 | Y11: 13.79169923 | Z11: 7.733201981 | AB11: 25 | AD11: 60.24 | AE11: -1.337369032 | AF11: 3.072485106 | AG11: 21.96591124 | AH11: 2.050746859 | AI11: 12.03542692 | AJ11: 71.17683031 | AK11: -15.36571699 | AL11: -13.38881836 | AM11: -0.2133076502 | AN11: -12.90754883 | AO11: 2.933916391 | AP11: 45.3347154 | AQ11: 0.0367842 | AR11: 1.709541293 | AS11: -19.848 | AT11: -33.08 | AV11: 0 | AW11: 1.709541293 | AX11: 6.43457889 | AY11: 50.33778307 | AZ11: 7.733201981 | BB11: -0.749172201 | BC11: -5.072255931 | BD11: -4.574329752 | BE11: -5.711387604 | BH11: ср.значение | BI11: -0.749172201 | BJ11: -5.072255931 | BM11: 29.63418007 | CS11: 32 | CU11: 17.36466468 | CV11: 23.45709516 | CW11: 25.07094331 | CX11: 3.665495119 | CY11: 7.7260437 | CZ11: 362.5116088 | DA11: 99.05575 | DC11: безгидратный | DD11: 20.81715012 | DE11: 8 | DG11: 28.3025074
A12: 6.2 | B12: 899.74 | C12: 134 | F12: =VLOOKUP($C12,Тнав!$A$3:$E$250,2,FALSE) -> 17.59428549 | G12: 18.47300884 | H12: 21.26700054 | I12: =VLOOKUP($C12,Тнав!$A$3:$E$250,3,FALSE) -> 7.044164932 | J12: 2.2335167 | K12: 15.169774 | L12: 0 | M12: 4.804033756 | P12: =Шлейфы!$L$2 -> 5.368657296 | Q12: =VLOOKUP($C12,Тнав!$A$3:$E$250,4,FALSE) -> 54.55502079 | R12: 19.09 | S12: 19.57 | T12: 20.93 | U12: 8.741165476 | V12: 0.78 | W12: 14.9 | X12: 0.0 | Y12: 8.268929862 | Z12: 10.0961647 | AB12: 25 | AC12: 00:00:00 | AD12: 40.56 | AE12: -0.4445357392 | AF12: 1.495714507 | AG12: 8.501138096 | AH12: 1.096991165 | AI12: 5.938345912 | AJ12: 54.55502079 | AK12: -25.65303905 | AL12: -12.64653718 | AM12: -2.461890199 | AN12: -12.06130928 | AO12: 2.461890199 | AP12: 31.16316708 | AQ12: -0.6309973 | AR12: -43.40032327 | AS12: -9.583101 | AT12: -23.9577525 | AW12: -43.40032327 | AX12: 7.654163491 | AY12: 106.8405505 | AZ12: 10.0961647 | BB12: -0.749172201 | BC12: -5.072255931 | BD12: -2.690035488 | BE12: -4.206741806 | BG12: 2 | BH12: минимум | BI12: -0.3250808629 | BJ12: -2.20095371 | BM12: 29.46062469 | CS12: 33 | CU12: 17.6814568 | CV12: 24.52699681 | CW12: 26.21690689 | CX12: 2.674950233 | CY12: 7.3031654 | CZ12: 413.7232352 | DA12: 99.10557 | DC12: безгидратный | DD12: 22.66085625 | DE12: 8 | DG12: 28.77658081
A13: 10 | B13: 930.88 | C13: 161 | D13: 16 | E13: 2 | F13: =VLOOKUP($C13,Тнав!$A$3:$E$250,2,FALSE) -> 0 | G13: 16.83712952 | H13: 21.66299074 | I13: =VLOOKUP($C13,Тнав!$A$3:$E$250,3,FALSE) -> 0 | J13: 8.272148 | K13: 95.403175 | L13: 0 | M13: 17.66794968 | P13: =Шлейфы!$L$2 -> 5.368657296 | Q13: =VLOOKUP($C13,Тнав!$A$3:$E$250,4,FALSE) -> 0 | R13: 17.02 | S13: 20.38 | T13: 21.93 | U13: 1.282990744 | V13: 7.99 | W13: 97.9 | X13: 0.0 | Y13: 21.49035729 | Z13: 20.31283569 | AB13: 0.5299011961 | AD13: 243.6 | AE13: -1.422118518 | AF13: 17.02 | AH13: 3.542870478 | AI13: 21.04201 | AJ13: -2 | AL13: -4.23514932 | AM13: -1.327014049 | AN13: -5.24992376 | AO13: 1.327014049 | AP13: 52.58106211 | AQ13: 0.272414 | AR13: 3.928443701 | AS13: 13.92032 | AT13: 16.37684706 | AW13: 3.928443701 | AX13: 3.19708655 | AY13: 17.14125065 | AZ13: 20.31283569 | BB13: -0.3250808629 | BC13: -2.20095371 | BD13: 6.449255272 | BE13: 2.45834955 | BH13: максимум | BI13: -0.3250808629 | BJ13: -2.20095371 | BM13: 28.0687542 | BN13: -100 | CS13: 41 | CT13: 4 | CU13: 20.87017405 | CV13: 25.53054626 | CW13: 27.29215395 | CX13: 2.463613009 | CY13: 8.725304 | CZ13: 354.5414971 | DA13: 95.218185 | DC13: безгидратный | DD13: 18.60893059 | DE13: 8 | DG13: 30.68021774
A14: 10 | B14: 931.58 | C14: 162 | F14: =VLOOKUP($C14,Тнав!$A$3:$E$250,2,FALSE) -> 0 | G14: 17.23752206 | H14: 21.91155873 | I14: =VLOOKUP($C14,Тнав!$A$3:$E$250,3,FALSE) -> 0 | J14: 8.936798 | K14: 95.02193 | L14: 0 | M14: 21.79616928 | P14: =Шлейфы!$L$2 -> 5.368657296 | Q14: =VLOOKUP($C14,Тнав!$A$3:$E$250,4,FALSE) -> 0 | R14: 17.28 | S14: 20.52 | T14: 22.08 | U14: 1.391558728 | V14: 8.66 | W14: 97 | X14: 0.0 | Y14: 25.82648412 | Z14: 18.97061157 | AB14: 0.5299011961 | AC14: 00:00:00 | AD14: 297.36 | AE14: -0.2409341405 | AF14: 17.28 | AH14: 3.282477941 | AI14: 19.04263229 | AJ14: 0 | AL14: -11.8768951 | AM14: -3.192466227 | AN14: -11.74114249 | AO14: 3.192466227 | AP14: 663.2702142 | AQ14: -0.342898 | AR14: -4.187658 | AS14: 5.000694 | AT14: 6.2508675 | AW14: -4.187658 | AX14: 4.875274992 | AY14: 22.58502151 | AZ14: 18.97061157 | BB14: -0.3250808629 | BC14: -2.20095371 | BD14: 17.452872 | BE14: 5.356625523 | BH14: ср.значение | BI14: -0.3250808629 | BJ14: -2.20095371 | BM14: 28.0503273 | BN14: -100 | CS14: 42 | CU14: 20.9254105 | CV14: 26.31365717 | CW14: 28.12929951 | CX14: 1.997614888 | CY14: 8.569698 | CZ14: 363.0309585 | DA14: 92.10958 | DC14: безгидратный | DD14: 18.45262337 | DE14: 8 | DG14: 30.99391174
A15: 10 | B15: 931 | C15: 163 | F15: =VLOOKUP($C15,Тнав!$A$3:$E$250,2,FALSE) -> 0 | G15: 16.84909747 | H15: 19.09815519 | I15: =VLOOKUP($C15,Тнав!$A$3:$E$250,3,FALSE) -> 0 | J15: 7.0033493 | K15: 47.642387 | L15: 0 | M15: 9.445236206 | P15: =Шлейфы!$L$2 -> 5.368657296 | Q15: =VLOOKUP($C15,Тнав!$A$3:$E$250,4,FALSE) -> 0 | R15: 17.12 | S15: 17.97 | T15: 19.34 | U15: 1.128155189 | V15: 6.56 | W15: 49.4 | X15: 0.0 | Y15: 10.12282551 | Z15: 6.734530449 | AB15: 0.5299011961 | AC15: 00:00:00 | AD15: 115.44 | AE15: -0.5332735505 | AF15: 17.12 | AH15: 1.120902533 | AI15: 6.652596882 | AJ15: 0 | AL15: -9.14966409 | AM15: 1.17749908 | AN15: -8.614980109 | AO15: 2.071122608 | AP15: 54.2394251 | AQ15: -1.439809 | AR15: -25.73891203 | AS15: 0.16006 | AT15: 0.5335333333 | AV15: 0 | AW15: -25.73891203 | AX15: -1.298797665 | AY15: -15.1864455 | AZ15: 6.734530449 | BB15: -0.3250808629 | BC15: -2.20095371 | BD15: -102.136776 | BE15: -51.05389482 | BG15: 3 | BH15: минимум | BI15: -0.6422276327 | BJ15: -4.348189795 | BM15: 27.82273102 | BN15: -100 | CS15: 43 | CU15: 20.8957129 | CV15: 26.55485825 | CW15: 28.38714347 | CX15: 1.787026152 | CY15: 8.549221 | CZ15: 321.6653218 | DA15: 60.158405 | DC15: безгидратный | DD15: 16.19299889 | DE15: 8 | DG15: 30.82777786
A16: 10 | B16: 929.58 | C16: 164 | F16: =VLOOKUP($C16,Тнав!$A$3:$E$250,2,FALSE) -> 0 | G16: 15.92830564 | H16: 21.83001224 | I16: =VLOOKUP($C16,Тнав!$A$3:$E$250,3,FALSE) -> 0 | J16: 8.6679535 | K16: 98.414406 | L16: 0 | M16: 19.71331406 | P16: =Шлейфы!$L$2 -> 5.368657296 | Q16: =VLOOKUP($C16,Тнав!$A$3:$E$250,4,FALSE) -> 0 | R16: 16.68 | S16: 21.12 | T16: 22.73 | U16: 0.7100122403 | V16: 8.42 | W16: 98.4 | X16: 0.0 | Y16: 24.88154582 | Z16: 20.27529526 | AB16: 0.5299011961 | AC16: 00:00:00 | AD16: 276.24 | AE16: -0.62720891 | AF16: 16.68 | AH16: 5.191694358 | AI16: 32.59414073 | AJ16: 0 | AL16: -3.862275073 | AM16: 3.531501679 | AN16: -3.843459867 | AO16: 0.9871822509 | AP16: 129.3766856 | AQ16: -0.2223117 | AR16: -2.855018172 | AS16: -1.162285 | AT16: -1.162285 | AW16: -2.855018172 | AX16: 5.145767123 | AY16: 27.20313854 | AZ16: 20.27529526 | BB16: -0.3250808629 | BC16: -2.20095371 | BD16: 12.41308462 | BE16: 4.28781891 | BH16: максимум | BI16: -0.6422276327 | BJ16: -4.348189795 | BM16: 28.13826561 | BN16: -100 | CS16: 51 | CT16: 5 | CU16: 23.81993745 | CV16: 26.56250529 | CW16: 28.41922441 | CX16: 0.7938961476 | CY16: 0.099990845 | CZ16: 73.96193246 | DA16: 20.162615 | DC16: безгидратный | DD16: 3.718881369 | DE16: 9 | DG16: 29.85118294
A17: 10 | B17: 932.36 | C17: 181 | D17: 18 | F17: =VLOOKUP($C17,Тнав!$A$3:$E$250,2,FALSE) -> 16.03839005 | G17: 18.33418655 | H17: 23.32042409 | I17: =VLOOKUP($C17,Тнав!$A$3:$E$250,3,FALSE) -> 3.206583396 | J17: 9.441696 | K17: 97.94153 | L17: 0 | M17: 17.08251762 | P17: =Шлейфы!$L$2 -> 5.368657296 | Q17: =VLOOKUP($C17,Тнав!$A$3:$E$250,4,FALSE) -> 402.3566101 | R17: 18.19 | S17: 21.78 | T17: 23.45 | U17: 4.747007483 | V17: 9.14 | W17: 98.1 | X17: 0.0 | Y17: 21.3516524 | Z17: 17.63979149 | AB17: 0.5299011961 | AD17: 259.2 | AE17: -0.4048813037 | AF17: 2.151609949 | AG17: 13.41537362 | AH17: 3.445813445 | AI17: 18.79447138 | AJ17: 402.3566101 | AK17: -35.57953479 | AL17: -5.216802187 | AM17: 1.15231021 | AN17: -5.760968565 | AO17: 1.573650139 | AP17: 82.16303477 | AQ17: -0.1541885038 | AR17: -1.836926363 | AS17: 0 | AT17: 0 | AW17: -1.836926363 | AX17: -1.902042228 | AY17: -8.619611032 | AZ17: 17.63979149 | BB17: -0.3250808629 | BC17: -2.20095371 | BD17: 6.46965809 | BE17: 2.416337617 | BH17: ср.значение | BI17: -0.6422276327 | BJ17: -4.348189795 | BM17: 28.22999001 | BN17: -100 | CS17: 52 | CU17: 23.11156489 | CV17: 26.01653551 | CW17: 27.82468473 | CX17: 1.610867486 | CY17: 1.6818542 | CZ17: 82.90913058 | DA17: 50.23581 | DB17: 16 | DC17: безгидратный | DD17: 11.84235477 | DE17: 8 | DG17: 29.96655464
A18: 10 | B18: 928.86 | C18: 182 | F18: =VLOOKUP($C18,Тнав!$A$3:$E$250,2,FALSE) -> 15.08008316 | G18: 18.30068698 | H18: 23.29534862 | I18: =VLOOKUP($C18,Тнав!$A$3:$E$250,3,FALSE) -> 4.944838141 | J18: 9.262371 | K18: 98.35583 | L18: 0 | M18: 15.87439537 | P18: =Шлейфы!$L$2 -> 5.368657296 | Q18: =VLOOKUP($C18,Тнав!$A$3:$E$250,4,FALSE) -> 349.9749397 | R18: 18.13 | S18: 21.74 | T18: 23.39 | U18: 6.500186759 | V18: 8.99 | W18: 98 | X18: 0.0 | Y18: 20.07562538 | Z18: 15.13817024 | AB18: 0.5299011961 | AC18: 00:00:00 | AD18: 242.88 | AE18: -0.8444807366 | AF18: 3.04991684 | AG18: 20.2248012 | AH18: 3.439313017 | AI18: 18.7933547 | AJ18: 349.9749397 | AK18: -30.60074525 | AL18: -3.310581031 | AM18: 0.6515902238 | AN18: -3.468689244 | AO18: 0.913928248 | AP18: 47.71779733 | AQ18: -0.3483835038 | AR18: -4.15047054 | AS18: 0 | AT18: 0 | AW18: -4.15047054 | AX18: -3.320076309 | AY18: -15.04581022 | AZ18: 15.13817024 | BB18: -0.3250808629 | BC18: -2.20095371 | BD18: 5.471179626 | BE18: 2.204650845 | BG18: 4 | BH18: минимум | BM18: 28.44887352 | BN18: -100 | CS18: 53 | CU18: 26.06447133 | CV18: 27.14126115 | CW18: 29.04929181 | CX18: 0.2569614386 | CY18: 0.014709473 | CZ18: 65.98884306 | DA18: 17.153393 | DC18: безгидратный | DD18: 3.241844177 | DE18: 8 | DG18: 29.81619835
A19: 10 | B19: 887.46 | C19: 183 | F19: =VLOOKUP($C19,Тнав!$A$3:$E$250,2,FALSE) -> 15.01106536 | G19: 18.52125563 | H19: 23.69409816 | I19: =VLOOKUP($C19,Тнав!$A$3:$E$250,3,FALSE) -> 5.031947738 | J19: 9.403957 | K19: 98.48149 | L19: 0 | M19: 18.87788773 | P19: =Шлейфы!$L$2 -> 5.368657296 | Q19: =VLOOKUP($C19,Тнав!$A$3:$E$250,4,FALSE) -> 419.3982705 | R19: 18.35 | S19: 22.04 | T19: 23.61 | U19: 6.686045894 | V19: 9.15 | W19: 98.2 | X19: 0.0 | Y19: 24.35303037 | Z19: 17.84402275 | AB19: 0.5299011961 | AC19: 00:00:00 | AD19: 298.32 | AE19: -0.2667754939 | AF19: 3.338934645 | AG19: 22.24315574 | AH19: 3.518744366 | AI19: 18.99841153 | AJ19: 419.3982705 | AK19: -28.86952069 | AL19: -4.13268884 | AM19: 0.9334314438 | AN19: -4.008447814 | AO19: 1.06749027 | AP19: 55.73553994 | AQ19: -0.1216375038 | AR19: -1.449129682 | AS19: 0 | AT19: 0 | AW19: -1.449129682 | AX19: -0.3318216887 | AY19: -1.503738375 | AZ19: 17.84402275 | BB19: -0.3250808629 | BC19: -2.20095371 | BD19: 1.98481417 | BE19: 0.6720576712 | BH19: максимум | BM19: 28.58670998 | BN19: -100 | CS19: 54 | CU19: 24.60088111 | CV19: 25.96043291 | CW19: 27.76208695 | CX19: 0.916049268 | CY19: 3.7744522 | CZ19: 205.9579593 | DA19: 32.34344 | DC19: безгидратный | DD19: 10.61589241 | DE19: 8 | DG19: 29.22599792
A20: 10 | B20: 868.95 | C20: 141 | D20: 14 | E20: 3 | F20: =VLOOKUP($C20,Тнав!$A$3:$E$250,2,FALSE) -> 15.16506083 | G20: 16.79749528 | H20: 22.14460111 | I20: =VLOOKUP($C20,Тнав!$A$3:$E$250,3,FALSE) -> 2.818392525 | J20: 8.979183 | K20: 95.06373 | L20: 0 | M20: 19.73309135 | P20: =Шлейфы!$L$2 -> 5.368657296 | Q20: =VLOOKUP($C20,Тнав!$A$3:$E$250,4,FALSE) -> 473.3450718 | R20: 16.99 | S20: 20.8 | T20: 22.38 | U20: 4.162993635 | V20: 8.78 | W20: 96.9 | X20: 0.0 | Y20: 24.68992485 | Z20: 24.16601944 | AB20: 0.7037411319 | AD20: 279.36 | AE20: 0.6327783781 | AF20: 1.82493917 | AG20: 12.03384009 | AH20: 4.002504718 | AI20: 23.82798536 | AJ20: 470.3450718 | AK20: -40.98174532 | AL20: -8.320103455 | AM20: 0.3043965067 | AN20: -8.888646953 | AO20: 2.429077149 | AP20: 254.7325887 | AQ20: 0.337307 | AR20: 4.802685347 | AS20: 34.78426 | AT20: 115.9475333 | AW20: 4.802685347 | AX20: 1.072793022 | AY20: 5.760668692 | AZ20: 24.16601944 | BB20: -0.6422276327 | BC20: -4.348189795 | BD20: -70.54670721 | BE20: -21.01845078 | BH20: ср.значение | BM20: 28.50909233 | CS20: 61 | CT20: 6 | CU20: 16.24187618 | CV20: 25.12522845 | CW20: 26.84881912 | CX20: 4.939992188 | CY20: 3.6549873 | CZ20: 112.3662805 | DA20: 38.399685 | DC20: безгидратный | DD20: 6.001205921 | DE20: 8 | DG20: 28.28559303
A21: 10 | B21: 923.48 | C21: 142 | F21: =VLOOKUP($C21,Тнав!$A$3:$E$250,2,FALSE) -> 0 | G21: 16.44022764 | H21: 22.28666634 | I21: =VLOOKUP($C21,Тнав!$A$3:$E$250,3,FALSE) -> 0 | J21: 9.0555 | K21: 99.54565 | L21: 0 | M21: 19.89515114 | P21: =Шлейфы!$L$2 -> 5.368657296 | Q21: =VLOOKUP($C21,Тнав!$A$3:$E$250,4,FALSE) -> 0 | R21: 16.49 | S21: 20.87 | T21: 22.46 | U21: 1.416666343 | V21: 8.83 | W21: 99.6 | X21: 0.0 | Y21: 26.02976634 | Z21: 23.12816811 | AB21: 0.7037411319 | AC21: 00:00:00 | AD21: 285.6 | AE21: 0.9699790584 | AF21: 16.49 | AH21: 4.429772362 | AI21: 26.94471427 | AJ21: 0 | AL21: -7.229024571 | AM21: 0.1170219316 | AN21: -6.891971692 | AO21: 1.856686982 | AP21: 119.7801387 | AQ21: -0.2437306 | AR21: -3.2130695 | AS21: 34.91769 | AT21: 116.3923 | AW21: -3.2130695 | AX21: 1.161733788 | AY21: 6.191518483 | AZ21: 23.12816811 | BB21: -0.6422276327 | BC21: -4.348189795 | BD21: -92.67965287 | BE21: -25.57234129 | BG21: 5 | BH21: минимум | BI21: -0.5684715978 | BJ21: -3.848825983 | BM21: 28.75413704 | CS21: 62 | CU21: 22.40255359 | CV21: 24.71195071 | CW21: 26.4244889 | CX21: 1.054174704 | CY21: 4.8542213 | CZ21: 252.4753041 | DA21: 42.067276 | DC21: безгидратный | DD21: 13.71376038 | DE21: 8 | DG21: 27.6042347
A22: 10 | B22: 865.21 | C22: 143 | F22: =VLOOKUP($C22,Тнав!$A$3:$E$250,2,FALSE) -> 0 | G22: 16.39501894 | H22: 22.51836124 | I22: =VLOOKUP($C22,Тнав!$A$3:$E$250,3,FALSE) -> 0 | J22: 9.191669 | K22: 98.49151 | L22: 0 | M22: 21.62868118 | P22: =Шлейфы!$L$2 -> 5.368657296 | Q22: =VLOOKUP($C22,Тнав!$A$3:$E$250,4,FALSE) -> 0 | R22: 16.65 | S22: 21.16 | T22: 22.77 | U22: 1.358361238 | V22: 8.97 | W22: 98.5 | X22: 0.0 | Y22: 28.30625805 | Z22: 22.14073372 | AB22: 0.7037411319 | AC22: 00:00:00 | AD22: 313.68 | AE22: 0.01553668749 | AF22: 16.65 | AH22: 4.764981063 | AI22: 29.06358987 | AJ22: 0 | AL22: -6.175964682 | AM22: -0.5261095295 | AN22: -6.197556327 | AO22: 1.6611563 | AP22: 139.8934877 | AQ22: 0.347464 | AR22: 4.612374391 | AS22: 40.05892 | AT22: 100.1473 | AW22: 4.612374391 | AX22: 5.341821897 | AY22: 28.76491262 | AZ22: 22.14073372 | BB22: -0.6422276327 | BC22: -4.348189795 | BD22: -47.35421639 | BE22: -13.26061442 | BH22: максимум | BI22: -0.5684715978 | BJ22: -3.848825983 | BM22: 28.7809124 | CS22: 63 | CY22: 0 | CZ22: 0 | DA22: 0
A23: 10 | B23: 862.2 | C23: 144 | F23: =VLOOKUP($C23,Тнав!$A$3:$E$250,2,FALSE) -> 0 | G23: 17.19896214 | H23: 22.77433167 | I23: =VLOOKUP($C23,Тнав!$A$3:$E$250,3,FALSE) -> 0 | J23: 8.461208 | K23: 95.22169 | L23: 0 | M23: 21.13083839 | P23: =Шлейфы!$L$2 -> 5.368657296 | Q23: =VLOOKUP($C23,Тнав!$A$3:$E$250,4,FALSE) -> 0 | R23: 17.23 | S23: 21.33 | T23: 22.95 | U23: 1.444331671 | V23: 8.28 | W23: 96.8 | X23: 0.0 | Y23: 26.84453036 | Z23: 28.3434124 | AB23: 0.7037411319 | AC23: 00:00:00 | AD23: 308.16 | AE23: 0.3984433592 | AF23: 17.23 | AH23: 4.131037856 | AI23: 24.01911128 | AJ23: 0 | AL23: -9.354966324 | AM23: -2.522280237 | AN23: -9.098188311 | AO23: 2.522280237 | AP23: 275.8697288 | AQ23: -0.695472 | AR23: -8.960997797 | AS23: 39.94182 | AT23: 133.1394 | AW23: -8.960997797 | AX23: 3.150855898 | AY23: 16.11947457 | AZ23: 28.3434124 | BB23: -0.6422276327 | BC23: -4.348189795 | BD23: -114.6692153 | BE23: -27.4200644 | BH23: ср.значение | BI23: -0.5684715978 | BJ23: -3.848825983 | BM23: 28.81586266 | CS23: 64 | CU23: 22.56280761 | CV23: 24.37212181 | CW23: 26.06110985 | CX23: 1.563314666 | CY23: 4.454708 | CZ23: 236.5928175 | DA23: 40.6051 | DC23: безгидратный | DD23: 13.04095078 | DE23: 8 | DG23: 28.03109169
A24: 10 | B24: 862.32 | C24: 151 | D24: 15 | F24: =VLOOKUP($C24,Тнав!$A$3:$E$250,2,FALSE) -> 13.84223941 | G24: 17.58084559 | H24: 23.51577042 | I24: =VLOOKUP($C24,Тнав!$A$3:$E$250,3,FALSE) -> 5.988702254 | J24: 8.847839 | K24: 95.95741 | L24: 0 | M24: 22.02190018 | P24: =Шлейфы!$L$2 -> 5.368657296 | Q24: =VLOOKUP($C24,Тнав!$A$3:$E$250,4,FALSE) -> 442.5365613 | R24: 17.61 | S24: 21.99 | T24: 23.66 | U24: 7.51447267 | V24: 8.62 | W24: 96.9 | X24: 0.0 | Y24: 1.18819669 | Z24: 25.18816185 | AB24: 0.7037411319 | AD24: 13.95 | AE24: -1.097629144 | AF24: 3.767760591 | AG24: 27.21929942 | AH24: 4.409154406 | AI24: 25.07930795 | AJ24: 442.5365613 | AK24: -96.84771808 | AL24: -1.518094982 | AM24: -0.4309380333 | AN24: -1.65129077 | AO24: 0.4309380333 | AP24: 15.62351559 | AQ24: 0.6295895 | AR24: 8.891125673 | AS24: 73.869255 | AT24: 295.47702 | AW24: 8.891125673 | AX24: 7.405178536 | AY24: 38.99358461 | AZ24: 25.18816185 | BB24: -0.6422276327 | BC24: -4.348189795 | BD24: -24.92128075 | BE24: -6.645091504 | BG24: 6 | BH24: минимум | BI24: -0.6459145678 | BJ24: -4.373152117 | BM24: 28.86354256 | BN24: -100 | CS24: 71 | CT24: 7 | CU24: 22.5867018 | CV24: 24.99112046 | CW24: 26.68301931 | CX24: 1.063054396 | CY24: 9.385823 | CZ24: 272.3451242 | DA24: 49.82051 | DC24: безгидратный | DD24: 14.64114952 | DE24: 8 | DG24: 28.43634224
A25: 10 | B25: 902.12 | C25: 152 | F25: =VLOOKUP($C25,Тнав!$A$3:$E$250,2,FALSE) -> 15.15369246 | G25: 17.46897707 | H25: 22.0598812 | I25: =VLOOKUP($C25,Тнав!$A$3:$E$250,3,FALSE) -> 5.076918097 | J25: 8.857632 | K25: 95.65576 | L25: 0 | M25: 17.61448479 | P25: =Шлейфы!$L$2 -> 5.368657296 | Q25: =VLOOKUP($C25,Тнав!$A$3:$E$250,4,FALSE) -> 396.737553 | R25: 17.54 | S25: 20.7 | T25: 22.27 | U25: 6.436799296 | V25: 8.6 | W25: 97.7 | X25: 0.0 | Y25: 21.22410231 | Z25: 19.7810154 | AB25: 0.7037411319 | AC25: 00:00:00 | AD25: 248.16 | AE25: 0.4374361785 | AF25: 2.386307542 | AG25: 15.74736684 | AH25: 3.231022935 | AI25: 18.49577638 | AJ25: 396.737553 | AK25: -37.44983349 | AL25: -7.106480288 | AM25: -1.796987629 | AN25: -6.848998608 | AO25: 1.796987629 | AP25: 76.83734447 | AQ25: -0.3488194 | AR25: -4.620491695 | AS25: 40.008156 | AT25: 133.36052 | AW25: -4.620491695 | AX25: 0.3714327685 | AY25: 2.0859758 | AZ25: 19.7810154 | BB25: -0.6422276327 | BC25: -4.348189795 | BD25: -50.77611233 | BE25: -17.05313237 | BH25: максимум | BI25: -0.6459145678 | BJ25: -4.373152117 | BM25: 28.7089138 | BN25: -100 | CS25: 72 | CU25: 22.46700373 | CV25: 25.34381005 | CW25: 27.05958599 | CX25: 0.5390747276 | CY25: 9.384509 | CZ25: 306.728324 | DA25: 95.51758 | DC25: безгидратный | DD25: 16.2462635 | DE25: 8 | DG25: 28.39918518
A26: 10 | B26: 892.38 | C26: 153 | F26: =VLOOKUP($C26,Тнав!$A$3:$E$250,2,FALSE) -> 14.34774736 | G26: 18.23339158 | H26: 22.38093297 | I26: =VLOOKUP($C26,Тнав!$A$3:$E$250,3,FALSE) -> 5.044457935 | J26: 8.187038 | K26: 99.537384 | L26: 0 | M26: 18.54358673 | P26: =Шлейфы!$L$2 -> 5.368657296 | Q26: =VLOOKUP($C26,Тнав!$A$3:$E$250,4,FALSE) -> 510.1182033 | R26: 17.57 | S26: 20.78 | T26: 22.36 | U26: 6.645390905 | V26: 8.27 | W26: 99.5 | X26: 0.0 | Y26: 26.55514188 | Z26: 18.04018974 | AB26: 0.7037411319 | AC26: 00:00:00 | AD26: 311.04 | AE26: 0.9934717477 | AF26: 3.222252635 | AG26: 22.45824765 | AH26: 2.546608417 | AI26: 13.96672915 | AJ26: 510.1182033 | AK26: -39.02589675 | AL26: -2.139637763 | AM26: -0.8809326161 | AN26: -3.393626826 | AO26: 0.8809326161 | AP26: 35.44603108 | AQ26: -2.501739 | AR26: -27.45302212 | AS26: 53.95887 | AT26: 119.9086 | AW26: -27.45302212 | AX26: -0.3569052168 | AY26: -1.992688947 | AZ26: 18.04018974 | BB26: -0.6422276327 | BC26: -4.348189795 | BD26: -50.26489706 | BE26: -17.0054965 | BH26: ср.значение | BI26: -0.6459145678 | BJ26: -4.373152117 | BM26: 28.75285149 | BN26: -100 | CS26: 73 | CU26: 22.37321004 | CV26: 26.21462805 | CW26: 27.98673691 | CX26: 0.4658775704 | CY26: 9.959943 | CZ26: 295.2834159 | DA26: 96.26707 | DC26: безгидратный | DD26: 15.09022427 | DE26: 8 | DG26: 28.92179489
A27: 10 | B27: 919.77 | C27: 154 | F27: =VLOOKUP($C27,Тнав!$A$3:$E$250,2,FALSE) -> 15.60976498 | G27: 17.56736486 | H27: 22.61103815 | I27: =VLOOKUP($C27,Тнав!$A$3:$E$250,3,FALSE) -> 3.744574082 | J27: 8.792137 | K27: 20.094774 | L27: 0 | M27: 18.76135445 | P27: =Шлейфы!$L$2 -> 5.368657296 | Q27: =VLOOKUP($C27,Тнав!$A$3:$E$250,4,FALSE) -> 444.0166974 | R27: 17.66 | S27: 21.23 | T27: 22.84 | U27: 5.125612233 | V27: 8.57 | W27: 32.1 | X27: 0.0 | Y27: 23.13404476 | Z27: 19.84080696 | AB27: 0.7037411319 | AC27: 00:00:00 | AD27: 272.4 | AE27: 0.2182247304 | AF27: 2.050235022 | AG27: 13.13431064 | AH27: 3.662635136 | AI27: 20.84908672 | AJ27: 444.0166974 | AK27: -38.65095579 | AL27: -7.30322886 | AM27: -0.5387472035 | AN27: -7.419086956 | AO27: 2.006612961 | AP27: 116.6870233 | AQ27: -0.8868778 | AR27: -10.95208328 | AS27: 19.85005 | AT27: 36.091 | AW27: -10.95208328 | AX27: 0.4127803432 | AY27: 2.148524009 | AZ27: 19.84080696 | BB27: -0.6422276327 | BC27: -4.348189795 | BD27: -54.45108589 | BE27: -16.9580189 | BG27: 7 | BH27: минимум | BM27: 29.07682228 | BN27: -100 | CS27: 74 | CU27: 22.56305228 | CV27: 25.47267528 | CW27: 27.19462812 | CX27: 0.4127929282 | CY27: 9.775264 | CZ27: 273.0302216 | DA27: 100 | DC27: безгидратный | DD27: 14.38519001 | DE27: 8 | DG27: 28.26911545
A28: 10 | B28: 929.73 | C28: 171 | D28: 17 | F28: =VLOOKUP($C28,Тнав!$A$3:$E$250,2,FALSE) -> 16.68880636 | G28: 17.77011022 | H28: 22.41110065 | I28: =VLOOKUP($C28,Тнав!$A$3:$E$250,3,FALSE) -> 2.990846702 | J28: 9.355607 | K28: 95.04671 | L28: 0 | M28: 18.60676575 | P28: =Шлейфы!$L$2 -> 5.368657296 | Q28: =VLOOKUP($C28,Тнав!$A$3:$E$250,4,FALSE) -> 442.8238554 | R28: 17.9 | S28: 20.97 | T28: 22.56 | U28: 4.431947348 | V28: 9.04 | W28: 97.1 | X28: 0.0 | Y28: 21.80917471 | Z28: 19.65361404 | AB28: 0.7037411319 | AD28: 260.4 | AE28: -0.3643866345 | AF28: 1.211193636 | AG28: 7.257521058 | AH28: 3.19988978 | AI28: 18.0071465 | AJ28: 442.8238554 | AK28: -41.19557996 | AL28: -10.26612174 | AM28: -0.2499186374 | AN28: -10.52712926 | AO28: 2.896411261 | AP28: 475.820708 | AQ28: 1.2538816 | AR28: 19.41504111 | AS28: 0.044506 | AT28: 0.12716 | AW28: 19.41504111 | AX28: 2.724157149 | AY28: 15.18671513 | AZ28: 19.65361404 | BB28: -0.6422276327 | BC28: -4.348189795 | BD28: -39.87094527 | BE28: -12.73648739 | BH28: максимум | BM28: 28.23731232 | BN28: -100 | CS28: 81 | CT28: 8 | CU28: 18.74968983 | CV28: 24.43396104 | CW28: 26.0905836 | CX28: 0.9899168749 | CY28: 8.098923 | CZ28: 374.0917339 | DA28: 100 | DC28: безгидратный | DD28: 20.59519768 | DE28: 8 | DG28: 27.9672699
A29: 10 | B29: 928.95 | C29: 172 | F29: =VLOOKUP($C29,Тнав!$A$3:$E$250,2,FALSE) -> 15.22196768 | G29: 17.83585709 | H29: 22.23305524 | I29: =VLOOKUP($C29,Тнав!$A$3:$E$250,3,FALSE) -> 6.707838221 | J29: 8.976528 | K29: 99.675316 | L29: 0 | M29: 13.99503326 | P29: =Шлейфы!$L$2 -> 5.368657296 | Q29: =VLOOKUP($C29,Тнав!$A$3:$E$250,4,FALSE) -> 292.4502679 | R29: 17.87 | S29: 20.8 | T29: 22.39 | U29: 8.14089346 | V29: 8.66 | W29: 99.5 | X29: 0.0 | Y29: 16.69227319 | Z29: 15.03764439 | AB29: 0.7037411319 | AC29: 00:00:00 | AD29: 198.96 | AE29: -1.143578894 | AF29: 2.648032317 | AG29: 17.39612363 | AH29: 2.964142914 | AI29: 16.61901023 | AJ29: 292.4502679 | AK29: -31.96792008 | AL29: -6.712765105 | AM29: -0.5463034076 | AN29: -6.87233444 | AO29: 1.786514747 | AP29: 58.09482952 | AQ29: 0.765819 | AR29: 11.35943456 | AS29: 21.285797 | AT29: 60.81656286 | AW29: 11.35943456 | AX29: 2.003160664 | AY29: 13.25722376 | AZ29: 15.03764439 | BB29: -0.6422276327 | BC29: -4.348189795 | BD29: -27.05203729 | BE29: -10.91032649 | BH29: ср.значение | BM29: 28.61665154 | BN29: -100 | CS29: 82 | CU29: 19.23970006 | CV29: 23.6599159 | CW29: 25.26642419 | CX29: 1.951045969 | CY29: 7.8528824 | CZ29: 270.0397792 | DA29: 100 | DC29: безгидратный | DD29: 15.38022709 | DE29: 8 | DG29: 27.96019173
A30: 10 | B30: 915.76 | C30: 173 | F30: =VLOOKUP($C30,Тнав!$A$3:$E$250,2,FALSE) -> 14.62696577 | G30: 17.93359297 | H30: 23.5136303 | I30: =VLOOKUP($C30,Тнав!$A$3:$E$250,3,FALSE) -> 6.396668515 | J30: 9.0393505 | K30: 98.28348 | L30: 0 | M30: 17.35285378 | P30: =Шлейфы!$L$2 -> 5.368657296 | Q30: =VLOOKUP($C30,Тнав!$A$3:$E$250,4,FALSE) -> 339.5031854 | R30: 17.97 | S30: 21.97 | T30: 23.65 | U30: 7.940298816 | V30: 8.76 | W30: 98 | X30: 0.0 | Y30: 21.68149804 | Z30: 18.7652359 | AB30: 0.7037411319 | AC30: 00:00:00 | AD30: 259.92 | AE30: -1.37930121 | AF30: 3.343034234 | AG30: 22.85528172 | AH30: 4.036407026 | AI30: 22.50752 | AJ30: 339.5031854 | AK30: -23.44107178 | AL30: -1.642842136 | AM30: -0.4622527071 | AN30: -1.513897606 | AO30: 0.3904260939 | AP30: 11.41945348 | AQ30: -0.2645293 | AR30: -3.29606883 | AS30: 20.13733 | AT30: 80.54932 | AW30: -3.29606883 | AX30: 4.417587969 | AY30: 24.27387072 | AZ30: 18.7652359 | BB30: -0.6422276327 | BC30: -4.348189795 | BD30: -16.93233412 | BE30: -5.490810612 | BG30: 8 | BH30: минимум | BI30: -0.1842084574 | BJ30: -1.247179806 | BM30: 28.74564552 | BN30: -100 | CS30: 83 | CU30: 19.86462874 | CV30: 24.82037208 | CW30: 26.51063942 | CX30: 0.6686256317 | CY30: 7.6504707 | CZ30: 385.1359295 | DA30: 100 | DC30: безгидратный | DD30: 20.84747887 | DE30: 8 | DG30: 28.11227417
A31: 10 | B31: 924.33 | C31: 111 | D31: 11 | E31: 4 | F31: =VLOOKUP($C31,Тнав!$A$3:$E$250,2,FALSE) -> 10.93487055 | G31: 21.17330406 | H31: 26.63676273 | I31: =VLOOKUP($C31,Тнав!$A$3:$E$250,3,FALSE) -> 0 | J31: 4.3109665 | K31: 29.126446 | L31: 0 | M31: 5.379207134 | P31: =Шлейфы!$L$2 -> 5.368657296 | Q31: =VLOOKUP($C31,Тнав!$A$3:$E$250,4,FALSE) -> 182.0131981 | R31: 19.8 | S31: 24.77 | T31: 26.7 | U31: 1.866762732 | V31: 4.27 | W31: 34.9 | X31: 0.0 | Y31: 7.751541751 | Z31: 23.93841934 | AB31: 0.8930395784 | AD31: 102.72 | AF31: 8.865129447 | AG31: 81.07210236 | AH31: 3.596695938 | AI31: 16.98693755 | AJ31: 178.0131981 | AK31: -43.5645321 | AM31: 0.4823895771 | BH31: максимум | BI31: -0.1842084574 | BJ31: -1.247179806 | BM31: 0 | CS31: 84 | CU31: 19.22161959 | CV31: 24.22497836 | CW31: 25.86985439 | CX31: 1.614575404 | CY31: 7.6334114 | CZ31: 407.0504683 | DA31: 100 | DC31: безгидратный | DD31: 22.61217308 | DE31: 8 | DG31: 28.08701515
A32: 10 | B32: 905.63 | C32: 112 | F32: =VLOOKUP($C32,Тнав!$A$3:$E$250,2,FALSE) -> 18.78745843 | G32: 20.38835658 | H32: 26.00039297 | I32: =VLOOKUP($C32,Тнав!$A$3:$E$250,3,FALSE) -> 1.660368079 | J32: 7.0800667 | K32: 64.25681 | L32: 0 | M32: 15.73528099 | P32: =Шлейфы!$L$2 -> 5.368657296 | Q32: =VLOOKUP($C32,Тнав!$A$3:$E$250,4,FALSE) -> 386.6893823 | R32: 19.85 | S32: 24.14 | T32: 25.99 | U32: 3.520761045 | V32: 7.01 | W32: 69.9 | X32: 0.0 | Y32: 21.38762356 | Z32: 27.38804054 | AB32: 0.8930395784 | AC32: 00:00:00 | AD32: 284.16 | AE32: -0.08644415677 | AF32: 1.062541572 | AG32: 5.655589746 | AH32: 3.751643419 | AI32: 18.40091135 | AJ32: 386.6893823 | AK32: -26.5146619 | AL32: -4.164932827 | AM32: 0.06742629674 | AN32: -4.097157388 | AO32: 1.178600154 | AP32: 139.6503302 | AQ32: -0.8459833 | AR32: -12.06341689 | AS32: 44.771996 | AT32: 223.85998 | AW32: -12.06341689 | AX32: 2.047566921 | AY32: 9.625130555 | AZ32: 27.38804054 | BB32: -0.6901679848 | BC32: -4.672769024 | BD32: -37.75073174 | BE32: -9.988090978 | BH32: ср.значение | BI32: -0.1842084574 | BJ32: -1.247179806 | BM32: 29.80799294 | CS32: 91 | CT32: 9 | CU32: 18.39849624 | CV32: 23.79408106 | CW32: 25.40018153 | CX32: 1.595168505 | CY32: 8.321475 | CZ32: 396.4114321 | DA32: 98.04742 | DC32: безгидратный | DD32: 22.45211792 | DE32: 8 | DG32: 27.69854164
A33: 10 | B33: 921.93 | C33: 113 | F33: =VLOOKUP($C33,Тнав!$A$3:$E$250,2,FALSE) -> 16.48407603 | G33: 20.00829453 | H33: 25.74201617 | I33: =VLOOKUP($C33,Тнав!$A$3:$E$250,3,FALSE) -> 4.858971585 | J33: 7.6894417 | K33: 65.10919 | L33: 0 | M33: 19.31368065 | P33: =Шлейфы!$L$2 -> 5.368657296 | Q33: =VLOOKUP($C33,Тнав!$A$3:$E$250,4,FALSE) -> 403.7367139 | R33: 19.42 | S33: 23.94 | T33: 25.78 | U33: 6.660987757 | V33: 7.68 | W33: 73 | X33: 0.0 | Y33: 25.83197856 | Z33: 24.29016113 | AB33: 0.8930395784 | AC33: 00:00:00 | AD33: 335.52 | AE33: 0.2901613498 | AF33: 2.935923969 | AG33: 17.81066748 | AH33: 3.931705475 | AI33: 19.65037784 | AJ33: 403.7367139 | AK33: -16.89633653 | AL33: 3.894266587 | AM33: 0.5406081 | AN33: 3.701381302 | AO33: -0.993031674 | AP33: -34.63301576 | AQ33: -1.788491 | AR33: -21.61605772 | AS33: 45.140884 | AT33: 300.9392267 | AW33: -21.61605772 | AX33: 0.08061342946 | AY33: 0.3861639388 | AZ33: 24.29016113 | BB33: -0.6901679848 | BC33: -4.672769024 | BD33: -31.53990228 | BE33: -9.190674733 | BG33: 9 | BH33: минимум | BI33: -0.7454842463 | BJ33: -5.047286705 | BM33: 29.897892 | CS33: 92 | CU33: 18.88474373 | CV33: 24.46101848 | CW33: 26.11947553 | CX33: 0.6080278156 | CY33: 7.301378 | CZ33: 394.944521 | DA33: 95.1591 | DC33: безгидратный | DD33: 21.71775818 | DE33: 8 | DG33: 27.40467644
A34: 10 | B34: 853.41 | C34: 114 | F34: =VLOOKUP($C34,Тнав!$A$3:$E$250,2,FALSE) -> 20.73436747 | G34: 22.93118979 | H34: 26.33681605 | I34: =VLOOKUP($C34,Тнав!$A$3:$E$250,3,FALSE) -> 2.110760147 | J34: 6.693245 | K34: 65.12121 | L34: 0 | M34: 18.27936745 | P34: =Шлейфы!$L$2 -> 5.368657296 | Q34: =VLOOKUP($C34,Тнав!$A$3:$E$250,4,FALSE) -> 416.5654951 | R34: 21.49 | S34: 24.57 | T34: 26.8 | U34: 3.877576192 | V34: 6.37 | W34: 60 | X34: 0.0 | Y34: 21.72840908 | Z34: 27.35855675 | AB34: 0.8930395784 | AC34: 00:00:00 | AD34: 313.44 | AE34: 1.863644461 | AF34: 0.7556325321 | AG34: 3.644348125 | AH34: 1.638810206 | AI34: 7.146642719 | AJ34: 416.5654951 | AK34: -24.75612991 | AL34: -3.665727854 | AM34: 0.6883236203 | AN34: -3.23123693 | AO34: 0.9290366799 | AP34: 99.54504198 | AQ34: -1.0614967 | AR34: -15.88282286 | AS34: 40.021976 | AT34: 200.10988 | AW34: -15.88282286 | AX34: 0.4563823794 | AY34: 2.110152451 | AZ34: 27.35855675 | BB34: -0.6901679848 | BC34: -4.672769024 | BD34: -70.12967006 | BE34: -17.08767697 | BH34: максимум | BI34: -0.7454842463 | BJ34: -5.047286705 | BM34: 29.73108292 | CS34: 93 | CU34: 18.15766583 | CV34: 23.81808029 | CW34: 25.42580071 | CX34: 5.815815133 | CY34: 8.220101 | CZ34: 288.6821489 | DA34: 95.936386 | DC34: безгидратный | DD34: 16.3330822 | DE34: 8 | DG34: 27.48121452
A35: 10 | B35: 924.13 | C35: 81 | D35: 8 | E35: 5 | F35: =VLOOKUP($C35,Тнав!$A$3:$E$250,2,FALSE) -> 15.26833789 | G35: 18.74968983 | H35: 26.0905836 | I35: =VLOOKUP($C35,Тнав!$A$3:$E$250,3,FALSE) -> 4.833313364 | J35: 8.098923 | K35: 100 | L35: 0 | M35: 20.59519768 | P35: =Шлейфы!$L$2 -> 5.368657296 | Q35: =VLOOKUP($C35,Тнав!$A$3:$E$250,4,FALSE) -> 432.6013907 | R35: 18.72 | S35: 24.35 | T35: 26.22 | U35: 6.573896968 | V35: 7.97 | W35: 100 | X35: 0.0 | Y35: 28.00169275 | Z35: 16.42486763 | AB35: 0.9306661594 | AD35: 350.16 | AE35: -1.70313069 | AF35: 3.451662111 | AG35: 22.60666574 | AH35: 5.600310172 | AI35: 29.86881502 | AJ35: 427.6013907 | AK35: -19.05712567 | AL35: -3.011195571 | AM35: -0.8388406737 | AN35: -2.936438712 | AO35: 0.8388406737 | AP35: 47.73222868 | AQ35: 0.441832 | AR35: 6.595590321 | AS35: 8.634445 | AT35: 9.593827778 | AW35: 6.595590321 | AX35: 5.812913606 | AY35: 28.42931346 | AZ35: 16.42486763 | BB35: -0.5684715978 | BC35: -3.848825983 | BD35: 23.87857745 | BE35: 7.144597956 | BH35: ср.значение | BI35: -0.7454842463 | BJ35: -5.047286705 | BM35: 30.29297256 | BN35: -100 | CS35: 94 | CU35: 19.40964349 | CV35: 23.40927037 | CW35: 24.9964189 | CX35: 1.326739068 | CY35: 7.5592556 | CZ35: 376.4550902 | DA35: 98.59389 | DC35: безгидратный | DD35: 21.6859436 | DE35: 8 | DG35: 27.46777534
A36: 10 | B36: 902.49 | C36: 82 | F36: =VLOOKUP($C36,Тнав!$A$3:$E$250,2,FALSE) -> 17.73322878 | G36: 19.23970006 | H36: 25.26642419 | I36: =VLOOKUP($C36,Тнав!$A$3:$E$250,3,FALSE) -> 2.209230935 | J36: 7.8528824 | K36: 100 | L36: 0 | M36: 15.38022709 | P36: =Шлейфы!$L$2 -> 5.368657296 | Q36: =VLOOKUP($C36,Тнав!$A$3:$E$250,4,FALSE) -> 376.1805123 | R36: 19.21 | S36: 23.62 | T36: 25.43 | U36: 3.855655129 | V36: 7.67 | W36: 100 | X36: 0.0 | Y36: 19.58367116 | Z36: 16.82728577 | AB36: 0.9306661594 | AC36: 00:00:00 | AD36: 251.52 | AE36: -0.2432108104 | AF36: 1.476771219 | AG36: 8.327706348 | AH36: 4.380299942 | AI36: 22.76698664 | AJ36: 376.1805123 | AK36: -33.13848225 | AL36: -8.278425522 | AM36: -2.309177097 | AN36: -7.882780173 | AO36: 2.309177097 | AP36: 308.6373408 | AQ36: 0.3343033 | AR36: 5.313401783 | AS36: -25.42657 | AT36: -25.42657 | AW36: 5.313401783 | AX36: 4.857478637 | AY36: 25.7827596 | AZ36: 16.82728577 | BB36: -0.5684715978 | BC36: -3.848825983 | BD36: -30.26127747 | BE36: -8.152633329 | BG36: 10 | BH36: минимум | BI36: -0.5979742156 | BJ36: -4.048572889 | BM36: 30.25918198 | BN36: -100 | CS36: 101 | CT36: 10 | CU36: 22.60099777 | CV36: 23.62449593 | CW36: 25.25458615 | CX36: 1.894977467 | CY36: 5.2681847 | CZ36: 133.4102826 | DA36: 30.097227 | DC36: безгидратный | DD36: 7.602203846 | DE36: 8 | DG36: 27.70716095
A37: 10 | B37: 909.6 | C37: 83 | F37: =VLOOKUP($C37,Тнав!$A$3:$E$250,2,FALSE) -> 17.20697633 | G37: 19.86462874 | H37: 26.51063942 | I37: =VLOOKUP($C37,Тнав!$A$3:$E$250,3,FALSE) -> 2.972933362 | J37: 7.6504707 | K37: 100 | L37: 0 | M37: 20.84747887 | P37: =Шлейфы!$L$2 -> 5.368657296 | Q37: =VLOOKUP($C37,Тнав!$A$3:$E$250,4,FALSE) -> 471.6023371 | R37: 19.55 | S37: 24.74 | T37: 26.64 | U37: 4.743572782 | V37: 7.52 | W37: 100 | X37: 0.0 | Y37: 27.28755518 | Z37: 15.52248096 | AB37: 0.9306661594 | AC37: 00:00:00 | AD37: 356.88 | AE37: 0.3340416929 | AF37: 2.343023674 | AG37: 13.61670772 | AH37: 4.875371258 | AI37: 24.54297697 | AJ37: 471.6023371 | AK37: -24.32607475 | AL37: -3.418220501 | AM37: -1.118693811 | AN37: -3.794081194 | AO37: 1.118693811 | AP37: 120.0011226 | AQ37: -0.554707 | AR37: -8.285392084 | AS37: -14.99244 | AT37: -18.74055 | AW37: -8.285392084 | AX37: 4.776708224 | AY37: 23.6918748 | AZ37: 15.52248096 | BB37: -0.5684715978 | BC37: -3.848825983 | BD37: -23.64122839 | BE37: -5.727543525 | BH37: максимум | BI37: -0.5979742156 | BJ37: -4.048572889 | BM37: 30.3417244 | BN37: -100 | CS37: 102 | CU37: 20.7843287 | CV37: 24.94423549 | CW37: 26.66289331 | CX37: 0.1490554201 | CY37: 4.276119 | CZ37: 59.81610765 | DA37: 83.026344 | DB37: 16 | DC37: безгидратный | DD37: 8.939611435 | DE37: 8 | DG37: 28.22583199
A38: 10 | B38: 864.36 | C38: 84 | F38: =VLOOKUP($C38,Тнав!$A$3:$E$250,2,FALSE) -> 17.66290273 | G38: 19.22161959 | H38: 25.86985439 | I38: =VLOOKUP($C38,Тнав!$A$3:$E$250,3,FALSE) -> 1.294436424 | J38: 7.6334114 | K38: 100 | L38: 0 | M38: 22.61217308 | P38: =Шлейфы!$L$2 -> 5.368657296 | Q38: =VLOOKUP($C38,Тнав!$A$3:$E$250,4,FALSE) -> 525.3129817 | R38: 19.81 | S38: 24.64 | T38: 26.54 | U38: 2.524290812 | V38: 7.53 | W38: 100 | X38: 0.0 | Y38: 27.84028887 | Z38: 29.72105026 | AB38: 0.9306661594 | AC38: 00:00:00 | AD38: 369.12 | AE38: 1.414268397 | AF38: 2.14709727 | AG38: 12.15597064 | AH38: 5.418380407 | AI38: 28.18898991 | AJ38: 525.3129817 | AK38: -29.73331845 | AL38: -2.720244348 | AM38: -1.171575803 | AN38: -4.034750866 | AO38: 1.171575803 | AP38: 246.3937196 | AQ38: 0.965541 | AR38: 16.39288625 | AS38: 33.36659 | AT38: 51.33321538 | AW38: 16.39288625 | AX38: 5.905395102 | AY38: 30.95255356 | AZ38: 29.72105026 | BB38: -0.5684715978 | BC38: -3.848825983 | BD38: -7.291348028 | BE38: -2.012786997 | BH38: ср.значение | BI38: -0.5979742156 | BJ38: -4.048572889 | BM38: 30.28648949 | BN38: -100 | CS38: 103 | CU38: 24.38703938 | CV38: 25.4882742 | CW38: 27.25716042 | CX38: 0.3110785411 | CY38: 4.478462 | CZ38: 132.0678958 | DA38: 97.93828 | DB38: 20 | DC38: безгидратный | DD38: 6.941339016 | DE38: 8 | DG38: 28.03160667
A39: 10 | B39: 875.11 | C39: 91 | D39: 9 | F39: =VLOOKUP($C39,Тнав!$A$3:$E$250,2,FALSE) -> 15.84538332 | G39: 18.39849624 | H39: 25.40018153 | I39: =VLOOKUP($C39,Тнав!$A$3:$E$250,3,FALSE) -> 2.808676635 | J39: 8.321475 | K39: 98.04742 | L39: 0 | M39: 22.45211792 | P39: =Шлейфы!$L$2 -> 5.368657296 | Q39: =VLOOKUP($C39,Тнав!$A$3:$E$250,4,FALSE) -> 527.4014371 | R39: 18.44 | S39: 23.73 | T39: 25.55 | U39: 4.478858164 | V39: 7.99 | W39: 98.1 | X39: 0.0 | Y39: 30.83859835 | Z39: 29.72105026 | AB39: 0.9306661594 | AC39: 1900-01-01 | AD39: 379.68 | AE39: 2.414268397 | AF39: 2.594616683 | AG39: 16.37459083 | AH39: 5.331503764 | AI39: 28.97793219 | AJ39: 527.4014371 | AK39: -28.00929742 | AL39: -4.132385535 | AM39: 1.519505395 | AN39: -4.570643873 | AO39: 1.30659083 | AP39: 116.4470007 | AQ39: 0.923454 | AR39: 15.18414259 | AS39: -10.5697 | AT39: -10.5697 | AV39: 0 | AW39: 15.18414259 | AX39: 9.226015255 | AY39: 45.92427787 | AZ39: 25.05220604 | BB39: -0.5684715978 | BC39: -3.848825983 | BD39: -2.237761247 | BE39: -0.5620939668 | BG39: 11 | BH39: минимум | BI39: -0.5463459089 | BJ39: -3.699024434 | BM39: 29.88630486 | BN39: -100 | CS39: 104 | CU39: 22.37059248 | CV39: 24.78097092 | CW39: 26.48342362 | CX39: 0.7731186224 | CY39: 6.6509705 | CZ39: 241.3832623 | DA39: 45.063232 | DC39: безгидратный | DD39: 13.08035183 | DE39: 8 | DG39: 27.90803528
A40: 10 | B40: 918.42 | C40: 92 | F40: =VLOOKUP($C40,Тнав!$A$3:$E$250,2,FALSE) -> 15.99151539 | G40: 18.88474373 | H40: 26.11947553 | I40: =VLOOKUP($C40,Тнав!$A$3:$E$250,3,FALSE) -> 2.991035505 | J40: 7.301378 | K40: 95.1591 | L40: 0 | M40: 21.71775818 | P40: =Шлейфы!$L$2 -> 5.368657296 | Q40: =VLOOKUP($C40,Тнав!$A$3:$E$250,4,FALSE) -> 494.970771 | R40: 18.84 | S40: 24.36 | T40: 26.23 | U40: 4.750511037 | V40: 7.29 | W40: 97.3 | X40: 0.0 | Y40: 29.97192942 | Z40: 29.72105026 | AB40: 0.9306661594 | AC40: 1900-01-02 | AD40: 377.28 | AE40: 3.414268397 | AF40: 2.848484609 | AG40: 17.81247455 | AH40: 5.475256272 | AI40: 28.99301336 | AJ40: 494.970771 | AK40: -23.77731735 | AL40: -3.242736174 | AM40: 2.066492659 | AN40: -3.032805117 | AO40: 0.875509841 | AP40: 101.3127864 | AQ40: -0.211475 | AR40: -3.314966925 | AS40: 9.50469 | AT40: 13.57812857 | AV40: 0 | AW40: -3.314966925 | AX40: 4.560372459 | AY40: 22.07606657 | AZ40: 25.51333046 | BB40: -0.5684715978 | BC40: -3.848825983 | BD40: 0.3403463117 | BE40: 0.09143713235 | BH40: максимум | BI40: -0.5463459089 | BJ40: -3.699024434 | BM40: 29.94835663 | BN40: -100 | CS40: 111 | CT40: 11 | CU40: 21.17330406 | CV40: 24.94546051 | CW40: 26.63676273 | CX40: 0.9559575267 | CY40: 4.3109665 | CZ40: 99.87660932 | DA40: 29.126446 | DC40: безгидратный | DD40: 5.379207134 | DE40: 8 | DG40: 28.09780312
A41: 10 | B41: 923.12 | C41: 93 | F41: =VLOOKUP($C41,Тнав!$A$3:$E$250,2,FALSE) -> 17.39727146 | G41: =VLOOKUP($C41,$CS:$DG,3,FALSE) -> 18.15766583 | H41: =VLOOKUP($C41,$CS:$DG,5,FALSE) -> 25.42580071 | I41: =VLOOKUP($C41,Тнав!$A$3:$E$250,3,FALSE) -> 6.872352915 | J41: =VLOOKUP($C41,$CS:$DG,7,FALSE) -> 8.220101 | K41: =VLOOKUP($C41,$CS:$DG,9,FALSE) -> 95.936386 | L41: =VLOOKUP($C41,$CS:$DG,10,FALSE) -> 0 | M41: =VLOOKUP($C41,$CS:$DG,12,FALSE) -> 16.3330822 | P41: =Шлейфы!$L$2 -> 5.368657296 | Q41: =VLOOKUP($C41,Тнав!$A$3:$E$250,4,FALSE) -> 507.1671118 | R41: 18.33 | S41: 24.07 | T41: 25.92 | U41: =(H41+I41)-S41 -> 8.228153621 | V41: 8.24 | W41: 98 | X41: 0.0 | Y41: =(AD41*(1/(1+(5*10^7*0.098*R41)/(18.8+273.15)^3.825))*(18.8+273.15)*0.052)/((POWER(A41,2))*(R41/10.197)) -> 21.53640125 | Z41: 29.72105026 | AB41: 0.9306661594 | AC41: 1900-01-03 | AD41: 263.52 | AE41: 4.414268397 | AF41: =IF(R41="","",(R41-F41)) -> 0.9327285445 | AG41: =IF(R41="","",(R41/F41*100-100)) -> 5.361349605 | AH41: =IF(R41="","",(S41-G41)) -> 5.912334173 | AI41: =IF(R41="","",(S41/G41*100-100)) -> 32.56109144 | AJ41: =IF(AD41="","",(Q41-E41)) -> 507.1671118 | AK41: =IF(AD41="","",(AD41/Q41*100-100)) -> -48.04079486 | AL41: 3.995196583 | AM41: 1.694266142 | AN41: 3.96541061 | AO41: -1.051412082 | AP41: -32.7824073 | AQ41: -0.144769 | AR41: -1.972625325 | AS41: 29.61304 | AT41: 49.35506667 | AV41: 0 | AW41: -1.972625325 | AX41: 1.952811227 | AY41: 10.10413855 | AZ41: 17.83160019 | BB41: -0.5684715978 | BC41: -3.848825983 | BD41: 12.89255689 | BE41: 4.848137391 | BH41: ср.значение | BI41: -0.5463459089 | BJ41: -3.699024434 | BM41: 29.97275352 | BN41: -100 | CS41: 112 | CU41: 20.38835658 | CV41: 24.36090412 | CW41: 26.00039297 | CX41: 1.505153904 | CY41: 7.0800667 | CZ41: 284.7700556 | DA41: 64.25681 | DC41: безгидратный | DD41: 15.73528099 | DE41: 8 | DG41: 27.97965622
A42: 10 | B42: 874.44 | C42: 94 | F42: =VLOOKUP($C42,Тнав!$A$3:$E$250,2,FALSE) -> 17.89115635 | G42: 19.40964349 | H42: 24.9964189 | I42: =VLOOKUP($C42,Тнав!$A$3:$E$250,3,FALSE) -> 2.760651205 | J42: 7.5592556 | K42: 98.59389 | L42: 0 | M42: 21.6859436 | P42: =Шлейфы!$L$2 -> 5.368657296 | Q42: =VLOOKUP($C42,Тнав!$A$3:$E$250,4,FALSE) -> 504.5842322 | R42: 19.42 | S42: 23.39 | T42: 25.19 | U42: 4.367070103 | V42: 7.53 | W42: 97.8 | X42: 0.0 | Y42: 27.735193 | Z42: 29.72105026 | AB42: 0.9306661594 | AC42: 1900-01-04 | AD42: 360.24 | AE42: 5.414268397 | AF42: 1.528843653 | AG42: 8.545247851 | AH42: 3.980356506 | AI42: 20.50710775 | AJ42: 504.5842322 | AK42: -28.60656814 | AL42: -6.684350085 | AM42: 1.937528748 | AN42: -6.357816406 | AO42: 1.819921108 | AP42: 262.5013803 | AQ42: 0.197827 | AR42: 3.126068612 | AS42: 9.90337 | AT42: 15.23595385 | AV42: 0 | AW42: 3.126068612 | AX42: 4.814726848 | AY42: 23.27345751 | AZ42: 23.80258179 | BB42: -0.5684715978 | BC42: -3.848825983 | BD42: -5.421820953 | BE42: -1.443745175 | BG42: 12 | BH42: минимум | BI42: -0.749172201 | BM42: 30.03869438 | CS42: 113 | CU42: 20.00829453 | CV42: 24.12107962 | CW42: 25.74201617 | CX42: 1.93494683 | CY42: 7.6894417 | CZ42: 345.8552553 | DA42: 65.10919 | DC42: безгидратный | DD42: 19.31368065 | DE42: 8 | DG42: 28.10051918
A43: 10 | B43: 927.85 | C43: 71 | D43: 7 | E43: 6 | F43: =VLOOKUP($C43,Тнав!$A$3:$E$250,2,FALSE) -> 0 | G43: 22.5867018 | H43: 26.68301931 | I43: =VLOOKUP($C43,Тнав!$A$3:$E$250,3,FALSE) -> 0 | J43: 9.385823 | K43: 49.82051 | L43: 0 | M43: 14.64114952 | P43: =Шлейфы!$L$2 -> 5.368657296 | Q43: =VLOOKUP($C43,Тнав!$A$3:$E$250,4,FALSE) -> 0 | R43: 22.66 | S43: 24.92 | T43: 13.54 | U43: 1.763019313 | V43: 9.04 | W43: 59.8 | X43: 0.0 | Y43: 16.4073818 | Z43: 13.35803413 | AB43: -0.7826470397 | AC43: 00:00:00 | AD43: 250.08 | AE43: -1.435917903 | AF43: 22.66 | AH43: 2.333298198 | AI43: 10.33040688 | AJ43: -6 | AL43: -6.41418546 | AM43: 0.7184857098 | AN43: -6.33750268 | AO43: 1.91576543 | AP43: 378.5559453 | AQ43: -0.2063783 | AR43: -2.648150334 | AS43: 0.395973 | AT43: 1.131351429 | AW43: -2.648150334 | AX43: 0.4580496157 | AY43: 3.129818365 | AZ43: 12.20646 | BB43: -0.6459145678 | BC43: -4.373152117 | BD43: -12.6955903 | BE43: -4.812479048 | BH43: максимум | BI43: 0 | BM43: 30.9969883 | CS43: 114 | CU43: 22.93118979 | CV43: 24.66455895 | CW43: 26.33681605 | CX43: 1.053123922 | CY43: 6.693245 | CZ43: 335.3468697 | DA43: 65.12121 | DC43: безгидратный | DD43: 18.27936745 | DE43: 8 | DG43: 28.03609657
A44: 10 | B44: 915.4 | C44: 72 | F44: =VLOOKUP($C44,Тнав!$A$3:$E$250,2,FALSE) -> 0 | G44: 22.46700373 | H44: 27.05958599 | I44: =VLOOKUP($C44,Тнав!$A$3:$E$250,3,FALSE) -> 0 | J44: 9.384509 | K44: 95.51758 | L44: 0 | M44: 16.2462635 | P44: =Шлейфы!$L$2 -> 5.368657296 | Q44: =VLOOKUP($C44,Тнав!$A$3:$E$250,4,FALSE) -> 0 | R44: 22.56 | S44: 25.34 | T44: 27.28 | U44: 1.719585987 | V44: 9.01 | W44: 95.2 | X44: 0.0 | Y44: 18.61850517 | Z44: 13.35803413 | AB44: -0.7826470397 | AC44: 00:00:00 | AD44: 282.48 | AE44: -0.4359179034 | AF44: 22.56 | AH44: 2.872996269 | AI44: 12.78762537 | AJ44: 0 | AL44: -1.584969961 | AM44: 0.7069709215 | AN44: -1.751984311 | AO44: 0.5162745327 | AP44: 61.77495923 | AQ44: 0.9593804 | AR44: 14.21999496 | AS44: 0.58172 | AT44: 1.662057143 | AW44: 14.21999496 | AX44: 0.4476956215 | AY44: 2.874648075 | AZ44: 13.35803413 | BB44: -0.6459145678 | BC44: -4.373152117 | BD44: -7.626658259 | BE44: -2.788830961 | BH44: ср.значение | BI44: -0.5255912892 | BM44: 30.43837166 | CS44: 121 | CT44: 12 | CU44: 21.15618088 | CV44: 24.04020816 | CW44: 25.67975036 | CX44: 0.6923924757 | CY44: 7.1808205 | CZ44: 288.2976173 | DA44: 38.684814 | DC44: безгидратный | DD44: 16.14077759 | DE44: 8 | DG44: 27.82331848
A45: 10 | B45: 879.51 | C45: 73 | F45: =VLOOKUP($C45,Тнав!$A$3:$E$250,2,FALSE) -> 0 | G45: 22.37321004 | H45: 27.98673691 | I45: =VLOOKUP($C45,Тнав!$A$3:$E$250,3,FALSE) -> 0 | J45: 9.959943 | K45: 96.26707 | L45: 0 | M45: 15.09022427 | P45: =Шлейфы!$L$2 -> 5.368657296 | Q45: =VLOOKUP($C45,Тнав!$A$3:$E$250,4,FALSE) -> 0 | R45: 22.54 | S45: 26.21 | T45: 28.22 | U45: 1.776736908 | V45: 9.57 | W45: 94.2 | X45: 0.0 | Y45: 17.95484998 | Z45: 13.12733078 | AB45: -0.7826470397 | AC45: 00:00:00 | AD45: 272.16 | AE45: -0.3761822712 | AF45: 22.54 | AH45: 3.836789956 | AI45: 17.1490365 | AJ45: 0 | AL45: 0.3684965192 | AM45: 1.541977612 | AN45: 1.235546479 | AO45: 0.2344034931 | AP45: 20.50881157 | AQ45: 1.040628 | AR45: 13.81370714 | AS45: 45.66798 | AT45: 130.4799429 | AW45: 13.81370714 | AX45: 0.4493531271 | AY45: 2.837503701 | AZ45: 13.12733078 | BB45: -0.6459145678 | BC45: -4.373152117 | BD45: 6.649315595 | BE45: 2.535797896 | BM45: 30.78867531 | CS45: 122 | CU45: 16.67449535 | CV45: 24.08044725 | CW45: 25.71310157 | CX45: 0.857640975 | CY45: 5.703865 | CZ45: 109.6668802 | DA45: 57.50866 | DC45: безгидратный | DD45: 17.03178024 | DE45: 8 | DG45: 27.85207367
A46: 10 | B46: 875.26 | C46: 74 | F46: =VLOOKUP($C46,Тнав!$A$3:$E$250,2,FALSE) -> 0 | G46: 22.56305228 | H46: 27.19462812 | I46: =VLOOKUP($C46,Тнав!$A$3:$E$250,3,FALSE) -> 0 | J46: 9.775264 | K46: 100 | L46: 0 | M46: 14.38519001 | P46: =Шлейфы!$L$2 -> 5.368657296 | Q46: =VLOOKUP($C46,Тнав!$A$3:$E$250,4,FALSE) -> 0 | R46: 22.56 | S46: 25.36 | T46: 27.3 | U46: 1.834628124 | V46: 9.52 | W46: 100 | X46: 0.0 | Y46: 17.13155573 | Z46: 12.09910965 | AB46: -0.7826470397 | AC46: 00:00:00 | AD46: 259.92 | AE46: -0.8246348065 | AF46: 22.56 | AH46: 2.796947719 | AI46: 12.39614075 | AJ46: 0 | AL46: -4.026002941 | AM46: 0.3772151492 | AN46: -4.126342819 | AO46: 1.237248573 | AP46: 181.6735678 | AQ46: -0.474225 | AR46: -5.489414162 | AS46: 21.23708 | AT46: 53.0927 | AW46: -5.489414162 | AX46: 0.1012265732 | AY46: 0.6370101015 | AZ46: 12.09910965 | BB46: -0.6459145678 | BC46: -4.373152117 | BD46: 1.992620252 | BE46: 0.7684564676 | BM46: 30.77659988 | BN46: -100 | CS46: 123 | CU46: 18.88599892 | CV46: 22.42299777 | CW46: 23.94327702 | CX46: 2.587194425 | CY46: 7.528824 | CZ46: 290.7190331 | DA46: 68.807076 | DC46: безгидратный | DD46: 17.52513885 | DE46: 8 | DG46: 28.08520317
A47: 10 | B47: 939.25 | C47: 101 | D47: 10 | F47: =VLOOKUP($C47,Тнав!$A$3:$E$250,2,FALSE) -> 21.85023274 | G47: 22.60099777 | H47: 25.25458615 | I47: =VLOOKUP($C47,Тнав!$A$3:$E$250,3,FALSE) -> 3.73631263 | J47: 5.2681847 | K47: 30.097227 | L47: 0 | M47: 7.602203846 | P47: =Шлейфы!$L$2 -> 5.368657296 | Q47: =VLOOKUP($C47,Тнав!$A$3:$E$250,4,FALSE) -> 162.5691243 | R47: 24 | S47: 23.53 | T47: 25.35 | U47: 5.460898777 | V47: 5 | W47: 32 | X47: 0.0 | Y47: 7.979685405 | Z47: 18.96450806 | AB47: -0.7826470397 | AD47: 129.12 | AE47: -0.9082987562 | AF47: 2.149767263 | AG47: 9.838646976 | AH47: 0.9290022287 | AI47: 4.110447858 | AJ47: 162.5691243 | AK47: -20.57532414 | AL47: -2.771069005 | AM47: -0.6711765327 | AN47: -2.624763272 | AO47: 0.6711765327 | AP47: 17.92441545 | AQ47: 0.4548216 | AR47: 7.477912597 | AS47: -5.98801 | AT47: -8.5543 | AW47: 7.477912597 | AX47: 2.933475458 | AY47: 19.45884727 | AZ47: 18.96450806 | BB47: -0.6459145678 | BC47: -4.373152117 | BD47: 14.53122507 | BE47: 6.411379136 | BM47: 29.98580933 | BN47: -100 | CS47: 131 | CT47: 13 | CU47: 15.74926307 | CV47: 23.90361464 | CW47: 25.51710863 | CX47: 0.8386207831 | CY47: 4.4986305 | CZ47: 124.3869855 | DA47: 40.23486 | DC47: безгидратный | DD47: 19.47486496 | DE47: 8 | DG47: 27.18625069
A48: 6.2 | B48: 933.74 | C48: 102 | F48: =VLOOKUP($C48,Тнав!$A$3:$E$250,2,FALSE) -> 18.41942062 | G48: 20.7843287 | H48: 26.66289331 | I48: =VLOOKUP($C48,Тнав!$A$3:$E$250,3,FALSE) -> 2.779883821 | J48: 4.276119 | K48: 83.026344 | L48: 16 | M48: 8.939611435 | P48: =Шлейфы!$L$2 -> 5.368657296 | Q48: =VLOOKUP($C48,Тнав!$A$3:$E$250,4,FALSE) -> 73.56655557 | R48: 20.43 | S48: 24.56 | T48: 26.47 | U48: 4.882777133 | V48: 3.08 | W48: 84.8 | X48: 16.0 | Y48: 10.39948651 | Z48: 2.964641333 | AB48: -0.7826470397 | AC48: 00:00:00 | AD48: 54.72 | AE48: -1.156733629 | AF48: 2.010579379 | AG48: 10.91554083 | AH48: 3.775671296 | AI48: 18.16595258 | AJ48: 73.56655557 | AK48: -25.61837431 | AL48: -3.37248224 | AM48: -1.213033035 | AN48: -4.209479528 | AO48: 1.213033035 | AP48: 136.2523352 | AQ48: 0.49841692 | AR48: -606.1843789 | AS48: -18.49516 | AT48: -18.49516 | AW48: -606.1843789 | AX48: 5.361531456 | AY48: 94.56985022 | AZ48: 2.964641333 | BB48: -0.6459145678 | BC48: -4.373152117 | BD48: -3.285140683 | BE48: -4.908916245 | BN48: -100 | CS48: 132 | CU48: 20.80597263 | CV48: 23.13048831 | CW48: 24.71955286 | CX48: 0.8808010535 | CY48: 2.1788597 | CZ48: 68.91537223 | DA48: 19.93982 | DC48: безгидратный | DD48: 11.15800762 | DE48: 8 | DG48: 26.53346062
A49: 10 | B49: 910.99 | C49: 103 | F49: =VLOOKUP($C49,Тнав!$A$3:$E$250,2,FALSE) -> 24.52597165 | G49: 24.38703938 | H49: 27.25716042 | I49: =VLOOKUP($C49,Тнав!$A$3:$E$250,3,FALSE) -> 1.65130994 | J49: 4.478462 | K49: 97.93828 | L49: 20 | M49: 6.941339016 | P49: =Шлейфы!$L$2 -> 5.368657296 | Q49: =VLOOKUP($C49,Тнав!$A$3:$E$250,4,FALSE) -> 147.3107989 | R49: 24.75 | S49: 25.41 | T49: 27.39 | U49: 3.498470365 | V49: 3.88 | W49: 98 | X49: 20.0 | Y49: 7.210663335 | Z49: 22.06694603 | AB49: -0.7826470397 | AC49: 00:00:00 | AD49: 120.48 | AE49: 2.198605319 | AF49: 0.2240283472 | AG49: 0.9134331163 | AH49: 1.022960616 | AI49: 4.194689647 | AJ49: 147.3107989 | AK49: -18.21373523 | AL49: -0.535645152 | AM49: -0.472012394 | AN49: -1.602002328 | AO49: 0.472012394 | AP49: 74.55190415 | AQ49: -4.000405 | AR49: -49.74947457 | AS49: 39.77745 | AT49: 66.29575 | AW49: -49.74947457 | AX49: -9.064105065 | AY49: -47.25143071 | AZ49: 22.06694603 | BB49: -0.6459145678 | BC49: -4.373152117 | BD49: -144.1864416 | BE49: -44.7113532 | BM49: 29.92047501 | BN49: -100 | CS49: 133 | CU49: 17.03925314 | CV49: 19.15429203 | CW49: 20.45486846 | CX49: 2.159177362 | CY49: 3.5617752 | CZ49: 66.94252056 | DA49: 23.049675 | DC49: безгидратный | DD49: 13.22070312 | DE49: 8 | DG49: 27.30316734
A50: 10 | B50: 886.29 | C50: 104 | F50: =VLOOKUP($C50,Тнав!$A$3:$E$250,2,FALSE) -> 21.98546451 | G50: 22.37059248 | H50: 26.48342362 | I50: =VLOOKUP($C50,Тнав!$A$3:$E$250,3,FALSE) -> 2.400598746 | J50: 6.6509705 | K50: 45.063232 | L50: 0 | M50: 13.08035183 | P50: =Шлейфы!$L$2 -> 5.368657296 | Q50: =VLOOKUP($C50,Тнав!$A$3:$E$250,4,FALSE) -> 300.3956933 | R50: 22.6 | S50: 25.16 | T50: 27.11 | U50: 3.724022365 | V50: 6.44 | W50: 47 | X50: 0.0 | Y50: 15.41056035 | Z50: 22.87792969 | AB50: -0.7826470397 | AC50: 00:00:00 | AD50: 234.24 | AE50: -0.3689681411 | AF50: 0.6145354923 | AG50: 2.795189941 | AH50: 2.789407518 | AI50: 12.46908199 | AJ50: 300.3956933 | AK50: -22.02285012 | AL50: -3.763900274 | AM50: -1.236433178 | AN50: -4.183274019 | AO50: 1.236433178 | AP50: 176.0554204 | AQ50: -1.578883 | AR50: -20.27666406 | AS50: -1.1727 | AT50: -2.132181818 | AW50: -20.27666406 | AX50: 0.02395420578 | AY50: 0.1304574993 | AZ50: 22.87792969 | BB50: -0.6459145678 | BC50: -4.373152117 | BD50: -19.707072 | BE50: -6.430939888 | BM50: 30.00210762 | BN50: -100 | CS50: 134 | CU50: 18.47300884 | CV50: 19.90546663 | CW50: 21.26700054 | CX50: 4.632298394 | CY50: 2.2335167 | CZ50: 40.64849729 | DA50: 15.169774 | DC50: безгидратный | DD50: 4.804033756 | DE50: 8 | DG50: 26.85156631
A51: 10 | B51: 932.58 | C51: 121 | D51: 12 | F51: =VLOOKUP($C51,Тнав!$A$3:$E$250,2,FALSE) -> 19.25618381 | G51: 21.15618088 | H51: 25.67975036 | I51: =VLOOKUP($C51,Тнав!$A$3:$E$250,3,FALSE) -> 2.874435867 | J51: 7.1808205 | K51: 38.684814 | L51: 0 | M51: 16.14077759 | P51: =Шлейфы!$L$2 -> 5.368657296 | Q51: =VLOOKUP($C51,Тнав!$A$3:$E$250,4,FALSE) -> 333.9434459 | R51: 20.43 | S51: 23.84 | T51: 25.68 | U51: 4.714186227 | V51: 7.2 | W51: 47.1 | X51: 0.0 | Y51: 19.81248138 | Z51: 15.20769787 | AB51: -0.7826470397 | AD51: 271.2 | AE51: 0.07948196049 | AF51: 1.173816193 | AG51: 6.095788265 | AH51: 2.683819123 | AI51: 12.68574484 | AJ51: 333.9434459 | AK51: -18.7886442 | AL51: -5.344645413 | AM51: -1.523235056 | AN51: -5.325324709 | AO51: 1.523235056 | AP51: 175.3090534 | AQ51: -1.3188506 | AR51: -17.2061396 | AS51: -5.28658 | AT51: -11.74795556 | AW51: -17.2061396 | AX51: 0.8711930568 | AY51: 4.911771499 | AZ51: 15.20769787 | BB51: -0.6459145678 | BC51: -4.373152117 | BD51: 1.637050811 | BE51: 0.5808706794 | BM51: 29.46805573 | BN51: -100 | CS51: 141 | CT51: 14 | CU51: 16.79749528 | CV51: 20.75796879 | CW51: 22.14460111 | CX51: 3.179717391 | CY51: 8.979183 | CZ51: 301.5694106 | DA51: 95.06373 | DC51: безгидратный | DD51: 19.73309135 | DE51: 8 | DG51: 25.85588074
A52: 6.2 | B52: 931.44 | C52: 122 | F52: =VLOOKUP($C52,Тнав!$A$3:$E$250,2,FALSE) -> 10.7517916 | G52: 16.67449535 | H52: 25.71310157 | I52: =VLOOKUP($C52,Тнав!$A$3:$E$250,3,FALSE) -> 3.77970831 | J52: 5.703865 | K52: 57.50866 | L52: 0 | M52: 17.03178024 | P52: =Шлейфы!$L$2 -> 5.368657296 | Q52: =VLOOKUP($C52,Тнав!$A$3:$E$250,4,FALSE) -> 147.6815593 | R52: 16.34 | S52: 24.02 | T52: 25.88 | U52: 5.472809879 | V52: 5.14 | W52: 68 | X52: 0.0 | Y52: 25.15925916 | AB52: -0.7826470397 | AC52: 00:00:00 | AD52: 105.12 | AE52: -3.42760075 | AF52: 5.588208405 | AG52: 51.9746719 | AH52: 7.345504654 | AI52: 44.05233563 | AJ52: 147.6815593 | AK52: -28.81981982 | AL52: -2.943047738 | AM52: -0.885525148 | AN52: -3.110485531 | AO52: 0.885525148 | AP52: 69.18282828 | AQ52: -1.2790483 | AR52: -25.04402216 | AS52: 8.13103 | AT52: 9.034477778 | AW52: -25.04402216 | AX52: 5.14898165 | AY52: 26.16265508 | BB52: -0.6459145678 | BC52: -4.373152117 | BD52: 1.959226148 | BE52: 1.776460002 | BM52: 29.63036346 | BN52: -100 | CS52: 142 | CU52: 16.44022764 | CV52: 20.8911383 | CW52: 22.28666634 | CX52: 2.913692488 | CY52: 9.0555 | CZ52: 306.0901541 | DA52: 99.54565 | DC52: безгидратный | DD52: 19.89515114 | DE52: 8 | DG52: 26.10139656
A53: 10 | B53: 934.45 | C53: 123 | F53: =VLOOKUP($C53,Тнав!$A$3:$E$250,2,FALSE) -> 15.32948627 | G53: 18.88599892 | H53: 23.94327702 | I53: =VLOOKUP($C53,Тнав!$A$3:$E$250,3,FALSE) -> 6.158146185 | J53: 7.528824 | K53: 68.807076 | L53: 0 | M53: 17.52513885 | P53: =Шлейфы!$L$2 -> 5.368657296 | Q53: =VLOOKUP($C53,Тнав!$A$3:$E$250,4,FALSE) -> 383.7790317 | R53: 18.53 | S53: 22.26 | T53: 23.97 | U53: 7.841423201 | V53: 7.41 | W53: 73 | X53: 0.0 | Y53: 22.86749448 | Z53: 16.07977867 | AB53: -0.7826470397 | AC53: 00:00:00 | AD53: 282.96 | AE53: -0.6471628767 | AF53: 3.200513728 | AG53: 20.87815385 | AH53: 3.374001078 | AI53: 17.86509198 | AJ53: 383.7790317 | AK53: -26.27007298 | AL53: -6.251295456 | AM53: -1.683978223 | AN53: -6.202835921 | AO53: 1.683978223 | AP53: 67.93371449 | AQ53: -0.531607 | AR53: -7.372576485 | AS53: -0.41715 | AT53: -0.5959285714 | AW53: -7.372576485 | AX53: 2.02547711 | AY53: 10.36214868 | AZ53: 16.07977867 | BB53: -0.6459145678 | BC53: -4.373152117 | BD53: 7.362663464 | BE53: 2.593025749 | BM53: 29.68186188 | CS53: 143 | CU53: 16.39501894 | CV53: 21.11030396 | CW53: 22.51836124 | CX53: 3.157693598 | CY53: 9.191669 | CZ53: 336.3879822 | DA53: 98.49151 | DC53: безгидратный | DD53: 21.62868118 | DE53: 8 | DG53: 26.26533127
A54: 10 | B54: 929.32 | C54: 51 | D54: 5 | E54: 7 | F54: =VLOOKUP($C54,Тнав!$A$3:$E$250,2,FALSE) -> 24.69304306 | G54: 23.81993745 | H54: 28.41922441 | I54: =VLOOKUP($C54,Тнав!$A$3:$E$250,3,FALSE) -> 0 | J54: 0.099990845 | K54: 20.162615 | L54: 0 | M54: 3.718881369 | P54: =Шлейфы!$L$2 -> 5.368657296 | Q54: =VLOOKUP($C54,Тнав!$A$3:$E$250,4,FALSE) -> 72.95082277 | R54: 24 | S54: 26.69 | T54: 28.8 | U54: 1.729224409 | V54: -0.79 | W54: 20.2 | X54: 0.0 | Y54: 4.064003347 | Z54: 29.39510155 | AB54: -0.2048339844 | AD54: 65.76 | AF54: -0.6930430562 | AG54: -2.806632842 | AH54: 2.870062549 | AI54: 12.0489928 | AJ54: 65.95082277 | AK54: -9.857082477 | AM54: 2.172191044 | AQ54: 0 | AS54: 0 | AZ54: 29.39510155 | BB54: -0.7381093565 | BC54: -4.997355156 | BD54: 0 | BM54: 31.61169815 | CS54: 144 | CU54: 17.19896214 | CV54: 21.34626645 | CW54: 22.77433167 | CX54: 2.804861459 | CY54: 8.461208 | CZ54: 332.5641287 | DA54: 95.22169 | DC54: безгидратный | DD54: 21.13083839 | DE54: 8 | DG54: 26.38184166
A55: 6.2 | B55: 939.38 | C55: 52 | F55: =VLOOKUP($C55,Тнав!$A$3:$E$250,2,FALSE) -> 22.74475639 | G55: 23.11156489 | H55: 27.82468473 | I55: =VLOOKUP($C55,Тнав!$A$3:$E$250,3,FALSE) -> 3.71646556 | J55: 1.6818542 | K55: 50.23581 | L55: 16 | M55: 11.84235477 | P55: =Шлейфы!$L$2 -> 5.368657296 | Q55: =VLOOKUP($C55,Тнав!$A$3:$E$250,4,FALSE) -> 89.46366672 | R55: 23.12 | S55: 26.1 | T55: 28.14 | U55: 5.441150293 | V55: 0.71 | W55: 50.2 | X55: 16.0 | Y55: 12.95726938 | Z55: 10.35002613 | AB55: -0.2048339844 | AC55: 00:00:00 | AD55: 77.52 | AE55: 2.623639222 | AF55: 0.3752436091 | AG55: 1.649802718 | AH55: 2.98843511 | AI55: 12.93047495 | AJ55: 89.46366672 | AK55: -13.35029868 | AL55: 0.512847788 | AM55: 4.167587051 | AN55: 0.3593682302 | AO55: -0.1057098213 | AP55: -3.671981613 | AQ55: -3.543832 | AR55: -166.7214904 | AS55: -1.544044 | AT55: -1.544044 | AW55: -166.7214904 | AX55: 3.168351245 | AY55: 32.87684398 | AZ55: 10.35002613 | BB55: -0.7381093565 | BC55: -4.997355156 | BD55: -28.53528515 | BE55: -25.90925708 | BM55: 31.87097549 | CS55: 151 | CT55: 15 | CU55: 17.58084559 | CV55: 22.04327936 | CW55: 23.51577042 | CX55: 1.792221077 | CY55: 8.847839 | CZ55: 358.4474959 | DA55: 95.95741 | DC55: безгидратный | DD55: 22.02190018 | DE55: 8 | DG55: 26.33756638
A56: 10 | B56: 881.28 | C56: 53 | F56: =VLOOKUP($C56,Тнав!$A$3:$E$250,2,FALSE) -> 25.95164403 | G56: 26.06447133 | H56: 29.04929181 | I56: =VLOOKUP($C56,Тнав!$A$3:$E$250,3,FALSE) -> 2.165556089 | J56: 0.014709473 | K56: 17.153393 | L56: 0 | M56: 3.241844177 | P56: =Шлейфы!$L$2 -> 5.368657296 | Q56: =VLOOKUP($C56,Тнав!$A$3:$E$250,4,FALSE) -> 67.95621662 | R56: 26.95 | S56: 27.03 | T56: 29.17 | U56: 4.184847902 | V56: -1.11 | W56: 17.2 | X56: 0.0 | Y56: 3.390359027 | Z56: 25.2980423 | AB56: -0.2048339844 | AC56: 00:00:00 | AD56: 61.92 | AE56: 3.606141358 | AF56: 0.9983559682 | AG56: 3.846985443 | AH56: 0.9655286723 | AI56: 3.704386175 | AJ56: 67.95621662 | AK56: -8.882508362 | AL56: 0.9243335681 | AM56: -1.036887463 | AN56: 0.8305647176 | AO56: -0.2497276448 | AP56: -12.72187075 | AQ56: -11.1374074 | AR56: -153.1609857 | AS56: -44.224677 | AT56: -73.707795 | AW56: -153.1609857 | AX56: -17.08401962 | AY56: -84.02494167 | AZ56: 25.2980423 | BB56: -0.7381093565 | BC56: -4.997355156 | BD56: -178.7823176 | BE56: -74.00887677 | BM56: 31.59853363 | CS56: 152 | CU56: 17.46897707 | CV56: 20.68049236 | CW56: 22.0598812 | CX56: 3.140398441 | CY56: 8.857632 | CZ56: 268.1131954 | DA56: 95.65576 | DC56: безгидратный | DD56: 17.61448479 | DE56: 8 | DG56: 25.96355057
A57: 10 | B57: 910.66 | C57: 54 | F57: =VLOOKUP($C57,Тнав!$A$3:$E$250,2,FALSE) -> 24.87882313 | G57: 24.60088111 | H57: 27.76208695 | I57: =VLOOKUP($C57,Тнав!$A$3:$E$250,3,FALSE) -> 2.577134614 | J57: 3.7744522 | K57: 32.34344 | L57: 0 | M57: 10.61589241 | P57: =Шлейфы!$L$2 -> 5.368657296 | Q57: =VLOOKUP($C57,Тнав!$A$3:$E$250,4,FALSE) -> 206.1546631 | R57: 24.69 | S57: 25.9 | T57: 27.92 | U57: 4.439221568 | V57: 3.36 | W57: 32.3 | X57: 0.0 | Y57: 11.13141884 | Z57: 25.70503807 | AB57: -0.2048339844 | AC57: 00:00:00 | AD57: 185.52 | AE57: 0.05156724107 | AF57: -0.188823125 | AG57: -0.7589712909 | AH57: 1.299118894 | AI57: 5.280781972 | AJ57: 206.1546631 | AK57: -10.00931184 | AL57: -6.452961284 | AM57: -0.7011742219 | AN57: -6.469889121 | AO57: 1.951323081 | AP57: 137.8622935 | AQ57: -2.4087926 | AR57: -37.31669404 | AS57: -10.50567 | AT57: -17.50945 | AW57: -37.31669404 | AX57: 0.2348036138 | AY57: 1.168760394 | AZ57: 25.70503807 | BB57: -0.7381093565 | BC57: -4.997355156 | BD57: 30.69100014 | BE57: 10.39927642 | BM57: 31.29468346 | BN57: -100 | CS57: 153 | CU57: 18.23339158 | CV57: 20.97753582 | CW57: 22.38093297 | CX57: 3.310020017 | CY57: 8.187038 | CZ57: 286.560978 | DA57: 99.537384 | DC57: безгидратный | DD57: 18.54358673 | DE57: 8 | DG57: 26.10127831
A58: 6.2 | B58: 913.53 | C58: 61 | D58: 6 | F58: =VLOOKUP($C58,Тнав!$A$3:$E$250,2,FALSE) -> 12.21616841 | G58: 16.24187618 | H58: 26.84881912 | I58: =VLOOKUP($C58,Тнав!$A$3:$E$250,3,FALSE) -> 9.790574264 | J58: 3.6549873 | K58: 38.399685 | L58: 0 | M58: 6.001205921 | P58: =Шлейфы!$L$2 -> 5.368657296 | Q58: =VLOOKUP($C58,Тнав!$A$3:$E$250,4,FALSE) -> 116.9345588 | R58: 17 | S58: 25.88 | T58: 27.9 | U58: 10.75939338 | V58: 3.12 | W58: 40.4 | X58: 0.0 | Y58: 23.87855763 | Z58: 30.28429794 | AB58: -0.2048339844 | AD58: 103.92 | AE58: -5.376790046 | AF58: 4.783831587 | AG58: 39.15983658 | AH58: 9.638123816 | AI58: 59.34119745 | AJ58: 116.9345588 | AK58: -11.12977969 | AL58: 9.173691135 | AM58: -0.9411022828 | AN58: 9.026574157 | AO58: 0.4605953153 | AP58: 9.383375825 | AQ58: -0.936448 | AR58: -28.37721212 | AS58: -19.59101 | AT58: -24.4887625 | AW58: -28.37721212 | AZ58: 30.28429794 | BB58: -0.7381093565 | BC58: -4.997355156 | BD58: -20.08 | BE58: -15.44615385 | BM58: 33.71613582 | BN58: -100 | CS58: 154 | CU58: 17.56736486 | CV58: 21.19718585 | CW58: 22.61103815 | CX58: 3.103079008 | CY58: 8.792137 | CZ58: 293.052151 | DA58: 20.094774 | DC58: безгидратный | DD58: 18.76135445 | DE58: 8 | DG58: 26.47027969
A59: 10 | B59: 926.8 | C59: 62 | F59: =VLOOKUP($C59,Тнав!$A$3:$E$250,2,FALSE) -> 21.85445294 | G59: 22.40255359 | H59: 26.4244889 | I59: =VLOOKUP($C59,Тнав!$A$3:$E$250,3,FALSE) -> 4.53879511 | J59: 4.8542213 | K59: 42.067276 | L59: 0 | M59: 13.71376038 | P59: =Шлейфы!$L$2 -> 5.368657296 | Q59: =VLOOKUP($C59,Тнав!$A$3:$E$250,4,FALSE) -> 278.3435992 | R59: 21.99 | S59: 24.48 | T59: 26.38 | U59: 6.483284007 | V59: -1.11 | W59: 240.96 | X59: 0.0 | Y59: 16.30982179 | Z59: 24.91130829 | AB59: -0.2048339844 | AC59: 00:00:00 | AD59: 240.96 | AE59: 3.281824461 | AF59: 0.1355470604 | AG59: 0.6202262796 | AH59: 2.077446413 | AI59: 9.273257198 | AJ59: 278.3435992 | AK59: -13.43073788 | AL59: -3.038642002 | AM59: -0.9315794376 | AN59: -3.254362147 | AO59: 0.9315794376 | AP59: 33.97988041 | AQ59: -3.3177417 | AR59: -42.77590155 | AS59: -24.943928 | AT59: -33.25857067 | AW59: -42.77590155 | AX59: 2.116300646 | AY59: 10.40780616 | AZ59: 24.91130829 | BB59: -0.7381093565 | BC59: -4.997355156 | BD59: -111.5037323 | BE59: -24.41395406 | BM59: 30.70254135 | BN59: -100 | CS59: 161 | CT59: 16 | CU59: 16.83712952 | CV59: 20.29510094 | CW59: 21.66299074 | CX59: 3.358671261 | CY59: 8.272148 | CZ59: 263.8633379 | DA59: 95.403175 | DC59: безгидратный | DD59: 17.66794968 | DE59: 8 | DG59: 25.88408089
A60: 10 | B60: 929.71 | C60: 63 | F60: =VLOOKUP($C60,Тнав!$A$3:$E$250,2,FALSE) -> 0 | G60: 0 | H60: 0 | I60: =VLOOKUP($C60,Тнав!$A$3:$E$250,3,FALSE) -> 0 | J60: 0 | K60: 0 | L60: 0 | M60: 0 | P60: =Шлейфы!$L$2 -> 5.368657296 | Q60: =VLOOKUP($C60,Тнав!$A$3:$E$250,4,FALSE) -> 0 | R60: остановлена 04.01.2024 | U60: 0 | X60: ОКРС | Z60: 23.79867744 | AB60: -0.2048339844 | AC60: 00:00:00 | AH60: 0 | AL60: -100 | AM60: -0.1528406021 | AN60: -0.5464432536 | AO60: 0.1528406021 | AP60: 4.338212089 | AQ60: -3.2874676 | AR60: -51.17158956 | AS60: -22.181282 | AT60: -29.57504267 | AW60: -51.17158956 | AX60: -15.7738679 | AY60: -78.63887021 | AZ60: 23.79867744 | BB60: -0.7381093565 | BC60: -4.997355156 | BD60: -226.9641662 | BE60: -78.69656295 | BM60: 31.05765152 | BN60: -100 | CS60: 162 | CU60: 17.23752206 | CV60: 20.52989668 | CW60: 21.91155873 | CX60: 3.153662331 | CY60: 8.936798 | CZ60: 329.4275768 | DA60: 95.02193 | DC60: безгидратный | DD60: 21.79616928 | DE60: 8 | DG60: 25.87851143
A61: 10 | B61: 919.72 | C61: 64 | F61: =VLOOKUP($C61,Тнав!$A$3:$E$250,2,FALSE) -> 21.62330741 | G61: 22.56280761 | H61: 26.06110985 | I61: =VLOOKUP($C61,Тнав!$A$3:$E$250,3,FALSE) -> 4.844794855 | J61: 4.454708 | K61: 40.6051 | L61: 0 | M61: 13.04095078 | P61: =Шлейфы!$L$2 -> 5.368657296 | Q61: =VLOOKUP($C61,Тнав!$A$3:$E$250,4,FALSE) -> 238.1238065 | R61: 22.35 | S61: 24.29 | T61: 26.17 | U61: 6.615904708 | V61: 4.22 | W61: 41.9 | X61: 0.0 | Y61: 14.74318104 | Z61: 23.80529785 | AB61: -0.2048339844 | AC61: 00:00:00 | AD61: 221.52 | AE61: 3.512569485 | AF61: 0.7266925862 | AG61: 3.360691185 | AH61: 1.72719239 | AI61: 7.655041963 | AJ61: 238.1238065 | AK61: -6.972762093 | AL61: 2.420909184 | AM61: 0.5858963097 | AN61: 2.204795959 | AO61: -0.5858963097 | AP61: -13.55377614 | AQ61: -1.073708 | AR61: -20.38247466 | AS61: -24.91589 | AT61: -33.22118667 | AW61: -20.38247466 | AX61: 3.474520579 | AY61: 18.17617182 | AZ61: 23.80529785 | BB61: -0.7381093565 | BC61: -4.997355156 | BD61: -63.45813662 | BE61: -15.81972571 | BM61: 30.51038361 | BN61: -100 | CS61: 163 | CU61: 16.84909747 | CV61: 17.8905435 | CW61: 19.09815519 | CX61: 5.061785483 | CY61: 7.0033493 | CZ61: 123.6777157 | DA61: 47.642387 | DC61: безгидратный | DD61: 9.445236206 | DE61: 8 | DG61: 25.74518204
A62: 10 | B62: 936.21 | C62: 11 | D62: 1 | E62: 8 | F62: =VLOOKUP($C62,Тнав!$A$3:$E$250,2,FALSE) -> 17.73005674 | G62: 19.56474604 | H62: 26.58253566 | I62: =VLOOKUP($C62,Тнав!$A$3:$E$250,3,FALSE) -> 11.8091792 | J62: 8.368481 | K62: 95.20817 | L62: 0 | M62: 20.67814064 | P62: =Шлейфы!$L$2 -> 5.368657296 | Q62: =VLOOKUP($C62,Тнав!$A$3:$E$250,4,FALSE) -> 470.4120185 | R62: 20.32 | S62: 25.6 | T62: 27.57 | U62: 12.79171486 | V62: 8.18 | W62: 97 | X62: 0.0 | Y62: 25.95355162 | Z62: 26.46459961 | AB62: -0.7272281019 | AD62: 353.28 | AE62: -0.9231086365 | AF62: 2.589943262 | AG62: 14.60764227 | AH62: 6.035253957 | AI62: 30.84759671 | AJ62: 462.4120185 | AK62: -24.89987796 | AL62: 0.5453797883 | AM62: 0.1567535478 | AN62: 0.5329020797 | AO62: -0.1567535478 | AP62: -2.597945159 | AQ62: 0.523313 | AR62: 7.763596712 | AS62: -0.9818 | AT62: -0.9818 | AW62: 7.763596712 | AX62: 6.328188737 | AY62: 33.14564041 | AZ62: 26.46459961 | BB62: -0.1842084574 | BC62: -1.247179806 | BD62: 0.95270754 | BE62: 0.2515461314 | BM62: 33.81580734 | BN62: -100 | CS62: 164 | CU62: 15.92830564 | CV62: 20.45732569 | CW62: 21.83001224 | CX62: 2.927539305 | CY62: 8.6679535 | CZ62: 296.7864279 | DA62: 98.414406 | DC62: безгидратный | DD62: 19.71331406 | DE62: 8 | DG62: 25.98846054
A63: 10 | B63: 926.98 | C63: 12 | F63: =VLOOKUP($C63,Тнав!$A$3:$E$250,2,FALSE) -> 18.29913763 | G63: 20.46643549 | H63: 29.4028254 | I63: =VLOOKUP($C63,Тнав!$A$3:$E$250,3,FALSE) -> 2.838958584 | J63: 8.372116 | K63: 56.855797 | L63: 0 | M63: 23.31954193 | P63: =Шлейфы!$L$2 -> 5.368657296 | Q63: =VLOOKUP($C63,Тнав!$A$3:$E$250,4,FALSE) -> 553.7304359 | R63: 20.6 | S63: 27.38 | T63: 29.5 | U63: 4.861783984 | V63: 8.2 | W63: 59 | X63: 0.0 | Y63: 31.65496909 | Z63: 26.0838623 | AB63: -0.7272281019 | AC63: 00:00:00 | AD63: 437.04 | AE63: -2.392765872 | AF63: 2.300862368 | AG63: 12.57361092 | AH63: 6.913564512 | AI63: 33.78001272 | AJ63: 553.7304359 | AK63: -21.07350948 | AL63: -2.315276313 | AM63: -1.09451496 | AN63: -2.520984305 | AO63: 0.81576015 | AP63: 94.38867975 | AQ63: -0.661273 | AR63: -8.324286559 | AS63: 19.962 | AT63: 28.51714286 | AW63: -8.324286559 | AX63: 11.91375658 | AY63: 59.44754469 | AZ63: 26.0838623 | BB63: -0.1842084574 | BC63: -1.247179806 | BD63: 21.64226649 | BE63: 4.556465027 | BM63: 33.41409683 | BN63: -100 | CS63: 171 | CT63: 17 | CU63: 17.77011022 | CV63: 20.99203882 | CW63: 22.41110065 | CX63: 2.228378884 | CY63: 9.355607 | CZ63: 287.9435303 | DA63: 95.04671 | DC63: безгидратный | DD63: 18.60676575 | DE63: 8 | DG63: 25.88916397
A64: 10 | B64: 933.83 | C64: 13 | F64: =VLOOKUP($C64,Тнав!$A$3:$E$250,2,FALSE) -> 18.37019283 | G64: 20.24967171 | H64: 29.30852673 | I64: =VLOOKUP($C64,Тнав!$A$3:$E$250,3,FALSE) -> 2.260461623 | J64: 8.196926 | K64: 54.954536 | L64: 0 | M64: 24.90159416 | P64: =Шлейфы!$L$2 -> 5.368657296 | Q64: =VLOOKUP($C64,Тнав!$A$3:$E$250,4,FALSE) -> 694.0809369 | R64: 20.43 | S64: 27.32 | T64: 29.43 | U64: 4.248988358 | V64: 8.01 | W64: 50.1 | X64: 0.0 | Y64: 38.78337064 | Z64: 16.71340942 | AB64: -0.7272281019 | AC64: 00:00:00 | AD64: 530.88 | AE64: -0.780927971 | AF64: 2.059807165 | AG64: 11.21276834 | AH64: 7.07032829 | AI64: 34.91576748 | AJ64: 694.0809369 | AK64: -23.51324294 | AL64: -3.495216577 | AM64: 0.1948361849 | AN64: -3.660127518 | AO64: 1.200233701 | AP64: 242.8084203 | AQ64: -0.9762654 | AR64: -12.04522394 | AS64: 13.99843 | AT64: 16.46874118 | AW64: -12.04522394 | AX64: 8.661420801 | AY64: 42.83442442 | AZ64: 16.71340942 | BB64: -0.1842084574 | BC64: -1.247179806 | BD64: -15.92666026 | BE64: -3.462869549 | BM64: 33.57078552 | CS64: 172 | CU64: 17.83585709 | CV64: 20.8233167 | CW64: 22.23305524 | CX64: 3.138395153 | CY64: 8.976528 | CZ64: 214.7731257 | DA64: 99.675316 | DC64: безгидратный | DD64: 13.99503326 | DE64: 8 | DG64: 26.21027374
A65: 10 | B65: 944.65 | C65: 31 | D65: 3 | F65: =VLOOKUP($C65,Тнав!$A$3:$E$250,2,FALSE) -> 16.01734443 | G65: 20.19627152 | H65: 23.86720006 | I65: =VLOOKUP($C65,Тнав!$A$3:$E$250,3,FALSE) -> 11.52734791 | J65: 6.132042 | K65: 47.195297 | L65: 0 | M65: 13.31643295 | P65: =Шлейфы!$L$2 -> 5.368657296 | Q65: =VLOOKUP($C65,Тнав!$A$3:$E$250,4,FALSE) -> 254.8503643 | R65: 19.29 | S65: 21.78 | T65: 23.45 | U65: 13.61454797 | V65: 6.08 | W65: 54.1 | X65: 0.0 | Y65: 17.06224454 | Z65: 20.95569611 | AB65: -0.7272281019 | AD65: 220.08 | AE65: -1.190287847 | AF65: 3.272655568 | AG65: 20.43194852 | AH65: 1.58372848 | AI65: 7.841687404 | AJ65: 254.8503643 | AK65: -13.64344306 | AL65: -2.746323633 | AM65: -5.140574409 | AN65: -2.989347808 | AO65: 0.7391223623 | AP65: 10.5739966 | AQ65: 0.3086017 | AR65: 5.435808145 | AS65: 19.19448 | AT65: 27.42068571 | AV65: 0 | AW65: 5.435808145 | AX65: 3.654443911 | AY65: 19.28190626 | AZ65: 20.95569611 | BB65: -0.1842084574 | BC65: -1.247179806 | BD65: 20.58885953 | BE65: 7.951953596 | BM65: 33.01288986 | CS65: 173 | CU65: 17.93359297 | CV65: 22.02269392 | CW65: 23.5136303 | CX65: 1.783249249 | CY65: 9.0393505 | CZ65: 282.4229951 | DA65: 98.28348 | DC65: безгидратный | DD65: 17.35285378 | DE65: 8 | DG65: 26.13722229
A66: 10 | B66: 950.06 | C66: 32 | F66: =VLOOKUP($C66,Тнав!$A$3:$E$250,2,FALSE) -> 12.47393674 | G66: 17.36466468 | H66: 25.07094331 | I66: =VLOOKUP($C66,Тнав!$A$3:$E$250,3,FALSE) -> 12.19181935 | J66: 7.7260437 | K66: 99.05575 | L66: 0 | M66: 20.81715012 | P66: =Шлейфы!$L$2 -> 5.368657296 | Q66: =VLOOKUP($C66,Тнав!$A$3:$E$250,4,FALSE) -> 363.9271588 | R66: 17.33 | S66: 23.3 | T66: 25.09 | U66: 13.96276267 | V66: 7.44 | W66: 98.9 | X66: 0.0 | Y66: 30.17640026 | Z66: 32.26461029 | AB66: -0.7272281019 | AC66: 00:00:00 | AD66: 348.48 | AE66: -2.691439253 | AF66: 4.856063263 | AG66: 38.92967686 | AH66: 5.935335324 | AI66: 34.18053522 | AJ66: 363.9271588 | AK66: -4.244574348 | AL66: -3.310504436 | AM66: -4.039705985 | AN66: -3.17312109 | AO66: 0.8982838481 | AP66: 17.22763438 | AQ66: -0.915156 | AR66: -13.02713167 | AS66: 9.28245 | AT66: 15.47075 | AW66: -13.02713167 | AX66: 3.523777132 | AY66: 17.08436433 | AZ66: 32.26461029 | BB66: -0.1842084574 | BC66: -1.247179806 | BD66: 36.43404 | BE66: 12.25999358 | BM66: 33.47843552 | CS66: 181 | CT66: 18 | CU66: 18.33418655 | CV66: 21.84378427 | CW66: 23.32042409 | CX66: 1.370673006 | CY66: 9.441696 | CZ66: 275.6211568 | DA66: 97.94153 | DC66: безгидратный | DD66: 17.08251762 | DE66: 8 | DG66: 25.93229294
A67: 10 | B67: 948.79 | C67: 33 | F67: =VLOOKUP($C67,Тнав!$A$3:$E$250,2,FALSE) -> 13.14621455 | G67: 17.6814568 | H67: 26.21690689 | I67: =VLOOKUP($C67,Тнав!$A$3:$E$250,3,FALSE) -> 10.27446169 | J67: 7.3031654 | K67: 99.10557 | L67: 0 | M67: 22.66085625 | P67: =Шлейфы!$L$2 -> 5.368657296 | Q67: =VLOOKUP($C67,Тнав!$A$3:$E$250,4,FALSE) -> 411.722879 | R67: 17.69 | S67: 24.31 | T67: 26.18 | U67: 12.18136858 | V67: 7.07 | W67: 98.9 | X67: 0.0 | Y67: 32.37171931 | Z67: 21.29607391 | AB67: -0.7272281019 | AC67: 00:00:00 | AD67: 381.84 | AE67: -1.345787705 | AF67: 4.543785447 | AG67: 34.56345116 | AH67: 6.628543199 | AI67: 37.48867117 | AJ67: 411.722879 | AK67: -7.258007891 | AL67: -4.701124139 | AM67: -2.574856051 | AN67: -3.794593568 | AO67: 1.127371741 | AP67: 30.21899239 | AQ67: -1.2148537 | AR67: -18.26078794 | AS67: -0.637142 | AT67: -1.061903333 | AW67: -18.26078794 | AX67: 0.9731939521 | AY67: 4.837821814 | AZ67: 21.29607391 | BB67: -0.1842084574 | BC67: -1.247179806 | BD67: 24.03356848 | BE67: 8.101204035 | BM67: 33.18141174 | CS67: 182 | CU67: 18.30068698 | CV67: 21.8182529 | CW67: 23.29534862 | CX67: 1.681949124 | CY67: 9.262371 | CZ67: 255.8392491 | DA67: 98.35583 | DC67: безгидратный | DD67: 15.87439537 | DE67: 8 | DG67: 26.25375938
A68: 10 | B68: 946.93 | C68: 391 | D68: 39 | F68: =VLOOKUP($C68,Тнав!$A$3:$E$250,2,FALSE) -> 24.51145431 | G68: 26.54210279 | H68: 36.00510473 | I68: =VLOOKUP($C68,Тнав!$A$3:$E$250,3,FALSE) -> 4.224068003 | J68: 9.604187 | K68: 99.007935 | L68: 0 | M68: 19.15209198 | P68: =Шлейфы!$L$2 -> 5.368657296 | Q68: =VLOOKUP($C68,Тнав!$A$3:$E$250,4,FALSE) -> 541.6688293 | R68: 26.47 | S68: 33.57 | T68: 36.2 | U68: 6.659172728 | V68: 9.33 | W68: 99 | X68: 0.0 | Y68: 25.08018039 | Z68: 16.6889782 | AB68: -0.7272281019 | AD68: 449.52 | AE68: -1.104665453 | AF68: 1.958545688 | AG68: 7.99032837 | AH68: 7.027897207 | AI68: 26.47829851 | AJ68: 541.6688293 | AK68: -17.01202364 | AL68: -1.276631532 | AM68: -1.5707994 | AN68: -1.327504311 | AO68: 0.5164931129 | AP68: 26.55885748 | AQ68: -0.593446 | AR68: -6.45983868 | AS68: 24.93005 | AT68: 35.61435714 | AW68: -6.45983868 | AX68: 0.843845869 | AY68: 4.007420006 | AZ68: 16.6889782 | BB68: -0.1842084574 | BC68: -1.247179806 | BD68: 40.63442452 | BE68: 10.07877179 | BM68: 40.93958664 | BN68: -100 | CS68: 183 | CU68: 18.52125563 | CV68: 22.19171879 | CW68: 23.69409816 | CX68: 1.30927414 | CY68: 9.403957 | CZ68: 309.7269374 | DA68: 98.48149 | DC68: безгидратный | DD68: 18.87788773 | DE68: 8 | DG68: 26.53811455
A69: 10 | B69: 947.07 | C69: 392 | F69: =VLOOKUP($C69,Тнав!$A$3:$E$250,2,FALSE) -> 25.69986487 | G69: 26.17833355 | H69: 34.27156457 | I69: =VLOOKUP($C69,Тнав!$A$3:$E$250,3,FALSE) -> 2.254319421 | J69: 8.98185 | K69: 99.12459 | L69: 0 | M69: 18.66530037 | P69: =Шлейфы!$L$2 -> 5.368657296 | Q69: =VLOOKUP($C69,Тнав!$A$3:$E$250,4,FALSE) -> 562.1374031 | R69: 26.33 | S69: 32.15 | T69: 34.67 | U69: 4.375883986 | V69: 8.69 | W69: 99.2 | X69: 0.0 | Y69: 23.29419588 | Z69: 18.78092766 | AB69: -0.7272281019 | AC69: 0 | AD69: 415.2 | AE69: -0.2769828189 | AF69: 0.6301351274 | AG69: 2.451900547 | AH69: 5.97166645 | AI69: 22.81148431 | AJ69: 562.1374031 | AK69: -26.13905467 | AL69: -2.415661896 | AM69: -2.019844517 | AN69: -3.375242685 | AO69: 1.297931333 | AP69: 93.20018651 | AQ69: -0.157755 | AR69: -1.909219635 | AS69: 23.104996 | AT69: 30.80666133 | AW69: -1.909219635 | AX69: 1.257658535 | AY69: 6.547230705 | AZ69: 18.78092766 | BB69: -0.1842084574 | BC69: -1.247179806 | BD69: 13.96630709 | BE69: 3.535281147 | BM69: 40.91786194 | BN69: -100 | CS69: 191 | CT69: 19 | CU69: 16.23658525 | CV69: 20.97209015 | CW69: 22.37722019 | CX69: 2.660322754 | CY69: 8.897475 | CZ69: 308.4658416 | DA69: 100 | DC69: безгидратный | DD69: 19.96454048 | DE69: 8 | DG69: 25.52846718
A70: 10 | B70: 938.85 | C70: 393 | F70: =VLOOKUP($C70,Тнав!$A$3:$E$250,2,FALSE) -> 23.29272506 | G70: 26.3314308 | H70: 35.64511173 | I70: =VLOOKUP($C70,Тнав!$A$3:$E$250,3,FALSE) -> 6.052467075 | J70: 9.069859 | K70: 98.86975 | L70: 0 | M70: 17.132164 | P70: =Шлейфы!$L$2 -> 5.368657296 | Q70: =VLOOKUP($C70,Тнав!$A$3:$E$250,4,FALSE) -> 445.5619941 | R70: 26.24 | S70: 33.24 | T70: 35.85 | U70: 8.457578801 | V70: 8.81 | W70: 98.9 | X70: 0.0 | Y70: 22.25615744 | Z70: 18.27484131 | AB70: -0.7272281019 | AC70: 0 | AD70: 395.28 | AE70: -1.730938146 | AF70: 2.947274942 | AG70: 12.65319938 | AH70: 6.9085692 | AI70: 26.23696848 | AJ70: 445.5619941 | AK70: -11.28507251 | AL70: 0.08543689813 | AM70: -1.23321321 | AN70: 0.3867695133 | AO70: -0.1448562219 | AP70: -4.716251345 | AQ70: 0.103934 | AR70: 1.279534151 | AS70: 24.94948 | AT70: 38.38381538 | AW70: 1.279534151 | AX70: -3.288066073 | AY70: -14.26807018 | AZ70: 18.27484131 | BB70: -0.1842084574 | BC70: -1.247179806 | BD70: 21.67083667 | BE70: 5.836355949 | BM70: 40.54984665 | BN70: -100 | CS70: 192 | CU70: 16.23079182 | CV70: 22.11712736 | CW70: 23.59897489 | CX70: 1.685143201 | CY70: 8.788306 | CZ70: 369.1570715 | DA70: 100 | DC70: безгидратный | DD70: 22.59568024 | DE70: 8 | DG70: 25.72980309
A71: 10 | B71: 909.8708 | C71: 401 | D71: 40 | F71: =VLOOKUP($C71,Тнав!$A$3:$E$250,2,FALSE) -> 20.48702511 | G71: 22.91935418 | H71: 31.64564326 | I71: =VLOOKUP($C71,Тнав!$A$3:$E$250,3,FALSE) -> 6.844999371 | J71: 7.534687 | K71: 77.57164 | L71: 0 | M71: 18.58294106 | P71: =Шлейфы!$L$2 -> 5.368657296 | Q71: =VLOOKUP($C71,Тнав!$A$3:$E$250,4,FALSE) -> 452.1585959 | R71: 23.04 | S71: 29.7 | T71: 32.01 | U71: 8.790642629 | V71: 7.36 | W71: 80.4 | X71: 0.0 | Y71: 24.22003511 | Z71: 11.13677979 | AB71: -0.7272281019 | AD71: 375.6 | AE71: -1.975317437 | AF71: 2.552974888 | AG71: 12.46142314 | AH71: 6.78064582 | AI71: 29.58480316 | AJ71: 452.1585959 | AK71: -16.93180149 | AL71: -0.2199450099 | AM71: -0.2072756652 | AN71: -0.6044304449 | AO71: 0.2072756652 | AP71: 4.778016416 | AQ71: 1.092739 | AR71: 19.08147799 | AS71: 37.97843 | AT71: 94.946075 | AV71: 0 | AW71: 19.08147799 | AX71: 4.021294224 | AY71: 19.43332015 | AZ71: 11.13677979 | BB71: -0.1842084574 | BC71: -1.247179806 | BD71: 34.49376608 | BE71: 9.031742153 | BM71: 38.8862381 | BN71: -100 | CS71: 193 | CU71: 16.43973188 | CV71: 22.06784423 | CW71: 23.54418301 | CX71: 1.433910441 | CY71: 9.252388 | CZ71: 396.9205038 | DA71: 61.174248 | DC71: безгидратный | DD71: 24.35457611 | DE71: 8 | DG71: 25.46855736
A72: 10 | B72: 967.92 | C72: 402 | F72: =VLOOKUP($C72,Тнав!$A$3:$E$250,2,FALSE) -> 23.72513178 | G72: 26.76278087 | H72: 33.97030161 | I72: =VLOOKUP($C72,Тнав!$A$3:$E$250,3,FALSE) -> 6.830074678 | J72: 7.2691307 | K72: 57.662113 | L72: 0 | M72: 16.65723228 | P72: =Шлейфы!$L$2 -> 5.368657296 | Q72: =VLOOKUP($C72,Тнав!$A$3:$E$250,4,FALSE) -> 408.3439207 | R72: 26.55 | S72: 31.54 | T72: 34.02 | U72: 9.260376284 | V72: 7.13 | W72: 59.7 | X72: 0.0 | Y72: 20.84985114 | Z72: 26.36170769 | AB72: -0.7272281019 | AC72: 0 | AD72: 374.88 | AE72: 0.2829946212 | AF72: 2.824868216 | AG72: 11.90664921 | AH72: 4.777219135 | AI72: 17.85023447 | AJ72: 408.3439207 | AK72: -8.195033403 | AL72: 9.966079435 | AM72: 3.109003721 | AN72: 9.311155983 | AO72: -3.109003721 | AP72: -56.00879417 | AQ72: -1.205976 | AR72: -15.81379735 | AS72: 18.51023 | AT72: 46.275575 | AV72: 0 | AW72: -15.81379735 | AX72: 2.917004582 | AY72: 14.46940635 | AZ72: 26.36170769 | BB72: -0.1842084574 | BC72: -1.247179806 | BD72: 11.12443638 | BE72: 2.523717862 | BM72: 39.24994659 | BN72: -100 | CS72: 194 | CU72: 16.30393969 | CV72: 21.52801983 | CW72: 22.96824436 | CX72: 1.805592579 | CY72: 9.022268 | CZ72: 304.0175811 | DA72: 99.89636 | DC72: безгидратный | DD72: 19.14592934 | DE72: 8 | DG72: 25.2231617
A73: 6.2 | B73: 919.37 | C73: 403 | F73: =VLOOKUP($C73,Тнав!$A$3:$E$250,2,FALSE) -> 26.93662844 | G73: =VLOOKUP($C73,$CS:$DG,3,FALSE) -> 27.09205189 | H73: =VLOOKUP($C73,$CS:$DG,5,FALSE) -> 33.02438832 | I73: =VLOOKUP($C73,Тнав!$A$3:$E$250,3,FALSE) -> 3.002655973 | J73: =VLOOKUP($C73,$CS:$DG,7,FALSE) -> 6.3999176 | K73: =VLOOKUP($C73,$CS:$DG,9,FALSE) -> 90.91275 | L73: =VLOOKUP($C73,$CS:$DG,10,FALSE) -> 16 | M73: =VLOOKUP($C73,$CS:$DG,12,FALSE) -> 10.40372276 | P73: =Шлейфы!$L$2 -> 5.368657296 | Q73: =VLOOKUP($C73,Тнав!$A$3:$E$250,4,FALSE) -> 100.6928251 | R73: 27.01 | S73: 30.74 | T73: 33.15 | U73: =(H73+I73)-S73 -> 5.287044289 | V73: 5.77 | W73: 92.8 | X73: 16.0 | Y73: =(AD73*(1/(1+(5*10^7*0.098*R73)/(18.8+273.15)^3.825))*(18.8+273.15)*0.052)/((POWER(A73,2))*(R73/10.197)) -> 11.45963623 | Z73: 26.36170769 | AB73: -0.7272281019 | AC73: 00:00:00 | AD73: 80.64 | AE73: -1.777158735 | AF73: =IF(R73="","",(R73-F73)) -> 0.07337155555 | AG73: =IF(R73="","",(R73/F73*100-100)) -> 0.2723858173 | AH73: =IF(R73="","",(S73-G73)) -> 3.64794811 | AI73: =IF(R73="","",(S73/G73*100-100)) -> 13.46501227 | AJ73: =IF(AD73="","",(Q73-E73)) -> 100.6928251 | AK73: =IF(AD73="","",(AD73/Q73*100-100)) -> -19.91485003 | AL73: -5.777913052 | AM73: -2.181918761 | AN73: -5.905106456 | AO73: 2.181918761 | AP73: 328.6770512 | AQ73: -3.8483557 | AR73: -50.88936685 | AS73: -0.2603 | AT73: -0.2892222222 | AW73: -50.88936685 | AX73: 2.962676282 | AY73: 32.44987914 | AZ73: 26.36170769 | BB73: -0.1842084574 | BC73: -1.247179806 | BD73: 4.578493381 | BE73: 5.329501328 | BM73: 37.41014862 | BN73: -100 | CS73: 201 | CT73: 20 | CU73: 16.74711085 | CV73: 20.40936747 | CW73: 21.79312259 | CX73: 3.596646605 | CY73: 7.376863 | CZ73: 307.0134006 | DA73: 27.911842 | DC73: безгидратный | DD73: 20.42875481 | DE73: 8 | DG73: 25.94303322
A74: 10 | B74: 932.3 | C74: 411 | D74: 41 | F74: =VLOOKUP($C74,Тнав!$A$3:$E$250,2,FALSE) -> 21.85464131 | G74: 22.52504985 | H74: 27.6295983 | I74: =VLOOKUP($C74,Тнав!$A$3:$E$250,3,FALSE) -> 8.332559845 | J74: 8.71682 | K74: 79.961296 | L74: 0 | M74: 13.71911812 | P74: =Шлейфы!$L$2 -> 5.368657296 | Q74: =VLOOKUP($C74,Тнав!$A$3:$E$250,4,FALSE) -> 287.0168041 | R74: 23.44 | S74: 26.24 | T74: 28.26 | U74: 9.722158141 | V74: 8.51 | W74: 82.2 | X74: 0.0 | Y74: 14.57808071 | Z74: 20.26239777 | AB74: -0.7272281019 | AD74: 230.16 | AE74: -0.7336558438 | AF74: 1.585358693 | AG74: 7.254105299 | AH74: 3.714950146 | AI74: 16.49252796 | AJ74: 287.0168041 | AK74: -19.80957326 | AL74: -5.954961471 | AM74: -2.018292103 | AN74: -6.211081732 | AO74: 2.018292103 | AP74: 50.7883979 | AQ74: -0.081446 | AR74: -1.038997819 | AS74: 18.800415 | AT74: 23.50051875 | AW74: -1.038997819 | AX74: -3.859108463 | AY74: -21.62372924 | AZ74: 20.26239777 | BB74: -0.1842084574 | BC74: -1.247179806 | BD74: 2.759250564 | BE74: 1.140787513 | BM74: 36.85409546 | BN74: -100 | CS74: 202 | CU74: 16.50653654 | CV74: 21.57578662 | CW74: 23.03430979 | CX74: 2.278473003 | CY74: 8.700965 | CZ74: 371.0354947 | DA74: 34.141064 | DC74: безгидратный | DD74: 23.29614067 | DE74: 8 | DG74: 26.28356361
A75: 10 | B75: 938.4 | C75: 412 | F75: =VLOOKUP($C75,Тнав!$A$3:$E$250,2,FALSE) -> 23.70684352 | G75: 22.73040216 | H75: 28.07212865 | I75: =VLOOKUP($C75,Тнав!$A$3:$E$250,3,FALSE) -> 6.027904824 | J75: 8.854652 | K75: 93.00276 | L75: 0 | M75: 15.14464951 | P75: =Шлейфы!$L$2 -> 5.368657296 | Q75: =VLOOKUP($C75,Тнав!$A$3:$E$250,4,FALSE) -> 354.8006014 | R75: 23.54 | S75: 26.55 | T75: 28.6 | U75: 7.55003347 | V75: 8.62 | W75: 95.3 | X75: 0.0 | Y75: 16.35997861 | Z75: 20.07020187 | AB75: -0.7272281019 | AC75: 00:00:00 | AD75: 259.44 | AE75: -1.858482924 | AF75: -0.1668435163 | AG75: -0.7037778612 | AH75: 3.819597838 | AI75: 16.80391667 | AJ75: 354.8006014 | AK75: -26.87723782 | AL75: -5.880403879 | AM75: -1.859654816 | AN75: -7.709227898 | AO75: 2.599269612 | AP75: 83.99409609 | AQ75: 0.447691 | AR75: 5.954208727 | AS75: 38.54382 | AT75: 64.2397 | AW75: 5.954208727 | AX75: -2.511469449 | AY75: -13.66356795 | AZ75: 20.07020187 | BB75: -0.1842084574 | BC75: -1.247179806 | BD75: 13.80071805 | BE75: 5.234206873 | BM75: 37.30489731 | CS75: 203 | CU75: 15.36494617 | CV75: 21.49095446 | CW75: 22.94159389 | CX75: 2.57520787 | CY75: 8.267365 | CZ75: 302.5037263 | DA75: 100 | DC75: безгидратный | DD75: 19.07381821 | DE75: 8 | DG75: 26.17325211
A76: 10 | B76: 943.72 | C76: 413 | F76: =VLOOKUP($C76,Тнав!$A$3:$E$250,2,FALSE) -> 20.75427289 | G76: 22.55124837 | H76: 27.99351264 | I76: =VLOOKUP($C76,Тнав!$A$3:$E$250,3,FALSE) -> 9.401867487 | J76: 8.833969 | K76: 98.18761 | L76: 0 | M76: 11.81213093 | P76: =Шлейфы!$L$2 -> 5.368657296 | Q76: =VLOOKUP($C76,Тнав!$A$3:$E$250,4,FALSE) -> 224.8468708 | R76: 23.45 | S76: 26.52 | T76: 28.56 | U76: 10.87538013 | V76: 8.55 | W76: 98.2 | X76: 0.0 | Y76: 12.2620322 | Z76: 19.01216888 | AB76: -0.7272281019 | AC76: 00:00:00 | AD76: 193.68 | AE76: -1.198014462 | AF76: 2.695727107 | AG76: 12.98878126 | AH76: 3.968751632 | AI76: 17.59881124 | AJ76: 224.8468708 | AK76: -13.86137628 | AL76: -2.954559656 | AM76: -0.6231975313 | AN76: -2.74246054 | AO76: 0.8649919442 | AP76: 17.95270839 | AQ76: 0.3632996 | AR76: 4.892923906 | AS76: 38.983406 | AT76: 64.97234333 | AW76: 4.892923906 | AX76: -5.827131769 | AY76: -32.19696317 | AZ76: 19.01216888 | BB76: -0.1842084574 | BC76: -1.247179806 | BD76: 8.92643228 | BE76: 4.403280975 | BM76: 36.18407059 | CS76: 211 | CT76: 21 | CU76: 15.53188006 | CV76: 19.48097806 | CW76: 20.78620358 | CX76: 4.408842464 | CY76: 8.4289665 | CZ76: 244.411443 | DA76: 97.82688 | DC76: безгидратный | DD76: 17.08793068 | DE76: 8 | DG76: 25.73846245
A77: 10 | B77: 945.31 | C77: 21 | D77: 2 | E77: 9 | F77: =VLOOKUP($C77,Тнав!$A$3:$E$250,2,FALSE) -> 14.78728747 | G77: 19.74356183 | H77: 25.60523493 | I77: =VLOOKUP($C77,Тнав!$A$3:$E$250,3,FALSE) -> 7.31376101 | J77: 8.421628 | K77: 100 | L77: 0 | M77: 17.95732307 | P77: =Шлейфы!$L$2 -> 5.368657296 | Q77: =VLOOKUP($C77,Тнав!$A$3:$E$250,4,FALSE) -> 425.4151404 | R77: 19.23 | S77: 23.83 | T77: 25.66 | U77: 9.088995941 | V77: 7.97 | W77: 100 | X77: 0.0 | Y77: 24.2106025 | Z77: 11.7830286 | AB77: -0.325879989 | AD77: 311.28 | AE77: -1.28644547 | AF77: 4.442712528 | AG77: 30.04413444 | AH77: 4.086438166 | AI77: 20.69757321 | AJ77: 416.4151404 | AK77: -26.82912044 | AL77: -1.31881519 | AM77: 3.333566256 | AN77: -0.8982936719 | AO77: 0.2503796491 | AP77: 5.764450001 | AQ77: -1.0275114 | AR77: -12.32441827 | AS77: 35 | AT77: 53.84615385 | AW77: -12.32441827 | AX77: 1.786195541 | AY77: 8.455604148 | AZ77: 11.7830286 | BB77: -0.7454842463 | BC77: -5.047286705 | BD77: -47.04225046 | BE77: -12.63292161 | BM77: 32.5103035 | CS77: 212 | CU77: 15.56607532 | CV77: 19.74995356 | CW77: 21.07517544 | CX77: 4.373524738 | CY77: 8.278145 | CZ77: 299.9493467 | DA77: 97.86393 | DC77: безгидратный | DD77: 20.67047691 | DE77: 8 | DG77: 25.85027313
A78: 10 | B78: 936.68 | C78: 22 | F78: =VLOOKUP($C78,Тнав!$A$3:$E$250,2,FALSE) -> 15.36573809 | G78: 19.80253536 | H78: 27.9284655 | I78: =VLOOKUP($C78,Тнав!$A$3:$E$250,3,FALSE) -> 7.186111468 | J78: 8.421628 | K78: 96.595 | L78: 0 | M78: 17.87474251 | P78: =Шлейфы!$L$2 -> 5.368657296 | Q78: =VLOOKUP($C78,Тнав!$A$3:$E$250,4,FALSE) -> 518.3522595 | R78: 19.19 | S78: 26.15 | T78: 28.16 | U78: 8.964576969 | V78: 7.97 | W78: 96.9 | X78: 0.0 | Y78: 26.37664861 | Z78: 13.57853127 | AB78: -0.325879989 | AC78: 00:00:00 | AD78: 338.4 | AE78: -0.9298080717 | AF78: 3.824261912 | AG78: 24.8882409 | AH78: 6.347464635 | AI78: 32.05379775 | AJ78: 518.3522595 | AK78: -34.71621011 | AL78: 6.624129247 | AM78: -0.9210027196 | AN78: 6.640322624 | AO78: -1.86672582 | AP78: -40.57113106 | AQ78: 0.0318886 | AR78: 0.4381626316 | AS78: 35 | AT78: 53.84615385 | AW78: 0.4381626316 | AX78: 2.899494174 | AY78: 13.56721262 | AZ78: 13.57853127 | BB78: -0.7454842463 | BC78: -5.047286705 | BD78: -55.14151484 | BE78: -13.70431022 | BM78: 32.82030487 | CS78: 213 | CU78: 15.75011071 | CV78: 22.42795045 | CW78: 23.93286593 | CX78: 1.320855721 | CY78: 8.486652 | CZ78: 415.7407196 | DA78: 98.34331 | DC78: безгидратный | DD78: 25.0731926 | DE78: 8 | DG78: 25.75277519
A79: 10 | B79: 936.99 | C79: 23 | F79: =VLOOKUP($C79,Тнав!$A$3:$E$250,2,FALSE) -> 14.88403427 | G79: 19.67128078 | H79: 26.88514129 | I79: =VLOOKUP($C79,Тнав!$A$3:$E$250,3,FALSE) -> 7.282528803 | J79: 8.488702 | K79: 100 | L79: 0 | M79: 20.43418121 | P79: =Шлейфы!$L$2 -> 5.368657296 | Q79: =VLOOKUP($C79,Тнав!$A$3:$E$250,4,FALSE) -> 452.8511299 | R79: 19.09 | S79: 25.01 | T79: 26.93 | U79: 9.157670091 | V79: 8.08 | W79: 100 | X79: 0.0 | Y79: 28.66361419 | Z79: 14.22868919 | AB79: -0.325879989 | AC79: 00:00:00 | AD79: 365.76 | AE79: -0.1367672288 | AF79: 4.205965732 | AG79: 28.25823736 | AH79: 5.338719215 | AI79: 27.13966251 | AJ79: 452.8511299 | AK79: -19.23173514 | AL79: 3.557332224 | AM79: 6.197798688 | AN79: 3.623073403 | AO79: -1.007604322 | AP79: -19.5941704 | AQ79: 0.4478126 | AR79: 6.279184486 | AS79: 18.576866 | AT79: 23.2210825 | AW79: 6.279184486 | AX79: 4.624363579 | AY79: 22.33289229 | AZ79: 14.22868919 | BB79: -0.7454842463 | BC79: -5.047286705 | BD79: -42.17187539 | BE79: -10.1163316 | BM79: 33.15484619 | BN79: -100 | CS79: 221 | CT79: 22 | CY79: 0 | CZ79: 0 | DA79: 95.28503
A80: 10 | B80: 951.16 | C80: 41 | D80: 4 | F80: =VLOOKUP($C80,Тнав!$A$3:$E$250,2,FALSE) -> 15.80760374 | G80: 20.87017405 | H80: 27.29215395 | I80: =VLOOKUP($C80,Тнав!$A$3:$E$250,3,FALSE) -> 8.133194739 | J80: 8.725304 | K80: 95.218185 | L80: 0 | M80: 18.60893059 | P80: =Шлейфы!$L$2 -> 5.368657296 | Q80: =VLOOKUP($C80,Тнав!$A$3:$E$250,4,FALSE) -> 394.3453878 | R80: 19.96 | S80: 25.36 | T80: 27.31 | U80: 10.06534869 | V80: 8.27 | W80: 96.8 | X80: 0.0 | Y80: 26.20487723 | Z80: 8.107523918 | AB80: -0.325879989 | AD80: 350.16 | AE80: -1.162934663 | AF80: 4.152396256 | AG80: 26.26834733 | AH80: 4.489825952 | AI80: 21.51312175 | AJ80: 394.3453878 | AK80: -11.20474313 | AL80: -0.4664332966 | AM80: -0.03731560055 | AN80: -0.6709249208 | AO80: 0.2000151243 | AP80: 5.919311614 | AQ80: 0.253537 | AR80: 3.37675639 | AS80: 24.05024 | AT80: 32.06698667 | AW80: 3.37675639 | AX80: 4.136975152 | AY80: 24.51489985 | AZ80: 8.107523918 | BB80: -0.7454842463 | BC80: -5.047286705 | BD80: 21.9317901 | BE80: 7.185562502 | BM80: 33.26568985 | BN80: -100 | CS80: 222 | CU80: 18.24082851 | CV80: 20.94353262 | CW80: 22.35512672 | CX80: 2.550835756 | CY80: 7.4382896 | CZ80: 224.1251424 | DA80: 59.78742 | DC80: безгидратный | DD80: 14.52086449 | DE80: 8 | DG80: 25.43677711
A81: 10 | B81: 948.79 | C81: 42 | F81: =VLOOKUP($C81,Тнав!$A$3:$E$250,2,FALSE) -> 15.86670851 | G81: 20.9254105 | H81: 28.12929951 | I81: =VLOOKUP($C81,Тнав!$A$3:$E$250,3,FALSE) -> 6.622829524 | J81: 8.569698 | K81: 92.10958 | L81: 0 | M81: 18.45262337 | P81: =Шлейфы!$L$2 -> 5.368657296 | Q81: =VLOOKUP($C81,Тнав!$A$3:$E$250,4,FALSE) -> 414.9590782 | R81: 20.01 | S81: 26.11 | T81: 28.13 | U81: 8.642129037 | V81: 8.12 | W81: 93.8 | X81: 0.0 | Y81: 27.05073515 | Z81: 11.93722916 | AB81: -0.325879989 | AC81: 00:00:00 | AD81: 362.4 | AE81: -0.5122696764 | AF81: 4.143291491 | AG81: 26.1131128 | AH81: 5.1845895 | AI81: 24.7765247 | AJ81: 414.9590782 | AK81: -12.66608708 | AL81: 4.438096075 | AM81: 3.303489153 | AN81: 3.396641734 | AO81: -1.003793405 | AP81: -27.89020075 | AQ81: 0.9154926 | AR81: 13.73355635 | AS81: 9.07127 | AT81: 10.07918889 | AW81: 13.73355635 | AX81: 3.137561618 | AY81: 17.45386853 | AZ81: 11.93722916 | BB81: -0.7454842463 | BC81: -5.047286705 | BD81: 4.040966545 | BE81: 1.226453723 | BM81: 33.51331711 | BN81: -100 | CS81: 223 | CU81: 15.99306389 | CV81: 21.00728245 | CW81: 22.42317329 | CX81: 1.026151303 | CY81: 5.7861023 | CZ81: 85.4071618 | DA81: 99.119835 | DC81: безгидратный | DD81: 15.32181168 | DE81: 8 | DG81: 25.23336029
A82: 10 | B82: 948.99 | C82: 43 | F82: =VLOOKUP($C82,Тнав!$A$3:$E$250,2,FALSE) -> 15.94079231 | G82: 20.8957129 | H82: 28.38714347 | I82: =VLOOKUP($C82,Тнав!$A$3:$E$250,3,FALSE) -> 6.829500278 | J82: 8.549221 | K82: 60.158405 | L82: 0 | M82: 16.19299889 | P82: =Шлейфы!$L$2 -> 5.368657296 | Q82: =VLOOKUP($C82,Тнав!$A$3:$E$250,4,FALSE) -> 367.064165 | R82: 19.89 | S82: 26.38 | T82: 28.42 | U82: 8.836643751 | V82: 8.13 | W82: 71 | X82: 0.0 | Y82: 24.08310507 | Z82: 12.26891041 | AB82: -0.325879989 | AC82: 00:00:00 | AD82: 320.64 | AE82: -0.3386803042 | AF82: 3.949207692 | AG82: 24.77422461 | AH82: 5.484287104 | AI82: 26.24599185 | AJ82: 367.064165 | AK82: -12.64742501 | AL82: 4.924257568 | AM82: -1.911775036 | AN82: 4.931005004 | AO82: -1.43680622 | AP82: -32.18705859 | AQ82: 1.079007 | AR82: 16.7287907 | AS82: 3.71355 | AT82: 3.909 | AW82: 16.7287907 | AX82: -1.394574417 | AY82: -6.857945636 | AZ82: 12.26891041 | BB82: -0.7454842463 | BC82: -5.047286705 | BD82: -6.91591507 | BE82: -2.272814481 | BM82: 33.3827858 | BN82: -100 | CS82: 231 | CT82: 23 | CU82: 17.66682302 | CV82: 19.9394031 | CW82: 21.28730675 | CX82: 3.080088521 | CY82: 8.649153 | CZ82: 237.8052693 | DA82: 98.70379 | DC82: безгидратный | DD82: 16.21723366 | DE82: 8 | DG82: 24.71871185
A83: 10 | B83: 920.31 | C83: 191 | D83: 19 | E83: 10 | F83: =VLOOKUP($C83,Тнав!$A$3:$E$250,2,FALSE) -> 12.18421814 | G83: 16.23658525 | H83: 22.37722019 | I83: =VLOOKUP($C83,Тнав!$A$3:$E$250,3,FALSE) -> 4.622462355 | J83: 8.897475 | K83: 100 | L83: 0 | M83: 19.96454048 | P83: =Шлейфы!$L$2 -> 5.368657296 | Q83: =VLOOKUP($C83,Тнав!$A$3:$E$250,4,FALSE) -> 394.0831926 | R83: 16.15 | S83: 20.83 | T83: 22.41 | U83: 6.169682548 | V83: 8.6 | W83: 100 | X83: 0.0 | Y83: 26.97366028 | Z83: 23.23259163 | AB83: -0.01524328399 | AD83: 289.68 | AE83: -0.5664928152 | AF83: 3.965781856 | AG83: 32.54851324 | AH83: 4.593414753 | AI83: 28.29052219 | AJ83: 384.0831926 | AK83: -26.49267833 | AL83: -9.910907822 | AM83: -2.409788499 | AN83: -9.038416862 | AO83: 2.409788499 | AP83: 124.3925037 | AQ83: -0.731262 | AR83: -8.785722009 | AS83: 4.848347 | AT83: 13.85242 | AW83: -8.785722009 | AX83: 7.210901925 | AY83: 38.5183129 | AZ83: 23.23259163 | BB83: -0.5979742156 | BC83: -4.048572889 | BD83: -54.16146561 | BE83: -14.59900596 | BM83: 28.15372467 | BN83: -100 | CS83: 232 | CU83: 17.62456824 | CV83: 20.84662203 | CW83: 22.25376902 | CX83: 1.429585074 | CY83: 9.33535 | CZ83: 284.366072 | DA83: 99.42298 | DC83: безгидратный | DD83: 18.51176834 | DE83: 8 | DG83: 24.53954124
A84: 10 | B84: 916.79 | C84: 192 | F84: =VLOOKUP($C84,Тнав!$A$3:$E$250,2,FALSE) -> 11.97925746 | G84: 16.23079182 | H84: 23.59897489 | I84: =VLOOKUP($C84,Тнав!$A$3:$E$250,3,FALSE) -> 4.384510378 | J84: 8.788306 | K84: 100 | L84: 0 | M84: 22.59568024 | P84: =Шлейфы!$L$2 -> 5.368657296 | Q84: =VLOOKUP($C84,Тнав!$A$3:$E$250,4,FALSE) -> 435.3060219 | R84: 16.29 | S84: 22.03 | T84: 23.71 | U84: 5.953485271 | V84: 8.35 | W84: 100 | X84: 0.0 | Y84: 31.91835307 | Z84: 25.56357765 | AB84: -0.01524328399 | AC84: 00:00:00 | AD84: 345.84 | AE84: -1.206889606 | AF84: 4.310742541 | AG84: 35.9850563 | AH84: 5.79920818 | AI84: 35.72966892 | AJ84: 435.3060219 | AK84: -20.55244297 | AL84: -4.25658836 | AM84: -1.098327786 | AN84: -4.137122646 | AO84: 1.098327786 | AP84: 49.25167745 | AQ84: -0.456423 | AR84: -5.944710724 | AS84: 11.934853 | AT84: 39.78284333 | AW84: -5.944710724 | AX84: 9.843408999 | AY84: 50.71858154 | AZ84: 25.56357765 | BB84: -0.5979742156 | BC84: -4.048572889 | BD84: -41.52670875 | BE84: -10.42356185 | BM84: 28.2973938 | BN84: -100 | CS84: 233 | CU84: 17.66858207 | CV84: 20.83373132 | CW84: 22.24000818 | CX84: 1.546574856 | CY84: 9.460516 | CZ84: 239.9829445 | DA84: 100 | DC84: безгидратный | DD84: 15.63263226 | DE84: 8 | DG84: 24.91653252
A85: 10 | B85: 869 | C85: 193 | F85: =VLOOKUP($C85,Тнав!$A$3:$E$250,2,FALSE) -> 12.41113642 | G85: 16.43973188 | H85: 23.54418301 | I85: =VLOOKUP($C85,Тнав!$A$3:$E$250,3,FALSE) -> 4.068139288 | J85: 9.252388 | K85: 61.174248 | L85: 0 | M85: 24.35457611 | P85: =Шлейфы!$L$2 -> 5.368657296 | Q85: =VLOOKUP($C85,Тнав!$A$3:$E$250,4,FALSE) -> 432.9993637 | R85: 16.48 | S85: 22.06 | T85: 23.74 | U85: 5.552322294 | V85: 8.86 | W85: 66 | X85: 0.0 | Y85: 31.86807356 | Z85: 26.33267021 | AB85: -0.01524328399 | AC85: 00:00:00 | AD85: 349.44 | AE85: -1.513279674 | AF85: 4.068863579 | AG85: 32.78397272 | AH85: 5.620268122 | AI85: 34.18710332 | AJ85: 432.9993637 | AK85: -19.29780288 | AL85: -6.640442876 | AM85: -1.675221282 | AN85: -6.194297937 | AO85: 1.675221282 | AP85: 115.4605275 | AQ85: -0.0263646 | AR85: -0.3454888548 | AS85: 15.31096 | AT85: 61.24384 | AW85: -0.3454888548 | AX85: 10.76602206 | AY85: 58.26460678 | AZ85: 26.33267021 | BB85: -0.5979742156 | BC85: -4.048572889 | BD85: -30.36897139 | BE85: -7.671565699 | BM85: 28.01529884 | BN85: -100 | CS85: 234 | CU85: 17.49071432 | CV85: 19.40673048 | CW85: 20.71668479 | CX85: 3.232876295 | CY85: 8.885793 | CZ85: 194.3979196 | DA85: 99.26453 | DC85: безгидратный | DD85: 13.63889503 | DE85: 8 | DG85: 24.63054466
A86: 10 | B86: 926.21 | C86: 194 | F86: =VLOOKUP($C86,Тнав!$A$3:$E$250,2,FALSE) -> 11.79488857 | G86: 16.30393969 | H86: 22.96824436 | I86: =VLOOKUP($C86,Тнав!$A$3:$E$250,3,FALSE) -> 5.89285835 | J86: 9.022268 | K86: 99.89636 | L86: 0 | M86: 19.14592934 | P86: =Шлейфы!$L$2 -> 5.368657296 | Q86: =VLOOKUP($C86,Тнав!$A$3:$E$250,4,FALSE) -> 346.3701267 | R86: 16.23 | S86: 21.42 | T86: 23.05 | U86: 7.441102709 | V86: 8.62 | W86: 100 | X86: 0.0 | Y86: 26.63679516 | Z86: 21.85165596 | AB86: -0.01524328399 | AC86: 00:00:00 | AD86: 287.52 | AE86: -1.240114801 | AF86: 4.43511143 | AG86: 37.60197821 | AH86: 5.116060313 | AI86: 31.37928876 | AJ86: 346.3701267 | AK86: -16.99053185 | AL86: -1.431519876 | AM86: -0.444939216 | AN86: -1.754608933 | AO86: 0.444939216 | AP86: 13.23256263 | AQ86: 0.4468987 | AR86: 6.116286422 | AS86: 47.12701 | AT86: 117.817525 | AW86: 6.116286422 | AX86: 6.45686181 | AY86: 33.83487935 | AZ86: 21.85165596 | BB86: -0.5979742156 | BC86: -4.048572889 | BD86: -39.55940718 | BE86: -11.50371194 | BM86: 28.32536316 | CS86: 241 | CT86: 24 | CU86: 18.90301532 | CV86: 21.57399265 | CW86: 23.04102415 | CX86: 1.126336162 | CY86: 9.432291 | CZ86: 270.3220335 | DA86: 98.48925 | DC86: безгидратный | DD86: 16.96747017 | DE86: 8 | DG86: 24.56784821
A87: 10 | B87: 912.21 | C87: 201 | D87: 20 | F87: =VLOOKUP($C87,Тнав!$A$3:$E$250,2,FALSE) -> 14.36964407 | G87: 16.74711085 | H87: 21.79312259 | I87: =VLOOKUP($C87,Тнав!$A$3:$E$250,3,FALSE) -> 2.22940741 | J87: 7.376863 | K87: 27.911842 | L87: 0 | M87: 20.42875481 | P87: =Шлейфы!$L$2 -> 5.368657296 | Q87: =VLOOKUP($C87,Тнав!$A$3:$E$250,4,FALSE) -> 527.1083281 | R87: 15.88 | S87: 20.2 | T87: 21.74 | U87: 3.822529997 | V87: 7.23 | W87: 37.4 | X87: 0.0 | Y87: 29.67376617 | Z87: 28.01256943 | AB87: -0.01524328399 | AD87: 313.2 | AE87: -0.4687957029 | AF87: 1.510355929 | AG87: 10.51074001 | AH87: 3.452889152 | AI87: 20.61781989 | AJ87: 527.1083281 | AK87: -40.5814738 | AL87: -11.97060566 | AM87: -0.6434631502 | AN87: -10.50803198 | AO87: 2.869528999 | AP87: 416.2723489 | AQ87: -1.459518 | AR87: -20.55167073 | AS87: -19.503195 | AT87: -48.7579875 | AW87: -20.55167073 | AX87: 1.966275198 | AY87: 10.46795243 | AZ87: 28.01256943 | BB87: -0.5979742156 | BC87: -4.048572889 | BD87: -52.29058215 | BE87: -15.76094567 | BM87: 28.6091404 | CS87: 242 | CU87: 18.93869683 | CV87: 21.27211861 | CW87: 22.71649546 | CX87: 0.8892035972 | CY87: 9.877955 | CZ87: 269.4332383 | DA87: 100 | DC87: безгидратный | DD87: 17.1652813 | DE87: 8 | DG87: 24.18289757
A88: 10 | B88: 888.17 | C88: 202 | F88: =VLOOKUP($C88,Тнав!$A$3:$E$250,2,FALSE) -> 13.99316826 | G88: 16.50653654 | H88: 23.03430979 | I88: =VLOOKUP($C88,Тнав!$A$3:$E$250,3,FALSE) -> 3.143205975 | J88: 8.700965 | K88: 34.141064 | L88: 0 | M88: 23.29614067 | P88: =Шлейфы!$L$2 -> 5.368657296 | Q88: =VLOOKUP($C88,Тнав!$A$3:$E$250,4,FALSE) -> 515.7321645 | R88: 16.19 | S88: 21.53 | T88: 23.17 | U88: 4.64751577 | V88: 8.25 | W88: 36.1 | X88: 0.0 | Y88: 32.56700137 | Z88: 28.8417244 | AB88: -0.01524328399 | AC88: 00:00:00 | AD88: 350.64 | AE88: -1.610449519 | AF88: 2.196831743 | AG88: 15.69931629 | AH88: 5.023463456 | AI88: 30.43317684 | AJ88: 515.7321645 | AK88: -32.0112213 | AL88: -11.67662519 | AM88: 0.886397541 | AN88: -10.92562373 | AO88: 3.066496306 | AP88: 510.2496914 | AQ88: -1.397997 | AR88: -16.93741141 | AS88: -14.414978 | AT88: -36.037445 | AW88: -16.93741141 | AX88: 5.584718451 | AY88: 28.81554786 | AZ88: 28.8417244 | BB88: -0.5979742156 | BC88: -4.048572889 | BD88: -26.30664921 | BE88: -7.44159567 | BM88: 28.71917725 | CS88: 243 | CU88: 18.74231192 | CV88: 21.07328037 | CW88: 22.50626343 | CX88: 1.195048847 | CY88: 9.15031 | CZ88: 226.9642638 | DA88: 95.53235 | DC88: безгидратный | DD88: 14.60130978 | DE88: 8 | DG88: 24.30114555
A89: 10 | B89: 934.31 | C89: 203 | F89: =VLOOKUP($C89,Тнав!$A$3:$E$250,2,FALSE) -> 10.64327541 | G89: 15.36494617 | H89: 22.94159389 | I89: =VLOOKUP($C89,Тнав!$A$3:$E$250,3,FALSE) -> 5.44719703 | J89: 8.267365 | K89: 100 | L89: 0 | M89: 19.07381821 | P89: =Шлейфы!$L$2 -> 5.368657296 | Q89: =VLOOKUP($C89,Тнав!$A$3:$E$250,4,FALSE) -> 360.0481026 | U89: 28.38879092 | Z89: 22.85891342 | AB89: -0.01524328399 | AC89: 00:00:00 | AE89: -2.375867975 | AL89: -8.181959904 | AM89: 1.127111283 | AN89: -7.331855597 | AO89: 1.965475085 | AP89: 89.3224827 | AQ89: -0.695587 | AR89: -9.218445187 | AS89: -9.061161 | AT89: -22.6529025 | AW89: -9.218445187 | AX89: 5.448711171 | AY89: 29.45940527 | AZ89: 22.85891342 | BB89: -0.5979742156 | BC89: -4.048572889 | BD89: -15.13639285 | BE89: -4.909274705 | BM89: 28.77503967 | CS89: 251 | CT89: 25 | CU89: 17.51548151 | CV89: 19.56401474 | CW89: 20.89045494 | CX89: 2.292041182 | CY89: 10.050616 | CZ89: 280.2304861 | DA89: 100 | DC89: безгидратный | DD89: 19.49007416 | DE89: 8 | DG89: 23.59617805
A90: 10 | B90: 924.97 | C90: 211 | D90: 21 | F90: =VLOOKUP($C90,Тнав!$A$3:$E$250,2,FALSE) -> 11.51953623 | G90: 15.53188006 | H90: 20.78620358 | I90: =VLOOKUP($C90,Тнав!$A$3:$E$250,3,FALSE) -> 6.220040779 | J90: 8.4289665 | K90: 97.82688 | L90: 0 | M90: 17.08793068 | P90: =Шлейфы!$L$2 -> 5.368657296 | Q90: =VLOOKUP($C90,Тнав!$A$3:$E$250,4,FALSE) -> 322.7295052 | R90: 15.6 | S90: 19.47 | T90: 20.94 | U90: 7.536244364 | V90: 8.16 | W90: 97.8 | X90: 0.0 | Y90: 22.53285415 | Z90: 21.14409828 | AB90: -0.01524328399 | AD90: 233.52 | AE90: -0.470600089 | AF90: 4.080463774 | AG90: 35.42211851 | AH90: 3.938119938 | AI90: 25.35507564 | AJ90: 322.7295052 | AK90: -27.64219067 | AL90: -7.105161241 | AM90: 0.1512290184 | AN90: -7.401119069 | AO90: 1.823184305 | AP90: 48.69424336 | AQ90: -0.3097113 | AR90: -4.188457481 | AS90: 11.368256 | AT90: 22.736512 | AW90: -4.188457481 | AX90: 8.272430006 | AY90: 47.97609545 | AZ90: 21.14409828 | BB90: -0.5979742156 | BC90: -4.048572889 | BD90: -58.77109977 | BE90: -16.48396828 | BM90: 28.39674377 | BN90: -100 | CS90: 252 | CU90: 17.67344623 | CV90: 21.04829613 | CW90: 22.47958027 | CX90: 1.34437765 | CY90: 9.57345 | CZ90: 151.1337943 | DA90: 100 | DC90: безгидратный | DD90: 9.735001564 | DE90: 8 | DG90: 24.17067528
